Workbook

Sheet Resource Options
B2: Long Description | C2: Tab | D2: Storage (MWh) | E2: Plant Size (MW) (59F)
B3: 7F.04 CT Frame Greenfield | C3: Fuel Gen | E3: 180.495
B4: Reciprocating Engine (ICE) Machine | C4: Fuel Gen | E4: 185.438
B5: NG CCCT (1x1 w/DF) | C5: Fuel Gen | E5: 311.536
B6: Small Modular Reactor (share) | C6: Other PPA | E6: 100
B7: NW Wind On System (Share) | C7: Wind PPA | E7: 100
B8: NW Wind Off System | C8: Wind PPA | E8: 100
B9: Wind Montana | C9: Wind PPA | E9: 100
B10: Off Shore Wind (Share) | C10: Wind PPA | E10: 100
B11: New Residential Solar | C11: Solar PPA | E11: =7/1.15/1000 -> 0.006086956522
B12: New Residential Solar + Storage | C12: Solar PPA | D12: 0.005 | E12: =E11 -> 0.006086956522
B13: Existing Residential Solar | C13: Solar PPA | E13: =7/1.15/1000 -> 0.006086956522
B14: Existing Residential Solar + Storage | C14: Solar PPA | D14: 0.005 | E14: =E13 -> 0.006086956522
B15: Commercial Solar | C15: Solar PPA | E15: 1
B16: Commercial Solar + Storage | C16: Solar PPA | D16: 1 | E16: =E15 -> 1
B17: Solar Photovoltaic Fixed Array (5 MW AC) | C17: Solar PPA | E17: 5
B18: Solar Photovoltaic Fixed Array (5 MW AC) + Storage | C18: Solar PPA | D18: 5 | E18: =E17 -> 5
B19: Solar Photovoltaic w/Single Axis Tracking (100 MW AC) | C19: Solar PPA | E19: 100
B20: Southern NW Solar Photovoltaic w/ Single Axis Tracking (100 MW AC) | C20: Solar PPA | E20: 100
B21: 100 MW/400 MWh Lithium-ion w/Solar | C21: Solar PPA | D21: 100 | E21: =E19 -> 100
B22: 100 MW/200 MWh Lithium-ion w/Solar | C22: Solar PPA | D22: 100 | E22: =E19 -> 100
B23: 50 MW/200 MWh Lithium-ion w/Solar | C23: Solar PPA | D23: 50 | E23: =E19 -> 100
B24: Distribution Scale 4hr Lithium-Ion | C24: Ownership Storage | D24: =E24*4 -> 20 | E24: 5
B25: Distribution Scale 8hr Lithium-Ion | C25: Ownership Storage | D25: =E25*8 -> 40 | E25: 5
B26: 4hr Lithium-Ion | C26: Ownership Storage | D26: =E26*4 -> 100 | E26: 25
B27: 8hr Lithium-Ion | C27: Ownership Storage | D27: =E27*8 -> 200 | E27: 25
B28: 16hr Lithium-Ion | C28: Ownership Storage | D28: =E28*16 -> 400 | E28: 25
B29: 4 hr Vanadium Flow Battery | C29: Ownership Storage | D29: =E29*4 -> 100 | E29: 25
B30: 4 hr Zinc Bromide Flow Battery | C30: Ownership Storage | D30: =E30*4 -> 100 | E30: 25
B31: 100hr Iron Oxide | C31: Ownership Storage | D31: =E31*100 -> 10000 | E31: 100
B32: Geothermal (Off System) | C32: Other PPA | E32: 20
B33: Hydrogen Fuel Cell with 40 hrs Storage | C33: Fuel Gen | E33: 25
B34: 7F.04 CT Frame Greenfield + ammonia + storage | C34: Fuel Gen | E34: 74
B35: Liquid Air | C35: Ownership Storage | D35: 400 | E35: 25
B36: Pumped Hydro (8.5 hr/ 400 MW share) | C36: Ownership Storage | D36: =E36*8.5 -> 3400 | E36: 400
B37: Pumped Hydro (16 hr/ 100 MW) | C37: Ownership Storage | D37: =E37*16 -> 1600 | E37: 100
B38: Pumped Hyrdo (24 hr/ 100 MW) | C38: Ownership Storage | D38: =E38*24 -> 2400 | E38: 100
B39: Wood Biomass | C39: Upgrades | E39: 57.6
B40: Rathdrum CT 2055 Uprates two unit operation | C40: Upgrades | E40: 5
B41: Rathdrum CT: Inlet Evaporation 2 unit operation | C41: Upgrades | E41: 10

Sheet DATA (Real)
A1: REFERENCE CODE | B1: Base Year USD | C1: Source | D1: Data Point | E1: Resource | F1: 2020 | G1: 2021 | H1: 2022 | I1: 2023 | J1: 2024 | K1: 2025 | L1: 2026 | M1: 2027 | N1: 2028 | O1: 2029 | P1: 2030 | Q1: 2031 | R1: 2032 | S1: 2033 | T1: 2034 | U1: 2035 | V1: 2036 | W1: 2037 | X1: 2038 | Y1: 2039 | Z1: 2040 | AA1: 2041 | AB1: 2042 | AC1: 2043 | AD1: 2044 | AE1: 2045 | AF1: 2046 | AG1: 2047 | AH1: 2048 | AI1: 2049 | AJ1: 2050 | AK1: 2051 | AL1: 2052 | AM1: 2053 | AN1: 2054 | AO1: 2055 | AP1: 2056 | AQ1: 2057 | AR1: 2058 | AS1: 2059 | AT1: 2060 | AU1: 2061 | AV1: 2062 | AW1: 2063 | AX1: 2064 | AY1: 2065 | AZ1: 2066 | BA1: 2067 | BB1: 2068 | BC1: 2069 | BD1: 2070 | BE1: 2071 | BF1: 2072 | BG1: 2073 | BH1: 2074 | BI1: 2075 | BJ1: 2076 | BK1: 2077 | BL1: 2078 | BM1: 2079 | BN1: 2080 | BO1: 2081 | BP1: 2082 | BQ1: 2083 | BR1: 2084 | BS1: 2085 | BT1: 2086 | BU1: 2087 | BV1: 2088 | BW1: 2089 | BX1: 2090
B3: =D3 -> Net Capacity Factor (%) | D3: Net Capacity Factor (%)
C4: Internal | D4: Net Capacity Factor (%) | E4: Wood Biomass | F4: 0.5 | G4: 0.5 | H4: 0.5 | I4: 0.5 | J4: 0.5 | K4: 0.5 | L4: 0.5 | M4: 0.5 | N4: 0.5 | O4: 0.5 | P4: 0.5 | Q4: 0.5 | R4: 0.5 | S4: 0.5 | T4: 0.5 | U4: 0.5 | V4: 0.5 | W4: 0.5 | X4: 0.5 | Y4: 0.5 | Z4: 0.5 | AA4: 0.5 | AB4: 0.5 | AC4: 0.5 | AD4: 0.5 | AE4: 0.5 | AF4: 0.5 | AG4: 0.5 | AH4: 0.5 | AI4: 0.5 | AJ4: 0.5 | AK4: 0.5 | AL4: 0.5 | AM4: 0.5 | AN4: 0.5 | AO4: 0.5 | AP4: 0.5 | AQ4: 0.5 | AR4: 0.5 | AS4: 0.5 | AT4: 0.5 | AU4: 0.5 | AV4: 0.5 | AW4: 0.5 | AX4: 0.5 | AY4: 0.5 | AZ4: 0.5 | BA4: 0.5 | BB4: 0.5 | BC4: 0.5 | BD4: 0.5 | BE4: 0.5 | BF4: 0.5 | BG4: 0.5 | BH4: 0.5 | BI4: 0.5 | BJ4: 0.5 | BK4: 0.5 | BL4: 0.5 | BM4: 0.5 | BN4: 0.5 | BO4: 0.5 | BP4: 0.5 | BQ4: 0.5 | BR4: 0.5 | BS4: 0.5 | BT4: 0.5 | BU4: 0.5 | BV4: 0.5 | BW4: 0.5 | BX4: 0.5
C5: Internal | D5: Net Capacity Factor (%) | E5: Rathdrum CT 2055 Uprates two unit operation | F5: 0.9132420091 | G5: 0.9132420091 | H5: 0.9132420091 | I5: 0.9132420091 | J5: 0.9132420091 | K5: 0.9132420091 | L5: 0.9132420091 | M5: 0.9132420091 | N5: 0.9132420091 | O5: 0.9132420091 | P5: 0.9132420091 | Q5: 0.9132420091 | R5: 0.9132420091 | S5: 0.9132420091 | T5: 0.9132420091 | U5: 0.9132420091 | V5: 0.9132420091 | W5: 0.9132420091 | X5: 0.9132420091 | Y5: 0.9132420091 | Z5: 0.9132420091 | AA5: 0.9132420091 | AB5: 0.9132420091 | AC5: 0.9132420091 | AD5: 0.9132420091 | AE5: 0.9132420091 | AF5: 0.9132420091 | AG5: 0.9132420091 | AH5: 0.9132420091 | AI5: 0.9132420091 | AJ5: 0.9132420091 | AK5: 0.9132420091 | AL5: 0.9132420091 | AM5: 0.9132420091 | AN5: 0.9132420091 | AO5: 0.9132420091 | AP5: 0.9132420091 | AQ5: 0.9132420091 | AR5: 0.9132420091 | AS5: 0.9132420091 | AT5: 0.9132420091 | AU5: 0.9132420091 | AV5: 0.9132420091 | AW5: 0.9132420091 | AX5: 0.9132420091 | AY5: 0.9132420091 | AZ5: 0.9132420091 | BA5: 0.9132420091 | BB5: 0.9132420091 | BC5: 0.9132420091 | BD5: 0.9132420091 | BE5: 0.9132420091 | BF5: 0.9132420091 | BG5: 0.9132420091 | BH5: 0.9132420091 | BI5: 0.9132420091 | BJ5: 0.9132420091 | BK5: 0.9132420091 | BL5: 0.9132420091 | BM5: 0.9132420091 | BN5: 0.9132420091 | BO5: 0.9132420091 | BP5: 0.9132420091 | BQ5: 0.9132420091 | BR5: 0.9132420091 | BS5: 0.9132420091 | BT5: 0.9132420091 | BU5: 0.9132420091 | BV5: 0.9132420091 | BW5: 0.9132420091 | BX5: 0.9132420091
C6: Internal | D6: Net Capacity Factor (%) | E6: Rathdrum CT: Inlet Evaporation 2 unit operation | F6: =F5 -> 0.9132420091 | G6: =G5 -> 0.9132420091 | H6: 0.9132420091 | I6: 0.9132420091 | J6: 0.9132420091 | K6: 0.9132420091 | L6: 0.9132420091 | M6: 0.9132420091 | N6: 0.9132420091 | O6: 0.9132420091 | P6: 0.9132420091 | Q6: 0.9132420091 | R6: 0.9132420091 | S6: 0.9132420091 | T6: 0.9132420091 | U6: 0.9132420091 | V6: 0.9132420091 | W6: 0.9132420091 | X6: 0.9132420091 | Y6: 0.9132420091 | Z6: 0.9132420091 | AA6: 0.9132420091 | AB6: 0.9132420091 | AC6: 0.9132420091 | AD6: 0.9132420091 | AE6: 0.9132420091 | AF6: 0.9132420091 | AG6: 0.9132420091 | AH6: 0.9132420091 | AI6: 0.9132420091 | AJ6: 0.9132420091 | AK6: 0.9132420091 | AL6: 0.9132420091 | AM6: 0.9132420091 | AN6: 0.9132420091 | AO6: 0.9132420091 | AP6: 0.9132420091 | AQ6: 0.9132420091 | AR6: 0.9132420091 | AS6: 0.9132420091 | AT6: 0.9132420091 | AU6: 0.9132420091 | AV6: 0.9132420091 | AW6: 0.9132420091 | AX6: 0.9132420091 | AY6: 0.9132420091 | AZ6: 0.9132420091 | BA6: 0.9132420091 | BB6: 0.9132420091 | BC6: 0.9132420091 | BD6: 0.9132420091 | BE6: 0.9132420091 | BF6: 0.9132420091 | BG6: 0.9132420091 | BH6: 0.9132420091 | BI6: 0.9132420091 | BJ6: 0.9132420091 | BK6: 0.9132420091 | BL6: 0.9132420091 | BM6: 0.9132420091 | BN6: 0.9132420091 | BO6: 0.9132420091 | BP6: 0.9132420091 | BQ6: 0.9132420091 | BR6: 0.9132420091 | BS6: =BS5 -> 0.9132420091 | BT6: 0.9132420091 | BU6: 0.9132420091 | BV6: 0.9132420091 | BW6: 0.9132420091 | BX6: 0.9132420091
A7: NREL - RPV8 (CF) | C7: Internal/NREL Residential PV - Class 8 | D7: Net Capacity Factor (%) | E7: New Residential Solar | F7: 0.1367137964 | G7: 0.1369249893 | H7: 0.1371361821 | I7: 0.137347375 | J7: 0.1375585679 | K7: 0.1377697608 | L7: 0.1379809537 | M7: 0.1381921466 | N7: 0.1384033395 | O7: 0.1386145324 | P7: 0.1388257253 | Q7: 0.1390049772 | R7: 0.1391842291 | S7: 0.139363481 | T7: 0.1395427329 | U7: 0.1397219848 | V7: 0.1399012367 | W7: 0.1400804886 | X7: 0.1402597405 | Y7: 0.1404389924 | Z7: 0.1406182443 | AA7: 0.1407974962 | AB7: 0.1409767481 | AC7: 0.141156 | AD7: 0.1413352519 | AE7: 0.1415145038 | AF7: 0.1416937557 | AG7: 0.1418730076 | AH7: 0.1420522595 | AI7: 0.1422315114 | AJ7: 0.1424107633 | AK7: =AJ7*1.002 -> 0.1426955848 | AL7: =AK7*1.002 -> 0.142980976 | AM7: =AL7*1.002 -> 0.1432669379 | AN7: =AM7*1.002 -> 0.1435534718 | AO7: =AN7*1.002 -> 0.1438405788 | AP7: =AO7*1.002 -> 0.1441282599 | AQ7: =AP7*1.002 -> 0.1444165164 | AR7: =AQ7*1.002 -> 0.1447053495 | AS7: =AR7*1.002 -> 0.1449947602 | AT7: =AS7*1.002 -> 0.1452847497 | AU7: =AT7*1.002 -> 0.1455753192 | AV7: =AU7*1.002 -> 0.1458664698 | AW7: =AV7*1.002 -> 0.1461582028 | AX7: =AW7*1.002 -> 0.1464505192 | AY7: =AX7*1.002 -> 0.1467434202 | AZ7: =AY7*1.002 -> 0.147036907 | BA7: =AZ7*1.002 -> 0.1473309809 | BB7: =BA7*1.002 -> 0.1476256428 | BC7: =BB7*1.002 -> 0.1479208941 | BD7: =BC7*1.002 -> 0.1482167359 | BE7: =BD7*1.002 -> 0.1485131694 | BF7: =BE7*1.002 -> 0.1488101957 | BG7: =BF7*1.002 -> 0.1491078161 | BH7: =BG7*1.002 -> 0.1494060317 | BI7: =BH7*1.002 -> 0.1497048438 | BJ7: =BI7*1.002 -> 0.1500042535 | BK7: =BJ7*1.002 -> 0.150304262 | BL7: =BK7*1.002 -> 0.1506048705 | BM7: =BL7*1.002 -> 0.1509060802 | BN7: =BM7*1.002 -> 0.1512078924 | BO7: =BN7*1.002 -> 0.1515103082 | BP7: =BO7*1.002 -> 0.1518133288 | BQ7: =BP7*1.002 -> 0.1521169555 | BR7: =BQ7*1.002 -> 0.1524211894 | BS7: =BR7*1.002 -> 0.1527260318 | BT7: =BS7*1.002 -> 0.1530314838 | BU7: =BT7*1.002 -> 0.1533375468 | BV7: =BU7*1.002 -> 0.1536442219 | BW7: =BV7*1.002 -> 0.1539515103 | BX7: =BW7*1.002 -> 0.1542594133
C8: Internal/NREL Residential PV - Class 8 | D8: Net Capacity Factor (%) | E8: New Residential Solar + Storage (Solar Only) | F8: =F7 -> 0.1367137964 | G8: =G7 -> 0.1369249893 | H8: 0.1371361821 | I8: 0.137347375 | J8: 0.1375585679 | K8: 0.1377697608 | L8: 0.1379809537 | M8: 0.1381921466 | N8: 0.1384033395 | O8: 0.1386145324 | P8: 0.1388257253 | Q8: 0.1390049772 | R8: 0.1391842291 | S8: 0.139363481 | T8: 0.1395427329 | U8: 0.1397219848 | V8: 0.1399012367 | W8: 0.1400804886 | X8: 0.1402597405 | Y8: 0.1404389924 | Z8: 0.1406182443 | AA8: 0.1407974962 | AB8: 0.1409767481 | AC8: 0.141156 | AD8: 0.1413352519 | AE8: 0.1415145038 | AF8: 0.1416937557 | AG8: 0.1418730076 | AH8: 0.1420522595 | AI8: 0.1422315114 | AJ8: 0.1424107633 | AK8: 0.1426955848 | AL8: 0.142980976 | AM8: 0.1432669379 | AN8: 0.1435534718 | AO8: 0.1438405788 | AP8: 0.1441282599 | AQ8: 0.1444165164 | AR8: 0.1447053495 | AS8: 0.1449947602 | AT8: 0.1452847497 | AU8: 0.1455753192 | AV8: 0.1458664698 | AW8: 0.1461582028 | AX8: 0.1464505192 | AY8: 0.1467434202 | AZ8: 0.147036907 | BA8: 0.1473309809 | BB8: 0.1476256428 | BC8: 0.1479208941 | BD8: 0.1482167359 | BE8: 0.1485131694 | BF8: 0.1488101957 | BG8: 0.1491078161 | BH8: 0.1494060317 | BI8: 0.1497048438 | BJ8: 0.1500042535 | BK8: 0.150304262 | BL8: 0.1506048705 | BM8: 0.1509060802 | BN8: 0.1512078924 | BO8: 0.1515103082 | BP8: 0.1518133288 | BQ8: 0.1521169555 | BR8: 0.1524211894 | BS8: =BS7 -> 0.1527260318 | BT8: 0.1530314838 | BU8: 0.1533375468 | BV8: 0.1536442219 | BW8: 0.1539515103 | BX8: 0.1542594133
C9: Internal/NREL Residential PV - Class 8 | D9: Net Capacity Factor (%) | E9: Existing Residential Solar | F9: =F7 -> 0.1367137964 | G9: =G7 -> 0.1369249893 | H9: 0.1371361821 | I9: 0.137347375 | J9: 0.1375585679 | K9: 0.1377697608 | L9: 0.1379809537 | M9: 0.1381921466 | N9: 0.1384033395 | O9: 0.1386145324 | P9: 0.1388257253 | Q9: 0.1390049772 | R9: 0.1391842291 | S9: 0.139363481 | T9: 0.1395427329 | U9: 0.1397219848 | V9: 0.1399012367 | W9: 0.1400804886 | X9: 0.1402597405 | Y9: 0.1404389924 | Z9: 0.1406182443 | AA9: 0.1407974962 | AB9: 0.1409767481 | AC9: 0.141156 | AD9: 0.1413352519 | AE9: 0.1415145038 | AF9: 0.1416937557 | AG9: 0.1418730076 | AH9: 0.1420522595 | AI9: 0.1422315114 | AJ9: 0.1424107633 | AK9: 0.1426955848 | AL9: 0.142980976 | AM9: 0.1432669379 | AN9: 0.1435534718 | AO9: 0.1438405788 | AP9: 0.1441282599 | AQ9: 0.1444165164 | AR9: 0.1447053495 | AS9: 0.1449947602 | AT9: 0.1452847497 | AU9: 0.1455753192 | AV9: 0.1458664698 | AW9: 0.1461582028 | AX9: 0.1464505192 | AY9: 0.1467434202 | AZ9: 0.147036907 | BA9: 0.1473309809 | BB9: 0.1476256428 | BC9: 0.1479208941 | BD9: 0.1482167359 | BE9: 0.1485131694 | BF9: 0.1488101957 | BG9: 0.1491078161 | BH9: 0.1494060317 | BI9: 0.1497048438 | BJ9: 0.1500042535 | BK9: 0.150304262 | BL9: 0.1506048705 | BM9: 0.1509060802 | BN9: 0.1512078924 | BO9: 0.1515103082 | BP9: 0.1518133288 | BQ9: 0.1521169555 | BR9: 0.1524211894 | BS9: =BS7 -> 0.1527260318 | BT9: 0.1530314838 | BU9: 0.1533375468 | BV9: 0.1536442219 | BW9: 0.1539515103 | BX9: 0.1542594133
C10: Internal/NREL Residential PV - Class 8 | D10: Net Capacity Factor (%) | E10: Existing Residential Solar + Storage (Solar Only) | F10: =F7 -> 0.1367137964 | G10: =G7 -> 0.1369249893 | H10: 0.1371361821 | I10: 0.137347375 | J10: 0.1375585679 | K10: 0.1377697608 | L10: 0.1379809537 | M10: 0.1381921466 | N10: 0.1384033395 | O10: 0.1386145324 | P10: 0.1388257253 | Q10: 0.1390049772 | R10: 0.1391842291 | S10: 0.139363481 | T10: 0.1395427329 | U10: 0.1397219848 | V10: 0.1399012367 | W10: 0.1400804886 | X10: 0.1402597405 | Y10: 0.1404389924 | Z10: 0.1406182443 | AA10: 0.1407974962 | AB10: 0.1409767481 | AC10: 0.141156 | AD10: 0.1413352519 | AE10: 0.1415145038 | AF10: 0.1416937557 | AG10: 0.1418730076 | AH10: 0.1420522595 | AI10: 0.1422315114 | AJ10: 0.1424107633 | AK10: 0.1426955848 | AL10: 0.142980976 | AM10: 0.1432669379 | AN10: 0.1435534718 | AO10: 0.1438405788 | AP10: 0.1441282599 | AQ10: 0.1444165164 | AR10: 0.1447053495 | AS10: 0.1449947602 | AT10: 0.1452847497 | AU10: 0.1455753192 | AV10: 0.1458664698 | AW10: 0.1461582028 | AX10: 0.1464505192 | AY10: 0.1467434202 | AZ10: 0.147036907 | BA10: 0.1473309809 | BB10: 0.1476256428 | BC10: 0.1479208941 | BD10: 0.1482167359 | BE10: 0.1485131694 | BF10: 0.1488101957 | BG10: 0.1491078161 | BH10: 0.1494060317 | BI10: 0.1497048438 | BJ10: 0.1500042535 | BK10: 0.150304262 | BL10: 0.1506048705 | BM10: 0.1509060802 | BN10: 0.1512078924 | BO10: 0.1515103082 | BP10: 0.1518133288 | BQ10: 0.1521169555 | BR10: 0.1524211894 | BS10: =BS7 -> 0.1527260318 | BT10: 0.1530314838 | BU10: 0.1533375468 | BV10: 0.1536442219 | BW10: 0.1539515103 | BX10: 0.1542594133
A11: NREL - CPV8 (CF) | C11: Internal/NREL Commercial PV - Class 8 | D11: Net Capacity Factor (%) | E11: Commercial Solar | F11: 0.1386193385 | G11: 0.1400994544 | H11: 0.1415795702 | I11: 0.143059686 | J11: 0.1445398019 | K11: 0.1460199177 | L11: 0.1475000336 | M11: 0.1489801494 | N11: 0.1504602652 | O11: 0.1519403811 | P11: 0.1534204969 | Q11: 0.1539762809 | R11: 0.154532065 | S11: 0.155087849 | T11: 0.155643633 | U11: 0.156199417 | V11: 0.1567552011 | W11: 0.1573109851 | X11: 0.1578667691 | Y11: 0.1584225531 | Z11: 0.1589783372 | AA11: 0.1595341212 | AB11: 0.1600899052 | AC11: 0.1606456893 | AD11: 0.1612014733 | AE11: 0.1617572573 | AF11: 0.1623130413 | AG11: 0.1628688254 | AH11: 0.1634246094 | AI11: 0.1639803934 | AJ11: 0.1645361774 | AK11: =AJ11*1.002 -> 0.1648652498 | AL11: 0.1651949803 | AM11: 0.1655253702 | AN11: 0.165856421 | AO11: 0.1661881338 | AP11: 0.1665205101 | AQ11: 0.1668535511 | AR11: 0.1671872582 | AS11: 0.1675216327 | AT11: 0.167856676 | AU11: 0.1681923894 | AV11: 0.1685287741 | AW11: 0.1688658317 | AX11: 0.1692035633 | AY11: 0.1695419705 | AZ11: 0.1698810544 | BA11: 0.1702208165 | BB11: 0.1705612582 | BC11: 0.1709023807 | BD11: 0.1712441854 | BE11: 0.1715866738 | BF11: 0.1719298471 | BG11: 0.1722737068 | BH11: 0.1726182543 | BI11: 0.1729634908 | BJ11: 0.1733094177 | BK11: 0.1736560366 | BL11: 0.1740033487 | BM11: 0.1743513554 | BN11: 0.1747000581 | BO11: 0.1750494582 | BP11: 0.1753995571 | BQ11: 0.1757503562 | BR11: 0.1761018569 | BS11: 0.1764540606 | BT11: 0.1768069688 | BU11: 0.1771605827 | BV11: 0.1775149039 | BW11: 0.1778699337 | BX11: 0.1782256735
C12: Internal/NREL Commercial PV - Class 8 | D12: Net Capacity Factor (%) | E12: Commercial Solar + Storage | F12: =F11 -> 0.1386193385 | G12: =G11 -> 0.1400994544 | H12: =H11 -> 0.1415795702 | I12: 0.143059686 | J12: 0.1445398019 | K12: 0.1460199177 | L12: 0.1475000336 | M12: 0.1489801494 | N12: 0.1504602652 | O12: 0.1519403811 | P12: 0.1534204969 | Q12: 0.1539762809 | R12: 0.154532065 | S12: 0.155087849 | T12: 0.155643633 | U12: 0.156199417 | V12: 0.1567552011 | W12: 0.1573109851 | X12: 0.1578667691 | Y12: 0.1584225531 | Z12: 0.1589783372 | AA12: 0.1595341212 | AB12: 0.1600899052 | AC12: 0.1606456893 | AD12: 0.1612014733 | AE12: 0.1617572573 | AF12: 0.1623130413 | AG12: 0.1628688254 | AH12: 0.1634246094 | AI12: 0.1639803934 | AJ12: 0.1645361774 | AK12: 0.1648652498 | AL12: 0.1651949803 | AM12: 0.1655253702 | AN12: 0.165856421 | AO12: 0.1661881338 | AP12: 0.1665205101 | AQ12: 0.1668535511 | AR12: 0.1671872582 | AS12: 0.1675216327 | AT12: 0.167856676 | AU12: 0.1681923894 | AV12: 0.1685287741 | AW12: 0.1688658317 | AX12: 0.1692035633 | AY12: 0.1695419705 | AZ12: 0.1698810544 | BA12: 0.1702208165 | BB12: 0.1705612582 | BC12: 0.1709023807 | BD12: 0.1712441854 | BE12: 0.1715866738 | BF12: 0.1719298471 | BG12: 0.1722737068 | BH12: 0.1726182543 | BI12: 0.1729634908 | BJ12: 0.1733094177 | BK12: 0.1736560366 | BL12: 0.1740033487 | BM12: 0.1743513554 | BN12: 0.1747000581 | BO12: 0.1750494582 | BP12: 0.1753995571 | BQ12: 0.1757503562 | BR12: 0.1761018569 | BS12: =BS11 -> 0.1764540606 | BT12: 0.1768069688 | BU12: 0.1771605827 | BV12: 0.1775149039 | BW12: 0.1778699337 | BX12: 0.1782256735
A13: NREL - UPV4 (CF) | C13: Internal/NREL Utility PV - Class 4 | D13: Net Capacity Factor (%) | E13: Solar Photovoltaic Fixed Array (5 MW AC) | F13: 0.2608403997 | G13: 0.2636255378 | H13: 0.266410676 | I13: 0.2691958141 | J13: 0.2719809522 | K13: 0.2747660904 | L13: 0.2775512285 | M13: 0.2803363667 | N13: 0.2831215048 | O13: 0.285906643 | P13: 0.2886917811 | Q13: 0.2897376015 | R13: 0.2907834218 | S13: 0.2918292422 | T13: 0.2928750626 | U13: 0.2939208829 | V13: 0.2949667033 | W13: 0.2960125237 | X13: 0.297058344 | Y13: 0.2981041644 | Z13: 0.2991499848 | AA13: 0.3001958051 | AB13: 0.3012416255 | AC13: 0.3022874459 | AD13: 0.3033332662 | AE13: 0.3043790866 | AF13: 0.305424907 | AG13: 0.3064707273 | AH13: 0.3075165477 | AI13: 0.3085623681 | AJ13: 0.3096081884 | AK13: =AK15 -> 0.3089042843 | AL13: 0.3095220928 | AM13: 0.310141137 | AN13: 0.3107614193 | AO13: 0.3113829421 | AP13: 0.312005708 | AQ13: 0.3126297194 | AR13: 0.3132549789 | AS13: 0.3138814888 | AT13: 0.3145092518 | AU13: 0.3151382703 | AV13: 0.3157685468 | AW13: 0.3164000839 | AX13: 0.3170328841 | AY13: 0.3176669499 | AZ13: 0.3183022838 | BA13: 0.3189388883 | BB13: 0.3195767661 | BC13: 0.3202159197 | BD13: 0.3208563515 | BE13: 0.3214980642 | BF13: 0.3221410603 | BG13: 0.3227853424 | BH13: 0.3234309131 | BI13: 0.324077775 | BJ13: 0.3247259305 | BK13: 0.3253753824 | BL13: 0.3260261331 | BM13: 0.3266781854 | BN13: 0.3273315418 | BO13: 0.3279862048 | BP13: 0.3286421773 | BQ13: 0.3292994616 | BR13: 0.3299580605 | BS13: =BS15 -> 0.3306179767 | BT13: 0.3312792126 | BU13: 0.331941771 | BV13: 0.3326056546 | BW13: 0.3332708659 | BX13: 0.3339374076
C14: Internal/NREL Utility PV - Class 4 | D14: Net Capacity Factor (%) | E14: Solar Photovoltaic Fixed Array (5 MW AC) + Storage (Solar Only) | F14: =F13 -> 0.2608403997 | G14: =G13 -> 0.2636255378 | H14: =H13 -> 0.266410676 | I14: 0.2691958141 | J14: 0.2719809522 | K14: 0.2747660904 | L14: 0.2775512285 | M14: 0.2803363667 | N14: 0.2831215048 | O14: 0.285906643 | P14: 0.2886917811 | Q14: 0.2897376015 | R14: 0.2907834218 | S14: 0.2918292422 | T14: 0.2928750626 | U14: 0.2939208829 | V14: 0.2949667033 | W14: 0.2960125237 | X14: 0.297058344 | Y14: 0.2981041644 | Z14: 0.2991499848 | AA14: 0.3001958051 | AB14: 0.3012416255 | AC14: 0.3022874459 | AD14: 0.3033332662 | AE14: 0.3043790866 | AF14: 0.305424907 | AG14: 0.3064707273 | AH14: 0.3075165477 | AI14: 0.3085623681 | AJ14: 0.3096081884 | AK14: 0.3089042843 | AL14: 0.3095220928 | AM14: 0.310141137 | AN14: 0.3107614193 | AO14: 0.3113829421 | AP14: 0.312005708 | AQ14: 0.3126297194 | AR14: 0.3132549789 | AS14: 0.3138814888 | AT14: 0.3145092518 | AU14: 0.3151382703 | AV14: 0.3157685468 | AW14: 0.3164000839 | AX14: 0.3170328841 | AY14: 0.3176669499 | AZ14: 0.3183022838 | BA14: 0.3189388883 | BB14: 0.3195767661 | BC14: 0.3202159197 | BD14: 0.3208563515 | BE14: 0.3214980642 | BF14: 0.3221410603 | BG14: 0.3227853424 | BH14: 0.3234309131 | BI14: 0.324077775 | BJ14: 0.3247259305 | BK14: 0.3253753824 | BL14: 0.3260261331 | BM14: 0.3266781854 | BN14: 0.3273315418 | BO14: 0.3279862048 | BP14: 0.3286421773 | BQ14: 0.3292994616 | BR14: 0.3299580605 | BS14: =BS13 -> 0.3306179767 | BT14: 0.3312792126 | BU14: 0.331941771 | BV14: 0.3326056546 | BW14: 0.3332708659 | BX14: 0.3339374076
A15: NREL - UPV4 (CF) | C15: Internal/NREL Utility PV - Class 4 | D15: Net Capacity Factor (%) | E15: Solar Photovoltaic w/Single Axis Tracking (100 MW AC) | F15: 0.2608403997 | G15: 0.2636255378 | H15: 0.266410676 | I15: 0.2691958141 | J15: 0.2719809522 | K15: 0.2747660904 | L15: 0.2775512285 | M15: =L15*1.0164 -> 0.2821030687 | N15: 0.286729559 | O15: 0.2914319238 | P15: 0.2962114073 | Q15: =P15*1.002 -> 0.2968038301 | R15: =Q15*1.002 -> 0.2973974378 | S15: 0.2979922327 | T15: 0.2985882171 | U15: 0.2991853936 | V15: 0.2997837644 | W15: 0.3003833319 | X15: 0.3009840986 | Y15: 0.3015860667 | Z15: 0.3021892389 | AA15: 0.3027936174 | AB15: 0.3033992046 | AC15: 0.304006003 | AD15: 0.304614015 | AE15: 0.305223243 | AF15: 0.3058336895 | AG15: 0.3064453569 | AH15: 0.3070582476 | AI15: 0.3076723641 | AJ15: 0.3082877088 | AK15: 0.3089042843 | AL15: 0.3095220928 | AM15: 0.310141137 | AN15: 0.3107614193 | AO15: 0.3113829421 | AP15: 0.312005708 | AQ15: 0.3126297194 | AR15: 0.3132549789 | AS15: 0.3138814888 | AT15: 0.3145092518 | AU15: 0.3151382703 | AV15: 0.3157685468 | AW15: 0.3164000839 | AX15: 0.3170328841 | AY15: 0.3176669499 | AZ15: 0.3183022838 | BA15: 0.3189388883 | BB15: 0.3195767661 | BC15: 0.3202159197 | BD15: 0.3208563515 | BE15: 0.3214980642 | BF15: 0.3221410603 | BG15: 0.3227853424 | BH15: 0.3234309131 | BI15: 0.324077775 | BJ15: 0.3247259305 | BK15: 0.3253753824 | BL15: 0.3260261331 | BM15: 0.3266781854 | BN15: 0.3273315418 | BO15: 0.3279862048 | BP15: 0.3286421773 | BQ15: 0.3292994616 | BR15: 0.3299580605 | BS15: 0.3306179767 | BT15: 0.3312792126 | BU15: 0.331941771 | BV15: 0.3326056546 | BW15: 0.3332708659 | BX15: 0.3339374076
A16: NREL - UPV3 (CF) | C16: Internal/NREL Utility PV - Class 3 | D16: Net Capacity Factor (%) | E16: Southern NW Solar Photovoltaic w/ Single Axis Tracking (100 MW AC) | F16: 0.2760042596 | G16: 0.2789513107 | H16: 0.2818983618 | I16: 0.2848454129 | J16: 0.287792464 | K16: 0.2907395151 | L16: 0.2936865663 | M16: 0.2985030259 | N16: 0.3033984756 | O16: 0.3083742106 | P16: 0.3134315476 | Q16: =P16*1.002 -> 0.3140584107 | R16: 0.3146865275 | S16: 0.3153159006 | T16: 0.3159465324 | U16: 0.3165784255 | V16: 0.3172115823 | W16: 0.3178460055 | X16: 0.3184816975 | Y16: 0.3191186609 | Z16: 0.3197568982 | AA16: 0.320396412 | AB16: 0.3210372048 | AC16: 0.3216792792 | AD16: 0.3223226378 | AE16: 0.3229672831 | AF16: 0.3236132176 | AG16: 0.3242604441 | AH16: 0.324908965 | AI16: 0.3255587829 | AJ16: 0.3262099004 | AK16: 0.3268623202 | AL16: 0.3275160449 | AM16: 0.328171077 | AN16: 0.3288274191 | AO16: 0.329485074 | AP16: 0.3301440441 | AQ16: 0.3308043322 | AR16: 0.3314659409 | AS16: 0.3321288728 | AT16: 0.3327931305 | AU16: 0.3334587168 | AV16: 0.3341256342 | AW16: 0.3347938855 | AX16: 0.3354634732 | AY16: 0.3361344002 | AZ16: 0.336806669 | BA16: 0.3374802823 | BB16: 0.3381552429 | BC16: 0.3388315534 | BD16: 0.3395092165 | BE16: 0.3401882349 | BF16: 0.3408686114 | BG16: 0.3415503486 | BH16: 0.3422334493 | BI16: 0.3429179162 | BJ16: 0.343603752 | BK16: 0.3442909595 | BL16: 0.3449795415 | BM16: 0.3456695005 | BN16: 0.3463608395 | BO16: 0.3470535612 | BP16: 0.3477476683 | BQ16: 0.3484431637 | BR16: 0.34914005 | BS16: 0.3498383301 | BT16: 0.3505380068 | BU16: 0.3512390828 | BV16: 0.3519415609 | BW16: 0.3526454441 | BX16: 0.3533507349
C17: Internal/NREL Utility PV - Class 4 | D17: Net Capacity Factor (%) | E17: 100 MW/400 MWh Lithium-ion w/Solar (Solar Only) | F17: =F15 -> 0.2608403997 | G17: =G15 -> 0.2636255378 | H17: 0.266410676 | I17: 0.2691958141 | J17: 0.2719809522 | K17: 0.2747660904 | L17: 0.2775512285 | M17: 0.2821030687 | N17: 0.286729559 | O17: 0.2914319238 | P17: 0.2962114073 | Q17: 0.2968038301 | R17: 0.2973974378 | S17: 0.2979922327 | T17: 0.2985882171 | U17: 0.2991853936 | V17: 0.2997837644 | W17: 0.3003833319 | X17: 0.3009840986 | Y17: 0.3015860667 | Z17: 0.3021892389 | AA17: 0.3027936174 | AB17: 0.3033992046 | AC17: 0.304006003 | AD17: 0.304614015 | AE17: 0.305223243 | AF17: 0.3058336895 | AG17: 0.3064453569 | AH17: 0.3070582476 | AI17: 0.3076723641 | AJ17: 0.3082877088 | AK17: 0.3089042843 | AL17: 0.3095220928 | AM17: 0.310141137 | AN17: 0.3107614193 | AO17: 0.3113829421 | AP17: 0.312005708 | AQ17: 0.3126297194 | AR17: 0.3132549789 | AS17: 0.3138814888 | AT17: 0.3145092518 | AU17: 0.3151382703 | AV17: 0.3157685468 | AW17: 0.3164000839 | AX17: 0.3170328841 | AY17: 0.3176669499 | AZ17: 0.3183022838 | BA17: 0.3189388883 | BB17: 0.3195767661 | BC17: 0.3202159197 | BD17: 0.3208563515 | BE17: 0.3214980642 | BF17: 0.3221410603 | BG17: 0.3227853424 | BH17: 0.3234309131 | BI17: 0.324077775 | BJ17: 0.3247259305 | BK17: 0.3253753824 | BL17: 0.3260261331 | BM17: 0.3266781854 | BN17: 0.3273315418 | BO17: 0.3279862048 | BP17: 0.3286421773 | BQ17: 0.3292994616 | BR17: 0.3299580605 | BS17: =BS15 -> 0.3306179767 | BT17: 0.3312792126 | BU17: 0.331941771 | BV17: 0.3326056546 | BW17: 0.3332708659 | BX17: 0.3339374076
C18: Internal/NREL Utility PV - Class 4 | D18: Net Capacity Factor (%) | E18: 100 MW/200 MWh Lithium-ion w/Solar (Solar Only) | F18: =F15 -> 0.2608403997 | G18: =G15 -> 0.2636255378 | H18: 0.266410676 | I18: 0.2691958141 | J18: 0.2719809522 | K18: 0.2747660904 | L18: 0.2775512285 | M18: 0.2821030687 | N18: 0.286729559 | O18: 0.2914319238 | P18: 0.2962114073 | Q18: 0.2968038301 | R18: 0.2973974378 | S18: 0.2979922327 | T18: 0.2985882171 | U18: 0.2991853936 | V18: 0.2997837644 | W18: 0.3003833319 | X18: 0.3009840986 | Y18: 0.3015860667 | Z18: 0.3021892389 | AA18: 0.3027936174 | AB18: 0.3033992046 | AC18: 0.304006003 | AD18: 0.304614015 | AE18: 0.305223243 | AF18: 0.3058336895 | AG18: 0.3064453569 | AH18: 0.3070582476 | AI18: 0.3076723641 | AJ18: 0.3082877088 | AK18: 0.3089042843 | AL18: 0.3095220928 | AM18: 0.310141137 | AN18: 0.3107614193 | AO18: 0.3113829421 | AP18: 0.312005708 | AQ18: 0.3126297194 | AR18: 0.3132549789 | AS18: 0.3138814888 | AT18: 0.3145092518 | AU18: 0.3151382703 | AV18: 0.3157685468 | AW18: 0.3164000839 | AX18: 0.3170328841 | AY18: 0.3176669499 | AZ18: 0.3183022838 | BA18: 0.3189388883 | BB18: 0.3195767661 | BC18: 0.3202159197 | BD18: 0.3208563515 | BE18: 0.3214980642 | BF18: 0.3221410603 | BG18: 0.3227853424 | BH18: 0.3234309131 | BI18: 0.324077775 | BJ18: 0.3247259305 | BK18: 0.3253753824 | BL18: 0.3260261331 | BM18: 0.3266781854 | BN18: 0.3273315418 | BO18: 0.3279862048 | BP18: 0.3286421773 | BQ18: 0.3292994616 | BR18: 0.3299580605 | BS18: =BS15 -> 0.3306179767 | BT18: 0.3312792126 | BU18: 0.331941771 | BV18: 0.3326056546 | BW18: 0.3332708659 | BX18: 0.3339374076
C19: Internal/NREL Utility PV - Class 4 | D19: Net Capacity Factor (%) | E19: 50 MW/200 MWh Lithium-ion w/Solar (Solar Only) | F19: =F15 -> 0.2608403997 | G19: =G15 -> 0.2636255378 | H19: 0.266410676 | I19: 0.2691958141 | J19: 0.2719809522 | K19: 0.2747660904 | L19: 0.2775512285 | M19: 0.2821030687 | N19: 0.286729559 | O19: 0.2914319238 | P19: 0.2962114073 | Q19: 0.2968038301 | R19: 0.2973974378 | S19: 0.2979922327 | T19: 0.2985882171 | U19: 0.2991853936 | V19: 0.2997837644 | W19: 0.3003833319 | X19: 0.3009840986 | Y19: 0.3015860667 | Z19: 0.3021892389 | AA19: 0.3027936174 | AB19: 0.3033992046 | AC19: 0.304006003 | AD19: 0.304614015 | AE19: 0.305223243 | AF19: 0.3058336895 | AG19: 0.3064453569 | AH19: 0.3070582476 | AI19: 0.3076723641 | AJ19: 0.3082877088 | AK19: 0.3089042843 | AL19: 0.3095220928 | AM19: 0.310141137 | AN19: 0.3107614193 | AO19: 0.3113829421 | AP19: 0.312005708 | AQ19: 0.3126297194 | AR19: 0.3132549789 | AS19: 0.3138814888 | AT19: 0.3145092518 | AU19: 0.3151382703 | AV19: 0.3157685468 | AW19: 0.3164000839 | AX19: 0.3170328841 | AY19: 0.3176669499 | AZ19: 0.3183022838 | BA19: 0.3189388883 | BB19: 0.3195767661 | BC19: 0.3202159197 | BD19: 0.3208563515 | BE19: 0.3214980642 | BF19: 0.3221410603 | BG19: 0.3227853424 | BH19: 0.3234309131 | BI19: 0.324077775 | BJ19: 0.3247259305 | BK19: 0.3253753824 | BL19: 0.3260261331 | BM19: 0.3266781854 | BN19: 0.3273315418 | BO19: 0.3279862048 | BP19: 0.3286421773 | BQ19: 0.3292994616 | BR19: 0.3299580605 | BS19: =BS15 -> 0.3306179767 | BT19: 0.3312792126 | BU19: 0.331941771 | BV19: 0.3326056546 | BW19: 0.3332708659 | BX19: 0.3339374076
A20: NREL - NWOS (CF) | C20: Internal/NREL Land-Based Wind - Class 8 | D20: Net Capacity Factor (%) | E20: NW Wind On System (Share) | F20: 0.322 | G20: =F20 -> 0.322 | H20: =G20 -> 0.322 | I20: 0.322 | J20: 0.322 | K20: 0.322 | L20: 0.322 | M20: =L20*1.0164 -> 0.3272808 | N20: =M20*1.0164 -> 0.3326482051 | O20: 0.3381036357 | P20: 0.3436485353 | Q20: =P20*1.001 -> 0.3439921838 | R20: =Q20*1.001 -> 0.344336176 | S20: 0.3446805122 | T20: 0.3450251927 | U20: 0.3453702179 | V20: 0.3457155881 | W20: 0.3460613037 | X20: 0.346407365 | Y20: 0.3467537724 | Z20: 0.3471005262 | AA20: 0.3474476267 | AB20: 0.3477950743 | AC20: 0.3481428694 | AD20: 0.3484910123 | AE20: 0.3488395033 | AF20: 0.3491883428 | AG20: 0.3495375311 | AH20: 0.3498870686 | AI20: 0.3502369557 | AJ20: 0.3505871927 | AK20: 0.3509377799 | AL20: 0.3512887176 | AM20: 0.3516400064 | AN20: 0.3519916464 | AO20: 0.352343638 | AP20: 0.3526959816 | AQ20: 0.3530486776 | AR20: 0.3534017263 | AS20: 0.353755128 | AT20: 0.3541088832 | AU20: 0.354462992 | AV20: 0.354817455 | AW20: 0.3551722725 | AX20: 0.3555274448 | AY20: 0.3558829722 | AZ20: 0.3562388552 | BA20: 0.356595094 | BB20: 0.3569516891 | BC20: 0.3573086408 | BD20: 0.3576659495 | BE20: 0.3580236154 | BF20: 0.358381639 | BG20: 0.3587400207 | BH20: 0.3590987607 | BI20: 0.3594578594 | BJ20: 0.3598173173 | BK20: 0.3601771346 | BL20: 0.3605373118 | BM20: 0.3608978491 | BN20: 0.3612587469 | BO20: 0.3616200057 | BP20: 0.3619816257 | BQ20: 0.3623436073 | BR20: 0.3627059509 | BS20: 0.3630686569 | BT20: 0.3634317255 | BU20: 0.3637951572 | BV20: 0.3641589524 | BW20: 0.3645231113 | BX20: 0.3648876345
C21: Internal/NREL Land-Based Wind - Class 8 | D21: Net Capacity Factor (%) | E21: NW Wind Off System | F21: =F20 -> 0.322 | G21: =G20 -> 0.322 | H21: =H20 -> 0.322 | I21: =I20 -> 0.322 | J21: =J20 -> 0.322 | K21: =K20 -> 0.322 | L21: =L20 -> 0.322 | M21: =M20 -> 0.3272808 | N21: =N20 -> 0.3326482051 | O21: =O20 -> 0.3381036357 | P21: =P20 -> 0.3436485353 | Q21: =Q20 -> 0.3439921838 | R21: =R20 -> 0.344336176 | S21: =S20 -> 0.3446805122 | T21: =T20 -> 0.3450251927 | U21: =U20 -> 0.3453702179 | V21: =V20 -> 0.3457155881 | W21: =W20 -> 0.3460613037 | X21: =X20 -> 0.346407365 | Y21: =Y20 -> 0.3467537724 | Z21: =Z20 -> 0.3471005262 | AA21: =AA20 -> 0.3474476267 | AB21: =AB20 -> 0.3477950743 | AC21: =AC20 -> 0.3481428694 | AD21: =AD20 -> 0.3484910123 | AE21: =AE20 -> 0.3488395033 | AF21: =AF20 -> 0.3491883428 | AG21: =AG20 -> 0.3495375311 | AH21: =AH20 -> 0.3498870686 | AI21: =AI20 -> 0.3502369557 | AJ21: =AJ20 -> 0.3505871927 | AK21: =AK20 -> 0.3509377799 | AL21: =AL20 -> 0.3512887176 | AM21: =AM20 -> 0.3516400064 | AN21: =AN20 -> 0.3519916464 | AO21: =AO20 -> 0.352343638 | AP21: =AP20 -> 0.3526959816 | AQ21: =AQ20 -> 0.3530486776 | AR21: =AR20 -> 0.3534017263 | AS21: =AS20 -> 0.353755128 | AT21: =AT20 -> 0.3541088832 | AU21: =AU20 -> 0.354462992 | AV21: =AV20 -> 0.354817455 | AW21: =AW20 -> 0.3551722725 | AX21: =AX20 -> 0.3555274448 | AY21: =AY20 -> 0.3558829722 | AZ21: =AZ20 -> 0.3562388552 | BA21: =BA20 -> 0.356595094 | BB21: =BB20 -> 0.3569516891 | BC21: =BC20 -> 0.3573086408 | BD21: =BD20 -> 0.3576659495 | BE21: =BE20 -> 0.3580236154 | BF21: =BF20 -> 0.358381639 | BG21: =BG20 -> 0.3587400207 | BH21: =BH20 -> 0.3590987607 | BI21: =BI20 -> 0.3594578594 | BJ21: =BJ20 -> 0.3598173173 | BK21: =BK20 -> 0.3601771346 | BL21: =BL20 -> 0.3605373118 | BM21: =BM20 -> 0.3608978491 | BN21: =BN20 -> 0.3612587469 | BO21: =BO20 -> 0.3616200057 | BP21: =BP20 -> 0.3619816257 | BQ21: =BQ20 -> 0.3623436073 | BR21: =BR20 -> 0.3627059509 | BS21: =BS20 -> 0.3630686569 | BT21: =BT20 -> 0.3634317255 | BU21: =BU20 -> 0.3637951572 | BV21: =BV20 -> 0.3641589524 | BW21: =BW20 -> 0.3645231113 | BX21: =BX20 -> 0.3648876345
C22: Internal | D22: Net Capacity Factor (%) | E22: Wind Montana | F22: 0.41 | G22: 0.41 | H22: 0.41 | I22: 0.41 | J22: 0.41 | K22: 0.41 | L22: 0.41 | M22: =L22*1.0164 -> 0.416724 | N22: =M22*1.0164 -> 0.4235582736 | O22: 0.4305046293 | P22: 0.4375649052 | Q22: =P22*1.001 -> 0.4380024701 | R22: =Q22*1.001 -> 0.4384404726 | S22: 0.4388789131 | T22: 0.439317792 | U22: 0.4397571098 | V22: 0.4401968669 | W22: 0.4406370637 | X22: 0.4410777008 | Y22: 0.4415187785 | Z22: 0.4419602973 | AA22: 0.4424022576 | AB22: 0.4428446598 | AC22: 0.4432875045 | AD22: 0.443730792 | AE22: 0.4441745228 | AF22: 0.4446186973 | AG22: 0.445063316 | AH22: 0.4455083793 | AI22: 0.4459538877 | AJ22: 0.4463998416 | AK22: 0.4468462414 | AL22: 0.4472930877 | AM22: 0.4477403808 | AN22: 0.4481881211 | AO22: 0.4486363093 | AP22: 0.4490849456 | AQ22: 0.4495340305 | AR22: 0.4499835646 | AS22: 0.4504335481 | AT22: 0.4508839817 | AU22: 0.4513348656 | AV22: 0.4517862005 | AW22: 0.4522379867 | AX22: 0.4526902247 | AY22: 0.4531429149 | AZ22: 0.4535960578 | BA22: 0.4540496539 | BB22: 0.4545037036 | BC22: 0.4549582073 | BD22: 0.4554131655 | BE22: 0.4558685786 | BF22: 0.4563244472 | BG22: 0.4567807717 | BH22: 0.4572375524 | BI22: 0.45769479 | BJ22: 0.4581524848 | BK22: 0.4586106373 | BL22: 0.4590692479 | BM22: 0.4595283171 | BN22: 0.4599878455 | BO22: 0.4604478333 | BP22: 0.4609082811 | BQ22: 0.4613691894 | BR22: 0.4618305586 | BS22: 0.4622923892 | BT22: 0.4627546816 | BU22: 0.4632174362 | BV22: 0.4636806537 | BW22: 0.4641443343 | BX22: 0.4646084787
A23: NREL - OSW12 (CF) | C23: NREL Wind Speed Class 12 | D23: Net Capacity Factor (%) | E23: Off Shore Wind (Share) | F23: 0.4618726114 | G23: 0.4668178941 | H23: 0.4713267726 | I23: 0.4755596161 | J23: 0.4796019705 | K23: 0.4835048988 | L23: 0.4873013381 | M23: 0.4910137773 | N23: 0.494658257 | O23: 0.4982466208 | P23: 0.5017878631 | Q23: 0.5032889752 | R23: 0.5047554993 | S23: 0.5061919036 | T23: 0.5076018423 | U23: 0.5089883428 | V23: 0.510353941 | W23: 0.5117007821 | X23: 0.5130306972 | Y23: 0.5143452617 | Z23: 0.5156458409 | AA23: 0.5169336256 | AB23: 0.5182096605 | AC23: 0.5194748678 | AD23: 0.5207300648 | AE23: 0.5219759799 | AF23: 0.5232132645 | AG23: 0.524442504 | AH23: 0.5256642262 | AI23: 0.5268789083 | AJ23: 0.5280869837
A24: NREL - NUC (CF) | C24: NREL Nuclear - Small Modular Reactor | D24: Net Capacity Factor (%) | E24: Small Modular Reactor (share) | F24: 0.937 | G24: 0.937 | H24: 0.937 | I24: 0.937 | J24: 0.937 | K24: 0.937 | L24: 0.937 | M24: 0.937 | N24: 0.937 | O24: 0.937 | P24: 0.937 | Q24: 0.937 | R24: 0.937 | S24: 0.937 | T24: 0.937 | U24: 0.937 | V24: 0.937 | W24: 0.937 | X24: 0.937 | Y24: 0.937 | Z24: 0.937 | AA24: 0.937 | AB24: 0.937 | AC24: 0.937 | AD24: 0.937 | AE24: 0.937 | AF24: 0.937 | AG24: 0.937 | AH24: 0.937 | AI24: 0.937 | AJ24: 0.937 | AK24: =AJ24 -> 0.937 | AL24: =AK24 -> 0.937 | AM24: 0.937 | AN24: 0.937 | AO24: 0.937 | AP24: 0.937 | AQ24: 0.937 | AR24: 0.937 | AS24: 0.937 | AT24: 0.937 | AU24: 0.937 | AV24: 0.937 | AW24: 0.937 | AX24: 0.937 | AY24: 0.937 | AZ24: 0.937 | BA24: 0.937 | BB24: 0.937 | BC24: 0.937 | BD24: 0.937 | BE24: 0.937 | BF24: 0.937 | BG24: 0.937 | BH24: 0.937 | BI24: 0.937 | BJ24: 0.937 | BK24: 0.937 | BL24: 0.937 | BM24: 0.937 | BN24: 0.937 | BO24: 0.937 | BP24: 0.937 | BQ24: 0.937 | BR24: 0.937 | BS24: 0.937 | BT24: 0.937 | BU24: 0.937 | BV24: 0.937 | BW24: 0.937 | BX24: 0.937
A25: NREL - GEO (CF) | C25: NREL Geothermal - Hydro / Flash | D25: Net Capacity Factor (%) | E25: Geothermal (Off System) | F25: 0.9 | G25: 0.9 | H25: 0.9 | I25: 0.9 | J25: 0.9 | K25: 0.9 | L25: 0.9 | M25: 0.9 | N25: 0.9 | O25: 0.9 | P25: 0.9 | Q25: 0.9 | R25: 0.9 | S25: 0.9 | T25: 0.9 | U25: 0.9 | V25: 0.9 | W25: 0.9 | X25: 0.9 | Y25: 0.9 | Z25: 0.9 | AA25: 0.9 | AB25: 0.9 | AC25: 0.9 | AD25: 0.9 | AE25: 0.9 | AF25: 0.9 | AG25: 0.9 | AH25: 0.9 | AI25: 0.9 | AJ25: 0.9 | AK25: =AJ25 -> 0.9 | AL25: 0.9 | AM25: 0.9 | AN25: 0.9 | AO25: 0.9 | AP25: 0.9 | AQ25: 0.9 | AR25: 0.9 | AS25: 0.9 | AT25: 0.9 | AU25: 0.9 | AV25: 0.9 | AW25: 0.9 | AX25: 0.9 | AY25: 0.9 | AZ25: 0.9 | BA25: 0.9 | BB25: 0.9 | BC25: 0.9 | BD25: 0.9 | BE25: 0.9 | BF25: 0.9 | BG25: 0.9 | BH25: 0.9 | BI25: 0.9 | BJ25: 0.9 | BK25: 0.9 | BL25: 0.9 | BM25: 0.9 | BN25: 0.9 | BO25: 0.9 | BP25: 0.9 | BQ25: 0.9 | BR25: 0.9 | BS25: 0.9 | BT25: 0.9 | BU25: 0.9 | BV25: 0.9 | BW25: 0.9 | BX25: 0.9
B27: =D27 -> Heat Rate (MMBtu/MWh) | D27: Heat Rate (MMBtu/MWh)
A28: NREL - NUC (HR) | C28: NREL Nuclear - Small Modular Reactor | D28: Heat Rate (MMBtu/MWh) | E28: Small Modular Reactor (share) | F28: 10.443 | G28: 10.443 | H28: 10.443 | I28: 10.443 | J28: 10.443 | K28: 10.443 | L28: 10.443 | M28: 10.443 | N28: 10.443 | O28: 10.443 | P28: 10.443 | Q28: 10.443 | R28: 10.443 | S28: 10.443 | T28: 10.443 | U28: 10.443 | V28: 10.443 | W28: 10.443 | X28: 10.443 | Y28: 10.443 | Z28: 10.443 | AA28: 10.443 | AB28: 10.443 | AC28: 10.443 | AD28: 10.443 | AE28: 10.443 | AF28: 10.443 | AG28: 10.443 | AH28: 10.443 | AI28: 10.443 | AJ28: 10.443 | AK28: =AJ28 -> 10.443 | AL28: =AK28 -> 10.443 | AM28: 10.443 | AN28: 10.443 | AO28: 10.443 | AP28: 10.443 | AQ28: 10.443 | AR28: 10.443 | AS28: 10.443 | AT28: 10.443 | AU28: 10.443 | AV28: 10.443 | AW28: 10.443 | AX28: 10.443 | AY28: 10.443 | AZ28: 10.443 | BA28: 10.443 | BB28: 10.443 | BC28: 10.443 | BD28: 10.443 | BE28: 10.443 | BF28: 10.443 | BG28: 10.443 | BH28: 10.443 | BI28: 10.443 | BJ28: 10.443 | BK28: 10.443 | BL28: 10.443 | BM28: 10.443 | BN28: 10.443 | BO28: 10.443 | BP28: 10.443 | BQ28: 10.443 | BR28: 10.443 | BS28: 10.443 | BT28: 10.443 | BU28: 10.443 | BV28: 10.443 | BW28: 10.443 | BX28: 10.443
C29: Internal | D29: Heat Rate (MMBtu/MWh) | E29: Wood Biomass | F29: 13.524 | G29: =F29 -> 13.524 | H29: =G29 -> 13.524 | I29: 13.524 | J29: 13.524 | K29: 13.524 | L29: 13.524 | M29: 13.524 | N29: 13.524 | O29: 13.524 | P29: 13.524 | Q29: 13.524 | R29: 13.524 | S29: 13.524 | T29: 13.524 | U29: 13.524 | V29: 13.524 | W29: 13.524 | X29: 13.524 | Y29: 13.524 | Z29: 13.524 | AA29: 13.524 | AB29: 13.524 | AC29: 13.524 | AD29: 13.524 | AE29: 13.524 | AF29: 13.524 | AG29: 13.524 | AH29: 13.524 | AI29: 13.524 | AJ29: 13.524 | AK29: 13.524 | AL29: 13.524 | AM29: 13.524 | AN29: 13.524 | AO29: 13.524 | AP29: 13.524 | AQ29: 13.524 | AR29: 13.524 | AS29: 13.524 | AT29: 13.524 | AU29: 13.524 | AV29: 13.524 | AW29: 13.524 | AX29: 13.524 | AY29: 13.524 | AZ29: 13.524 | BA29: 13.524 | BB29: 13.524 | BC29: 13.524 | BD29: 13.524 | BE29: 13.524 | BF29: 13.524 | BG29: 13.524 | BH29: 13.524 | BI29: 13.524 | BJ29: 13.524 | BK29: 13.524 | BL29: 13.524 | BM29: 13.524 | BN29: 13.524 | BO29: 13.524 | BP29: 13.524 | BQ29: 13.524 | BR29: 13.524 | BS29: 13.524 | BT29: =BS29 -> 13.524 | BU29: 13.524 | BV29: 13.524 | BW29: 13.524 | BX29: 13.524
C30: Internal | D30: Heat Rate (MMBtu/MWh) | E30: Rathdrum CT 2055 Uprates two unit operation | F30: 11.2 | G30: =F30 -> 11.2 | H30: 11.2 | I30: 11.2 | J30: 11.2 | K30: 11.2 | L30: 11.2 | M30: 11.2 | N30: 11.2 | O30: 11.2 | P30: 11.2 | Q30: 11.2 | R30: 11.2 | S30: 11.2 | T30: 11.2 | U30: 11.2 | V30: 11.2 | W30: 11.2 | X30: 11.2 | Y30: 11.2 | Z30: 11.2 | AA30: 11.2 | AB30: 11.2 | AC30: 11.2 | AD30: 11.2 | AE30: 11.2 | AF30: 11.2 | AG30: 11.2 | AH30: 11.2 | AI30: 11.2 | AJ30: 11.2 | AK30: 11.2 | AL30: 11.2 | AM30: 11.2 | AN30: 11.2 | AO30: 11.2 | AP30: 11.2 | AQ30: 11.2 | AR30: 11.2 | AS30: 11.2 | AT30: 11.2 | AU30: 11.2 | AV30: 11.2 | AW30: 11.2 | AX30: 11.2 | AY30: 11.2 | AZ30: 11.2 | BA30: 11.2 | BB30: 11.2 | BC30: 11.2 | BD30: 11.2 | BE30: 11.2 | BF30: 11.2 | BG30: 11.2 | BH30: 11.2 | BI30: 11.2 | BJ30: 11.2 | BK30: 11.2 | BL30: 11.2 | BM30: 11.2 | BN30: 11.2 | BO30: 11.2 | BP30: 11.2 | BQ30: 11.2 | BR30: 11.2 | BS30: =BR30 -> 11.2 | BT30: 11.2 | BU30: 11.2 | BV30: 11.2 | BW30: 11.2 | BX30: 11.2
C31: Internal | D31: Heat Rate (MMBtu/MWh) | E31: Rathdrum CT: Inlet Evaporation 2 unit operation | F31: 11.32 | G31: =F31 -> 11.32 | H31: 11.32 | I31: 11.32 | J31: 11.32 | K31: 11.32 | L31: 11.32 | M31: 11.32 | N31: 11.32 | O31: 11.32 | P31: 11.32 | Q31: 11.32 | R31: 11.32 | S31: 11.32 | T31: 11.32 | U31: 11.32 | V31: 11.32 | W31: 11.32 | X31: 11.32 | Y31: 11.32 | Z31: 11.32 | AA31: 11.32 | AB31: 11.32 | AC31: 11.32 | AD31: 11.32 | AE31: 11.32 | AF31: 11.32 | AG31: 11.32 | AH31: 11.32 | AI31: 11.32 | AJ31: 11.32 | AK31: 11.32 | AL31: 11.32 | AM31: 11.32 | AN31: 11.32 | AO31: 11.32 | AP31: 11.32 | AQ31: 11.32 | AR31: 11.32 | AS31: 11.32 | AT31: 11.32 | AU31: 11.32 | AV31: 11.32 | AW31: 11.32 | AX31: 11.32 | AY31: 11.32 | AZ31: 11.32 | BA31: 11.32 | BB31: 11.32 | BC31: 11.32 | BD31: 11.32 | BE31: 11.32 | BF31: 11.32 | BG31: 11.32 | BH31: 11.32 | BI31: 11.32 | BJ31: 11.32 | BK31: 11.32 | BL31: 11.32 | BM31: 11.32 | BN31: 11.32 | BO31: 11.32 | BP31: 11.32 | BQ31: 11.32 | BR31: 11.32 | BS31: =BR31 -> 11.32 | BT31: 11.32 | BU31: 11.32 | BV31: 11.32 | BW31: 11.32 | BX31: 11.32
C32: Internal | D32: Heat Rate (MMBtu/MWh) | E32: 7F.04 CT Frame Greenfield | F32: 10.04 | G32: =F32 -> 10.04 | H32: 10.04 | I32: 10.04 | J32: 10.04 | K32: 10.04 | L32: 10.04 | M32: 10.04 | N32: 10.04 | O32: 10.04 | P32: 10.04 | Q32: 10.04 | R32: 10.04 | S32: 10.04 | T32: 10.04 | U32: 10.04 | V32: 10.04 | W32: 10.04 | X32: 10.04 | Y32: 10.04 | Z32: 10.04 | AA32: 10.04 | AB32: 10.04 | AC32: 10.04 | AD32: 10.04 | AE32: 10.04 | AF32: 10.04 | AG32: 10.04 | AH32: 10.04 | AI32: 10.04 | AJ32: 10.04 | AK32: 10.04 | AL32: 10.04 | AM32: 10.04 | AN32: 10.04 | AO32: 10.04 | AP32: 10.04 | AQ32: 10.04 | AR32: 10.04 | AS32: 10.04 | AT32: 10.04 | AU32: 10.04 | AV32: 10.04 | AW32: 10.04 | AX32: 10.04 | AY32: 10.04 | AZ32: 10.04 | BA32: 10.04 | BB32: 10.04 | BC32: 10.04 | BD32: 10.04 | BE32: 10.04 | BF32: 10.04 | BG32: 10.04 | BH32: 10.04 | BI32: 10.04 | BJ32: 10.04 | BK32: 10.04 | BL32: 10.04 | BM32: 10.04 | BN32: 10.04 | BO32: 10.04 | BP32: 10.04 | BQ32: 10.04 | BR32: 10.04 | BS32: =BR32 -> 10.04 | BT32: 10.04 | BU32: 10.04 | BV32: 10.04 | BW32: 10.04 | BX32: 10.04
C33: Internal | D33: Heat Rate (MMBtu/MWh) | E33: Reciprocating Engine (ICE) Machine | F33: 8.19 | G33: =F33 -> 8.19 | H33: 8.19 | I33: 8.19 | J33: 8.19 | K33: 8.19 | L33: 8.19 | M33: 8.19 | N33: 8.19 | O33: 8.19 | P33: 8.19 | Q33: 8.19 | R33: 8.19 | S33: 8.19 | T33: 8.19 | U33: 8.19 | V33: 8.19 | W33: 8.19 | X33: 8.19 | Y33: 8.19 | Z33: 8.19 | AA33: 8.19 | AB33: 8.19 | AC33: 8.19 | AD33: 8.19 | AE33: 8.19 | AF33: 8.19 | AG33: 8.19 | AH33: 8.19 | AI33: 8.19 | AJ33: 8.19 | AK33: 8.19 | AL33: 8.19 | AM33: 8.19 | AN33: 8.19 | AO33: 8.19 | AP33: 8.19 | AQ33: 8.19 | AR33: 8.19 | AS33: 8.19 | AT33: 8.19 | AU33: 8.19 | AV33: 8.19 | AW33: 8.19 | AX33: 8.19 | AY33: 8.19 | AZ33: 8.19 | BA33: 8.19 | BB33: 8.19 | BC33: 8.19 | BD33: 8.19 | BE33: 8.19 | BF33: 8.19 | BG33: 8.19 | BH33: 8.19 | BI33: 8.19 | BJ33: 8.19 | BK33: 8.19 | BL33: 8.19 | BM33: 8.19 | BN33: 8.19 | BO33: 8.19 | BP33: 8.19 | BQ33: 8.19 | BR33: 8.19 | BS33: =BR33 -> 8.19 | BT33: 8.19 | BU33: 8.19 | BV33: 8.19 | BW33: 8.19 | BX33: 8.19
C34: Internal | D34: Heat Rate (MMBtu/MWh) | E34: NG CCCT (1x1 w/DF) | F34: 6.82 | G34: =F34 -> 6.82 | H34: 6.82 | I34: 6.82 | J34: 6.82 | K34: 6.82 | L34: 6.82 | M34: 6.82 | N34: 6.82 | O34: 6.82 | P34: 6.82 | Q34: 6.82 | R34: 6.82 | S34: 6.82 | T34: 6.82 | U34: 6.82 | V34: 6.82 | W34: 6.82 | X34: 6.82 | Y34: 6.82 | Z34: 6.82 | AA34: 6.82 | AB34: 6.82 | AC34: 6.82 | AD34: 6.82 | AE34: 6.82 | AF34: 6.82 | AG34: 6.82 | AH34: 6.82 | AI34: 6.82 | AJ34: 6.82 | AK34: 6.82 | AL34: 6.82 | AM34: 6.82 | AN34: 6.82 | AO34: 6.82 | AP34: 6.82 | AQ34: 6.82 | AR34: 6.82 | AS34: 6.82 | AT34: 6.82 | AU34: 6.82 | AV34: 6.82 | AW34: 6.82 | AX34: 6.82 | AY34: 6.82 | AZ34: 6.82 | BA34: 6.82 | BB34: 6.82 | BC34: 6.82 | BD34: 6.82 | BE34: 6.82 | BF34: 6.82 | BG34: 6.82 | BH34: 6.82 | BI34: 6.82 | BJ34: 6.82 | BK34: 6.82 | BL34: 6.82 | BM34: 6.82 | BN34: 6.82 | BO34: 6.82 | BP34: 6.82 | BQ34: 6.82 | BR34: 6.82 | BS34: =BR34 -> 6.82 | BT34: 6.82 | BU34: 6.82 | BV34: 6.82 | BW34: 6.82 | BX34: 6.82
C35: Internal | D35: Heat Rate (MMBtu/MWh) | E35: Hydrogen Fuel Cell with 40 hrs Storage | F35: 5.687 | G35: =F35 -> 5.687 | H35: 5.687 | I35: 5.687 | J35: 5.687 | K35: 5.687 | L35: 5.687 | M35: 5.687 | N35: 5.687 | O35: 5.687 | P35: 5.687 | Q35: 5.687 | R35: 5.687 | S35: 5.687 | T35: 5.687 | U35: 5.687 | V35: 5.687 | W35: 5.687 | X35: 5.687 | Y35: 5.687 | Z35: 5.687 | AA35: 5.687 | AB35: 5.687 | AC35: 5.687 | AD35: 5.687 | AE35: 5.687 | AF35: 5.687 | AG35: 5.687 | AH35: 5.687 | AI35: 5.687 | AJ35: 5.687 | AK35: 5.687 | AL35: 5.687 | AM35: 5.687 | AN35: 5.687 | AO35: 5.687 | AP35: 5.687 | AQ35: 5.687 | AR35: 5.687 | AS35: 5.687 | AT35: 5.687 | AU35: 5.687 | AV35: 5.687 | AW35: 5.687 | AX35: 5.687 | AY35: 5.687 | AZ35: 5.687 | BA35: 5.687 | BB35: 5.687 | BC35: 5.687 | BD35: 5.687 | BE35: 5.687 | BF35: 5.687 | BG35: 5.687 | BH35: 5.687 | BI35: 5.687 | BJ35: 5.687 | BK35: 5.687 | BL35: 5.687 | BM35: 5.687 | BN35: 5.687 | BO35: 5.687 | BP35: 5.687 | BQ35: 5.687 | BR35: 5.687 | BS35: =BR35 -> 5.687 | BT35: 5.687 | BU35: 5.687 | BV35: 5.687 | BW35: 5.687 | BX35: 5.687
C36: Internal | D36: Heat Rate (MMBtu/MWh) | E36: 7F.04 CT Frame Greenfield + amonia + storage | F36: =F32 -> 10.04 | G36: =G32 -> 10.04 | H36: 10.04 | I36: 10.04 | J36: 10.04 | K36: 10.04 | L36: 10.04 | M36: 10.04 | N36: 10.04 | O36: 10.04 | P36: 10.04 | Q36: 10.04 | R36: 10.04 | S36: 10.04 | T36: 10.04 | U36: 10.04 | V36: 10.04 | W36: 10.04 | X36: 10.04 | Y36: 10.04 | Z36: 10.04 | AA36: 10.04 | AB36: 10.04 | AC36: 10.04 | AD36: 10.04 | AE36: 10.04 | AF36: 10.04 | AG36: 10.04 | AH36: 10.04 | AI36: 10.04 | AJ36: 10.04 | AK36: 10.04 | AL36: 10.04 | AM36: 10.04 | AN36: 10.04 | AO36: 10.04 | AP36: 10.04 | AQ36: 10.04 | AR36: 10.04 | AS36: 10.04 | AT36: 10.04 | AU36: 10.04 | AV36: 10.04 | AW36: 10.04 | AX36: 10.04 | AY36: 10.04 | AZ36: 10.04 | BA36: 10.04 | BB36: 10.04 | BC36: 10.04 | BD36: 10.04 | BE36: 10.04 | BF36: 10.04 | BG36: 10.04 | BH36: 10.04 | BI36: 10.04 | BJ36: 10.04 | BK36: 10.04 | BL36: 10.04 | BM36: 10.04 | BN36: 10.04 | BO36: 10.04 | BP36: 10.04 | BQ36: 10.04 | BR36: 10.04 | BS36: =BS32 -> 10.04 | BT36: 10.04 | BU36: 10.04 | BV36: 10.04 | BW36: 10.04 | BX36: 10.04
B38: =D38 -> CAPEX ($/kW) | D38: CAPEX ($/kW)
B39: 2020 | C39: NREL Utility-Scale Battery Storage - 4Hr/LAZARD’S LEVELIZED COST O F STORAGE ANALYSIS—VERSION 7 . 0 | D39: CAPEX ($/kW) | E39: Distribution Scale 4hr Lithium-Ion | F39: =F41*305/231 -> 2280.547644 | G39: =G41*305/231 -> 1948.114451 | H39: 1809.950306 | I39: 1657.969746 | J39: 1540.530222 | K39: 1457.631735 | L39: 1395.457869 | M39: 1340.192211 | N39: 1278.018346 | O39: 1229.660895 | P39: 1181.303444 | Q39: 1167.124349 | R39: 1152.358055 | S39: 1137.591762 | T39: 1122.825469 | U39: 1108.059176 | V39: 1093.292883 | W39: 1078.52659 | X39: 1063.760297 | Y39: 1048.994004 | Z39: 1034.227711 | AA39: 1019.461418 | AB39: 1004.695125 | AC39: 989.9288319 | AD39: 975.1625389 | AE39: 960.3962458 | AF39: 945.6299528 | AG39: 930.8636597 | AH39: 916.0973667 | AI39: 901.3310736 | AJ39: 886.5647806
B40: 2020 | C40: NREL Utility-Scale Battery Storage - 8Hr/LAZARD’S LEVELIZED COST O F STORAGE ANALYSIS—VERSION 7 . 0 | D40: CAPEX ($/kW) | E40: Distribution Scale 8hr Lithium-Ion | F40: =F42*305/231 -> 4231.78909 | G40: =G42*305/231 -> 3581.670684 | H40: =H42*305/231 -> 3299.671399 | I40: 3003.855699 | J40: 2752.854974 | K40: 2598.038916 | L40: 2463.947481 | M40: 2347.038191 | N40: 2223.220694 | O40: 2113.219612 | P40: 2013.492468 | Q40: 1989.167858 | R40: 1963.999203 | S40: 1938.830547 | T40: 1913.661891 | U40: 1888.493235 | V40: 1863.324579 | W40: 1838.155923 | X40: 1812.987267 | Y40: 1787.818612 | Z40: 1762.649956 | AA40: 1737.4813 | AB40: 1712.312644 | AC40: 1687.143988 | AD40: 1661.975332 | AE40: 1636.806676 | AF40: 1611.638021 | AG40: 1586.469365 | AH40: 1561.300709 | AI40: 1536.132053 | AJ40: 1510.706549
A41: NREL - USB4 (CAPEX) | B41: 2020 | C41: NREL Utility-Scale Battery Storage - 4Hr/Internal | D41: CAPEX ($/kW) | E41: 4hr Lithium-Ion | F41: 1727.234445 | G41: 1475.457175 | H41: 1370.814822 | I41: 1255.708234 | J41: 1166.762234 | K41: 1103.976822 | L41: 1056.887763 | M41: 1015.030822 | N41: 967.9417635 | O41: 931.31694 | P41: 894.6921166 | Q41: 883.9531951 | R41: 872.7695436 | S41: 861.5858922 | T41: 850.4022407 | U41: 839.2185893 | V41: 828.0349378 | W41: 816.8512864 | X41: 805.6676349 | Y41: 794.4839834 | Z41: 783.300332 | AA41: 772.1166805 | AB41: 760.9330291 | AC41: 749.7493776 | AD41: 738.5657262 | AE41: 727.3820747 | AF41: 716.1984232 | AG41: 705.0147718 | AH41: 693.8311203 | AI41: 682.6474689 | AJ41: 671.4638174 | AK41: =AJ41-(AI41-AJ41) -> 660.280166 | AL41: =AK41-(AJ41-AK41) -> 649.0965145 | AM41: =AL41-(AK41-AL41) -> 637.912863 | AN41: =AM41-(AL41-AM41) -> 626.7292116 | AO41: =AN41-(AM41-AN41) -> 615.5455601
A42: NREL - USB8 (CAPEX) | B42: 2020 | C42: NREL Utility-Scale Battery Storage - 8Hr | D42: CAPEX ($/kW) | E42: 8hr Lithium-Ion | F42: 3205.059934 | G42: 2712.675174 | H42: 2499.095387 | I42: 2275.051365 | J42: 2084.949177 | K42: 1967.695048 | L42: 1866.137272 | M42: 1777.59286 | N42: 1683.816329 | O42: 1600.504034 | P42: 1524.972984 | Q42: 1506.550083 | R42: 1487.487921 | S42: 1468.425758 | T42: 1449.363596 | U42: 1430.301434 | V42: 1411.239271 | W42: 1392.177109 | X42: 1373.114947 | Y42: 1354.052785 | Z42: 1334.990622 | AA42: 1315.92846 | AB42: 1296.866298 | AC42: 1277.804135 | AD42: 1258.741973 | AE42: 1239.679811 | AF42: 1220.617648 | AG42: 1201.555486 | AH42: 1182.493324 | AI42: 1163.431162 | AJ42: 1144.174468
A43: NREL - USB16 (CAPEX) | B43: 2020 | C43: NREL Utility-Scale Battery Storage - 16Hr | D43: CAPEX ($/kW) | E43: 16hr Lithium-Ion | F43: 6160.710913 | G43: 5187.111172 | H43: 4755.656518 | I43: 4313.737628 | J43: 3921.323062 | K43: 3695.1315 | L43: 3484.63629 | M43: 3302.716934 | N43: 3115.56546 | O43: 2938.878222 | P43: 2785.534719 | Q43: 2751.743859 | R43: 2716.924675 | S43: 2682.105491 | T43: 2647.286307 | U43: 2612.467123 | V43: 2577.647939 | W43: 2542.828755 | X43: 2508.009571 | Y43: 2473.190387 | Z43: 2438.371203 | AA43: 2403.552019 | AB43: 2368.732835 | AC43: 2333.913651 | AD43: 2299.094467 | AE43: 2264.275283 | AF43: 2229.456099 | AG43: 2194.636915 | AH43: 2159.817731 | AI43: 2124.998547 | AJ43: 2089.595769
B44: 2020 | C44: Internal | D44: CAPEX ($/kW) | E44: 4 hr Vanadium Flow Battery | F44: 1632.88 | G44: =F44*(1+G352) -> 1453.2632 | H44: 1293.404248 | I44: 1215.744024 | J44: 1143.496406 | K44: 1096.465014 | L44: 1052.238937 | M44: 1013.560793 | N44: 977.3232402 | O44: 944.3829676 | P44: 911.1822441 | Q44: 879.6134145 | R44: 849.8861427 | S44: 822.5267131 | T44: 797.761848 | U44: 776.2746584 | V44: 756.9325913 | W44: 739.4278357 | X44: 724.0000918 | Y44: 708.6105148 | Z44: 693.2703704 | AA44: 677.9906309 | AB44: 662.7819644 | AC44: 647.6547245 | AD44: 632.618941 | AE44: 617.6843109 | AF44: 602.8601913 | AG44: 588.155592 | AH44: 573.5791694 | AI44: 559.1392217 | AJ44: 545.5010377
B45: 2020 | C45: Internal | D45: CAPEX ($/kW) | E45: 4 hr Zinc Bromide Flow Battery | F45: 1837 | G45: =F45*(1+G353) -> 1579.82 | H45: 1358.6452 | I45: 1277.067696 | J45: 1201.175816 | K45: 1151.772102 | L45: 1105.315204 | M45: 1064.686085 | N45: 1026.620665 | O45: 992.0188432 | P45: 957.1434331 | Q45: 923.9822316 | R45: 892.7554785 | S45: 864.0160045 | T45: 838.0019683 | U45: 815.4309375 | V45: 795.113232 | W45: 776.7255143 | X45: 760.5195754 | Y45: 744.3537286 | Z45: 728.2398079 | AA45: 712.1893389 | AB45: 696.213528 | AC45: 680.3232509 | AD45: 664.5290434 | AE45: 648.8410916 | AF45: 633.2692246 | AG45: 617.8229066 | AH45: 602.5112307 | AI45: 587.3429138 | AJ45: 573.0168024
B46: 2022 | C46: Form Energy | D46: CAPEX ($/kW) | E46: 100hr Iron Oxide | H46: 2500 | I46: =H46*(1+I354) -> 2450 | J46: 2401 | K46: 2352.98 | L46: 2305.9204 | M46: 2259.801992 | N46: 2214.605952 | O46: 2170.313833 | P46: 2126.907556 | Q46: 2084.369405 | R46: 2042.682017 | S46: 2001.828377 | T46: 1961.791809 | U46: 1922.555973 | V46: 1884.104854 | W46: 1846.422757 | X46: 1809.494301 | Y46: 1773.304415 | Z46: 1737.838327 | AA46: 1703.081561 | AB46: 1669.019929 | AC46: 1635.639531 | AD46: 1602.92674 | AE46: 1570.868205 | AF46: 1539.450841 | AG46: 1508.661824 | AH46: 1478.488588 | AI46: 1448.918816 | AJ46: 1419.94044
B47: 2022 | C47: Internal | D47: CAPEX ($/kW) | E47: Liquid Air | H47: 1610 | I47: 1610 | J47: 1610 | K47: 1610 | L47: 1610 | M47: 1610 | N47: 1610 | O47: 1610 | P47: 1610 | Q47: 1610 | R47: 1610 | S47: 1610 | T47: 1610 | U47: 1610 | V47: 1610 | W47: 1610 | X47: 1610 | Y47: 1610 | Z47: 1610 | AA47: 1610 | AB47: 1610 | AC47: 1610 | AD47: 1610 | AE47: 1610 | AF47: 1610 | AG47: 1610 | AH47: 1610 | AI47: 1610 | AJ47: 1610
A48: NREL - PSHP10 (CAPEX) | B48: 2020 | C48: NREL Pumped Storage Hydropower - National Class 10 | D48: CAPEX ($/kW) | E48: Pumped Hydro (8.5 hr/ 400 MW share) | F48: 3754.52 | G48: 3754.52 | H48: 3754.52 | I48: 3754.52 | J48: 3754.52 | K48: 3754.52 | L48: 3754.52 | M48: 3754.52 | N48: 3754.52 | O48: 3754.52 | P48: 3754.52 | Q48: 3754.52 | R48: 3754.52 | S48: 3754.52 | T48: 3754.52 | U48: 3754.52 | V48: 3754.52 | W48: 3754.52 | X48: 3754.52 | Y48: 3754.52 | Z48: 3754.52 | AA48: 3754.52 | AB48: 3754.52 | AC48: 3754.52 | AD48: 3754.52 | AE48: 3754.52 | AF48: 3754.52 | AG48: 3754.52 | AH48: 3754.52 | AI48: 3754.52 | AJ48: 3754.52
A49: NREL - PSHP7 (CAPEX) | B49: 2020 | C49: NREL Pumped Storage Hydropower - National Class 7 | D49: CAPEX ($/kW) | E49: Pumped Hydro (16 hr/ 100 MW) | F49: 3256.39 | G49: 3256.39 | H49: 3256.39 | I49: 3256.39 | J49: 3256.39 | K49: 3256.39 | L49: 3256.39 | M49: 3256.39 | N49: 3256.39 | O49: 3256.39 | P49: 3256.39 | Q49: 3256.39 | R49: 3256.39 | S49: 3256.39 | T49: 3256.39 | U49: 3256.39 | V49: 3256.39 | W49: 3256.39 | X49: 3256.39 | Y49: 3256.39 | Z49: 3256.39 | AA49: 3256.39 | AB49: 3256.39 | AC49: 3256.39 | AD49: 3256.39 | AE49: 3256.39 | AF49: 3256.39 | AG49: 3256.39 | AH49: 3256.39 | AI49: 3256.39 | AJ49: 3256.39
A50: NREL - PSHP5 (CAPEX) | B50: 2020 | C50: NREL Pumped Storage Hydropower - National Class 5 | D50: CAPEX ($/kW) | E50: Pumped Hyrdo (24 hr/ 100 MW) | F50: 2923.32 | G50: 2923.32 | H50: 2923.32 | I50: 2923.32 | J50: 2923.32 | K50: 2923.32 | L50: 2923.32 | M50: 2923.32 | N50: 2923.32 | O50: 2923.32 | P50: 2923.32 | Q50: 2923.32 | R50: 2923.32 | S50: 2923.32 | T50: 2923.32 | U50: 2923.32 | V50: 2923.32 | W50: 2923.32 | X50: 2923.32 | Y50: 2923.32 | Z50: 2923.32 | AA50: 2923.32 | AB50: 2923.32 | AC50: 2923.32 | AD50: 2923.32 | AE50: 2923.32 | AF50: 2923.32 | AG50: 2923.32 | AH50: 2923.32 | AI50: 2923.32 | AJ50: 2923.32
B51: 2022 | C51: Internal | D51: CAPEX ($/kW) | E51: Wood Biomass | H51: 4756.059028 | I51: 4756.059028 | J51: 4756.059028 | K51: 4756.059028 | L51: 4756.059028 | M51: 4756.059028 | N51: 4756.059028 | O51: 4756.059028 | P51: 4756.059028 | Q51: 4756.059028 | R51: 4756.059028 | S51: 4756.059028 | T51: 4756.059028 | U51: 4756.059028 | V51: 4756.059028 | W51: 4756.059028 | X51: 4756.059028 | Y51: 4756.059028 | Z51: 4756.059028 | AA51: 4756.059028 | AB51: 4756.059028 | AC51: 4756.059028 | AD51: 4756.059028 | AE51: 4756.059028 | AF51: 4756.059028 | AG51: 4756.059028 | AH51: 4756.059028 | AI51: 4756.059028 | AJ51: 4756.059028
B52: 2022 | C52: Internal | D52: CAPEX ($/kW) | E52: Rathdrum CT 2055 Uprates two unit operation | H52: 829.15 | I52: 829.15 | J52: 829.15 | K52: 829.15 | L52: 829.15 | M52: 829.15 | N52: 829.15 | O52: 829.15 | P52: 829.15 | Q52: 829.15 | R52: 829.15 | S52: 829.15 | T52: 829.15 | U52: 829.15 | V52: 829.15 | W52: 829.15 | X52: 829.15 | Y52: 829.15 | Z52: 829.15 | AA52: 829.15 | AB52: 829.15 | AC52: 829.15 | AD52: 829.15 | AE52: 829.15 | AF52: 829.15 | AG52: 829.15 | AH52: 829.15 | AI52: 829.15 | AJ52: 829.15
B53: 2022 | C53: Internal | D53: CAPEX ($/kW) | E53: Rathdrum CT: Inlet Evaporation 2 unit operation | H53: 150 | I53: 150 | J53: 150 | K53: 150 | L53: 150 | M53: 150 | N53: 150 | O53: 150 | P53: 150 | Q53: 150 | R53: 150 | S53: 150 | T53: 150 | U53: 150 | V53: 150 | W53: 150 | X53: 150 | Y53: 150 | Z53: 150 | AA53: 150 | AB53: 150 | AC53: 150 | AD53: 150 | AE53: 150 | AF53: 150 | AG53: 150 | AH53: 150 | AI53: 150 | AJ53: 150
B54: 2022 | C54: Internal | D54: CAPEX ($/kW) | E54: New Residential Solar | H54: =21840/(7/1.15) -> 3588 | I54: =21840/(7/1.15) -> 3588 | J54: 3588 | K54: 3588 | L54: 3588 | M54: 3588 | N54: 3588 | O54: 3588 | P54: 3588 | Q54: 3588 | R54: 3588 | S54: 3588 | T54: 3588 | U54: 3588 | V54: 3588 | W54: 3588 | X54: 3588 | Y54: 3588 | Z54: 3588 | AA54: 3588 | AB54: 3588 | AC54: 3588 | AD54: 3588 | AE54: 3588 | AF54: 3588 | AG54: 3588 | AH54: 3588 | AI54: 3588 | AJ54: 3588 | AK54: 3588 | AL54: 3588 | AM54: 3588 | AN54: 3588 | AO54: 3588
B55: 2022 | C55: Internal | D55: CAPEX ($/kW) | E55: New Residential Solar + Storage (Solar Only) | F55: =F54 -> 0 | G55: =G54 -> 0 | H55: 3588 | I55: 3588 | J55: 3588 | K55: 3588 | L55: 3588 | M55: 3588 | N55: 3588 | O55: 3588 | P55: 3588 | Q55: 3588 | R55: 3588 | S55: 3588 | T55: 3588 | U55: 3588 | V55: 3588 | W55: 3588 | X55: 3588 | Y55: 3588 | Z55: 3588 | AA55: 3588 | AB55: 3588 | AC55: 3588 | AD55: 3588 | AE55: 3588 | AF55: 3588 | AG55: 3588 | AH55: 3588 | AI55: 3588 | AJ55: 3588 | AK55: =AK54 -> 3588 | AL55: 3588 | AM55: 3588 | AN55: 3588 | AO55: 3588
B56: 2022 | C56: Internal | D56: CAPEX ($/kW) | E56: New Residential Solar + Storage (Battery Only) | H56: =13000/(5/1.15) -> 2990 | I56: =13000/(5/1.15) -> 2990 | J56: 2990 | K56: 2990 | L56: 2990 | M56: 2990 | N56: 2990 | O56: 2990 | P56: 2990 | Q56: 2990 | R56: 2990 | S56: 2990 | T56: 2990 | U56: 2990 | V56: 2990 | W56: 2990 | X56: 2990 | Y56: 2990 | Z56: 2990 | AA56: 2990 | AB56: 2990 | AC56: 2990 | AD56: 2990 | AE56: 2990 | AF56: 2990 | AG56: 2990 | AH56: 2990 | AI56: 2990 | AJ56: 2990 | AK56: 2990 | AL56: 2990 | AM56: 2990 | AN56: 2990 | AO56: 2990
B57: 2022 | C57: Internal | D57: CAPEX ($/kW) | E57: Existing Residential Solar | H57: =23800/(7/1.15) -> 3910 | I57: =23800/(7/1.15) -> 3910 | J57: 3910 | K57: 3910 | L57: 3910 | M57: 3910 | N57: 3910 | O57: 3910 | P57: 3910 | Q57: 3910 | R57: 3910 | S57: 3910 | T57: 3910 | U57: 3910 | V57: 3910 | W57: 3910 | X57: 3910 | Y57: 3910 | Z57: 3910 | AA57: 3910 | AB57: 3910 | AC57: 3910 | AD57: 3910 | AE57: 3910 | AF57: 3910 | AG57: 3910 | AH57: 3910 | AI57: 3910 | AJ57: 3910 | AK57: 3910 | AL57: 3910 | AM57: 3910 | AN57: 3910 | AO57: 3910
B58: 2022 | C58: Internal | D58: CAPEX ($/kW) | E58: Existing Residential Solar + Storage (Solar Only) | F58: =F57 -> 0 | G58: =G57 -> 0 | H58: =H57 -> 3910 | I58: =I57 -> 3910 | J58: =J57 -> 3910 | K58: =K57 -> 3910 | L58: =L57 -> 3910 | M58: =M57 -> 3910 | N58: =N57 -> 3910 | O58: =O57 -> 3910 | P58: =P57 -> 3910 | Q58: =Q57 -> 3910 | R58: =R57 -> 3910 | S58: =S57 -> 3910 | T58: =T57 -> 3910 | U58: =U57 -> 3910 | V58: =V57 -> 3910 | W58: =W57 -> 3910 | X58: =X57 -> 3910 | Y58: =Y57 -> 3910 | Z58: =Z57 -> 3910 | AA58: =AA57 -> 3910 | AB58: =AB57 -> 3910 | AC58: =AC57 -> 3910 | AD58: =AD57 -> 3910 | AE58: =AE57 -> 3910 | AF58: =AF57 -> 3910 | AG58: =AG57 -> 3910 | AH58: =AH57 -> 3910 | AI58: =AI57 -> 3910 | AJ58: =AJ57 -> 3910 | AK58: 3910 | AL58: 3910 | AM58: 3910 | AN58: 3910 | AO58: 3910
B59: 2022 | C59: Internal | D59: CAPEX ($/kW) | E59: Existing Residential Solar + Storage (Battery Only) | H59: =14000/(5/1.15) -> 3220 | I59: =14000/(5/1.15) -> 3220 | J59: 3220 | K59: 3220 | L59: 3220 | M59: 3220 | N59: 3220 | O59: 3220 | P59: 3220 | Q59: 3220 | R59: 3220 | S59: 3220 | T59: 3220 | U59: 3220 | V59: 3220 | W59: 3220 | X59: 3220 | Y59: 3220 | Z59: 3220 | AA59: 3220 | AB59: 3220 | AC59: 3220 | AD59: 3220 | AE59: 3220 | AF59: 3220 | AG59: 3220 | AH59: 3220 | AI59: 3220 | AJ59: 3220 | AK59: 3220 | AL59: 3220 | AM59: 3220 | AN59: 3220 | AO59: 3220
B60: 2022 | C60: Internal | D60: CAPEX ($/kW) | E60: Commercial Solar | H60: =276960/(120/1.15) -> 2654.2 | I60: =276960/(120/1.15) -> 2654.2 | J60: 2654.2 | K60: 2654.2 | L60: 2654.2 | M60: 2654.2 | N60: 2654.2 | O60: 2654.2 | P60: 2654.2 | Q60: 2654.2 | R60: 2654.2 | S60: 2654.2 | T60: 2654.2 | U60: 2654.2 | V60: 2654.2 | W60: 2654.2 | X60: 2654.2 | Y60: 2654.2 | Z60: 2654.2 | AA60: 2654.2 | AB60: 2654.2 | AC60: 2654.2 | AD60: 2654.2 | AE60: 2654.2 | AF60: 2654.2 | AG60: 2654.2 | AH60: 2654.2 | AI60: 2654.2 | AJ60: 2654.2 | AK60: 2654.2 | AL60: 2654.2 | AM60: 2654.2 | AN60: 2654.2 | AO60: 2654.2
B61: 2022 | C61: Internal | D61: CAPEX ($/kW) | E61: Commercial Solar + Storage (Solar Only) | F61: =F60 -> 0 | G61: =G60 -> 0 | H61: =H60 -> 2654.2 | I61: =I60 -> 2654.2 | J61: =J60 -> 2654.2 | K61: =K60 -> 2654.2 | L61: =L60 -> 2654.2 | M61: =M60 -> 2654.2 | N61: =N60 -> 2654.2 | O61: =O60 -> 2654.2 | P61: =P60 -> 2654.2 | Q61: =Q60 -> 2654.2 | R61: =R60 -> 2654.2 | S61: =S60 -> 2654.2 | T61: =T60 -> 2654.2 | U61: =U60 -> 2654.2 | V61: =V60 -> 2654.2 | W61: =W60 -> 2654.2 | X61: =X60 -> 2654.2 | Y61: =Y60 -> 2654.2 | Z61: =Z60 -> 2654.2 | AA61: =AA60 -> 2654.2 | AB61: =AB60 -> 2654.2 | AC61: =AC60 -> 2654.2 | AD61: =AD60 -> 2654.2 | AE61: =AE60 -> 2654.2 | AF61: =AF60 -> 2654.2 | AG61: =AG60 -> 2654.2 | AH61: =AH60 -> 2654.2 | AI61: =AI60 -> 2654.2 | AJ61: =AJ60 -> 2654.2 | AK61: 2654.2 | AL61: 2654.2 | AM61: 2654.2 | AN61: 2654.2 | AO61: 2654.2
B62: 2022 | C62: Internal | D62: CAPEX ($/kW) | E62: Commercial Solar + Storage (Battery Only) | H62: =H59*0.8 -> 2576 | I62: =I59*0.8 -> 2576 | J62: 2576 | K62: 2576 | L62: 2576 | M62: 2576 | N62: 2576 | O62: 2576 | P62: 2576 | Q62: 2576 | R62: 2576 | S62: 2576 | T62: 2576 | U62: 2576 | V62: 2576 | W62: 2576 | X62: 2576 | Y62: 2576 | Z62: 2576 | AA62: 2576 | AB62: 2576 | AC62: 2576 | AD62: 2576 | AE62: 2576 | AF62: 2576 | AG62: 2576 | AH62: 2576 | AI62: 2576 | AJ62: 2576 | AK62: =AK59*0.8 -> 2576 | AL62: 2576 | AM62: 2576 | AN62: 2576 | AO62: 2576
B63: 2020 | C63: NREL Utility PV - Class 4/LAZARD’S LEVELIZED COST OF ENERGY ANALYSIS—VERSION 15.0 | D63: CAPEX ($/kW) | E63: Solar Photovoltaic Fixed Array (5 MW AC) | F63: =F66/((950+800)/2)*((1200+1450)/2) -> 1972.771524 | G63: =G66/((950+800)/2)*((1200+1450)/2) -> 1725.074286 | H63: 1656.953448 | I63: 1588.83261 | J63: 1520.711772 | K63: 1452.590934 | L63: 1384.470096 | M63: 1316.349258 | N63: 1248.22842 | O63: 1180.107582 | P63: 1111.986744 | Q63: 1102.07799 | R63: 1092.169237 | S63: 1082.260483 | T63: 1072.351729 | U63: 1062.442975 | V63: 1052.534221 | W63: 1042.625467 | X63: 1032.716713 | Y63: 1022.807959 | Z63: 1012.899205 | AA63: 1002.990451 | AB63: 993.0816972 | AC63: 983.1729433 | AD63: 973.2641893 | AE63: 963.3554354 | AF63: 953.4466815 | AG63: 943.5379275 | AH63: 933.6291736 | AI63: 923.7204197 | AJ63: 913.8116657 | AK63: =AK66/((950+800)/2)*((1200+1450)/2) -> 903.9029118 | AL63: 893.9941579 | AM63: 884.0854039 | AN63: 874.17665 | AO63: 864.267896
B64: 2020 | C64: NREL Utility PV - Class 4/LAZARD’S LEVELIZED COST OF ENERGY ANALYSIS—VERSION 15.0 | D64: CAPEX ($/kW) | E64: Solar Photovoltaic Fixed Array (5 MW AC) + Storage (Solar Only) | F64: =F63 -> 1972.771524 | G64: =G63 -> 1725.074286 | H64: 1656.953448 | I64: 1588.83261 | J64: 1520.711772 | K64: 1452.590934 | L64: 1384.470096 | M64: 1316.349258 | N64: 1248.22842 | O64: 1180.107582 | P64: 1111.986744 | Q64: 1102.07799 | R64: 1092.169237 | S64: 1082.260483 | T64: 1072.351729 | U64: 1062.442975 | V64: 1052.534221 | W64: 1042.625467 | X64: 1032.716713 | Y64: 1022.807959 | Z64: 1012.899205 | AA64: 1002.990451 | AB64: 993.0816972 | AC64: 983.1729433 | AD64: 973.2641893 | AE64: 963.3554354 | AF64: 953.4466815 | AG64: 943.5379275 | AH64: 933.6291736 | AI64: 923.7204197 | AJ64: 913.8116657 | AK64: =AK63 -> 903.9029118 | AL64: 893.9941579 | AM64: 884.0854039 | AN64: 874.17665 | AO64: 864.267896
B65: 2020 | C65: NREL Utility-Scale Battery Storage - 4Hr/LAZARD’S LEVELIZED COST O F STORAGE ANALYSIS—VERSION 7 . 0 | D65: CAPEX ($/kW) | E65: Solar Photovoltaic Fixed Array (5 MW AC) + Storage (Battery Only) | F65: =F69*305/231 -> 2280.547644 | G65: =G69*305/231 -> 1948.114451 | H65: =H69*305/231 -> 1809.950306 | I65: 1657.969746 | J65: 1540.530222 | K65: 1457.631735 | L65: 1395.457869 | M65: 1340.192211 | N65: 1278.018346 | O65: 1229.660895 | P65: 1181.303444 | Q65: 1167.124349 | R65: 1152.358055 | S65: 1137.591762 | T65: 1122.825469 | U65: 1108.059176 | V65: 1093.292883 | W65: 1078.52659 | X65: 1063.760297 | Y65: 1048.994004 | Z65: 1034.227711 | AA65: 1019.461418 | AB65: 1004.695125 | AC65: 989.9288319 | AD65: 975.1625389 | AE65: 960.3962458 | AF65: 945.6299528 | AG65: 930.8636597 | AH65: 916.0973667 | AI65: 901.3310736 | AJ65: 886.5647806 | AK65: =AK69*305/231 -> 871.7984875 | AL65: 857.0321945 | AM65: 842.2659014 | AN65: 827.4996084 | AO65: 812.7333153
A66: NREL - UPV4 (CAPEX) | B66: 2020 | C66: NREL Utility PV - Class 4/Internal | D66: CAPEX ($/kW) | E66: Solar Photovoltaic w/Single Axis Tracking (100 MW AC) | F66: 1302.773648 | G66: 1139.2 | H66: 1094.214541 | I66: 1049.229082 | J66: 1004.243623 | K66: 959.258164 | L66: 914.272705 | M66: 869.287246 | N66: 824.301787 | O66: 779.316328 | P66: 734.3308689 | Q66: 727.7873522 | R66: 721.2438354 | S66: 714.7003187 | T66: 708.156802 | U66: 701.6132852 | V66: 695.0697685 | W66: 688.5262517 | X66: 681.982735 | Y66: 675.4392182 | Z66: 668.8957015 | AA66: 662.3521847 | AB66: 655.808668 | AC66: 649.2651512 | AD66: 642.7216345 | AE66: 636.1781177 | AF66: 629.634601 | AG66: 623.0910842 | AH66: 616.5475675 | AI66: 610.0040507 | AJ66: 603.460534 | AK66: =AJ66-(AI66-AJ66) -> 596.9170172 | AL66: =AK66-(AJ66-AK66) -> 590.3735005 | AM66: 583.8299837 | AN66: 577.286467 | AO66: 570.7429502
A67: NREL - UPV5 (CAPEX) | B67: 2020 | C67: NREL Utility PV - Class 5/Off System Adjustment/Internal | D67: CAPEX ($/kW) | E67: Southern NW Solar Photovoltaic w/ Single Axis Tracking (100 MW AC) | F67: 1452.773648 | G67: 1289.2 | H67: 1244.214541 | I67: 1199.229082 | J67: 1154.243623 | K67: 1109.258164 | L67: 1064.272705 | M67: 1019.287246 | N67: 974.301787 | O67: 929.316328 | P67: 884.3308689 | Q67: 877.7873522 | R67: 871.2438354 | S67: 864.7003187 | T67: 858.156802 | U67: 851.6132852 | V67: 845.0697685 | W67: 838.5262517 | X67: 831.982735 | Y67: 825.4392182 | Z67: 818.8957015 | AA67: 812.3521847 | AB67: 805.808668 | AC67: 799.2651512 | AD67: 792.7216345 | AE67: 786.1781177 | AF67: 779.634601 | AG67: 773.0910842 | AH67: 766.5475675 | AI67: 760.0040507 | AJ67: 753.460534 | AK67: =AJ67-(AI67-AJ67) -> 746.9170172 | AL67: 740.3735005 | AM67: 733.8299837 | AN67: 727.286467 | AO67: 720.7429502
B68: 2020 | C68: NREL Utility PV - Class 4 | D68: CAPEX ($/kW) | E68: 100 MW/400 MWh Lithium-ion w/Solar (Solar Only) | F68: =F66 -> 1302.773648 | G68: =G66 -> 1139.2 | H68: 1094.214541 | I68: 1049.229082 | J68: 1004.243623 | K68: 959.258164 | L68: 914.272705 | M68: 869.287246 | N68: 824.301787 | O68: 779.316328 | P68: 734.3308689 | Q68: 727.7873522 | R68: 721.2438354 | S68: 714.7003187 | T68: 708.156802 | U68: 701.6132852 | V68: 695.0697685 | W68: 688.5262517 | X68: 681.982735 | Y68: 675.4392182 | Z68: 668.8957015 | AA68: 662.3521847 | AB68: 655.808668 | AC68: 649.2651512 | AD68: 642.7216345 | AE68: 636.1781177 | AF68: 629.634601 | AG68: 623.0910842 | AH68: 616.5475675 | AI68: 610.0040507 | AJ68: 603.460534 | AK68: =AK66 -> 596.9170172 | AL68: 590.3735005 | AM68: 583.8299837 | AN68: 577.286467 | AO68: 570.7429502
B69: 2020 | C69: NREL Utility-Scale Battery Storage - 4Hr | D69: CAPEX ($/kW) | E69: 100 MW/400 MWh Lithium-ion w/Solar (Battery Only) | F69: =F41 -> 1727.234445 | G69: =G41 -> 1475.457175 | H69: 1370.814822 | I69: 1255.708234 | J69: 1166.762234 | K69: 1103.976822 | L69: 1056.887763 | M69: 1015.030822 | N69: 967.9417635 | O69: 931.31694 | P69: 894.6921166 | Q69: 883.9531951 | R69: 872.7695436 | S69: 861.5858922 | T69: 850.4022407 | U69: 839.2185893 | V69: 828.0349378 | W69: 816.8512864 | X69: 805.6676349 | Y69: 794.4839834 | Z69: 783.300332 | AA69: 772.1166805 | AB69: 760.9330291 | AC69: 749.7493776 | AD69: 738.5657262 | AE69: 727.3820747 | AF69: 716.1984232 | AG69: 705.0147718 | AH69: 693.8311203 | AI69: 682.6474689 | AJ69: 671.4638174 | AK69: =AK41 -> 660.280166 | AL69: 649.0965145 | AM69: 637.912863 | AN69: 626.7292116 | AO69: 615.5455601
B70: 2020 | C70: NREL Utility PV - Class 4 | D70: CAPEX ($/kW) | E70: 100 MW/200 MWh Lithium-ion w/Solar (Solar Only) | F70: =F66 -> 1302.773648 | G70: =G66 -> 1139.2 | H70: =H66 -> 1094.214541 | I70: 1049.229082 | J70: 1004.243623 | K70: 959.258164 | L70: 914.272705 | M70: 869.287246 | N70: 824.301787 | O70: 779.316328 | P70: 734.3308689 | Q70: 727.7873522 | R70: 721.2438354 | S70: 714.7003187 | T70: 708.156802 | U70: 701.6132852 | V70: 695.0697685 | W70: 688.5262517 | X70: 681.982735 | Y70: 675.4392182 | Z70: 668.8957015 | AA70: 662.3521847 | AB70: 655.808668 | AC70: 649.2651512 | AD70: 642.7216345 | AE70: 636.1781177 | AF70: 629.634601 | AG70: 623.0910842 | AH70: 616.5475675 | AI70: 610.0040507 | AJ70: 603.460534 | AK70: =AK66 -> 596.9170172 | AL70: 590.3735005 | AM70: 583.8299837 | AN70: 577.286467 | AO70: 570.7429502
A71: NREL - USB2 (CAPEX) | B71: 2020 | C71: NREL Utility-Scale Battery Storage - 2Hr/Internal | D71: CAPEX ($/kW) | E71: 100 MW/200 MWh Lithium-ion w/Solar (Battery Only) | F71: 988.3217002 | G71: 856.8481751 | H71: 806.6745392 | I71: 746.036668 | J71: 707.6687625 | K71: 672.1177092 | L71: 652.263009 | M71: 633.7498037 | N71: 610.0044807 | O71: 596.7233931 | P71: 579.5516828 | Q71: 572.6547512 | R71: 565.4103552 | S71: 558.1659591 | T71: 550.9215631 | U71: 543.677167 | V71: 536.432771 | W71: 529.188375 | X71: 521.9439789 | Y71: 514.6995829 | Z71: 507.4551869 | AA71: 500.2107908 | AB71: 492.9663948 | AC71: 485.7219988 | AD71: 478.4776027 | AE71: 471.2332067 | AF71: 463.9888107 | AG71: 456.7444146 | AH71: 449.5000186 | AI71: 442.2556226 | AJ71: 435.1084921 | AK71: =AJ71-(AI71-AJ71) -> 427.9613616 | AL71: =AK71-(AJ71-AK71) -> 420.8142312 | AM71: =AL71-(AK71-AL71) -> 413.6671007 | AN71: =AM71-(AL71-AM71) -> 406.5199702 | AO71: =AN71-(AM71-AN71) -> 399.3728397
B72: 2020 | C72: NREL Utility PV - Class 4 | D72: CAPEX ($/kW) | E72: 50 MW/200 MWh Lithium-ion w/Solar (Solar Only) | F72: =F66 -> 1302.773648 | G72: =G66 -> 1139.2 | H72: 1094.214541 | I72: 1049.229082 | J72: 1004.243623 | K72: 959.258164 | L72: 914.272705 | M72: 869.287246 | N72: 824.301787 | O72: 779.316328 | P72: 734.3308689 | Q72: 727.7873522 | R72: 721.2438354 | S72: 714.7003187 | T72: 708.156802 | U72: 701.6132852 | V72: 695.0697685 | W72: 688.5262517 | X72: 681.982735 | Y72: 675.4392182 | Z72: 668.8957015 | AA72: 662.3521847 | AB72: 655.808668 | AC72: 649.2651512 | AD72: 642.7216345 | AE72: 636.1781177 | AF72: 629.634601 | AG72: 623.0910842 | AH72: 616.5475675 | AI72: 610.0040507 | AJ72: 603.460534 | AK72: =AK66 -> 596.9170172 | AL72: 590.3735005 | AM72: 583.8299837 | AN72: 577.286467 | AO72: 570.7429502
B73: 2020 | C73: NREL Utility-Scale Battery Storage - 2Hr | D73: CAPEX ($/kW) | E73: 50 MW/200 MWh Lithium-ion w/Solar (Battery Only) | F73: =F71 -> 988.3217002 | G73: =G71 -> 856.8481751 | H73: 806.6745392 | I73: 746.036668 | J73: 707.6687625 | K73: 672.1177092 | L73: 652.263009 | M73: 633.7498037 | N73: 610.0044807 | O73: 596.7233931 | P73: 579.5516828 | Q73: 572.6547512 | R73: 565.4103552 | S73: 558.1659591 | T73: 550.9215631 | U73: 543.677167 | V73: 536.432771 | W73: 529.188375 | X73: 521.9439789 | Y73: 514.6995829 | Z73: 507.4551869 | AA73: 500.2107908 | AB73: 492.9663948 | AC73: 485.7219988 | AD73: 478.4776027 | AE73: 471.2332067 | AF73: 463.9888107 | AG73: 456.7444146 | AH73: 449.5000186 | AI73: 442.2556226 | AJ73: 435.1084921 | AK73: =AK71 -> 427.9613616 | AL73: 420.8142312 | AM73: 413.6671007 | AN73: 406.5199702 | AO73: 399.3728397
A74: NREL - NWOS8 (CAPEX) | B74: 2020 | C74: NREL Land-Based Wind - Class 8 | D74: CAPEX ($/kW) | E74: NW Wind On System (Share) | F74: 1405.165816 | G74: 1355.956178 | H74: 1306.746541 | I74: 1257.536904 | J74: 1208.327266 | K74: 1159.117629 | L74: 1109.907992 | M74: 1060.698354 | N74: 1011.488717 | O74: 962.2790797 | P74: 913.0694424 | Q74: 903.938748 | R74: 894.8080536 | S74: 885.6773592 | T74: 876.5466647 | U74: 867.4159703 | V74: 858.2852759 | W74: 849.1545815 | X74: 840.023887 | Y74: 830.8931926 | Z74: 821.7624982 | AA74: 812.6318038 | AB74: 803.5011093 | AC74: 794.3704149 | AD74: 785.2397205 | AE74: 776.1090261 | AF74: 766.9783316 | AG74: 757.8476372 | AH74: 748.7169428 | AI74: 739.5862484 | AJ74: 730.4555539
B75: 2020 | C75: NREL Land-Based Wind - Class 8/Off System Adjustment | D75: CAPEX ($/kW) | E75: NW Wind Off System | F75: =F74/1.025+150 -> 1520.893479 | G75: =G74/1.025+150 -> 1472.884076 | H75: 1424.874674 | I75: 1376.865272 | J75: 1328.85587 | K75: 1280.846467 | L75: 1232.837065 | M75: 1184.827663 | N75: 1136.818261 | O75: 1088.808858 | P75: 1040.799456 | Q75: 1031.891461 | R75: 1022.983467 | S75: 1014.075472 | T75: 1005.167478 | U75: 996.2594832 | V75: 987.3514887 | W75: 978.4434941 | X75: 969.5354995 | Y75: 960.627505 | Z75: 951.7195104 | AA75: 942.8115159 | AB75: 933.9035213 | AC75: 924.9955267 | AD75: 916.0875322 | AE75: 907.1795376 | AF75: 898.2715431 | AG75: 889.3635485 | AH75: 880.4555539 | AI75: 871.5475594 | AJ75: 862.6395648
A76: NREL - WM3 (CAPEX) | B76: 2020 | C76: NREL Land-Based Wind - Class 3/Off System Adjustment | D76: CAPEX ($/kW) | E76: Wind Montana | F76: 1555.165816 | G76: 1505.956178 | H76: 1456.746541 | I76: 1407.536904 | J76: 1358.327266 | K76: 1309.117629 | L76: 1259.907992 | M76: 1210.698354 | N76: 1161.488717 | O76: 1112.27908 | P76: 1063.069442 | Q76: 1053.938748 | R76: 1044.808054 | S76: 1035.677359 | T76: 1026.546665 | U76: 1017.41597 | V76: 1008.285276 | W76: 999.1545815 | X76: 990.023887 | Y76: 980.8931926 | Z76: 971.7624982 | AA76: 962.6318038 | AB76: 953.5011093 | AC76: 944.3704149 | AD76: 935.2397205 | AE76: 926.1090261 | AF76: 916.9783316 | AG76: 907.8476372 | AH76: 898.7169428 | AI76: 889.5862484 | AJ76: 880.4555539
A77: NREL - OSW12 (CAPEX) | B77: 2020 | C77: NREL Wind Speed Class 12 | D77: CAPEX ($/kW) | E77: Off Shore Wind (Share) | F77: 5291.993501 | G77: 4848.814785 | H77: 4628.315146 | I77: 4471.868162 | J77: 4350.518454 | K77: 4251.368523 | L77: 4167.53845 | M77: 4094.921539 | N77: 4030.868883 | O77: 3973.57183 | P77: 3921.740341 | Q77: 3874.421899 | R77: 3830.893152 | S77: 3790.591827 | T77: 3753.072191 | U77: 3717.974915 | V77: 3685.006093 | W77: 3653.92226 | X77: 3624.519476 | Y77: 3596.625207 | Z77: 3570.092188 | AA77: 3544.793718 | AB77: 3520.620004 | AC77: 3497.475276 | AD77: 3475.275499 | AE77: 3453.946529 | AF77: 3433.422621 | AG77: 3413.645204 | AH77: 3394.561877 | AI77: 3376.125568 | AJ77: 3358.293838
A78: NREL - NUC (CAPEX) | B78: 2020 | C78: NREL Nuclear - Small Modular Reactor | D78: CAPEX ($/kW) | E78: Small Modular Reactor (share) | F78: 6809.420996 | G78: 6766.864904 | H78: 6724.308812 | I78: 6681.75272 | J78: 6639.189897 | K78: 6596.631911 | L78: 6554.075676 | M78: 6511.516028 | N78: 6468.958856 | O78: 6426.399466 | P78: 6383.839692 | Q78: 6341.278297 | R78: 6298.718736 | S78: 6256.162656 | T78: 6213.598457 | U78: 6171.040362 | V78: 6128.480794 | W78: 6085.924715 | X78: 6043.36492 | Y78: 6000.806132 | Z78: 5958.248832 | AA78: 5915.685248 | AB78: 5873.126214 | AC78: 5830.566955 | AD78: 5788.007669 | AE78: 5745.453725 | AF78: 5702.893845 | AG78: 5660.334837 | AH78: 5617.772706 | AI78: 5575.213725 | AJ78: 5532.654843
A79: NREL - GEO (CAPEX) | B79: 2020 | C79: NREL Geothermal - Hydro / Flash | D79: CAPEX ($/kW) | E79: Geothermal (Off System) | F79: 4559.278203 | G79: 4493.604086 | H79: 4427.929969 | I79: 4362.255852 | J79: 4296.581735 | K79: 4230.907618 | L79: 4165.233501 | M79: 4099.559384 | N79: 4033.885267 | O79: 3968.21115 | P79: 3902.537033 | Q79: 3883.024347 | R79: 3863.609226 | S79: 3844.291179 | T79: 3825.069724 | U79: 3805.944375 | V79: 3786.914653 | W79: 3767.98008 | X79: 3749.140179 | Y79: 3730.394479 | Z79: 3711.742506 | AA79: 3693.183794 | AB79: 3674.717875 | AC79: 3656.344285 | AD79: 3638.062564 | AE79: 3619.872251 | AF79: 3601.77289 | AG79: 3583.764025 | AH79: 3565.845205 | AI79: 3548.015979 | AJ79: 3530.275899
B80: 2022 | C80: Internal | D80: CAPEX ($/kW) | E80: 7F.04 CT Frame Greenfield | H80: 744.4582952 | I80: 744.4582952 | J80: 744.4582952 | K80: 744.4582952 | L80: 744.4582952 | M80: 744.4582952 | N80: 744.4582952 | O80: 744.4582952 | P80: 744.4582952 | Q80: 744.4582952 | R80: 744.4582952 | S80: 744.4582952 | T80: 744.4582952 | U80: 744.4582952 | V80: 744.4582952 | W80: 744.4582952 | X80: 744.4582952 | Y80: 744.4582952 | Z80: 744.4582952 | AA80: 744.4582952 | AB80: 744.4582952 | AC80: 744.4582952 | AD80: 744.4582952 | AE80: 744.4582952 | AF80: 744.4582952 | AG80: 744.4582952 | AH80: 744.4582952 | AI80: 744.4582952 | AJ80: 744.4582952
B81: 2022 | C81: Internal | D81: CAPEX ($/kW) | E81: Reciprocating Engine (ICE) Machine | H81: 1139.324195 | I81: 1139.324195 | J81: 1139.324195 | K81: 1139.324195 | L81: 1139.324195 | M81: 1139.324195 | N81: 1139.324195 | O81: 1139.324195 | P81: 1139.324195 | Q81: 1139.324195 | R81: 1139.324195 | S81: 1139.324195 | T81: 1139.324195 | U81: 1139.324195 | V81: 1139.324195 | W81: 1139.324195 | X81: 1139.324195 | Y81: 1139.324195 | Z81: 1139.324195 | AA81: 1139.324195 | AB81: 1139.324195 | AC81: 1139.324195 | AD81: 1139.324195 | AE81: 1139.324195 | AF81: 1139.324195 | AG81: 1139.324195 | AH81: 1139.324195 | AI81: 1139.324195 | AJ81: 1139.324195
B82: 2022 | C82: Internal | D82: CAPEX ($/kW) | E82: NG CCCT (1x1 w/DF) | H82: 1139.113939 | I82: 1139.113939 | J82: 1139.113939 | K82: 1139.113939 | L82: 1139.113939 | M82: 1139.113939 | N82: 1139.113939 | O82: 1139.113939 | P82: 1139.113939 | Q82: 1139.113939 | R82: 1139.113939 | S82: 1139.113939 | T82: 1139.113939 | U82: 1139.113939 | V82: 1139.113939 | W82: 1139.113939 | X82: 1139.113939 | Y82: 1139.113939 | Z82: 1139.113939 | AA82: 1139.113939 | AB82: 1139.113939 | AC82: 1139.113939 | AD82: 1139.113939 | AE82: 1139.113939 | AF82: 1139.113939 | AG82: 1139.113939 | AH82: 1139.113939 | AI82: 1139.113939 | AJ82: 1139.113939
B83: 2020 | C83: Internal | D83: CAPEX ($/kW) | E83: Hydrogen Fuel Cell with 40 hrs Storage | F83: 5356 | G83: =F83*(1+G355) -> 5356 | H83: 5356 | I83: 5356 | J83: 5356 | K83: 5356 | L83: 5356 | M83: 5356 | N83: 5356 | O83: 5356 | P83: 5356 | Q83: 5356 | R83: 5356 | S83: 5356 | T83: 5356 | U83: 5356 | V83: 5356 | W83: 5356 | X83: 5356 | Y83: 5356 | Z83: 5356 | AA83: 5356 | AB83: 5356 | AC83: 5356 | AD83: 5356 | AE83: 5356 | AF83: 5356 | AG83: 5356 | AH83: 5356 | AI83: 5356 | AJ83: 5356
B84: 2022 | C84: Internal | D84: CAPEX ($/kW) | E84: 7F.04 CT Frame Greenfield + amonia + storage | H84: =H80+20000000/('Resource Options'!E3*1000) -> 855.2646888 | I84: 855.2646888 | J84: 855.2646888 | K84: 855.2646888 | L84: 855.2646888 | M84: 855.2646888 | N84: 855.2646888 | O84: 855.2646888 | P84: 855.2646888 | Q84: 855.2646888 | R84: 855.2646888 | S84: 855.2646888 | T84: 855.2646888 | U84: 855.2646888 | V84: 855.2646888 | W84: 855.2646888 | X84: 855.2646888 | Y84: 855.2646888 | Z84: 855.2646888 | AA84: 855.2646888 | AB84: 855.2646888 | AC84: 855.2646888 | AD84: 855.2646888 | AE84: 855.2646888 | AF84: 855.2646888 | AG84: 855.2646888 | AH84: 855.2646888 | AI84: 855.2646888 | AJ84: 855.2646888
B86: =D86 -> Variable Operation and Maintenance Expenses ($/MWh) | D86: Variable Operation and Maintenance Expenses ($/MWh)
B87: 2020 | C87: NREL Utility-Scale Battery Storage - 4Hr | D87: Variable Operation and Maintenance Expenses ($/MWh) | E87: Distribution Scale 4hr Lithium-Ion | F87: 0 | G87: 0 | H87: 0 | I87: 0 | J87: 0 | K87: 0 | L87: 0 | M87: 0 | N87: 0 | O87: 0 | P87: 0 | Q87: 0 | R87: 0 | S87: 0 | T87: 0 | U87: 0 | V87: 0 | W87: 0 | X87: 0 | Y87: 0 | Z87: 0 | AA87: 0 | AB87: 0 | AC87: 0 | AD87: 0 | AE87: 0 | AF87: 0 | AG87: 0 | AH87: 0 | AI87: 0 | AJ87: 0 | AK87: 0 | AL87: 0 | AM87: 0 | AN87: 0 | AO87: 0 | AP87: 0 | AQ87: 0 | AR87: 0 | AS87: 0 | AT87: 0 | AU87: 0 | AV87: 0 | AW87: 0 | AX87: 0 | AY87: 0 | AZ87: 0 | BA87: 0 | BB87: 0 | BC87: 0 | BD87: 0 | BE87: 0 | BF87: 0 | BG87: 0 | BH87: 0 | BI87: 0 | BJ87: 0 | BK87: 0 | BL87: 0 | BM87: 0 | BN87: 0 | BO87: 0 | BP87: 0 | BQ87: 0 | BR87: 0 | BS87: 0 | BT87: 0 | BU87: 0 | BV87: 0 | BW87: 0 | BX87: 0
B88: 2020 | C88: NREL Utility-Scale Battery Storage - 8Hr | D88: Variable Operation and Maintenance Expenses ($/MWh) | E88: Distribution Scale 8hr Lithium-Ion | F88: 0 | G88: 0 | H88: 0 | I88: 0 | J88: 0 | K88: 0 | L88: 0 | M88: 0 | N88: 0 | O88: 0 | P88: 0 | Q88: 0 | R88: 0 | S88: 0 | T88: 0 | U88: 0 | V88: 0 | W88: 0 | X88: 0 | Y88: 0 | Z88: 0 | AA88: 0 | AB88: 0 | AC88: 0 | AD88: 0 | AE88: 0 | AF88: 0 | AG88: 0 | AH88: 0 | AI88: 0 | AJ88: 0 | AK88: 0 | AL88: 0 | AM88: 0 | AN88: 0 | AO88: 0 | AP88: 0 | AQ88: 0 | AR88: 0 | AS88: 0 | AT88: 0 | AU88: 0 | AV88: 0 | AW88: 0 | AX88: 0 | AY88: 0 | AZ88: 0 | BA88: 0 | BB88: 0 | BC88: 0 | BD88: 0 | BE88: 0 | BF88: 0 | BG88: 0 | BH88: 0 | BI88: 0 | BJ88: 0 | BK88: 0 | BL88: 0 | BM88: 0 | BN88: 0 | BO88: 0 | BP88: 0 | BQ88: 0 | BR88: 0 | BS88: 0 | BT88: 0 | BU88: 0 | BV88: 0 | BW88: 0 | BX88: 0
A89: NREL - USB4 (VOM) | B89: 2020 | C89: NREL Utility-Scale Battery Storage - 4Hr | D89: Variable Operation and Maintenance Expenses ($/MWh) | E89: 4hr Lithium-Ion | F89: 0 | G89: 0 | H89: 0 | I89: 0 | J89: 0 | K89: 0 | L89: 0 | M89: 0 | N89: 0 | O89: 0 | P89: 0 | Q89: 0 | R89: 0 | S89: 0 | T89: 0 | U89: 0 | V89: 0 | W89: 0 | X89: 0 | Y89: 0 | Z89: 0 | AA89: 0 | AB89: 0 | AC89: 0 | AD89: 0 | AE89: 0 | AF89: 0 | AG89: 0 | AH89: 0 | AI89: 0 | AJ89: 0 | AK89: 0 | AL89: 0 | AM89: 0 | AN89: 0 | AO89: 0 | AP89: 0 | AQ89: 0 | AR89: 0 | AS89: 0 | AT89: 0 | AU89: 0 | AV89: 0 | AW89: 0 | AX89: 0 | AY89: 0 | AZ89: 0 | BA89: 0 | BB89: 0 | BC89: 0 | BD89: 0 | BE89: 0 | BF89: 0 | BG89: 0 | BH89: 0 | BI89: 0 | BJ89: 0 | BK89: 0 | BL89: 0 | BM89: 0 | BN89: 0 | BO89: 0 | BP89: 0 | BQ89: 0 | BR89: 0 | BS89: 0 | BT89: 0 | BU89: 0 | BV89: 0 | BW89: 0 | BX89: 0
A90: NREL - USB8 (VOM) | B90: 2020 | C90: NREL Utility-Scale Battery Storage - 8Hr | D90: Variable Operation and Maintenance Expenses ($/MWh) | E90: 8hr Lithium-Ion | F90: 0 | G90: 0 | H90: 0 | I90: 0 | J90: 0 | K90: 0 | L90: 0 | M90: 0 | N90: 0 | O90: 0 | P90: 0 | Q90: 0 | R90: 0 | S90: 0 | T90: 0 | U90: 0 | V90: 0 | W90: 0 | X90: 0 | Y90: 0 | Z90: 0 | AA90: 0 | AB90: 0 | AC90: 0 | AD90: 0 | AE90: 0 | AF90: 0 | AG90: 0 | AH90: 0 | AI90: 0 | AJ90: 0 | AK90: 0 | AL90: 0 | AM90: 0 | AN90: 0 | AO90: 0 | AP90: 0 | AQ90: 0 | AR90: 0 | AS90: 0 | AT90: 0 | AU90: 0 | AV90: 0 | AW90: 0 | AX90: 0 | AY90: 0 | AZ90: 0 | BA90: 0 | BB90: 0 | BC90: 0 | BD90: 0 | BE90: 0 | BF90: 0 | BG90: 0 | BH90: 0 | BI90: 0 | BJ90: 0 | BK90: 0 | BL90: 0 | BM90: 0 | BN90: 0 | BO90: 0 | BP90: 0 | BQ90: 0 | BR90: 0 | BS90: 0 | BT90: 0 | BU90: 0 | BV90: 0 | BW90: 0 | BX90: 0
A91: NREL - USB16 (VOM) | B91: 2020 | C91: NREL Utility-Scale Battery Storage - 16Hr | D91: Variable Operation and Maintenance Expenses ($/MWh) | E91: 16hr Lithium-Ion | F91: 0 | G91: 0 | H91: 0 | I91: 0 | J91: 0 | K91: 0 | L91: 0 | M91: 0 | N91: 0 | O91: 0 | P91: 0 | Q91: 0 | R91: 0 | S91: 0 | T91: 0 | U91: 0 | V91: 0 | W91: 0 | X91: 0 | Y91: 0 | Z91: 0 | AA91: 0 | AB91: 0 | AC91: 0 | AD91: 0 | AE91: 0 | AF91: 0 | AG91: 0 | AH91: 0 | AI91: 0 | AJ91: 0 | AK91: 0 | AL91: 0 | AM91: 0 | AN91: 0 | AO91: 0 | AP91: 0 | AQ91: 0 | AR91: 0 | AS91: 0 | AT91: 0 | AU91: 0 | AV91: 0 | AW91: 0 | AX91: 0 | AY91: 0 | AZ91: 0 | BA91: 0 | BB91: 0 | BC91: 0 | BD91: 0 | BE91: 0 | BF91: 0 | BG91: 0 | BH91: 0 | BI91: 0 | BJ91: 0 | BK91: 0 | BL91: 0 | BM91: 0 | BN91: 0 | BO91: 0 | BP91: 0 | BQ91: 0 | BR91: 0 | BS91: 0 | BT91: 0 | BU91: 0 | BV91: 0 | BW91: 0 | BX91: 0
B92: 2020 | C92: Internal | D92: Variable Operation and Maintenance Expenses ($/MWh) | E92: 4 hr Vanadium Flow Battery | F92: 0 | G92: 0 | H92: 0 | I92: 0 | J92: 0 | K92: 0 | L92: 0 | M92: 0 | N92: 0 | O92: 0 | P92: 0 | Q92: 0 | R92: 0 | S92: 0 | T92: 0 | U92: 0 | V92: 0 | W92: 0 | X92: 0 | Y92: 0 | Z92: 0 | AA92: 0 | AB92: 0 | AC92: 0 | AD92: 0 | AE92: 0 | AF92: 0 | AG92: 0 | AH92: 0 | AI92: 0 | AJ92: 0 | AK92: 0 | AL92: 0 | AM92: 0 | AN92: 0 | AO92: 0 | AP92: 0 | AQ92: 0 | AR92: 0 | AS92: 0 | AT92: 0 | AU92: 0 | AV92: 0 | AW92: 0 | AX92: 0 | AY92: 0 | AZ92: 0 | BA92: 0 | BB92: 0 | BC92: 0 | BD92: 0 | BE92: 0 | BF92: 0 | BG92: 0 | BH92: 0 | BI92: 0 | BJ92: 0 | BK92: 0 | BL92: 0 | BM92: 0 | BN92: 0 | BO92: 0 | BP92: 0 | BQ92: 0 | BR92: 0 | BS92: 0 | BT92: 0 | BU92: 0 | BV92: 0 | BW92: 0 | BX92: 0
B93: 2020 | C93: Internal | D93: Variable Operation and Maintenance Expenses ($/MWh) | E93: 4 hr Zinc Bromide Flow Battery | F93: 0 | G93: 0 | H93: 0 | I93: 0 | J93: 0 | K93: 0 | L93: 0 | M93: 0 | N93: 0 | O93: 0 | P93: 0 | Q93: 0 | R93: 0 | S93: 0 | T93: 0 | U93: 0 | V93: 0 | W93: 0 | X93: 0 | Y93: 0 | Z93: 0 | AA93: 0 | AB93: 0 | AC93: 0 | AD93: 0 | AE93: 0 | AF93: 0 | AG93: 0 | AH93: 0 | AI93: 0 | AJ93: 0 | AK93: 0 | AL93: 0 | AM93: 0 | AN93: 0 | AO93: 0 | AP93: 0 | AQ93: 0 | AR93: 0 | AS93: 0 | AT93: 0 | AU93: 0 | AV93: 0 | AW93: 0 | AX93: 0 | AY93: 0 | AZ93: 0 | BA93: 0 | BB93: 0 | BC93: 0 | BD93: 0 | BE93: 0 | BF93: 0 | BG93: 0 | BH93: 0 | BI93: 0 | BJ93: 0 | BK93: 0 | BL93: 0 | BM93: 0 | BN93: 0 | BO93: 0 | BP93: 0 | BQ93: 0 | BR93: 0 | BS93: 0 | BT93: 0 | BU93: 0 | BV93: 0 | BW93: 0 | BX93: 0
B94: 2020 | C94: Form Energy | D94: Variable Operation and Maintenance Expenses ($/MWh) | E94: 100hr Iron Oxide | F94: 0 | G94: 0 | H94: 0 | I94: 0 | J94: 0 | K94: 0 | L94: 0 | M94: 0 | N94: 0 | O94: 0 | P94: 0 | Q94: 0 | R94: 0 | S94: 0 | T94: 0 | U94: 0 | V94: 0 | W94: 0 | X94: 0 | Y94: 0 | Z94: 0 | AA94: 0 | AB94: 0 | AC94: 0 | AD94: 0 | AE94: 0 | AF94: 0 | AG94: 0 | AH94: 0 | AI94: 0 | AJ94: 0 | AK94: 0 | AL94: 0 | AM94: 0 | AN94: 0 | AO94: 0 | AP94: 0 | AQ94: 0 | AR94: 0 | AS94: 0 | AT94: 0 | AU94: 0 | AV94: 0 | AW94: 0 | AX94: 0 | AY94: 0 | AZ94: 0 | BA94: 0 | BB94: 0 | BC94: 0 | BD94: 0 | BE94: 0 | BF94: 0 | BG94: 0 | BH94: 0 | BI94: 0 | BJ94: 0 | BK94: 0 | BL94: 0 | BM94: 0 | BN94: 0 | BO94: 0 | BP94: 0 | BQ94: 0 | BR94: 0 | BS94: 0 | BT94: 0 | BU94: 0 | BV94: 0 | BW94: 0 | BX94: 0
B95: 2022 | C95: Internal | D95: Variable Operation and Maintenance Expenses ($/MWh) | E95: Liquid Air | F95: 0 | G95: 0 | H95: 5.75 | I95: 5.75 | J95: 5.75 | K95: 5.75 | L95: 5.75 | M95: 5.75 | N95: 5.75 | O95: 5.75 | P95: 5.75 | Q95: 5.75 | R95: 5.75 | S95: 5.75 | T95: 5.75 | U95: 5.75 | V95: 5.75 | W95: 5.75 | X95: 5.75 | Y95: 5.75 | Z95: 5.75 | AA95: 5.75 | AB95: 5.75 | AC95: 5.75 | AD95: 5.75 | AE95: 5.75 | AF95: 5.75 | AG95: 5.75 | AH95: 5.75 | AI95: 5.75 | AJ95: 5.75 | AK95: 5.75 | AL95: 5.75 | AM95: 5.75 | AN95: 5.75 | AO95: 5.75 | AP95: 5.75 | AQ95: 5.75 | AR95: 5.75 | AS95: 5.75 | AT95: 5.75 | AU95: 5.75 | AV95: 5.75 | AW95: 5.75 | AX95: 5.75 | AY95: 5.75 | AZ95: 5.75 | BA95: 5.75 | BB95: 5.75 | BC95: 5.75 | BD95: 5.75 | BE95: 5.75 | BF95: 5.75 | BG95: 5.75 | BH95: 5.75 | BI95: 5.75 | BJ95: 5.75 | BK95: 5.75 | BL95: 5.75 | BM95: 5.75 | BN95: 5.75 | BO95: 5.75 | BP95: 5.75 | BQ95: 5.75 | BR95: 5.75 | BS95: 5.75 | BT95: 5.75 | BU95: 5.75 | BV95: 5.75 | BW95: 5.75 | BX95: 5.75
A96: NREL - PSHP10 (VOM) | B96: 2020 | C96: NREL Pumped Storage Hydropower - National Class 10 | D96: Variable Operation and Maintenance Expenses ($/MWh) | E96: Pumped Hydro (8.5 hr/ 400 MW share) | F96: 0.5125 | G96: 0.5125 | H96: 0.5125 | I96: 0.5125 | J96: 0.5125 | K96: 0.5125 | L96: 0.5125 | M96: 0.5125 | N96: 0.5125 | O96: 0.5125 | P96: 0.5125 | Q96: 0.5125 | R96: 0.5125 | S96: 0.5125 | T96: 0.5125 | U96: 0.5125 | V96: 0.5125 | W96: 0.5125 | X96: 0.5125 | Y96: 0.5125 | Z96: 0.5125 | AA96: 0.5125 | AB96: 0.5125 | AC96: 0.5125 | AD96: 0.5125 | AE96: 0.5125 | AF96: 0.5125 | AG96: 0.5125 | AH96: 0.5125 | AI96: 0.5125 | AJ96: 0.5125 | AK96: 0.5125 | AL96: 0.5125 | AM96: 0.5125 | AN96: 0.5125 | AO96: 0.5125 | AP96: 0.5125 | AQ96: 0.5125 | AR96: 0.5125 | AS96: 0.5125 | AT96: 0.5125 | AU96: 0.5125 | AV96: 0.5125 | AW96: 0.5125 | AX96: 0.5125 | AY96: 0.5125 | AZ96: 0.5125 | BA96: 0.5125 | BB96: 0.5125 | BC96: 0.5125 | BD96: 0.5125 | BE96: 0.5125 | BF96: 0.5125 | BG96: 0.5125 | BH96: 0.5125 | BI96: 0.5125 | BJ96: 0.5125 | BK96: 0.5125 | BL96: 0.5125 | BM96: 0.5125 | BN96: 0.5125 | BO96: 0.5125 | BP96: 0.5125 | BQ96: 0.5125 | BR96: 0.5125 | BS96: 0.5125 | BT96: 0.5125 | BU96: 0.5125 | BV96: 0.5125 | BW96: 0.5125 | BX96: 0.5125
A97: NREL - PSHP7 (VOM) | B97: 2020 | C97: NREL Pumped Storage Hydropower - National Class 7 | D97: Variable Operation and Maintenance Expenses ($/MWh) | E97: Pumped Hydro (16 hr/ 100 MW) | F97: 0.5125 | G97: 0.5125 | H97: 0.5125 | I97: 0.5125 | J97: 0.5125 | K97: 0.5125 | L97: 0.5125 | M97: 0.5125 | N97: 0.5125 | O97: 0.5125 | P97: 0.5125 | Q97: 0.5125 | R97: 0.5125 | S97: 0.5125 | T97: 0.5125 | U97: 0.5125 | V97: 0.5125 | W97: 0.5125 | X97: 0.5125 | Y97: 0.5125 | Z97: 0.5125 | AA97: 0.5125 | AB97: 0.5125 | AC97: 0.5125 | AD97: 0.5125 | AE97: 0.5125 | AF97: 0.5125 | AG97: 0.5125 | AH97: 0.5125 | AI97: 0.5125 | AJ97: 0.5125 | AK97: 0.5125 | AL97: 0.5125 | AM97: 0.5125 | AN97: 0.5125 | AO97: 0.5125 | AP97: 0.5125 | AQ97: 0.5125 | AR97: 0.5125 | AS97: 0.5125 | AT97: 0.5125 | AU97: 0.5125 | AV97: 0.5125 | AW97: 0.5125 | AX97: 0.5125 | AY97: 0.5125 | AZ97: 0.5125 | BA97: 0.5125 | BB97: 0.5125 | BC97: 0.5125 | BD97: 0.5125 | BE97: 0.5125 | BF97: 0.5125 | BG97: 0.5125 | BH97: 0.5125 | BI97: 0.5125 | BJ97: 0.5125 | BK97: 0.5125 | BL97: 0.5125 | BM97: 0.5125 | BN97: 0.5125 | BO97: 0.5125 | BP97: 0.5125 | BQ97: 0.5125 | BR97: 0.5125 | BS97: 0.5125 | BT97: 0.5125 | BU97: 0.5125 | BV97: 0.5125 | BW97: 0.5125 | BX97: 0.5125
A98: NREL - PSHP5 (VOM) | B98: 2020 | C98: NREL Pumped Storage Hydropower - National Class 5 | D98: Variable Operation and Maintenance Expenses ($/MWh) | E98: Pumped Hyrdo (24 hr/ 100 MW) | F98: 0.5125 | G98: 0.5125 | H98: 0.5125 | I98: 0.5125 | J98: 0.5125 | K98: 0.5125 | L98: 0.5125 | M98: 0.5125 | N98: 0.5125 | O98: 0.5125 | P98: 0.5125 | Q98: 0.5125 | R98: 0.5125 | S98: 0.5125 | T98: 0.5125 | U98: 0.5125 | V98: 0.5125 | W98: 0.5125 | X98: 0.5125 | Y98: 0.5125 | Z98: 0.5125 | AA98: 0.5125 | AB98: 0.5125 | AC98: 0.5125 | AD98: 0.5125 | AE98: 0.5125 | AF98: 0.5125 | AG98: 0.5125 | AH98: 0.5125 | AI98: 0.5125 | AJ98: 0.5125 | AK98: 0.5125 | AL98: 0.5125 | AM98: 0.5125 | AN98: 0.5125 | AO98: 0.5125 | AP98: 0.5125 | AQ98: 0.5125 | AR98: 0.5125 | AS98: 0.5125 | AT98: 0.5125 | AU98: 0.5125 | AV98: 0.5125 | AW98: 0.5125 | AX98: 0.5125 | AY98: 0.5125 | AZ98: 0.5125 | BA98: 0.5125 | BB98: 0.5125 | BC98: 0.5125 | BD98: 0.5125 | BE98: 0.5125 | BF98: 0.5125 | BG98: 0.5125 | BH98: 0.5125 | BI98: 0.5125 | BJ98: 0.5125 | BK98: 0.5125 | BL98: 0.5125 | BM98: 0.5125 | BN98: 0.5125 | BO98: 0.5125 | BP98: 0.5125 | BQ98: 0.5125 | BR98: 0.5125 | BS98: 0.5125 | BT98: 0.5125 | BU98: 0.5125 | BV98: 0.5125 | BW98: 0.5125 | BX98: 0.5125
B99: 2022 | C99: Internal | D99: Variable Operation and Maintenance Expenses ($/MWh) | E99: Wood Biomass | H99: 3.5075 | I99: 3.5075 | J99: 3.5075 | K99: 3.5075 | L99: 3.5075 | M99: 3.5075 | N99: 3.5075 | O99: 3.5075 | P99: 3.5075 | Q99: 3.5075 | R99: 3.5075 | S99: 3.5075 | T99: 3.5075 | U99: 3.5075 | V99: 3.5075 | W99: 3.5075 | X99: 3.5075 | Y99: 3.5075 | Z99: 3.5075 | AA99: 3.5075 | AB99: 3.5075 | AC99: 3.5075 | AD99: 3.5075 | AE99: 3.5075 | AF99: 3.5075 | AG99: 3.5075 | AH99: 3.5075 | AI99: 3.5075 | AJ99: 3.5075 | AK99: 3.5075 | AL99: 3.5075 | AM99: 3.5075 | AN99: 3.5075 | AO99: 3.5075 | AP99: 3.5075 | AQ99: 3.5075 | AR99: 3.5075 | AS99: 3.5075 | AT99: 3.5075 | AU99: 3.5075 | AV99: 3.5075 | AW99: 3.5075 | AX99: 3.5075 | AY99: 3.5075 | AZ99: 3.5075 | BA99: 3.5075 | BB99: 3.5075 | BC99: 3.5075 | BD99: 3.5075 | BE99: 3.5075 | BF99: 3.5075 | BG99: 3.5075 | BH99: 3.5075 | BI99: 3.5075 | BJ99: 3.5075 | BK99: 3.5075 | BL99: 3.5075 | BM99: 3.5075 | BN99: 3.5075 | BO99: 3.5075 | BP99: 3.5075 | BQ99: 3.5075 | BR99: 3.5075 | BS99: 3.5075 | BT99: 3.5075 | BU99: 3.5075 | BV99: 3.5075 | BW99: 3.5075 | BX99: 3.5075
B100: 2022 | C100: Internal | D100: Variable Operation and Maintenance Expenses ($/MWh) | E100: Rathdrum CT 2055 Uprates two unit operation | H100: 4.6 | I100: 4.6 | J100: 4.6 | K100: 4.6 | L100: 4.6 | M100: 4.6 | N100: 4.6 | O100: 4.6 | P100: 4.6 | Q100: 4.6 | R100: 4.6 | S100: 4.6 | T100: 4.6 | U100: 4.6 | V100: 4.6 | W100: 4.6 | X100: 4.6 | Y100: 4.6 | Z100: 4.6 | AA100: 4.6 | AB100: 4.6 | AC100: 4.6 | AD100: 4.6 | AE100: 4.6 | AF100: 4.6 | AG100: 4.6 | AH100: 4.6 | AI100: 4.6 | AJ100: 4.6 | AK100: 4.6 | AL100: 4.6 | AM100: 4.6 | AN100: 4.6 | AO100: 4.6 | AP100: 4.6 | AQ100: 4.6 | AR100: 4.6 | AS100: 4.6 | AT100: 4.6 | AU100: 4.6 | AV100: 4.6 | AW100: 4.6 | AX100: 4.6 | AY100: 4.6 | AZ100: 4.6 | BA100: 4.6 | BB100: 4.6 | BC100: 4.6 | BD100: 4.6 | BE100: 4.6 | BF100: 4.6 | BG100: 4.6 | BH100: 4.6 | BI100: 4.6 | BJ100: 4.6 | BK100: 4.6 | BL100: 4.6 | BM100: 4.6 | BN100: 4.6 | BO100: 4.6 | BP100: 4.6 | BQ100: 4.6 | BR100: 4.6 | BS100: 4.6 | BT100: 4.6 | BU100: 4.6 | BV100: 4.6 | BW100: 4.6 | BX100: 4.6
B101: 2022 | C101: Internal | D101: Variable Operation and Maintenance Expenses ($/MWh) | E101: Rathdrum CT: Inlet Evaporation 2 unit operation | H101: 5.75 | I101: 5.75 | J101: 5.75 | K101: 5.75 | L101: 5.75 | M101: 5.75 | N101: 5.75 | O101: 5.75 | P101: 5.75 | Q101: 5.75 | R101: 5.75 | S101: 5.75 | T101: 5.75 | U101: 5.75 | V101: 5.75 | W101: 5.75 | X101: 5.75 | Y101: 5.75 | Z101: 5.75 | AA101: 5.75 | AB101: 5.75 | AC101: 5.75 | AD101: 5.75 | AE101: 5.75 | AF101: 5.75 | AG101: 5.75 | AH101: 5.75 | AI101: 5.75 | AJ101: 5.75 | AK101: 5.75 | AL101: 5.75 | AM101: 5.75 | AN101: 5.75 | AO101: 5.75 | AP101: 5.75 | AQ101: 5.75 | AR101: 5.75 | AS101: 5.75 | AT101: 5.75 | AU101: 5.75 | AV101: 5.75 | AW101: 5.75 | AX101: 5.75 | AY101: 5.75 | AZ101: 5.75 | BA101: 5.75 | BB101: 5.75 | BC101: 5.75 | BD101: 5.75 | BE101: 5.75 | BF101: 5.75 | BG101: 5.75 | BH101: 5.75 | BI101: 5.75 | BJ101: 5.75 | BK101: 5.75 | BL101: 5.75 | BM101: 5.75 | BN101: 5.75 | BO101: 5.75 | BP101: 5.75 | BQ101: 5.75 | BR101: 5.75 | BS101: 5.75 | BT101: 5.75 | BU101: 5.75 | BV101: 5.75 | BW101: 5.75 | BX101: 5.75
A102: NREL - RPV8 (CF) | B102: 2020 | C102: NREL Residential PV - Class 8 | D102: Variable Operation and Maintenance Expenses ($/MWh) | E102: New Residential Solar | F102: 0 | G102: 0 | H102: 0 | I102: 0 | J102: 0 | K102: 0 | L102: 0 | M102: 0 | N102: 0 | O102: 0 | P102: 0 | Q102: 0 | R102: 0 | S102: 0 | T102: 0 | U102: 0 | V102: 0 | W102: 0 | X102: 0 | Y102: 0 | Z102: 0 | AA102: 0 | AB102: 0 | AC102: 0 | AD102: 0 | AE102: 0 | AF102: 0 | AG102: 0 | AH102: 0 | AI102: 0 | AJ102: 0 | AK102: 0 | AL102: 0 | AM102: 0 | AN102: 0 | AO102: 0 | AP102: 0 | AQ102: 0 | AR102: 0 | AS102: 0 | AT102: 0 | AU102: 0 | AV102: 0 | AW102: 0 | AX102: 0 | AY102: 0 | AZ102: 0 | BA102: 0 | BB102: 0 | BC102: 0 | BD102: 0 | BE102: 0 | BF102: 0 | BG102: 0 | BH102: 0 | BI102: 0 | BJ102: 0 | BK102: 0 | BL102: 0 | BM102: 0 | BN102: 0 | BO102: 0 | BP102: 0 | BQ102: 0 | BR102: 0 | BS102: 0 | BT102: 0 | BU102: 0 | BV102: 0 | BW102: 0 | BX102: 0
B103: 2020 | C103: NREL Residential PV - Class 8 | D103: Variable Operation and Maintenance Expenses ($/MWh) | E103: New Residential Solar + Storage (Solar Only) | F103: =F102 -> 0 | G103: =G102 -> 0 | H103: 0 | I103: 0 | J103: 0 | K103: 0 | L103: 0 | M103: 0 | N103: 0 | O103: 0 | P103: 0 | Q103: 0 | R103: 0 | S103: 0 | T103: 0 | U103: 0 | V103: 0 | W103: 0 | X103: 0 | Y103: 0 | Z103: 0 | AA103: 0 | AB103: 0 | AC103: 0 | AD103: 0 | AE103: 0 | AF103: 0 | AG103: 0 | AH103: 0 | AI103: 0 | AJ103: 0 | AK103: 0 | AL103: 0 | AM103: 0 | AN103: 0 | AO103: 0 | AP103: 0 | AQ103: 0 | AR103: 0 | AS103: 0 | AT103: 0 | AU103: 0 | AV103: 0 | AW103: 0 | AX103: 0 | AY103: 0 | AZ103: 0 | BA103: 0 | BB103: 0 | BC103: 0 | BD103: 0 | BE103: 0 | BF103: 0 | BG103: 0 | BH103: 0 | BI103: 0 | BJ103: 0 | BK103: 0 | BL103: 0 | BM103: 0 | BN103: 0 | BO103: 0 | BP103: 0 | BQ103: 0 | BR103: 0 | BS103: =BS102 -> 0 | BT103: 0 | BU103: 0 | BV103: 0 | BW103: 0 | BX103: 0
B104: 2020 | C104: NREL Residential PV - Class 8 | D104: Variable Operation and Maintenance Expenses ($/MWh) | E104: Existing Residential Solar | F104: =F102 -> 0 | G104: =G102 -> 0 | H104: 0 | I104: 0 | J104: 0 | K104: 0 | L104: 0 | M104: 0 | N104: 0 | O104: 0 | P104: 0 | Q104: 0 | R104: 0 | S104: 0 | T104: 0 | U104: 0 | V104: 0 | W104: 0 | X104: 0 | Y104: 0 | Z104: 0 | AA104: 0 | AB104: 0 | AC104: 0 | AD104: 0 | AE104: 0 | AF104: 0 | AG104: 0 | AH104: 0 | AI104: 0 | AJ104: 0 | AK104: 0 | AL104: 0 | AM104: 0 | AN104: 0 | AO104: 0 | AP104: 0 | AQ104: 0 | AR104: 0 | AS104: 0 | AT104: 0 | AU104: 0 | AV104: 0 | AW104: 0 | AX104: 0 | AY104: 0 | AZ104: 0 | BA104: 0 | BB104: 0 | BC104: 0 | BD104: 0 | BE104: 0 | BF104: 0 | BG104: 0 | BH104: 0 | BI104: 0 | BJ104: 0 | BK104: 0 | BL104: 0 | BM104: 0 | BN104: 0 | BO104: 0 | BP104: 0 | BQ104: 0 | BR104: 0 | BS104: =BS102 -> 0 | BT104: 0 | BU104: 0 | BV104: 0 | BW104: 0 | BX104: 0
B105: 2020 | C105: NREL Residential PV - Class 8 | D105: Variable Operation and Maintenance Expenses ($/MWh) | E105: Existing Residential Solar + Storage (Solar Only) | F105: =F104 -> 0 | G105: 0 | H105: 0 | I105: 0 | J105: 0 | K105: 0 | L105: 0 | M105: 0 | N105: 0 | O105: 0 | P105: 0 | Q105: 0 | R105: 0 | S105: 0 | T105: 0 | U105: 0 | V105: 0 | W105: 0 | X105: 0 | Y105: 0 | Z105: 0 | AA105: 0 | AB105: 0 | AC105: 0 | AD105: 0 | AE105: 0 | AF105: 0 | AG105: 0 | AH105: 0 | AI105: 0 | AJ105: 0 | AK105: 0 | AL105: 0 | AM105: 0 | AN105: 0 | AO105: 0 | AP105: 0 | AQ105: 0 | AR105: 0 | AS105: 0 | AT105: 0 | AU105: 0 | AV105: 0 | AW105: 0 | AX105: 0 | AY105: 0 | AZ105: 0 | BA105: 0 | BB105: 0 | BC105: 0 | BD105: 0 | BE105: 0 | BF105: 0 | BG105: 0 | BH105: 0 | BI105: 0 | BJ105: 0 | BK105: 0 | BL105: 0 | BM105: 0 | BN105: 0 | BO105: 0 | BP105: 0 | BQ105: 0 | BR105: =BR104 -> 0 | BS105: 0 | BT105: 0 | BU105: 0 | BV105: 0 | BW105: 0 | BX105: 0
A106: NREL - CPV8 (CF) | B106: 2020 | C106: NREL Commercial PV - Class 8 | D106: Variable Operation and Maintenance Expenses ($/MWh) | E106: Commercial Solar | F106: 0 | G106: 0 | H106: 0 | I106: 0 | J106: 0 | K106: 0 | L106: 0 | M106: 0 | N106: 0 | O106: 0 | P106: 0 | Q106: 0 | R106: 0 | S106: 0 | T106: 0 | U106: 0 | V106: 0 | W106: 0 | X106: 0 | Y106: 0 | Z106: 0 | AA106: 0 | AB106: 0 | AC106: 0 | AD106: 0 | AE106: 0 | AF106: 0 | AG106: 0 | AH106: 0 | AI106: 0 | AJ106: 0 | AK106: 0 | AL106: 0 | AM106: 0 | AN106: 0 | AO106: 0 | AP106: 0 | AQ106: 0 | AR106: 0 | AS106: 0 | AT106: 0 | AU106: 0 | AV106: 0 | AW106: 0 | AX106: 0 | AY106: 0 | AZ106: 0 | BA106: 0 | BB106: 0 | BC106: 0 | BD106: 0 | BE106: 0 | BF106: 0 | BG106: 0 | BH106: 0 | BI106: 0 | BJ106: 0 | BK106: 0 | BL106: 0 | BM106: 0 | BN106: 0 | BO106: 0 | BP106: 0 | BQ106: 0 | BR106: 0 | BS106: 0 | BT106: 0 | BU106: 0 | BV106: 0 | BW106: 0 | BX106: 0
B107: 2020 | C107: NREL Commercial PV - Class 8 | D107: Variable Operation and Maintenance Expenses ($/MWh) | E107: Commercial Solar + Storage (Solar Only) | F107: =F106 -> 0 | G107: =G106 -> 0 | H107: 0 | I107: 0 | J107: 0 | K107: 0 | L107: 0 | M107: 0 | N107: 0 | O107: 0 | P107: 0 | Q107: 0 | R107: 0 | S107: 0 | T107: 0 | U107: 0 | V107: 0 | W107: 0 | X107: 0 | Y107: 0 | Z107: 0 | AA107: 0 | AB107: 0 | AC107: 0 | AD107: 0 | AE107: 0 | AF107: 0 | AG107: 0 | AH107: 0 | AI107: 0 | AJ107: 0 | AK107: 0 | AL107: 0 | AM107: 0 | AN107: 0 | AO107: 0 | AP107: 0 | AQ107: 0 | AR107: 0 | AS107: 0 | AT107: 0 | AU107: 0 | AV107: 0 | AW107: 0 | AX107: 0 | AY107: 0 | AZ107: 0 | BA107: 0 | BB107: 0 | BC107: 0 | BD107: 0 | BE107: 0 | BF107: 0 | BG107: 0 | BH107: 0 | BI107: 0 | BJ107: 0 | BK107: 0 | BL107: 0 | BM107: 0 | BN107: 0 | BO107: 0 | BP107: 0 | BQ107: 0 | BR107: =BR106 -> 0 | BS107: 0 | BT107: 0 | BU107: 0 | BV107: 0 | BW107: 0 | BX107: 0
B108: 2020 | C108: NREL Utility PV - Class 4 | D108: Variable Operation and Maintenance Expenses ($/MWh) | E108: Solar Photovoltaic Fixed Array (5 MW AC) | F108: =F110 -> 0 | G108: =G110 -> 0 | H108: 0 | I108: 0 | J108: 0 | K108: 0 | L108: 0 | M108: 0 | N108: 0 | O108: 0 | P108: 0 | Q108: 0 | R108: 0 | S108: 0 | T108: 0 | U108: 0 | V108: 0 | W108: 0 | X108: 0 | Y108: 0 | Z108: 0 | AA108: 0 | AB108: 0 | AC108: 0 | AD108: 0 | AE108: 0 | AF108: 0 | AG108: 0 | AH108: 0 | AI108: 0 | AJ108: 0 | AK108: 0 | AL108: 0 | AM108: 0 | AN108: 0 | AO108: 0 | AP108: 0 | AQ108: 0 | AR108: 0 | AS108: 0 | AT108: 0 | AU108: 0 | AV108: 0 | AW108: 0 | AX108: 0 | AY108: 0 | AZ108: 0 | BA108: 0 | BB108: 0 | BC108: 0 | BD108: 0 | BE108: 0 | BF108: 0 | BG108: 0 | BH108: 0 | BI108: 0 | BJ108: 0 | BK108: 0 | BL108: 0 | BM108: 0 | BN108: 0 | BO108: 0 | BP108: 0 | BQ108: 0 | BR108: 0 | BS108: =BS110 -> 0 | BT108: 0 | BU108: 0 | BV108: 0 | BW108: 0 | BX108: 0
B109: 2020 | C109: NREL Utility PV - Class 4 | D109: Variable Operation and Maintenance Expenses ($/MWh) | E109: Solar Photovoltaic Fixed Array (5 MW AC) + Storage (Solar Only) | F109: =F108 -> 0 | G109: =G108 -> 0 | H109: 0 | I109: 0 | J109: 0 | K109: 0 | L109: 0 | M109: 0 | N109: 0 | O109: 0 | P109: 0 | Q109: 0 | R109: 0 | S109: 0 | T109: 0 | U109: 0 | V109: 0 | W109: 0 | X109: 0 | Y109: 0 | Z109: 0 | AA109: 0 | AB109: 0 | AC109: 0 | AD109: 0 | AE109: 0 | AF109: 0 | AG109: 0 | AH109: 0 | AI109: 0 | AJ109: 0 | AK109: 0 | AL109: 0 | AM109: 0 | AN109: 0 | AO109: 0 | AP109: 0 | AQ109: 0 | AR109: 0 | AS109: 0 | AT109: 0 | AU109: 0 | AV109: 0 | AW109: 0 | AX109: 0 | AY109: 0 | AZ109: 0 | BA109: 0 | BB109: 0 | BC109: 0 | BD109: 0 | BE109: 0 | BF109: 0 | BG109: 0 | BH109: 0 | BI109: 0 | BJ109: 0 | BK109: 0 | BL109: 0 | BM109: 0 | BN109: 0 | BO109: 0 | BP109: 0 | BQ109: 0 | BR109: 0 | BS109: =BS108 -> 0 | BT109: 0 | BU109: 0 | BV109: 0 | BW109: 0 | BX109: 0
A110: NREL - UPV4 (CF) | B110: 2020 | C110: NREL Utility PV - Class 4 | D110: Variable Operation and Maintenance Expenses ($/MWh) | E110: Solar Photovoltaic w/Single Axis Tracking (100 MW AC) | F110: 0 | G110: 0 | H110: 0 | I110: 0 | J110: 0 | K110: 0 | L110: 0 | M110: 0 | N110: 0 | O110: 0 | P110: 0 | Q110: 0 | R110: 0 | S110: 0 | T110: 0 | U110: 0 | V110: 0 | W110: 0 | X110: 0 | Y110: 0 | Z110: 0 | AA110: 0 | AB110: 0 | AC110: 0 | AD110: 0 | AE110: 0 | AF110: 0 | AG110: 0 | AH110: 0 | AI110: 0 | AJ110: 0 | AK110: 0 | AL110: 0 | AM110: 0 | AN110: 0 | AO110: 0 | AP110: 0 | AQ110: 0 | AR110: 0 | AS110: 0 | AT110: 0 | AU110: 0 | AV110: 0 | AW110: 0 | AX110: 0 | AY110: 0 | AZ110: 0 | BA110: 0 | BB110: 0 | BC110: 0 | BD110: 0 | BE110: 0 | BF110: 0 | BG110: 0 | BH110: 0 | BI110: 0 | BJ110: 0 | BK110: 0 | BL110: 0 | BM110: 0 | BN110: 0 | BO110: 0 | BP110: 0 | BQ110: 0 | BR110: 0 | BS110: 0 | BT110: 0 | BU110: 0 | BV110: 0 | BW110: 0 | BX110: 0
A111: NREL - UPV5 (CF) | B111: 2020 | C111: NREL Utility PV - Class 5 | D111: Variable Operation and Maintenance Expenses ($/MWh) | E111: Southern NW Solar Photovoltaic w/ Single Axis Tracking (100 MW AC) | F111: 0 | G111: 0 | H111: 0 | I111: 0 | J111: 0 | K111: 0 | L111: 0 | M111: 0 | N111: 0 | O111: 0 | P111: 0 | Q111: 0 | R111: 0 | S111: 0 | T111: 0 | U111: 0 | V111: 0 | W111: 0 | X111: 0 | Y111: 0 | Z111: 0 | AA111: 0 | AB111: 0 | AC111: 0 | AD111: 0 | AE111: 0 | AF111: 0 | AG111: 0 | AH111: 0 | AI111: 0 | AJ111: 0 | AK111: 0 | AL111: 0 | AM111: 0 | AN111: 0 | AO111: 0 | AP111: 0 | AQ111: 0 | AR111: 0 | AS111: 0 | AT111: 0 | AU111: 0 | AV111: 0 | AW111: 0 | AX111: 0 | AY111: 0 | AZ111: 0 | BA111: 0 | BB111: 0 | BC111: 0 | BD111: 0 | BE111: 0 | BF111: 0 | BG111: 0 | BH111: 0 | BI111: 0 | BJ111: 0 | BK111: 0 | BL111: 0 | BM111: 0 | BN111: 0 | BO111: 0 | BP111: 0 | BQ111: 0 | BR111: 0 | BS111: 0 | BT111: 0 | BU111: 0 | BV111: 0 | BW111: 0 | BX111: 0
B112: 2020 | C112: NREL Utility-Scale Battery Storage - 4Hr | D112: Variable Operation and Maintenance Expenses ($/MWh) | E112: 100 MW/400 MWh Lithium-ion w/Solar (Solar Only) | F112: =F89 -> 0 | G112: =G89 -> 0 | H112: 0 | I112: 0 | J112: 0 | K112: 0 | L112: 0 | M112: 0 | N112: 0 | O112: 0 | P112: 0 | Q112: 0 | R112: 0 | S112: 0 | T112: 0 | U112: 0 | V112: 0 | W112: 0 | X112: 0 | Y112: 0 | Z112: 0 | AA112: 0 | AB112: 0 | AC112: 0 | AD112: 0 | AE112: 0 | AF112: 0 | AG112: 0 | AH112: 0 | AI112: 0 | AJ112: 0 | AK112: 0 | AL112: 0 | AM112: 0 | AN112: 0 | AO112: 0 | AP112: 0 | AQ112: 0 | AR112: 0 | AS112: 0 | AT112: 0 | AU112: 0 | AV112: 0 | AW112: 0 | AX112: 0 | AY112: 0 | AZ112: 0 | BA112: 0 | BB112: 0 | BC112: 0 | BD112: 0 | BE112: 0 | BF112: 0 | BG112: 0 | BH112: 0 | BI112: 0 | BJ112: 0 | BK112: 0 | BL112: 0 | BM112: 0 | BN112: 0 | BO112: 0 | BP112: 0 | BQ112: 0 | BR112: 0 | BS112: =BS89 -> 0 | BT112: 0 | BU112: 0 | BV112: 0 | BW112: 0 | BX112: 0
A113: NREL - USB2 (VOM) | B113: 2020 | C113: NREL Utility-Scale Battery Storage - 2Hr | D113: Variable Operation and Maintenance Expenses ($/MWh) | E113: 100 MW/200 MWh Lithium-ion w/Solar (Solar Only) | F113: 0 | G113: 0 | H113: 0 | I113: 0 | J113: 0 | K113: 0 | L113: 0 | M113: 0 | N113: 0 | O113: 0 | P113: 0 | Q113: 0 | R113: 0 | S113: 0 | T113: 0 | U113: 0 | V113: 0 | W113: 0 | X113: 0 | Y113: 0 | Z113: 0 | AA113: 0 | AB113: 0 | AC113: 0 | AD113: 0 | AE113: 0 | AF113: 0 | AG113: 0 | AH113: 0 | AI113: 0 | AJ113: 0 | AK113: 0 | AL113: 0 | AM113: 0 | AN113: 0 | AO113: 0 | AP113: 0 | AQ113: 0 | AR113: 0 | AS113: 0 | AT113: 0 | AU113: 0 | AV113: 0 | AW113: 0 | AX113: 0 | AY113: 0 | AZ113: 0 | BA113: 0 | BB113: 0 | BC113: 0 | BD113: 0 | BE113: 0 | BF113: 0 | BG113: 0 | BH113: 0 | BI113: 0 | BJ113: 0 | BK113: 0 | BL113: 0 | BM113: 0 | BN113: 0 | BO113: 0 | BP113: 0 | BQ113: 0 | BR113: 0 | BS113: 0 | BT113: 0 | BU113: 0 | BV113: 0 | BW113: 0 | BX113: 0
B114: 2020 | C114: NREL Utility-Scale Battery Storage - 2Hr | D114: Variable Operation and Maintenance Expenses ($/MWh) | E114: 50 MW/200 MWh Lithium-ion w/Solar (Solar Only) | F114: 0 | G114: 0 | H114: 0 | I114: 0 | J114: 0 | K114: 0 | L114: 0 | M114: 0 | N114: 0 | O114: 0 | P114: 0 | Q114: 0 | R114: 0 | S114: 0 | T114: 0 | U114: 0 | V114: 0 | W114: 0 | X114: 0 | Y114: 0 | Z114: 0 | AA114: 0 | AB114: 0 | AC114: 0 | AD114: 0 | AE114: 0 | AF114: 0 | AG114: 0 | AH114: 0 | AI114: 0 | AJ114: 0 | AK114: 0 | AL114: 0 | AM114: 0 | AN114: 0 | AO114: 0 | AP114: 0 | AQ114: 0 | AR114: 0 | AS114: 0 | AT114: 0 | AU114: 0 | AV114: 0 | AW114: 0 | AX114: 0 | AY114: 0 | AZ114: 0 | BA114: 0 | BB114: 0 | BC114: 0 | BD114: 0 | BE114: 0 | BF114: 0 | BG114: 0 | BH114: 0 | BI114: 0 | BJ114: 0 | BK114: 0 | BL114: 0 | BM114: 0 | BN114: 0 | BO114: 0 | BP114: 0 | BQ114: 0 | BR114: 0 | BS114: 0 | BT114: 0 | BU114: 0 | BV114: 0 | BW114: 0 | BX114: 0
A115: NREL - NWOS8 (VOM) | B115: 2020 | C115: NREL Land-Based Wind - Class 8 | D115: Variable Operation and Maintenance Expenses ($/MWh) | E115: NW Wind On System (Share) | F115: 0 | G115: 0 | H115: 0 | I115: 0 | J115: 0 | K115: 0 | L115: 0 | M115: 0 | N115: 0 | O115: 0 | P115: 0 | Q115: 0 | R115: 0 | S115: 0 | T115: 0 | U115: 0 | V115: 0 | W115: 0 | X115: 0 | Y115: 0 | Z115: 0 | AA115: 0 | AB115: 0 | AC115: 0 | AD115: 0 | AE115: 0 | AF115: 0 | AG115: 0 | AH115: 0 | AI115: 0 | AJ115: 0 | AK115: 0 | AL115: 0 | AM115: 0 | AN115: 0 | AO115: 0 | AP115: 0 | AQ115: 0 | AR115: 0 | AS115: 0 | AT115: 0 | AU115: 0 | AV115: 0 | AW115: 0 | AX115: 0 | AY115: 0 | AZ115: 0 | BA115: 0 | BB115: 0 | BC115: 0 | BD115: 0 | BE115: 0 | BF115: 0 | BG115: 0 | BH115: 0 | BI115: 0 | BJ115: 0 | BK115: 0 | BL115: 0 | BM115: 0 | BN115: 0 | BO115: 0 | BP115: 0 | BQ115: 0 | BR115: 0 | BS115: 0 | BT115: 0 | BU115: 0 | BV115: 0 | BW115: 0 | BX115: 0
B116: 2020 | C116: NREL Land-Based Wind - Class 8 | D116: Variable Operation and Maintenance Expenses ($/MWh) | E116: NW Wind Off System | F116: =F115 -> 0 | G116: =G115 -> 0 | H116: 0 | I116: 0 | J116: 0 | K116: 0 | L116: 0 | M116: 0 | N116: 0 | O116: 0 | P116: 0 | Q116: 0 | R116: 0 | S116: 0 | T116: 0 | U116: 0 | V116: 0 | W116: 0 | X116: 0 | Y116: 0 | Z116: 0 | AA116: 0 | AB116: 0 | AC116: 0 | AD116: 0 | AE116: 0 | AF116: 0 | AG116: 0 | AH116: 0 | AI116: 0 | AJ116: 0 | AK116: 0 | AL116: 0 | AM116: 0 | AN116: 0 | AO116: 0 | AP116: 0 | AQ116: 0 | AR116: 0 | AS116: 0 | AT116: 0 | AU116: 0 | AV116: 0 | AW116: 0 | AX116: 0 | AY116: 0 | AZ116: 0 | BA116: 0 | BB116: 0 | BC116: 0 | BD116: 0 | BE116: 0 | BF116: 0 | BG116: 0 | BH116: 0 | BI116: 0 | BJ116: 0 | BK116: 0 | BL116: 0 | BM116: 0 | BN116: 0 | BO116: 0 | BP116: 0 | BQ116: 0 | BR116: =BR115 -> 0 | BS116: 0 | BT116: 0 | BU116: 0 | BV116: 0 | BW116: 0 | BX116: 0
A117: NREL - WM3 (VOM) | B117: 2020 | C117: NREL Land-Based Wind - Class 3 | D117: Variable Operation and Maintenance Expenses ($/MWh) | E117: Wind Montana | F117: 0 | G117: 0 | H117: 0 | I117: 0 | J117: 0 | K117: 0 | L117: 0 | M117: 0 | N117: 0 | O117: 0 | P117: 0 | Q117: 0 | R117: 0 | S117: 0 | T117: 0 | U117: 0 | V117: 0 | W117: 0 | X117: 0 | Y117: 0 | Z117: 0 | AA117: 0 | AB117: 0 | AC117: 0 | AD117: 0 | AE117: 0 | AF117: 0 | AG117: 0 | AH117: 0 | AI117: 0 | AJ117: 0 | AK117: 0 | AL117: 0 | AM117: 0 | AN117: 0 | AO117: 0 | AP117: 0 | AQ117: 0 | AR117: 0 | AS117: 0 | AT117: 0 | AU117: 0 | AV117: 0 | AW117: 0 | AX117: 0 | AY117: 0 | AZ117: 0 | BA117: 0 | BB117: 0 | BC117: 0 | BD117: 0 | BE117: 0 | BF117: 0 | BG117: 0 | BH117: 0 | BI117: 0 | BJ117: 0 | BK117: 0 | BL117: 0 | BM117: 0 | BN117: 0 | BO117: 0 | BP117: 0 | BQ117: 0 | BR117: 0 | BS117: 0 | BT117: 0 | BU117: 0 | BV117: 0 | BW117: 0 | BX117: 0
A118: NREL - OSW12 (VOM) | B118: 2020 | C118: NREL Wind Speed Class 12 | D118: Variable Operation and Maintenance Expenses ($/MWh) | E118: Off Shore Wind (Share) | F118: 0 | G118: 0 | H118: 0 | I118: 0 | J118: 0 | K118: 0 | L118: 0 | M118: 0 | N118: 0 | O118: 0 | P118: 0 | Q118: 0 | R118: 0 | S118: 0 | T118: 0 | U118: 0 | V118: 0 | W118: 0 | X118: 0 | Y118: 0 | Z118: 0 | AA118: 0 | AB118: 0 | AC118: 0 | AD118: 0 | AE118: 0 | AF118: 0 | AG118: 0 | AH118: 0 | AI118: 0 | AJ118: 0 | AK118: 0 | AL118: 0 | AM118: 0 | AN118: 0 | AO118: 0 | AP118: 0 | AQ118: 0 | AR118: 0 | AS118: 0 | AT118: 0 | AU118: 0 | AV118: 0 | AW118: 0 | AX118: 0 | AY118: 0 | AZ118: 0 | BA118: 0 | BB118: 0 | BC118: 0 | BD118: 0 | BE118: 0 | BF118: 0 | BG118: 0 | BH118: 0 | BI118: 0 | BJ118: 0 | BK118: 0 | BL118: 0 | BM118: 0 | BN118: 0 | BO118: 0 | BP118: 0 | BQ118: 0 | BR118: 0 | BS118: 0 | BT118: 0 | BU118: 0 | BV118: 0 | BW118: 0 | BX118: 0
A119: NREL - NUC (VOM) | B119: 2020 | C119: NREL Nuclear - Small Modular Reactor | D119: Variable Operation and Maintenance Expenses ($/MWh) | E119: Small Modular Reactor (share) | F119: 3.6 | G119: 3.6 | H119: 3.6 | I119: 3.6 | J119: 3.6 | K119: 3.6 | L119: 3.6 | M119: 3.6 | N119: 3.6 | O119: 3.6 | P119: 3.6 | Q119: 3.6 | R119: 3.6 | S119: 3.6 | T119: 3.6 | U119: 3.6 | V119: 3.6 | W119: 3.6 | X119: 3.6 | Y119: 3.6 | Z119: 3.6 | AA119: 3.6 | AB119: 3.6 | AC119: 3.6 | AD119: 3.6 | AE119: 3.6 | AF119: 3.6 | AG119: 3.6 | AH119: 3.6 | AI119: 3.6 | AJ119: 3.6 | AK119: 3.6 | AL119: 3.6 | AM119: 3.6 | AN119: 3.6 | AO119: 3.6 | AP119: 3.6 | AQ119: 3.6 | AR119: 3.6 | AS119: 3.6 | AT119: 3.6 | AU119: 3.6 | AV119: 3.6 | AW119: 3.6 | AX119: 3.6 | AY119: 3.6 | AZ119: 3.6 | BA119: 3.6 | BB119: 3.6 | BC119: 3.6 | BD119: 3.6 | BE119: 3.6 | BF119: 3.6 | BG119: 3.6 | BH119: 3.6 | BI119: 3.6 | BJ119: 3.6 | BK119: 3.6 | BL119: 3.6 | BM119: 3.6 | BN119: 3.6 | BO119: 3.6 | BP119: 3.6 | BQ119: 3.6 | BR119: 3.6 | BS119: 3.6 | BT119: 3.6 | BU119: 3.6 | BV119: 3.6 | BW119: 3.6 | BX119: 3.6
A120: NREL - GEO (VOM) | B120: 2020 | C120: NREL Geothermal - Hydro / Flash | D120: Variable Operation and Maintenance Expenses ($/MWh) | E120: Geothermal (Off System) | F120: 0 | G120: 0 | H120: 0 | I120: 0 | J120: 0 | K120: 0 | L120: 0 | M120: 0 | N120: 0 | O120: 0 | P120: 0 | Q120: 0 | R120: 0 | S120: 0 | T120: 0 | U120: 0 | V120: 0 | W120: 0 | X120: 0 | Y120: 0 | Z120: 0 | AA120: 0 | AB120: 0 | AC120: 0 | AD120: 0 | AE120: 0 | AF120: 0 | AG120: 0 | AH120: 0 | AI120: 0 | AJ120: 0 | AK120: 0 | AL120: 0 | AM120: 0 | AN120: 0 | AO120: 0 | AP120: 0 | AQ120: 0 | AR120: 0 | AS120: 0 | AT120: 0 | AU120: 0 | AV120: 0 | AW120: 0 | AX120: 0 | AY120: 0 | AZ120: 0 | BA120: 0 | BB120: 0 | BC120: 0 | BD120: 0 | BE120: 0 | BF120: 0 | BG120: 0 | BH120: 0 | BI120: 0 | BJ120: 0 | BK120: 0 | BL120: 0 | BM120: 0 | BN120: 0 | BO120: 0 | BP120: 0 | BQ120: 0 | BR120: 0 | BS120: 0 | BT120: 0 | BU120: 0 | BV120: 0 | BW120: 0 | BX120: 0
B121: 2022 | C121: Internal | D121: Variable Operation and Maintenance Expenses ($/MWh) | E121: 7F.04 CT Frame Greenfield | H121: 3 | I121: 3 | J121: 3 | K121: 3 | L121: 3 | M121: 3 | N121: 3 | O121: 3 | P121: 3 | Q121: 3 | R121: 3 | S121: 3 | T121: 3 | U121: 3 | V121: 3 | W121: 3 | X121: 3 | Y121: 3 | Z121: 3 | AA121: 3 | AB121: 3 | AC121: 3 | AD121: 3 | AE121: 3 | AF121: 3 | AG121: 3 | AH121: 3 | AI121: 3 | AJ121: 3 | AK121: 3 | AL121: 3 | AM121: 3 | AN121: 3 | AO121: 3 | AP121: 3 | AQ121: 3 | AR121: 3 | AS121: 3 | AT121: 3 | AU121: 3 | AV121: 3 | AW121: 3 | AX121: 3 | AY121: 3 | AZ121: 3 | BA121: 3 | BB121: 3 | BC121: 3 | BD121: 3 | BE121: 3 | BF121: 3 | BG121: 3 | BH121: 3 | BI121: 3 | BJ121: 3 | BK121: 3 | BL121: 3 | BM121: 3 | BN121: 3 | BO121: 3 | BP121: 3 | BQ121: 3 | BR121: 3 | BS121: 3 | BT121: 3 | BU121: 3 | BV121: 3 | BW121: 3 | BX121: 3
B122: 2022 | C122: Internal | D122: Variable Operation and Maintenance Expenses ($/MWh) | E122: Reciprocating Engine (ICE) Machine | H122: 5.75 | I122: 5.75 | J122: 5.75 | K122: 5.75 | L122: 5.75 | M122: 5.75 | N122: 5.75 | O122: 5.75 | P122: 5.75 | Q122: 5.75 | R122: 5.75 | S122: 5.75 | T122: 5.75 | U122: 5.75 | V122: 5.75 | W122: 5.75 | X122: 5.75 | Y122: 5.75 | Z122: 5.75 | AA122: 5.75 | AB122: 5.75 | AC122: 5.75 | AD122: 5.75 | AE122: 5.75 | AF122: 5.75 | AG122: 5.75 | AH122: 5.75 | AI122: 5.75 | AJ122: 5.75 | AK122: 5.75 | AL122: 5.75 | AM122: 5.75 | AN122: 5.75 | AO122: 5.75 | AP122: 5.75 | AQ122: 5.75 | AR122: 5.75 | AS122: 5.75 | AT122: 5.75 | AU122: 5.75 | AV122: 5.75 | AW122: 5.75 | AX122: 5.75 | AY122: 5.75 | AZ122: 5.75 | BA122: 5.75 | BB122: 5.75 | BC122: 5.75 | BD122: 5.75 | BE122: 5.75 | BF122: 5.75 | BG122: 5.75 | BH122: 5.75 | BI122: 5.75 | BJ122: 5.75 | BK122: 5.75 | BL122: 5.75 | BM122: 5.75 | BN122: 5.75 | BO122: 5.75 | BP122: 5.75 | BQ122: 5.75 | BR122: 5.75 | BS122: 5.75 | BT122: 5.75 | BU122: 5.75 | BV122: 5.75 | BW122: 5.75 | BX122: 5.75
B123: 2022 | C123: Internal | D123: Variable Operation and Maintenance Expenses ($/MWh) | E123: NG CCCT (1x1 w/DF) | H123: 4.6 | I123: 4.6 | J123: 4.6 | K123: 4.6 | L123: 4.6 | M123: 4.6 | N123: 4.6 | O123: 4.6 | P123: 4.6 | Q123: 4.6 | R123: 4.6 | S123: 4.6 | T123: 4.6 | U123: 4.6 | V123: 4.6 | W123: 4.6 | X123: 4.6 | Y123: 4.6 | Z123: 4.6 | AA123: 4.6 | AB123: 4.6 | AC123: 4.6 | AD123: 4.6 | AE123: 4.6 | AF123: 4.6 | AG123: 4.6 | AH123: 4.6 | AI123: 4.6 | AJ123: 4.6 | AK123: 4.6 | AL123: 4.6 | AM123: 4.6 | AN123: 4.6 | AO123: 4.6 | AP123: 4.6 | AQ123: 4.6 | AR123: 4.6 | AS123: 4.6 | AT123: 4.6 | AU123: 4.6 | AV123: 4.6 | AW123: 4.6 | AX123: 4.6 | AY123: 4.6 | AZ123: 4.6 | BA123: 4.6 | BB123: 4.6 | BC123: 4.6 | BD123: 4.6 | BE123: 4.6 | BF123: 4.6 | BG123: 4.6 | BH123: 4.6 | BI123: 4.6 | BJ123: 4.6 | BK123: 4.6 | BL123: 4.6 | BM123: 4.6 | BN123: 4.6 | BO123: 4.6 | BP123: 4.6 | BQ123: 4.6 | BR123: 4.6 | BS123: 4.6 | BT123: 4.6 | BU123: 4.6 | BV123: 4.6 | BW123: 4.6 | BX123: 4.6
B124: 2022 | C124: Internal | D124: Variable Operation and Maintenance Expenses ($/MWh) | E124: Hydrogen Fuel Cell with 40 hrs Storage | H124: 0 | I124: 0 | J124: 0 | K124: 0 | L124: 0 | M124: 0 | N124: 0 | O124: 0 | P124: 0 | Q124: 0 | R124: 0 | S124: 0 | T124: 0 | U124: 0 | V124: 0 | W124: 0 | X124: 0 | Y124: 0 | Z124: 0 | AA124: 0 | AB124: 0 | AC124: 0 | AD124: 0 | AE124: 0 | AF124: 0 | AG124: 0 | AH124: 0 | AI124: 0 | AJ124: 0 | AK124: 0 | AL124: 0 | AM124: 0 | AN124: 0 | AO124: 0 | AP124: 0 | AQ124: 0 | AR124: 0 | AS124: 0 | AT124: 0 | AU124: 0 | AV124: 0 | AW124: 0 | AX124: 0 | AY124: 0 | AZ124: 0 | BA124: 0 | BB124: 0 | BC124: 0 | BD124: 0 | BE124: 0 | BF124: 0 | BG124: 0 | BH124: 0 | BI124: 0 | BJ124: 0 | BK124: 0 | BL124: 0 | BM124: 0 | BN124: 0 | BO124: 0 | BP124: 0 | BQ124: 0 | BR124: 0 | BS124: 0 | BT124: 0 | BU124: 0 | BV124: 0 | BW124: 0 | BX124: 0
B125: 2022 | C125: Internal | D125: Variable Operation and Maintenance Expenses ($/MWh) | E125: 7F.04 CT Frame Greenfield + amonia + storage | H125: =H121 -> 3 | I125: =I121 -> 3 | J125: 3 | K125: 3 | L125: 3 | M125: 3 | N125: 3 | O125: 3 | P125: 3 | Q125: 3 | R125: 3 | S125: 3 | T125: 3 | U125: 3 | V125: 3 | W125: 3 | X125: 3 | Y125: 3 | Z125: 3 | AA125: 3 | AB125: 3 | AC125: 3 | AD125: 3 | AE125: 3 | AF125: 3 | AG125: 3 | AH125: 3 | AI125: 3 | AJ125: 3 | AK125: 3 | AL125: 3 | AM125: 3 | AN125: 3 | AO125: 3 | AP125: 3 | AQ125: 3 | AR125: 3 | AS125: 3 | AT125: 3 | AU125: 3 | AV125: 3 | AW125: 3 | AX125: 3 | AY125: 3 | AZ125: 3 | BA125: 3 | BB125: 3 | BC125: 3 | BD125: 3 | BE125: 3 | BF125: 3 | BG125: 3 | BH125: 3 | BI125: 3 | BJ125: 3 | BK125: 3 | BL125: 3 | BM125: 3 | BN125: 3 | BO125: 3 | BP125: 3 | BQ125: 3 | BR125: 3 | BS125: 3 | BT125: 3 | BU125: =BU121 -> 3 | BV125: 3 | BW125: 3 | BX125: 3
B127: =D127 -> Fuel Costs | D127: Fuel Costs
A128: NREL - NUC (FUEL) | B128: 2020 | C128: NREL Nuclear - Small Modular Reactor | D128: Fuel Costs ($/MMBtu) - Uranium | E128: Small Modular Reactor (share) | F128: 0.6844928367 | G128: 0.6844928367 | H128: 0.6854947469 | I128: 0.6874995224 | J128: 0.6885014327 | K128: 0.6905052531 | L128: 0.6915081184 | M128: 0.6935119389 | N128: 0.6945138491 | O128: 0.6965186246 | P128: 0.6985234002 | Q128: 0.6995253104 | R128: 0.701530086 | S128: 0.7035339064 | T128: 0.7045358166 | U128: 0.7065405922 | V128: 0.7085453677 | W128: 0.7095472779 | X128: 0.7115510984 | Y128: 0.7135558739 | Z128: 0.7155606495 | AA128: 0.7175644699 | AB128: 0.7195692455 | AC128: 0.7215730659 | AD128: 0.7235778415 | AE128: 0.725582617 | AF128: 0.7275864374 | AG128: 0.729591213 | AH128: 0.7315950334 | AI128: 0.733599809 | AJ128: 0.7356036294
C129: Natural Gas Price Forecast | D129: Fuel Costs ($/MMBtu) - Malin | E129: 7F.04 CT Frame Greenfield
C130: 2021 IRP | D130: Fuel Costs (%) Variable Charge | E130: 7F.04 CT Frame Greenfield | F130: 5e-05 | G130: 5e-05 | H130: 5e-05 | I130: 5e-05 | J130: 5e-05 | K130: 5e-05 | L130: 5e-05 | M130: 5e-05 | N130: 5e-05 | O130: 5e-05 | P130: 5e-05 | Q130: 5e-05 | R130: 5e-05 | S130: 5e-05 | T130: 5e-05 | U130: 5e-05 | V130: 5e-05 | W130: 5e-05 | X130: 5e-05 | Y130: 5e-05 | Z130: 5e-05 | AA130: 5e-05 | AB130: 5e-05 | AC130: 5e-05 | AD130: 5e-05 | AE130: 5e-05 | AF130: 5e-05 | AG130: 5e-05 | AH130: 5e-05 | AI130: 5e-05 | AJ130: 5e-05 | AK130: 5e-05 | AL130: 5e-05 | AM130: 5e-05 | AN130: 5e-05 | AO130: 5e-05 | AP130: 5e-05 | AQ130: 5e-05 | AR130: 5e-05 | AS130: 5e-05 | AT130: 5e-05 | AU130: 5e-05 | AV130: 5e-05 | AW130: 5e-05 | AX130: 5e-05 | AY130: 5e-05 | AZ130: 5e-05 | BA130: 5e-05 | BB130: 5e-05 | BC130: 5e-05 | BD130: 5e-05 | BE130: 5e-05 | BF130: 5e-05 | BG130: 5e-05 | BH130: 5e-05 | BI130: 5e-05 | BJ130: 5e-05 | BK130: 5e-05 | BL130: 5e-05 | BM130: 5e-05 | BN130: 5e-05 | BO130: 5e-05 | BP130: 5e-05 | BQ130: 5e-05 | BR130: 5e-05 | BS130: 5e-05 | BT130: 5e-05 | BU130: 5e-05 | BV130: 5e-05 | BW130: 5e-05 | BX130: 5e-05
C131: Natural Gas Price Forecast | D131: Fuel Costs ($/MMBtu) - Malin | E131: Reciprocating Engine (ICE) Machine
C132: 2021 IRP | D132: Fuel Costs (%) Variable Charge | E132: Reciprocating Engine (ICE) Machine | F132: 5e-05 | G132: 5e-05 | H132: 5e-05 | I132: 5e-05 | J132: 5e-05 | K132: 5e-05 | L132: 5e-05 | M132: 5e-05 | N132: 5e-05 | O132: 5e-05 | P132: 5e-05 | Q132: 5e-05 | R132: 5e-05 | S132: 5e-05 | T132: 5e-05 | U132: 5e-05 | V132: 5e-05 | W132: 5e-05 | X132: 5e-05 | Y132: 5e-05 | Z132: 5e-05 | AA132: 5e-05 | AB132: 5e-05 | AC132: 5e-05 | AD132: 5e-05 | AE132: 5e-05 | AF132: 5e-05 | AG132: 5e-05 | AH132: 5e-05 | AI132: 5e-05 | AJ132: 5e-05 | AK132: 5e-05 | AL132: 5e-05 | AM132: 5e-05 | AN132: 5e-05 | AO132: 5e-05 | AP132: 5e-05 | AQ132: 5e-05 | AR132: 5e-05 | AS132: 5e-05 | AT132: 5e-05 | AU132: 5e-05 | AV132: 5e-05 | AW132: 5e-05 | AX132: 5e-05 | AY132: 5e-05 | AZ132: 5e-05 | BA132: 5e-05 | BB132: 5e-05 | BC132: 5e-05 | BD132: 5e-05 | BE132: 5e-05 | BF132: 5e-05 | BG132: 5e-05 | BH132: 5e-05 | BI132: 5e-05 | BJ132: 5e-05 | BK132: 5e-05 | BL132: 5e-05 | BM132: 5e-05 | BN132: 5e-05 | BO132: 5e-05 | BP132: 5e-05 | BQ132: 5e-05 | BR132: 5e-05 | BS132: 5e-05 | BT132: 5e-05 | BU132: 5e-05 | BV132: 5e-05 | BW132: 5e-05 | BX132: 5e-05
C133: Natural Gas Price Forecast | D133: Fuel Costs ($/MMBtu) - Malin | E133: NG CCCT (1x1 w/DF)
C134: 2021 IRP | D134: Fuel Costs (%) Variable Charge | E134: NG CCCT (1x1 w/DF) | F134: 5e-05 | G134: 5e-05 | H134: 5e-05 | I134: 5e-05 | J134: 5e-05 | K134: 5e-05 | L134: 5e-05 | M134: 5e-05 | N134: 5e-05 | O134: 5e-05 | P134: 5e-05 | Q134: 5e-05 | R134: 5e-05 | S134: 5e-05 | T134: 5e-05 | U134: 5e-05 | V134: 5e-05 | W134: 5e-05 | X134: 5e-05 | Y134: 5e-05 | Z134: 5e-05 | AA134: 5e-05 | AB134: 5e-05 | AC134: 5e-05 | AD134: 5e-05 | AE134: 5e-05 | AF134: 5e-05 | AG134: 5e-05 | AH134: 5e-05 | AI134: 5e-05 | AJ134: 5e-05 | AK134: 5e-05 | AL134: 5e-05 | AM134: 5e-05 | AN134: 5e-05 | AO134: 5e-05 | AP134: 5e-05 | AQ134: 5e-05 | AR134: 5e-05 | AS134: 5e-05 | AT134: 5e-05 | AU134: 5e-05 | AV134: 5e-05 | AW134: 5e-05 | AX134: 5e-05 | AY134: 5e-05 | AZ134: 5e-05 | BA134: 5e-05 | BB134: 5e-05 | BC134: 5e-05 | BD134: 5e-05 | BE134: 5e-05 | BF134: 5e-05 | BG134: 5e-05 | BH134: 5e-05 | BI134: 5e-05 | BJ134: 5e-05 | BK134: 5e-05 | BL134: 5e-05 | BM134: 5e-05 | BN134: 5e-05 | BO134: 5e-05 | BP134: 5e-05 | BQ134: 5e-05 | BR134: 5e-05 | BS134: 5e-05 | BT134: 5e-05 | BU134: 5e-05 | BV134: 5e-05 | BW134: 5e-05 | BX134: 5e-05
C135: Hydrogen-Ammonia Pricing workbook | D135: Fuel Costs ($/MMBtu) - Renewable Hydrogen | E135: Hydrogen Fuel Cell with 40 hrs Storage
C136: James and Tom | D136: Fuel Costs ($/MMBtu) - Amonia | E136: 7F.04 CT Frame Greenfield + amonia + storage
C137: 2021 IRP | D137: Fuel Costs ($/MMBtu) - Incremental Hog Fuel | E137: Wood Biomass
C138: Natural Gas Price Forecast | D138: Fuel Costs ($/MMBtu) - Malin | E138: Rathdrum CT 2055 Uprates two unit operation
C139: Natural Gas Price Forecast | D139: Fuel Costs ($/MMBtu) - Malin | E139: Rathdrum CT 2055 Uprates two unit operation
C140: 2021 IRP | D140: Variable Charge | E140: Rathdrum CT 2055 Uprates two unit operation | F140: 5e-05 | G140: 5e-05 | H140: 5e-05 | I140: 5e-05 | J140: 5e-05 | K140: 5e-05 | L140: 5e-05 | M140: 5e-05 | N140: 5e-05 | O140: 5e-05 | P140: 5e-05 | Q140: 5e-05 | R140: 5e-05 | S140: 5e-05 | T140: 5e-05 | U140: 5e-05 | V140: 5e-05 | W140: 5e-05 | X140: 5e-05 | Y140: 5e-05 | Z140: 5e-05 | AA140: 5e-05 | AB140: 5e-05 | AC140: 5e-05 | AD140: 5e-05 | AE140: 5e-05 | AF140: 5e-05 | AG140: 5e-05 | AH140: 5e-05 | AI140: 5e-05 | AJ140: 5e-05 | AK140: 5e-05 | AL140: 5e-05 | AM140: 5e-05 | AN140: 5e-05 | AO140: 5e-05 | AP140: 5e-05 | AQ140: 5e-05 | AR140: 5e-05 | AS140: 5e-05 | AT140: 5e-05 | AU140: 5e-05 | AV140: 5e-05 | AW140: 5e-05 | AX140: 5e-05 | AY140: 5e-05 | AZ140: 5e-05 | BA140: 5e-05 | BB140: 5e-05 | BC140: 5e-05 | BD140: 5e-05 | BE140: 5e-05 | BF140: 5e-05 | BG140: 5e-05 | BH140: 5e-05 | BI140: 5e-05 | BJ140: 5e-05 | BK140: 5e-05 | BL140: 5e-05 | BM140: 5e-05 | BN140: 5e-05 | BO140: 5e-05 | BP140: 5e-05 | BQ140: 5e-05 | BR140: 5e-05 | BS140: 5e-05 | BT140: 5e-05 | BU140: 5e-05 | BV140: 5e-05 | BW140: 5e-05 | BX140: 5e-05
C141: Natural Gas Price Forecast | D141: Fuel Costs ($/MMBtu) - Malin | E141: Rathdrum CT: Inlet Evaporation 2 unit operation
B143: =D143 -> Mid-Columbia (off-peak) | D143: Mid-Columbia (off-peak)
D144: Mid-Columbia (off-peak) $/MWh | E144: Distribution Scale 4hr Lithium-Ion
D145: Mid-Columbia (off-peak) $/MWh | E145: Distribution Scale 8hr Lithium-Ion
D146: Mid-Columbia (off-peak) $/MWh | E146: 4hr Lithium-Ion
D147: Mid-Columbia (off-peak) $/MWh | E147: 8hr Lithium-Ion
D148: Mid-Columbia (off-peak) $/MWh | E148: 16hr Lithium-Ion
D149: Mid-Columbia (off-peak) $/MWh | E149: 4 hr Vanadium Flow Battery
D150: Mid-Columbia (off-peak) $/MWh | E150: 4 hr Zinc Bromide Flow Battery
D151: Mid-Columbia (off-peak) $/MWh | E151: 100hr Iron Oxide
D152: Mid-Columbia (off-peak) $/MWh | E152: Liquid Air
D153: Mid-Columbia (off-peak) $/MWh | E153: Pumped Hydro (8.5 hr/ 400 MW share)
D154: Mid-Columbia (off-peak) $/MWh | E154: Pumped Hydro (16 hr/ 100 MW)
D155: Mid-Columbia (off-peak) $/MWh | E155: Pumped Hyrdo (24 hr/ 100 MW)
B157: =D157 -> Fixed Operation and Maintenance Expenses ($/kW-yr) | D157: Fixed Operation and Maintenance Expenses ($/kW-yr)
B158: 2020 | C158: NREL Utility-Scale Battery Storage - 4Hr | D158: Fixed Operation and Maintenance Expenses ($/kW-yr) | E158: Distribution Scale 4hr Lithium-Ion | F158: =F39*0.025 -> 57.01369109 | G158: 48.70286129 | H158: 45.24875765 | I158: 41.44924365 | J158: 38.51325556 | K158: 36.44079337 | L158: 34.88644674 | M158: 33.50480528 | N158: 31.95045864 | O158: 30.74152237 | P158: 29.5325861 | Q158: 29.17810871 | R158: 28.80895139 | S158: 28.43979406 | T158: 28.07063673 | U158: 27.70147941 | V158: 27.33232208 | W158: 26.96316476 | X158: 26.59400743 | Y158: 26.2248501 | Z158: 25.85569278 | AA158: 25.48653545 | AB158: 25.11737812 | AC158: 24.7482208 | AD158: 24.37906347 | AE158: 24.00990615 | AF158: 23.64074882 | AG158: 23.27159149 | AH158: 22.90243417 | AI158: 22.53327684 | AJ158: 22.16411951 | AK158: 0 | AL158: =AL39*0.025 -> 0 | AM158: 0 | AN158: 0 | AO158: 0 | AP158: 0 | AQ158: 0 | AR158: 0 | AS158: 0 | AT158: 0 | AU158: 0 | AV158: 0 | AW158: 0 | AX158: 0 | AY158: 0 | AZ158: 0 | BA158: 0 | BB158: 0 | BC158: 0 | BD158: 0 | BE158: 0 | BF158: 0 | BG158: 0 | BH158: 0 | BI158: 0 | BJ158: 0 | BK158: 0 | BL158: 0 | BM158: 0 | BN158: 0 | BO158: 0 | BP158: 0 | BQ158: 0 | BR158: =BR39*0.025 -> 0 | BS158: 0 | BT158: 0 | BU158: 0 | BV158: 0 | BW158: 0 | BX158: 0
B159: 2020 | C159: NREL Utility-Scale Battery Storage - 8Hr | D159: Fixed Operation and Maintenance Expenses ($/kW-yr) | E159: Distribution Scale 8hr Lithium-Ion | F159: =F40*0.025 -> 105.7947273 | G159: 89.5417671 | H159: 82.49178497 | I159: 75.09639247 | J159: 68.82137434 | K159: 64.95097291 | L159: 61.59868702 | M159: 58.67595478 | N159: 55.58051736 | O159: 52.8304903 | P159: 50.3373117 | Q159: 49.72919646 | R159: 49.09998006 | S159: 48.47076367 | T159: 47.84154727 | U159: 47.21233088 | V159: 46.58311448 | W159: 45.95389808 | X159: 45.32468169 | Y159: 44.69546529 | Z159: 44.06624889 | AA159: 43.4370325 | AB159: 42.8078161 | AC159: 42.1785997 | AD159: 41.54938331 | AE159: 40.92016691 | AF159: 40.29095052 | AG159: 39.66173412 | AH159: 39.03251772 | AI159: 38.40330133 | AJ159: 37.76766372 | AK159: 0 | AL159: =AL40*0.025 -> 0 | AM159: 0 | AN159: 0 | AO159: 0 | AP159: 0 | AQ159: 0 | AR159: 0 | AS159: 0 | AT159: 0 | AU159: 0 | AV159: 0 | AW159: 0 | AX159: 0 | AY159: 0 | AZ159: 0 | BA159: 0 | BB159: 0 | BC159: 0 | BD159: 0 | BE159: 0 | BF159: 0 | BG159: 0 | BH159: 0 | BI159: 0 | BJ159: 0 | BK159: 0 | BL159: 0 | BM159: 0 | BN159: 0 | BO159: 0 | BP159: 0 | BQ159: 0 | BR159: =BR40*0.025 -> 0 | BS159: 0 | BT159: 0 | BU159: 0 | BV159: 0 | BW159: 0 | BX159: 0
A160: NREL - USB4 (FOM) | B160: 2020 | C160: NREL Utility-Scale Battery Storage - 4Hr | D160: Fixed Operation and Maintenance Expenses ($/kW-yr) | E160: 4hr Lithium-Ion | F160: 43.18086112 | G160: 36.88642937 | H160: 34.27037055 | I160: 31.39270584 | J160: 29.16905585 | K160: 27.59942055 | L160: 26.42219409 | M160: 25.37577056 | N160: 24.19854409 | O160: 23.2829235 | P160: 22.36730291 | Q160: 22.09882988 | R160: 21.81923859 | S160: 21.5396473 | T160: 21.26005602 | U160: 20.98046473 | V160: 20.70087345 | W160: 20.42128216 | X160: 20.14169087 | Y160: 19.86209959 | Z160: 19.5825083 | AA160: 19.30291701 | AB160: 19.02332573 | AC160: 18.74373444 | AD160: 18.46414315 | AE160: 18.18455187 | AF160: 17.90496058 | AG160: 17.62536929 | AH160: 17.34577801 | AI160: 17.06618672 | AJ160: 16.78659544 | AK160: =AK41*0.025 -> 16.50700415 | AL160: =AL41*0.025 -> 16.22741286 | AM160: 15.94782158 | AN160: 15.66823029 | AO160: 15.388639 | AP160: 0 | AQ160: 0 | AR160: 0 | AS160: 0 | AT160: 0 | AU160: 0 | AV160: 0 | AW160: 0 | AX160: 0 | AY160: 0 | AZ160: 0 | BA160: 0 | BB160: 0 | BC160: 0 | BD160: 0 | BE160: 0 | BF160: 0 | BG160: 0 | BH160: 0 | BI160: 0 | BJ160: 0 | BK160: 0 | BL160: 0 | BM160: 0 | BN160: 0 | BO160: 0 | BP160: 0 | BQ160: 0 | BR160: =BR41*0.025 -> 0 | BS160: 0 | BT160: 0 | BU160: 0 | BV160: 0 | BW160: 0 | BX160: 0
A161: NREL - USB8 (FOM) | B161: 2020 | C161: NREL Utility-Scale Battery Storage - 8Hr | D161: Fixed Operation and Maintenance Expenses ($/kW-yr) | E161: 8hr Lithium-Ion | F161: 80.12649835 | G161: 67.81687935 | H161: 62.47738468 | I161: 56.87628413 | J161: 52.12372942 | K161: 49.1923762 | L161: 46.65343181 | M161: 44.43982149 | N161: 42.09540823 | O161: 40.01260085 | P161: 38.1243246 | Q161: 37.66375207 | R161: 37.18719802 | S161: 36.71064396 | T161: 36.2340899 | U161: 35.75753584 | V161: 35.28098179 | W161: 34.80442773 | X161: 34.32787367 | Y161: 33.85131961 | Z161: 33.37476556 | AA161: 32.8982115 | AB161: 32.42165744 | AC161: 31.94510338 | AD161: 31.46854933 | AE161: 30.99199527 | AF161: 30.51544121 | AG161: 30.03888715 | AH161: 29.5623331 | AI161: 29.08577904 | AJ161: 28.6043617 | AK161: =AK42*0.025 -> 0 | AL161: =AL42*0.025 -> 0 | AM161: 0 | AN161: 0 | AO161: 0 | AP161: 0 | AQ161: 0 | AR161: 0 | AS161: 0 | AT161: 0 | AU161: 0 | AV161: 0 | AW161: 0 | AX161: 0 | AY161: 0 | AZ161: 0 | BA161: 0 | BB161: 0 | BC161: 0 | BD161: 0 | BE161: 0 | BF161: 0 | BG161: 0 | BH161: 0 | BI161: 0 | BJ161: 0 | BK161: 0 | BL161: 0 | BM161: 0 | BN161: 0 | BO161: 0 | BP161: 0 | BQ161: 0 | BR161: =BR42*0.025 -> 0 | BS161: 0 | BT161: 0 | BU161: 0 | BV161: 0 | BW161: 0 | BX161: 0
A162: NREL - USB16 (FOM) | B162: 2020 | C162: NREL Utility-Scale Battery Storage - 16Hr | D162: Fixed Operation and Maintenance Expenses ($/kW-yr) | E162: 16hr Lithium-Ion | F162: 154.0177728 | G162: 129.6777793 | H162: 118.8914129 | I162: 107.8434407 | J162: 98.03307656 | K162: 92.3782875 | L162: 87.11590726 | M162: 82.56792335 | N162: 77.88913651 | O162: 73.47195555 | P162: 69.63836798 | Q162: 68.79359646 | R162: 67.92311687 | S162: 67.05263727 | T162: 66.18215767 | U162: 65.31167807 | V162: 64.44119847 | W162: 63.57071887 | X162: 62.70023927 | Y162: 61.82975967 | Z162: 60.95928007 | AA162: 60.08880047 | AB162: 59.21832087 | AC162: 58.34784127 | AD162: 57.47736167 | AE162: 56.60688207 | AF162: 55.73640247 | AG162: 54.86592287 | AH162: 53.99544327 | AI162: 53.12496367 | AJ162: 52.23989423 | AK162: =AK43*0.025 -> 0 | AL162: =AL43*0.025 -> 0 | AM162: 0 | AN162: 0 | AO162: 0 | AP162: 0 | AQ162: 0 | AR162: 0 | AS162: 0 | AT162: 0 | AU162: 0 | AV162: 0 | AW162: 0 | AX162: 0 | AY162: 0 | AZ162: 0 | BA162: 0 | BB162: 0 | BC162: 0 | BD162: 0 | BE162: 0 | BF162: 0 | BG162: 0 | BH162: 0 | BI162: 0 | BJ162: 0 | BK162: 0 | BL162: 0 | BM162: 0 | BN162: 0 | BO162: 0 | BP162: 0 | BQ162: 0 | BR162: =BR43*0.025 -> 0 | BS162: 0 | BT162: 0 | BU162: 0 | BV162: 0 | BW162: 0 | BX162: 0
B163: 2020 | C163: Internal | D163: Fixed Operation and Maintenance Expenses ($/kW-yr) | E163: 4 hr Vanadium Flow Battery | F163: 57.1508 | G163: 57.1508 | H163: 57.1508 | I163: 57.1508 | J163: 57.1508 | K163: 57.1508 | L163: 57.1508 | M163: 57.1508 | N163: 57.1508 | O163: 57.1508 | P163: 57.1508 | Q163: 57.1508 | R163: 57.1508 | S163: 57.1508 | T163: 57.1508 | U163: 57.1508 | V163: 57.1508 | W163: 57.1508 | X163: 57.1508 | Y163: 57.1508 | Z163: 57.1508 | AA163: 57.1508 | AB163: 57.1508 | AC163: 57.1508 | AD163: 57.1508 | AE163: 57.1508 | AF163: 57.1508 | AG163: 57.1508 | AH163: 57.1508 | AI163: 57.1508 | AJ163: 57.1508 | AK163: 57.1508 | AL163: 57.1508 | AM163: 57.1508 | AN163: 57.1508 | AO163: 57.1508 | AP163: 57.1508 | AQ163: 57.1508 | AR163: 57.1508 | AS163: 57.1508 | AT163: 57.1508 | AU163: 57.1508 | AV163: 57.1508 | AW163: 57.1508 | AX163: 57.1508 | AY163: 57.1508 | AZ163: 57.1508 | BA163: 57.1508 | BB163: 57.1508 | BC163: 57.1508 | BD163: 57.1508 | BE163: 57.1508 | BF163: 57.1508 | BG163: 57.1508 | BH163: 57.1508 | BI163: 57.1508 | BJ163: 57.1508 | BK163: 57.1508 | BL163: 57.1508 | BM163: 57.1508 | BN163: 57.1508 | BO163: 57.1508 | BP163: 57.1508 | BQ163: 57.1508 | BR163: 57.1508 | BS163: 57.1508 | BT163: 57.1508 | BU163: 57.1508 | BV163: 57.1508 | BW163: 57.1508 | BX163: 57.1508
B164: 2020 | C164: Internal | D164: Fixed Operation and Maintenance Expenses ($/kW-yr) | E164: 4 hr Zinc Bromide Flow Battery | F164: 64.295 | G164: 64.295 | H164: 64.295 | I164: 64.295 | J164: 64.295 | K164: 64.295 | L164: 64.295 | M164: 64.295 | N164: 64.295 | O164: 64.295 | P164: 64.295 | Q164: 64.295 | R164: 64.295 | S164: 64.295 | T164: 64.295 | U164: 64.295 | V164: 64.295 | W164: 64.295 | X164: 64.295 | Y164: 64.295 | Z164: 64.295 | AA164: 64.295 | AB164: 64.295 | AC164: 64.295 | AD164: 64.295 | AE164: 64.295 | AF164: 64.295 | AG164: 64.295 | AH164: 64.295 | AI164: 64.295 | AJ164: 64.295 | AK164: 64.295 | AL164: 64.295 | AM164: 64.295 | AN164: 64.295 | AO164: 64.295 | AP164: 64.295 | AQ164: 64.295 | AR164: 64.295 | AS164: 64.295 | AT164: 64.295 | AU164: 64.295 | AV164: 64.295 | AW164: 64.295 | AX164: 64.295 | AY164: 64.295 | AZ164: 64.295 | BA164: 64.295 | BB164: 64.295 | BC164: 64.295 | BD164: 64.295 | BE164: 64.295 | BF164: 64.295 | BG164: 64.295 | BH164: 64.295 | BI164: 64.295 | BJ164: 64.295 | BK164: 64.295 | BL164: 64.295 | BM164: 64.295 | BN164: 64.295 | BO164: 64.295 | BP164: 64.295 | BQ164: 64.295 | BR164: 64.295 | BS164: 64.295 | BT164: 64.295 | BU164: 64.295 | BV164: 64.295 | BW164: 64.295 | BX164: 64.295
B165: 2022 | C165: Internal | D165: Fixed Operation and Maintenance Expenses ($/kW-yr) | E165: 100hr Iron Oxide | H165: 30 | I165: 30 | J165: 30 | K165: 30 | L165: 30 | M165: 30 | N165: 30 | O165: 30 | P165: 30 | Q165: 30 | R165: 30 | S165: 30 | T165: 30 | U165: 30 | V165: 30 | W165: 30 | X165: 30 | Y165: 30 | Z165: 30 | AA165: 30 | AB165: 30 | AC165: 30 | AD165: 30 | AE165: 30 | AF165: 30 | AG165: 30 | AH165: 30 | AI165: 30 | AJ165: 30 | AK165: 30 | AL165: 30 | AM165: 30 | AN165: 30 | AO165: 30 | AP165: 30 | AQ165: 30 | AR165: 30 | AS165: 30 | AT165: 30 | AU165: 30 | AV165: 30 | AW165: 30 | AX165: 30 | AY165: 30 | AZ165: 30 | BA165: 30 | BB165: 30 | BC165: 30 | BD165: 30 | BE165: 30 | BF165: 30 | BG165: 30 | BH165: 30 | BI165: 30 | BJ165: 30 | BK165: 30 | BL165: 30 | BM165: 30 | BN165: 30 | BO165: 30 | BP165: 30 | BQ165: 30 | BR165: 30 | BS165: 30 | BT165: 30 | BU165: 30 | BV165: 30 | BW165: 30 | BX165: 30
B166: 2022 | C166: Internal | D166: Fixed Operation and Maintenance Expenses ($/kW-yr) | E166: Liquid Air | H166: 25 | I166: 25 | J166: 25 | K166: 25 | L166: 25 | M166: 25 | N166: 25 | O166: 25 | P166: 25 | Q166: 25 | R166: 25 | S166: 25 | T166: 25 | U166: 25 | V166: 25 | W166: 25 | X166: 25 | Y166: 25 | Z166: 25 | AA166: 25 | AB166: 25 | AC166: 25 | AD166: 25 | AE166: 25 | AF166: 25 | AG166: 25 | AH166: 25 | AI166: 25 | AJ166: 25 | AK166: 25 | AL166: 25 | AM166: 25 | AN166: 25 | AO166: 25 | AP166: 25 | AQ166: 25 | AR166: 25 | AS166: 25 | AT166: 25 | AU166: 25 | AV166: 25 | AW166: 25 | AX166: 25 | AY166: 25 | AZ166: 25 | BA166: 25 | BB166: 25 | BC166: 25 | BD166: 25 | BE166: 25 | BF166: 25 | BG166: 25 | BH166: 25 | BI166: 25 | BJ166: 25 | BK166: 25 | BL166: 25 | BM166: 25 | BN166: 25 | BO166: 25 | BP166: 25 | BQ166: 25 | BR166: 25 | BS166: 25 | BT166: 25 | BU166: 25 | BV166: 25 | BW166: 25 | BX166: 25
A167: NREL - PSHP10 (FOM) | B167: 2020 | C167: NREL Pumped Storage Hydropower - National Class 10 | D167: Fixed Operation and Maintenance Expenses ($/kW-yr) | E167: Pumped Hydro (8.5 hr/ 400 MW share) | F167: 17.82 | G167: 17.82 | H167: 17.82 | I167: 17.82 | J167: 17.82 | K167: 17.82 | L167: 17.82 | M167: 17.82 | N167: 17.82 | O167: 17.82 | P167: 17.82 | Q167: 17.82 | R167: 17.82 | S167: 17.82 | T167: 17.82 | U167: 17.82 | V167: 17.82 | W167: 17.82 | X167: 17.82 | Y167: 17.82 | Z167: 17.82 | AA167: 17.82 | AB167: 17.82 | AC167: 17.82 | AD167: 17.82 | AE167: 17.82 | AF167: 17.82 | AG167: 17.82 | AH167: 17.82 | AI167: 17.82 | AJ167: 17.82 | AK167: 17.82 | AL167: 17.82 | AM167: 17.82 | AN167: 17.82 | AO167: 17.82 | AP167: 17.82 | AQ167: 17.82 | AR167: 17.82 | AS167: 17.82 | AT167: 17.82 | AU167: 17.82 | AV167: 17.82 | AW167: 17.82 | AX167: 17.82 | AY167: 17.82 | AZ167: 17.82 | BA167: 17.82 | BB167: 17.82 | BC167: 17.82 | BD167: 17.82 | BE167: 17.82 | BF167: 17.82 | BG167: 17.82 | BH167: 17.82 | BI167: 17.82 | BJ167: 17.82 | BK167: 17.82 | BL167: 17.82 | BM167: 17.82 | BN167: 17.82 | BO167: 17.82 | BP167: 17.82 | BQ167: 17.82 | BR167: 17.82 | BS167: 17.82 | BT167: 17.82 | BU167: 17.82 | BV167: 17.82 | BW167: 17.82 | BX167: 17.82
A168: NREL - PSHP7 (FOM) | B168: 2020 | C168: NREL Pumped Storage Hydropower - National Class 7 | D168: Fixed Operation and Maintenance Expenses ($/kW-yr) | E168: Pumped Hydro (16 hr/ 100 MW) | F168: 17.82 | G168: 17.82 | H168: 17.82 | I168: 17.82 | J168: 17.82 | K168: 17.82 | L168: 17.82 | M168: 17.82 | N168: 17.82 | O168: 17.82 | P168: 17.82 | Q168: 17.82 | R168: 17.82 | S168: 17.82 | T168: 17.82 | U168: 17.82 | V168: 17.82 | W168: 17.82 | X168: 17.82 | Y168: 17.82 | Z168: 17.82 | AA168: 17.82 | AB168: 17.82 | AC168: 17.82 | AD168: 17.82 | AE168: 17.82 | AF168: 17.82 | AG168: 17.82 | AH168: 17.82 | AI168: 17.82 | AJ168: 17.82 | AK168: 17.82 | AL168: 17.82 | AM168: 17.82 | AN168: 17.82 | AO168: 17.82 | AP168: 17.82 | AQ168: 17.82 | AR168: 17.82 | AS168: 17.82 | AT168: 17.82 | AU168: 17.82 | AV168: 17.82 | AW168: 17.82 | AX168: 17.82 | AY168: 17.82 | AZ168: 17.82 | BA168: 17.82 | BB168: 17.82 | BC168: 17.82 | BD168: 17.82 | BE168: 17.82 | BF168: 17.82 | BG168: 17.82 | BH168: 17.82 | BI168: 17.82 | BJ168: 17.82 | BK168: 17.82 | BL168: 17.82 | BM168: 17.82 | BN168: 17.82 | BO168: 17.82 | BP168: 17.82 | BQ168: 17.82 | BR168: 17.82 | BS168: 17.82 | BT168: 17.82 | BU168: 17.82 | BV168: 17.82 | BW168: 17.82 | BX168: 17.82
A169: NREL - PSHP5 (FOM) | B169: 2020 | C169: NREL Pumped Storage Hydropower - National Class 5 | D169: Fixed Operation and Maintenance Expenses ($/kW-yr) | E169: Pumped Hyrdo (24 hr/ 100 MW) | F169: 17.82 | G169: 17.82 | H169: 17.82 | I169: 17.82 | J169: 17.82 | K169: 17.82 | L169: 17.82 | M169: 17.82 | N169: 17.82 | O169: 17.82 | P169: 17.82 | Q169: 17.82 | R169: 17.82 | S169: 17.82 | T169: 17.82 | U169: 17.82 | V169: 17.82 | W169: 17.82 | X169: 17.82 | Y169: 17.82 | Z169: 17.82 | AA169: 17.82 | AB169: 17.82 | AC169: 17.82 | AD169: 17.82 | AE169: 17.82 | AF169: 17.82 | AG169: 17.82 | AH169: 17.82 | AI169: 17.82 | AJ169: 17.82 | AK169: 17.82 | AL169: 17.82 | AM169: 17.82 | AN169: 17.82 | AO169: 17.82 | AP169: 17.82 | AQ169: 17.82 | AR169: 17.82 | AS169: 17.82 | AT169: 17.82 | AU169: 17.82 | AV169: 17.82 | AW169: 17.82 | AX169: 17.82 | AY169: 17.82 | AZ169: 17.82 | BA169: 17.82 | BB169: 17.82 | BC169: 17.82 | BD169: 17.82 | BE169: 17.82 | BF169: 17.82 | BG169: 17.82 | BH169: 17.82 | BI169: 17.82 | BJ169: 17.82 | BK169: 17.82 | BL169: 17.82 | BM169: 17.82 | BN169: 17.82 | BO169: 17.82 | BP169: 17.82 | BQ169: 17.82 | BR169: 17.82 | BS169: 17.82 | BT169: 17.82 | BU169: 17.82 | BV169: 17.82 | BW169: 17.82 | BX169: 17.82
B170: 2022 | C170: Internal | D170: Fixed Operation and Maintenance Expenses ($/kW-yr) | E170: Wood Biomass | H170: 28.75 | I170: 28.75 | J170: 28.75 | K170: 28.75 | L170: 28.75 | M170: 28.75 | N170: 28.75 | O170: 28.75 | P170: 28.75 | Q170: 28.75 | R170: 28.75 | S170: 28.75 | T170: 28.75 | U170: 28.75 | V170: 28.75 | W170: 28.75 | X170: 28.75 | Y170: 28.75 | Z170: 28.75 | AA170: 28.75 | AB170: 28.75 | AC170: 28.75 | AD170: 28.75 | AE170: 28.75 | AF170: 28.75 | AG170: 28.75 | AH170: 28.75 | AI170: 28.75 | AJ170: 28.75 | AK170: 28.75 | AL170: 28.75 | AM170: 28.75 | AN170: 28.75 | AO170: 28.75 | AP170: 28.75 | AQ170: 28.75 | AR170: 28.75 | AS170: 28.75 | AT170: 28.75 | AU170: 28.75 | AV170: 28.75 | AW170: 28.75 | AX170: 28.75 | AY170: 28.75 | AZ170: 28.75 | BA170: 28.75 | BB170: 28.75 | BC170: 28.75 | BD170: 28.75 | BE170: 28.75 | BF170: 28.75 | BG170: 28.75 | BH170: 28.75 | BI170: 28.75 | BJ170: 28.75 | BK170: 28.75 | BL170: 28.75 | BM170: 28.75 | BN170: 28.75 | BO170: 28.75 | BP170: 28.75 | BQ170: 28.75 | BR170: 28.75 | BS170: 28.75 | BT170: 28.75 | BU170: 28.75 | BV170: 28.75 | BW170: 28.75 | BX170: 28.75
B171: 2022 | C171: Internal | D171: Fixed Operation and Maintenance Expenses ($/kW-yr) | E171: Rathdrum CT 2055 Uprates two unit operation | H171: 5.4855 | I171: 5.4855 | J171: 5.4855 | K171: 5.4855 | L171: 5.4855 | M171: 5.4855 | N171: 5.4855 | O171: 5.4855 | P171: 5.4855 | Q171: 5.4855 | R171: 5.4855 | S171: 5.4855 | T171: 5.4855 | U171: 5.4855 | V171: 5.4855 | W171: 5.4855 | X171: 5.4855 | Y171: 5.4855 | Z171: 5.4855 | AA171: 5.4855 | AB171: 5.4855 | AC171: 5.4855 | AD171: 5.4855 | AE171: 5.4855 | AF171: 5.4855 | AG171: 5.4855 | AH171: 5.4855 | AI171: 5.4855 | AJ171: 5.4855 | AK171: 5.4855 | AL171: 5.4855 | AM171: 5.4855 | AN171: 5.4855 | AO171: 5.4855 | AP171: 5.4855 | AQ171: 5.4855 | AR171: 5.4855 | AS171: 5.4855 | AT171: 5.4855 | AU171: 5.4855 | AV171: 5.4855 | AW171: 5.4855 | AX171: 5.4855 | AY171: 5.4855 | AZ171: 5.4855 | BA171: 5.4855 | BB171: 5.4855 | BC171: 5.4855 | BD171: 5.4855 | BE171: 5.4855 | BF171: 5.4855 | BG171: 5.4855 | BH171: 5.4855 | BI171: 5.4855 | BJ171: 5.4855 | BK171: 5.4855 | BL171: 5.4855 | BM171: 5.4855 | BN171: 5.4855 | BO171: 5.4855 | BP171: 5.4855 | BQ171: 5.4855 | BR171: 5.4855 | BS171: 5.4855 | BT171: 5.4855 | BU171: 5.4855 | BV171: 5.4855 | BW171: 5.4855 | BX171: 5.4855
B172: 2022 | C172: Internal | D172: Fixed Operation and Maintenance Expenses ($/kW-yr) | E172: Rathdrum CT: Inlet Evaporation 2 unit operation | H172: 5.4855 | I172: 5.4855 | J172: 5.4855 | K172: 5.4855 | L172: 5.4855 | M172: 5.4855 | N172: 5.4855 | O172: 5.4855 | P172: 5.4855 | Q172: 5.4855 | R172: 5.4855 | S172: 5.4855 | T172: 5.4855 | U172: 5.4855 | V172: 5.4855 | W172: 5.4855 | X172: 5.4855 | Y172: 5.4855 | Z172: 5.4855 | AA172: 5.4855 | AB172: 5.4855 | AC172: 5.4855 | AD172: 5.4855 | AE172: 5.4855 | AF172: 5.4855 | AG172: 5.4855 | AH172: 5.4855 | AI172: 5.4855 | AJ172: 5.4855 | AK172: 5.4855 | AL172: 5.4855 | AM172: 5.4855 | AN172: 5.4855 | AO172: 5.4855 | AP172: 5.4855 | AQ172: 5.4855 | AR172: 5.4855 | AS172: 5.4855 | AT172: 5.4855 | AU172: 5.4855 | AV172: 5.4855 | AW172: 5.4855 | AX172: 5.4855 | AY172: 5.4855 | AZ172: 5.4855 | BA172: 5.4855 | BB172: 5.4855 | BC172: 5.4855 | BD172: 5.4855 | BE172: 5.4855 | BF172: 5.4855 | BG172: 5.4855 | BH172: 5.4855 | BI172: 5.4855 | BJ172: 5.4855 | BK172: 5.4855 | BL172: 5.4855 | BM172: 5.4855 | BN172: 5.4855 | BO172: 5.4855 | BP172: 5.4855 | BQ172: 5.4855 | BR172: 5.4855 | BS172: 5.4855 | BT172: 5.4855 | BU172: 5.4855 | BV172: 5.4855 | BW172: 5.4855 | BX172: 5.4855
A173: NREL - RPV8 (FOM) | B173: 2020 | C173: NREL Residential PV - Class 8 | D173: Fixed Operation and Maintenance Expenses ($/kW-yr) | E173: New Residential Solar | F173: 29.295962 | G173: 28.97369585 | H173: 27.22783887 | I173: 25.48198188 | J173: 23.73612489 | K173: 21.9902679 | L173: 20.24441091 | M173: 18.49855393 | N173: 16.75269694 | O173: 15.00683995 | P173: 13.26098296 | Q173: 13.15260543 | R173: 13.04422789 | S173: 12.93585036 | T173: 12.82747282 | U173: 12.71909529 | V173: 12.61071775 | W173: 12.50234021 | X173: 12.39396268 | Y173: 12.28558514 | Z173: 12.17720761 | AA173: 12.06883007 | AB173: 11.96045254 | AC173: 11.852075 | AD173: 11.74369747 | AE173: 11.63531993 | AF173: 11.5269424 | AG173: 11.41856486 | AH173: 11.31018733 | AI173: 11.20180979 | AJ173: 11.09343226
B174: 2020 | C174: =C173 -> NREL Residential PV - Class 8 | D174: Fixed Operation and Maintenance Expenses ($/kW-yr) | E174: New Residential Solar + Storage (Solar Only) | F174: =F173 -> 29.295962 | G174: =G173 -> 28.97369585 | H174: 27.22783887 | I174: 25.48198188 | J174: 23.73612489 | K174: 21.9902679 | L174: 20.24441091 | M174: 18.49855393 | N174: 16.75269694 | O174: 15.00683995 | P174: 13.26098296 | Q174: 13.15260543 | R174: 13.04422789 | S174: 12.93585036 | T174: 12.82747282 | U174: 12.71909529 | V174: 12.61071775 | W174: 12.50234021 | X174: 12.39396268 | Y174: 12.28558514 | Z174: 12.17720761 | AA174: 12.06883007 | AB174: 11.96045254 | AC174: 11.852075 | AD174: 11.74369747 | AE174: 11.63531993 | AF174: 11.5269424 | AG174: 11.41856486 | AH174: 11.31018733 | AI174: 11.20180979 | AJ174: 11.09343226 | AK174: 0 | AL174: 0 | AM174: 0 | AN174: 0 | AO174: 0 | AP174: 0 | AQ174: 0 | AR174: 0 | AS174: 0 | AT174: 0 | AU174: 0 | AV174: 0 | AW174: 0 | AX174: 0 | AY174: 0 | AZ174: 0 | BA174: 0 | BB174: 0 | BC174: 0 | BD174: 0 | BE174: 0 | BF174: 0 | BG174: 0 | BH174: 0 | BI174: 0 | BJ174: 0 | BK174: 0 | BL174: 0 | BM174: 0 | BN174: 0 | BO174: 0 | BP174: 0 | BQ174: 0 | BR174: 0 | BS174: =BS173 -> 0 | BT174: 0 | BU174: 0 | BV174: 0 | BW174: 0 | BX174: 0
A175: NREL - RB5 (FOM) | B175: 2020 | C175: NREL Residential Battery Storage - 5 kW - 12.5 kWh | D175: Fixed Operation and Maintenance Expenses ($/kW-yr) | E175: New Residential Solar + Storage (Battery Only) | F175: 93.66015283 | G175: 87.90951427 | H175: 81.66222685 | I175: 75.86904112 | J175: 70.43115857 | K175: 65.27106301 | L175: 62.63142336 | M175: 60.28874768 | N175: 58.27740243 | O175: 56.35289747 | P175: 54.61091962 | Q175: 53.9430411 | R175: 53.2604126 | S175: 52.57778411 | T175: 51.89515562 | U175: 51.21252713 | V175: 50.52989864 | W175: 49.84727015 | X175: 49.16464166 | Y175: 48.48201316 | Z175: 47.79938467 | AA175: 47.11675618 | AB175: 46.43412769 | AC175: 45.7514992 | AD175: 45.06887071 | AE175: 44.38624222 | AF175: 43.70361372 | AG175: 43.02098523 | AH175: 42.33835674 | AI175: 41.65572825 | AJ175: 40.95818972
B176: 2020 | C176: =C173 -> NREL Residential PV - Class 8 | D176: Fixed Operation and Maintenance Expenses ($/kW-yr) | E176: Existing Residential Solar | F176: =F173 -> 29.295962 | G176: =G173 -> 28.97369585 | H176: 27.22783887 | I176: 25.48198188 | J176: 23.73612489 | K176: 21.9902679 | L176: 20.24441091 | M176: 18.49855393 | N176: 16.75269694 | O176: 15.00683995 | P176: 13.26098296 | Q176: 13.15260543 | R176: 13.04422789 | S176: 12.93585036 | T176: 12.82747282 | U176: 12.71909529 | V176: 12.61071775 | W176: 12.50234021 | X176: 12.39396268 | Y176: 12.28558514 | Z176: 12.17720761 | AA176: 12.06883007 | AB176: 11.96045254 | AC176: 11.852075 | AD176: 11.74369747 | AE176: 11.63531993 | AF176: 11.5269424 | AG176: 11.41856486 | AH176: 11.31018733 | AI176: 11.20180979 | AJ176: 11.09343226 | AK176: 0 | AL176: 0 | AM176: 0 | AN176: 0 | AO176: 0 | AP176: 0 | AQ176: 0 | AR176: 0 | AS176: 0 | AT176: 0 | AU176: 0 | AV176: 0 | AW176: 0 | AX176: 0 | AY176: 0 | AZ176: 0 | BA176: 0 | BB176: 0 | BC176: 0 | BD176: 0 | BE176: 0 | BF176: 0 | BG176: 0 | BH176: 0 | BI176: 0 | BJ176: 0 | BK176: 0 | BL176: 0 | BM176: 0 | BN176: 0 | BO176: 0 | BP176: 0 | BQ176: 0 | BR176: 0 | BS176: =BS173 -> 0 | BT176: 0 | BU176: 0 | BV176: 0 | BW176: 0 | BX176: 0
B177: 2020 | C177: =C176 -> NREL Residential PV - Class 8 | D177: Fixed Operation and Maintenance Expenses ($/kW-yr) | E177: Existing Residential Solar + Storage (Solar Only) | F177: =F176 -> 29.295962 | G177: =G176 -> 28.97369585 | H177: 27.22783887 | I177: 25.48198188 | J177: 23.73612489 | K177: 21.9902679 | L177: 20.24441091 | M177: 18.49855393 | N177: 16.75269694 | O177: 15.00683995 | P177: 13.26098296 | Q177: 13.15260543 | R177: 13.04422789 | S177: 12.93585036 | T177: 12.82747282 | U177: 12.71909529 | V177: 12.61071775 | W177: 12.50234021 | X177: 12.39396268 | Y177: 12.28558514 | Z177: 12.17720761 | AA177: 12.06883007 | AB177: 11.96045254 | AC177: 11.852075 | AD177: 11.74369747 | AE177: 11.63531993 | AF177: 11.5269424 | AG177: 11.41856486 | AH177: 11.31018733 | AI177: 11.20180979 | AJ177: 11.09343226 | AK177: 0 | AL177: 0 | AM177: 0 | AN177: 0 | AO177: 0 | AP177: 0 | AQ177: 0 | AR177: 0 | AS177: 0 | AT177: 0 | AU177: 0 | AV177: 0 | AW177: 0 | AX177: 0 | AY177: 0 | AZ177: 0 | BA177: 0 | BB177: 0 | BC177: 0 | BD177: 0 | BE177: 0 | BF177: 0 | BG177: 0 | BH177: 0 | BI177: 0 | BJ177: 0 | BK177: 0 | BL177: 0 | BM177: 0 | BN177: 0 | BO177: 0 | BP177: 0 | BQ177: 0 | BR177: 0 | BS177: =BS176 -> 0 | BT177: 0 | BU177: 0 | BV177: 0 | BW177: 0 | BX177: 0
B178: 2020 | C178: =C175 -> NREL Residential Battery Storage - 5 kW - 12.5 kWh | D178: Fixed Operation and Maintenance Expenses ($/kW-yr) | E178: Existing Residential Solar + Storage (Battery Only) | F178: =F175 -> 93.66015283 | G178: =G175 -> 87.90951427 | H178: 81.66222685 | I178: 75.86904112 | J178: 70.43115857 | K178: 65.27106301 | L178: 62.63142336 | M178: 60.28874768 | N178: 58.27740243 | O178: 56.35289747 | P178: 54.61091962 | Q178: 53.9430411 | R178: 53.2604126 | S178: 52.57778411 | T178: 51.89515562 | U178: 51.21252713 | V178: 50.52989864 | W178: 49.84727015 | X178: 49.16464166 | Y178: 48.48201316 | Z178: 47.79938467 | AA178: 47.11675618 | AB178: 46.43412769 | AC178: 45.7514992 | AD178: 45.06887071 | AE178: 44.38624222 | AF178: 43.70361372 | AG178: 43.02098523 | AH178: 42.33835674 | AI178: 41.65572825 | AJ178: 40.95818972 | AK178: 0 | AL178: 0 | AM178: 0 | AN178: 0 | AO178: 0 | AP178: 0 | AQ178: 0 | AR178: 0 | AS178: 0 | AT178: 0 | AU178: 0 | AV178: 0 | AW178: 0 | AX178: 0 | AY178: 0 | AZ178: 0 | BA178: 0 | BB178: 0 | BC178: 0 | BD178: 0 | BE178: 0 | BF178: 0 | BG178: 0 | BH178: 0 | BI178: 0 | BJ178: 0 | BK178: 0 | BL178: 0 | BM178: 0 | BN178: 0 | BO178: 0 | BP178: 0 | BQ178: 0 | BR178: 0 | BS178: =BS175 -> 0 | BT178: 0 | BU178: 0 | BV178: 0 | BW178: 0 | BX178: 0
A179: NREL - CPV8 (FOM) | B179: 2020 | C179: NREL Commercial PV - Class 8 | D179: Fixed Operation and Maintenance Expenses ($/kW-yr) | E179: Commercial Solar | F179: 18.778165 | G179: 17.92000868 | H179: 17.21956095 | I179: 16.51911323 | J179: 15.8186655 | K179: 15.11821777 | L179: 14.41777005 | M179: 13.71732232 | N179: 13.01687459 | O179: 12.31642687 | P179: 11.61597914 | Q179: 11.51574427 | R179: 11.41550939 | S179: 11.31527452 | T179: 11.21503965 | U179: 11.11480477 | V179: 11.0145699 | W179: 10.91433502 | X179: 10.81410015 | Y179: 10.71386528 | Z179: 10.6136304 | AA179: 10.51339553 | AB179: 10.41316065 | AC179: 10.31292578 | AD179: 10.21269091 | AE179: 10.11245603 | AF179: 10.01222116 | AG179: 9.911986284 | AH179: 9.81175141 | AI179: 9.711516536 | AJ179: 9.611281661
B180: 2020 | C180: =C179 -> NREL Commercial PV - Class 8 | D180: Fixed Operation and Maintenance Expenses ($/kW-yr) | E180: Commercial Solar + Storage (Solar Only) | F180: =F179 -> 18.778165 | G180: =G179 -> 17.92000868 | H180: 17.21956095 | I180: 16.51911323 | J180: 15.8186655 | K180: 15.11821777 | L180: 14.41777005 | M180: 13.71732232 | N180: 13.01687459 | O180: 12.31642687 | P180: 11.61597914 | Q180: 11.51574427 | R180: 11.41550939 | S180: 11.31527452 | T180: 11.21503965 | U180: 11.11480477 | V180: 11.0145699 | W180: 10.91433502 | X180: 10.81410015 | Y180: 10.71386528 | Z180: 10.6136304 | AA180: 10.51339553 | AB180: 10.41316065 | AC180: 10.31292578 | AD180: 10.21269091 | AE180: 10.11245603 | AF180: 10.01222116 | AG180: 9.911986284 | AH180: 9.81175141 | AI180: 9.711516536 | AJ180: 9.611281661 | AK180: 0 | AL180: 0 | AM180: 0 | AN180: 0 | AO180: 0 | AP180: 0 | AQ180: 0 | AR180: 0 | AS180: 0 | AT180: 0 | AU180: 0 | AV180: 0 | AW180: 0 | AX180: 0 | AY180: 0 | AZ180: 0 | BA180: 0 | BB180: 0 | BC180: 0 | BD180: 0 | BE180: 0 | BF180: 0 | BG180: 0 | BH180: 0 | BI180: 0 | BJ180: 0 | BK180: 0 | BL180: 0 | BM180: 0 | BN180: 0 | BO180: 0 | BP180: 0 | BQ180: 0 | BR180: 0 | BS180: =BS179 -> 0 | BT180: 0 | BU180: 0 | BV180: 0 | BW180: 0 | BX180: 0
A181: NREL - CB4 (FOM) | B181: 2020 | C181: NREL Commercial Battery Storage 4Hr | D181: Fixed Operation and Maintenance Expenses ($/kW-yr) | E181: Commercial Solar + Storage (Battery Only) | F181: 55.55621403 | G181: 46.06831788 | H181: 42.71333683 | I181: 39.52647422 | J181: 36.4728401 | K181: 33.52445505 | L181: 32.12029405 | M181: 30.87740865 | N181: 29.82167477 | O181: 28.82379984 | P181: 27.92032542 | Q181: 27.57308818 | R181: 27.22408748 | S181: 26.87508678 | T181: 26.52608608 | U181: 26.17708538 | V181: 25.82808468 | W181: 25.47908398 | X181: 25.13008328 | Y181: 24.78108257 | Z181: 24.43208187 | AA181: 24.08308117 | AB181: 23.73408047 | AC181: 23.38507977 | AD181: 23.03607907 | AE181: 22.68707837 | AF181: 22.33807767 | AG181: 21.98907697 | AH181: 21.64007627 | AI181: 21.29107557 | AJ181: 20.94024407
B182: 2020 | C182: NREL Utility PV - Class 4/LAZARD’S LEVELIZED COST OF ENERGY ANALYSIS—VERSION 15.0 | D182: Fixed Operation and Maintenance Expenses ($/kW-yr) | E182: Solar Photovoltaic Fixed Array (5 MW AC) | F182: =F185/((13+9.5)/2)*((12+16)/2) -> 28.15392563 | G182: =G185/((13+9.5)/2)*((12+16)/2) -> 25.58179556 | H182: 24.82882075 | I182: 24.08551272 | J182: 23.3445281 | K182: 22.60577126 | L182: 21.86915174 | M182: 21.13458393 | N182: 20.40198669 | O182: 19.67128316 | P182: 18.94240037 | Q182: 18.81708188 | R182: 18.69208585 | S182: 18.56740702 | T182: 18.44304019 | U182: 18.31898033 | V182: 18.19522247 | W182: 18.07176177 | X182: 17.94859349 | Y182: 17.82571298 | Z182: 17.70311571 | AA182: 17.58079722 | AB182: 17.45875316 | AC182: 17.33697926 | AD182: 17.21547135 | AE182: 17.09422533 | AF182: 16.97323719 | AG182: 16.85250301 | AH182: 16.73201894 | AI182: 16.61178121 | AJ182: 16.49178612 | AK182: 0 | AL182: 0 | AM182: 0 | AN182: 0 | AO182: 0 | AP182: 0 | AQ182: 0 | AR182: 0 | AS182: 0 | AT182: 0 | AU182: 0 | AV182: 0 | AW182: 0 | AX182: 0 | AY182: 0 | AZ182: 0 | BA182: 0 | BB182: 0 | BC182: 0 | BD182: 0 | BE182: 0 | BF182: 0 | BG182: 0 | BH182: 0 | BI182: 0 | BJ182: 0 | BK182: 0 | BL182: 0 | BM182: 0 | BN182: 0 | BO182: 0 | BP182: 0 | BQ182: 0 | BR182: 0 | BS182: =BS185/((13+9.5)/2)*((12+16)/2) -> 0 | BT182: 0 | BU182: 0 | BV182: 0 | BW182: 0 | BX182: 0
B183: 2020 | C183: =C182 -> NREL Utility PV - Class 4/LAZARD’S LEVELIZED COST OF ENERGY ANALYSIS—VERSION 15.0 | D183: Fixed Operation and Maintenance Expenses ($/kW-yr) | E183: Solar Photovoltaic Fixed Array (5 MW AC) + Storage (Solar Only) | F183: =F182 -> 28.15392563 | G183: =G182 -> 25.58179556 | H183: 24.82882075 | I183: 24.08551272 | J183: 23.3445281 | K183: 22.60577126 | L183: 21.86915174 | M183: 21.13458393 | N183: 20.40198669 | O183: 19.67128316 | P183: 18.94240037 | Q183: 18.81708188 | R183: 18.69208585 | S183: 18.56740702 | T183: 18.44304019 | U183: 18.31898033 | V183: 18.19522247 | W183: 18.07176177 | X183: 17.94859349 | Y183: 17.82571298 | Z183: 17.70311571 | AA183: 17.58079722 | AB183: 17.45875316 | AC183: 17.33697926 | AD183: 17.21547135 | AE183: 17.09422533 | AF183: 16.97323719 | AG183: 16.85250301 | AH183: 16.73201894 | AI183: 16.61178121 | AJ183: 16.49178612 | AK183: 0 | AL183: 0 | AM183: 0 | AN183: 0 | AO183: 0 | AP183: 0 | AQ183: 0 | AR183: 0 | AS183: 0 | AT183: 0 | AU183: 0 | AV183: 0 | AW183: 0 | AX183: 0 | AY183: 0 | AZ183: 0 | BA183: 0 | BB183: 0 | BC183: 0 | BD183: 0 | BE183: 0 | BF183: 0 | BG183: 0 | BH183: 0 | BI183: 0 | BJ183: 0 | BK183: 0 | BL183: 0 | BM183: 0 | BN183: 0 | BO183: 0 | BP183: 0 | BQ183: 0 | BR183: 0 | BS183: =BS182 -> 0 | BT183: 0 | BU183: 0 | BV183: 0 | BW183: 0 | BX183: 0
B184: 2020 | C184: NREL Utility-Scale Battery Storage - 4Hr/LAZARD’S LEVELIZED COST O F STORAGE ANALYSIS—VERSION 7 . 0 | D184: Fixed Operation and Maintenance Expenses ($/kW-yr) | E184: Solar Photovoltaic Fixed Array (5 MW AC) + Storage (Battery Only) | F184: =F188*1.3/2.5 -> 22.45404778 | G184: =G188*1.3/2.5 -> 19.18094327 | H184: 17.82059268 | I184: 16.32420704 | J184: 15.16790904 | K184: 14.35169869 | L184: 13.73954092 | M184: 13.19540069 | N184: 12.58324293 | O184: 12.10712022 | P184: 11.63099752 | Q184: 11.49139154 | R184: 11.34600407 | S184: 11.2006166 | T184: 11.05522913 | U184: 10.90984166 | V184: 10.76445419 | W184: 10.61906672 | X184: 10.47367925 | Y184: 10.32829178 | Z184: 10.18290432 | AA184: 10.03751685 | AB184: 9.892129378 | AC184: 9.746741909 | AD184: 9.60135444 | AE184: 9.455966971 | AF184: 9.310579502 | AG184: 9.165192033 | AH184: 9.019804564 | AI184: 8.874417095 | AJ184: 8.729029626 | AK184: 0 | AL184: 0 | AM184: 0 | AN184: 0 | AO184: 0 | AP184: 0 | AQ184: 0 | AR184: 0 | AS184: 0 | AT184: 0 | AU184: 0 | AV184: 0 | AW184: 0 | AX184: 0 | AY184: 0 | AZ184: 0 | BA184: 0 | BB184: 0 | BC184: 0 | BD184: 0 | BE184: 0 | BF184: 0 | BG184: 0 | BH184: 0 | BI184: 0 | BJ184: 0 | BK184: 0 | BL184: 0 | BM184: 0 | BN184: 0 | BO184: 0 | BP184: 0 | BQ184: 0 | BR184: 0 | BS184: =BS188*1.3/2.5 -> 0 | BT184: 0 | BU184: 0 | BV184: 0 | BW184: 0 | BX184: 0
A185: NREL - UPV4 (FOM) | B185: 2020 | C185: NREL Utility PV - Class 4 | D185: Fixed Operation and Maintenance Expenses ($/kW-yr) | E185: Solar Photovoltaic w/Single Axis Tracking (100 MW AC) | F185: 22.62369024 | G185: 20.5568 | H185: 19.95173096 | I185: 19.35442986 | J185: 18.75899579 | K185: 18.1653519 | L185: 17.57342551 | M185: 16.9831478 | N185: 16.39445359 | O185: 15.80728111 | P185: 15.22157173 | Q185: 15.12086937 | R185: 15.02042613 | S185: 14.92023778 | T185: 14.82030016 | U185: 14.72060919 | V185: 14.62116091 | W185: 14.52195142 | X185: 14.42297691 | Y185: 14.32423365 | Z185: 14.22571798 | AA185: 14.12742634 | AB185: 14.02935522 | AC185: 13.93150119 | AD185: 13.8338609 | AE185: 13.73643107 | AF185: 13.63920846 | AG185: 13.54218992 | AH185: 13.44537236 | AI185: 13.34875275 | AJ185: 13.25232813
A186: NREL - UPV5 (FOM) | B186: 2020 | C186: NREL Utility PV - Class 5 | D186: Fixed Operation and Maintenance Expenses ($/kW-yr) | E186: Southern NW Solar Photovoltaic w/ Single Axis Tracking (100 MW AC) | F186: 22.62369024 | G186: 20.5568 | H186: 19.95173096 | I186: 19.35442986 | J186: 18.75899579 | K186: 18.1653519 | L186: 17.57342551 | M186: 16.9831478 | N186: 16.39445359 | O186: 15.80728111 | P186: 15.22157173 | Q186: 15.12086937 | R186: 15.02042613 | S186: 14.92023778 | T186: 14.82030016 | U186: 14.72060919 | V186: 14.62116091 | W186: 14.52195142 | X186: 14.42297691 | Y186: 14.32423365 | Z186: 14.22571798 | AA186: 14.12742634 | AB186: 14.02935522 | AC186: 13.93150119 | AD186: 13.8338609 | AE186: 13.73643107 | AF186: 13.63920846 | AG186: 13.54218992 | AH186: 13.44537236 | AI186: 13.34875275 | AJ186: 13.25232813
B187: 2020 | C187: =C185 -> NREL Utility PV - Class 4 | D187: Fixed Operation and Maintenance Expenses ($/kW-yr) | E187: 100 MW/400 MWh Lithium-ion w/Solar (Solar Only) | F187: =F185 -> 22.62369024 | G187: =G185 -> 20.5568 | H187: 19.95173096 | I187: 19.35442986 | J187: 18.75899579 | K187: 18.1653519 | L187: 17.57342551 | M187: 16.9831478 | N187: 16.39445359 | O187: 15.80728111 | P187: 15.22157173 | Q187: 15.12086937 | R187: 15.02042613 | S187: 14.92023778 | T187: 14.82030016 | U187: 14.72060919 | V187: 14.62116091 | W187: 14.52195142 | X187: 14.42297691 | Y187: 14.32423365 | Z187: 14.22571798 | AA187: 14.12742634 | AB187: 14.02935522 | AC187: 13.93150119 | AD187: 13.8338609 | AE187: 13.73643107 | AF187: 13.63920846 | AG187: 13.54218992 | AH187: 13.44537236 | AI187: 13.34875275 | AJ187: 13.25232813 | AK187: 0 | AL187: 0 | AM187: 0 | AN187: 0 | AO187: 0 | AP187: 0 | AQ187: 0 | AR187: 0 | AS187: 0 | AT187: 0 | AU187: 0 | AV187: 0 | AW187: 0 | AX187: 0 | AY187: 0 | AZ187: 0 | BA187: 0 | BB187: 0 | BC187: 0 | BD187: 0 | BE187: 0 | BF187: 0 | BG187: 0 | BH187: 0 | BI187: 0 | BJ187: 0 | BK187: 0 | BL187: 0 | BM187: 0 | BN187: 0 | BO187: 0 | BP187: 0 | BQ187: 0 | BR187: 0 | BS187: =BS185 -> 0 | BT187: 0 | BU187: 0 | BV187: 0 | BW187: 0 | BX187: 0
B188: 2020 | C188: NREL Utility-Scale Battery Storage - 4Hr | D188: Fixed Operation and Maintenance Expenses ($/kW-yr) | E188: 100 MW/400 MWh Lithium-ion w/Solar (Battery Only) | F188: =F160 -> 43.18086112 | G188: =G160 -> 36.88642937 | H188: 34.27037055 | I188: 31.39270584 | J188: 29.16905585 | K188: 27.59942055 | L188: 26.42219409 | M188: 25.37577056 | N188: 24.19854409 | O188: 23.2829235 | P188: 22.36730291 | Q188: 22.09882988 | R188: 21.81923859 | S188: 21.5396473 | T188: 21.26005602 | U188: 20.98046473 | V188: 20.70087345 | W188: 20.42128216 | X188: 20.14169087 | Y188: 19.86209959 | Z188: 19.5825083 | AA188: 19.30291701 | AB188: 19.02332573 | AC188: 18.74373444 | AD188: 18.46414315 | AE188: 18.18455187 | AF188: 17.90496058 | AG188: 17.62536929 | AH188: 17.34577801 | AI188: 17.06618672 | AJ188: 16.78659544
B189: 2020 | C189: =C185 -> NREL Utility PV - Class 4 | D189: Fixed Operation and Maintenance Expenses ($/kW-yr) | E189: 100 MW/200 MWh Lithium-ion w/Solar (Solar Only) | F189: =F185 -> 22.62369024 | G189: =G185 -> 20.5568 | H189: 19.95173096 | I189: 19.35442986 | J189: 18.75899579 | K189: 18.1653519 | L189: 17.57342551 | M189: 16.9831478 | N189: 16.39445359 | O189: 15.80728111 | P189: 15.22157173 | Q189: 15.12086937 | R189: 15.02042613 | S189: 14.92023778 | T189: 14.82030016 | U189: 14.72060919 | V189: 14.62116091 | W189: 14.52195142 | X189: 14.42297691 | Y189: 14.32423365 | Z189: 14.22571798 | AA189: 14.12742634 | AB189: 14.02935522 | AC189: 13.93150119 | AD189: 13.8338609 | AE189: 13.73643107 | AF189: 13.63920846 | AG189: 13.54218992 | AH189: 13.44537236 | AI189: 13.34875275 | AJ189: 13.25232813 | AK189: 0 | AL189: 0 | AM189: 0 | AN189: 0 | AO189: 0 | AP189: 0 | AQ189: 0 | AR189: 0 | AS189: 0 | AT189: 0 | AU189: 0 | AV189: 0 | AW189: 0 | AX189: 0 | AY189: 0 | AZ189: 0 | BA189: 0 | BB189: 0 | BC189: 0 | BD189: 0 | BE189: 0 | BF189: 0 | BG189: 0 | BH189: 0 | BI189: 0 | BJ189: 0 | BK189: 0 | BL189: 0 | BM189: 0 | BN189: 0 | BO189: 0 | BP189: 0 | BQ189: 0 | BR189: 0 | BS189: =BS185 -> 0 | BT189: 0 | BU189: 0 | BV189: 0 | BW189: 0 | BX189: 0
A190: NREL - USB2 (FOM) | B190: 2020 | C190: NREL Utility-Scale Battery Storage - 2Hr | D190: Fixed Operation and Maintenance Expenses ($/kW-yr) | E190: 100 MW/200 MWh Lithium-ion w/Solar (Battery Only) | F190: 24.7080425 | G190: 21.42120438 | H190: 20.16686348 | I190: 18.6509167 | J190: 17.69171906 | K190: 16.80294273 | L190: 16.30657522 | M190: 15.84374509 | N190: 15.25011202 | O190: 14.91808483 | P190: 14.48879207 | Q190: 14.31636878 | R190: 14.13525888 | S190: 13.95414898 | T190: 13.77303908 | U190: 13.59192918 | V190: 13.41081928 | W190: 13.22970937 | X190: 13.04859947 | Y190: 12.86748957 | Z190: 12.68637967 | AA190: 12.50526977 | AB190: 12.32415987 | AC190: 12.14304997 | AD190: 11.96194007 | AE190: 11.78083017 | AF190: 11.59972027 | AG190: 11.41861037 | AH190: 11.23750046 | AI190: 11.05639056 | AJ190: 10.8777123
B191: 2020 | C191: =C185 -> NREL Utility PV - Class 4 | D191: Fixed Operation and Maintenance Expenses ($/kW-yr) | E191: 50 MW/200 MWh Lithium-ion w/Solar (Solar Only) | F191: =F185 -> 22.62369024 | G191: =G185 -> 20.5568 | H191: 19.95173096 | I191: 19.35442986 | J191: 18.75899579 | K191: 18.1653519 | L191: 17.57342551 | M191: 16.9831478 | N191: 16.39445359 | O191: 15.80728111 | P191: 15.22157173 | Q191: 15.12086937 | R191: 15.02042613 | S191: 14.92023778 | T191: 14.82030016 | U191: 14.72060919 | V191: 14.62116091 | W191: 14.52195142 | X191: 14.42297691 | Y191: 14.32423365 | Z191: 14.22571798 | AA191: 14.12742634 | AB191: 14.02935522 | AC191: 13.93150119 | AD191: 13.8338609 | AE191: 13.73643107 | AF191: 13.63920846 | AG191: 13.54218992 | AH191: 13.44537236 | AI191: 13.34875275 | AJ191: 13.25232813 | AK191: 0 | AL191: 0 | AM191: 0 | AN191: 0 | AO191: 0 | AP191: 0 | AQ191: 0 | AR191: 0 | AS191: 0 | AT191: 0 | AU191: 0 | AV191: 0 | AW191: 0 | AX191: 0 | AY191: 0 | AZ191: 0 | BA191: 0 | BB191: 0 | BC191: 0 | BD191: 0 | BE191: 0 | BF191: 0 | BG191: 0 | BH191: 0 | BI191: 0 | BJ191: 0 | BK191: 0 | BL191: 0 | BM191: 0 | BN191: 0 | BO191: 0 | BP191: 0 | BQ191: 0 | BR191: 0 | BS191: =BS185 -> 0 | BT191: 0 | BU191: 0 | BV191: 0 | BW191: 0 | BX191: 0
B192: 2020 | C192: =C190 -> NREL Utility-Scale Battery Storage - 2Hr | D192: Fixed Operation and Maintenance Expenses ($/kW-yr) | E192: 50 MW/200 MWh Lithium-ion w/Solar (Battery Only) | F192: =F190 -> 24.7080425 | G192: =G190 -> 21.42120438 | H192: 20.16686348 | I192: 18.6509167 | J192: 17.69171906 | K192: 16.80294273 | L192: 16.30657522 | M192: 15.84374509 | N192: 15.25011202 | O192: 14.91808483 | P192: 14.48879207 | Q192: 14.31636878 | R192: 14.13525888 | S192: 13.95414898 | T192: 13.77303908 | U192: 13.59192918 | V192: 13.41081928 | W192: 13.22970937 | X192: 13.04859947 | Y192: 12.86748957 | Z192: 12.68637967 | AA192: 12.50526977 | AB192: 12.32415987 | AC192: 12.14304997 | AD192: 11.96194007 | AE192: 11.78083017 | AF192: 11.59972027 | AG192: 11.41861037 | AH192: 11.23750046 | AI192: 11.05639056 | AJ192: 10.8777123 | AK192: 0 | AL192: 0 | AM192: 0 | AN192: 0 | AO192: 0 | AP192: 0 | AQ192: 0 | AR192: 0 | AS192: 0 | AT192: 0 | AU192: 0 | AV192: 0 | AW192: 0 | AX192: 0 | AY192: 0 | AZ192: 0 | BA192: 0 | BB192: 0 | BC192: 0 | BD192: 0 | BE192: 0 | BF192: 0 | BG192: 0 | BH192: 0 | BI192: 0 | BJ192: 0 | BK192: 0 | BL192: 0 | BM192: 0 | BN192: 0 | BO192: 0 | BP192: 0 | BQ192: 0 | BR192: 0 | BS192: =BS190 -> 0 | BT192: 0 | BU192: 0 | BV192: 0 | BW192: 0 | BX192: 0
A193: NREL - NWOS8 (FOM) | B193: 2020 | C193: NREL Land-Based Wind - Class 8 | D193: Fixed Operation and Maintenance Expenses ($/kW-yr) | E193: NW Wind On System (Share) | F193: 43 | G193: 42.595 | H193: 42.19 | I193: 41.785 | J193: 41.38 | K193: 40.975 | L193: 40.57 | M193: 40.165 | N193: 39.76 | O193: 39.355 | P193: 38.95 | Q193: 38.657875 | R193: 38.36575 | S193: 38.073625 | T193: 37.7815 | U193: 37.489375 | V193: 37.19725 | W193: 36.905125 | X193: 36.613 | Y193: 36.320875 | Z193: 36.02875 | AA193: 35.736625 | AB193: 35.4445 | AC193: 35.152375 | AD193: 34.86025 | AE193: 34.568125 | AF193: 34.276 | AG193: 33.983875 | AH193: 33.69175 | AI193: 33.399625 | AJ193: 33.1075
B194: 2020 | C194: =C193 -> NREL Land-Based Wind - Class 8 | D194: Fixed Operation and Maintenance Expenses ($/kW-yr) | E194: NW Wind Off System | F194: =F193/1.025 -> 41.95121951 | G194: =G193/1.025 -> 41.55609756 | H194: 41.16097561 | I194: 40.76585366 | J194: 40.37073171 | K194: 39.97560976 | L194: 39.5804878 | M194: 39.18536585 | N194: 38.7902439 | O194: 38.39512195 | P194: 38 | Q194: 37.715 | R194: 37.43 | S194: 37.145 | T194: 36.86 | U194: 36.575 | V194: 36.29 | W194: 36.005 | X194: 35.72 | Y194: 35.435 | Z194: 35.15 | AA194: 34.865 | AB194: 34.58 | AC194: 34.295 | AD194: 34.01 | AE194: 33.725 | AF194: 33.44 | AG194: 33.155 | AH194: 32.87 | AI194: 32.585 | AJ194: 32.3 | AK194: 0 | AL194: 0 | AM194: 0 | AN194: 0 | AO194: 0 | AP194: 0 | AQ194: 0 | AR194: 0 | AS194: 0 | AT194: 0 | AU194: 0 | AV194: 0 | AW194: 0 | AX194: 0 | AY194: 0 | AZ194: 0 | BA194: 0 | BB194: 0 | BC194: 0 | BD194: 0 | BE194: 0 | BF194: 0 | BG194: 0 | BH194: 0 | BI194: 0 | BJ194: 0 | BK194: 0 | BL194: 0 | BM194: 0 | BN194: 0 | BO194: 0 | BP194: 0 | BQ194: 0 | BR194: 0 | BS194: =BS193/1.025 -> 0 | BT194: 0 | BU194: 0 | BV194: 0 | BW194: 0 | BX194: 0
A195: NREL - WM3 (FOM) | B195: 2020 | C195: NREL Land-Based Wind - Class 3 | D195: Fixed Operation and Maintenance Expenses ($/kW-yr) | E195: Wind Montana | F195: 43 | G195: 42.595 | H195: 42.19 | I195: 41.785 | J195: 41.38 | K195: 40.975 | L195: 40.57 | M195: 40.165 | N195: 39.76 | O195: 39.355 | P195: 38.95 | Q195: 38.657875 | R195: 38.36575 | S195: 38.073625 | T195: 37.7815 | U195: 37.489375 | V195: 37.19725 | W195: 36.905125 | X195: 36.613 | Y195: 36.320875 | Z195: 36.02875 | AA195: 35.736625 | AB195: 35.4445 | AC195: 35.152375 | AD195: 34.86025 | AE195: 34.568125 | AF195: 34.276 | AG195: 33.983875 | AH195: 33.69175 | AI195: 33.399625 | AJ195: 33.1075
A196: NREL - OSW12 (FOM) | B196: 2020 | C196: NREL Wind Speed Class 12 | D196: Fixed Operation and Maintenance Expenses ($/kW-yr) | E196: Off Shore Wind (Share) | F196: 95.26423161 | G196: 91.31115705 | H196: 88.2449142 | I196: 85.73961138 | J196: 83.62140802 | K196: 81.78653682 | L196: 80.16806571 | M196: 78.72029397 | N196: 77.41062513 | O196: 76.21499115 | P196: 75.11511451 | Q196: 74.0967878 | R196: 73.14874831 | S196: 72.26191659 | T196: 71.42886624 | U196: 70.64344549 | V196: 69.90050118 | W196: 69.19567375 | X196: 68.52524213 | Y196: 67.8860049 | Z196: 67.27518779 | AA196: 66.69037092 | AB196: 66.1294309 | AC196: 65.59049428 | AD196: 65.07189982 | AE196: 64.57216757 | AF196: 64.08997345 | AG196: 63.62412808 | AH196: 63.17355911 | AI196: 62.73729636 | AJ196: 62.31445924
A197: NREL - NUC (FOM) | B197: 2020 | C197: NREL Nuclear - Small Modular Reactor | D197: Fixed Operation and Maintenance Expenses ($/kW-yr) | E197: Small Modular Reactor (share) | F197: 114 | G197: 114 | H197: 114 | I197: 114 | J197: 114 | K197: 114 | L197: 114 | M197: 114 | N197: 114 | O197: 114 | P197: 114 | Q197: 114 | R197: 114 | S197: 114 | T197: 114 | U197: 114 | V197: 114 | W197: 114 | X197: 114 | Y197: 114 | Z197: 114 | AA197: 114 | AB197: 114 | AC197: 114 | AD197: 114 | AE197: 114 | AF197: 114 | AG197: 114 | AH197: 114 | AI197: 114 | AJ197: 114 | AK197: 114 | AL197: 114 | AM197: 114 | AN197: 114 | AO197: 114 | AP197: 114 | AQ197: 114 | AR197: 114 | AS197: 114 | AT197: 114 | AU197: 114 | AV197: 114 | AW197: 114 | AX197: 114 | AY197: 114 | AZ197: 114 | BA197: 114 | BB197: 114 | BC197: 114 | BD197: 114 | BE197: 114 | BF197: 114 | BG197: 114 | BH197: 114 | BI197: 114 | BJ197: 114 | BK197: 114 | BL197: 114 | BM197: 114 | BN197: 114 | BO197: 114 | BP197: 114 | BQ197: 114 | BR197: 114 | BS197: 114 | BT197: 114 | BU197: 114 | BV197: 114 | BW197: 114 | BX197: 114
A198: NREL - GEO (FOM) | B198: 2020 | C198: NREL Geothermal - Hydro / Flash | D198: Fixed Operation and Maintenance Expenses ($/kW-yr) | E198: Geothermal (Off System) | F198: 107.3893686 | G198: 106.5828543 | H198: 105.77634 | I198: 104.9698257 | J198: 104.1633115 | K198: 103.3567972 | L198: 102.5502829 | M198: 101.7437686 | N198: 100.9372543 | O198: 100.1307401 | P198: 99.32422578 | Q198: 99.32422578 | R198: 99.32422578 | S198: 99.32422578 | T198: 99.32422578 | U198: 99.32422578 | V198: 99.32422578 | W198: 99.32422578 | X198: 99.32422578 | Y198: 99.32422578 | Z198: 99.32422578 | AA198: 99.32422578 | AB198: 99.32422578 | AC198: 99.32422578 | AD198: 99.32422578 | AE198: 99.32422578 | AF198: 99.32422578 | AG198: 99.32422578 | AH198: 99.32422578 | AI198: 99.32422578 | AJ198: 99.32422578 | AK198: 99.32422578 | AL198: 99.32422578 | AM198: 99.32422578 | AN198: 99.32422578 | AO198: 99.32422578 | AP198: 99.32422578 | AQ198: 99.32422578 | AR198: 99.32422578 | AS198: 99.32422578 | AT198: 99.32422578 | AU198: 99.32422578 | AV198: 99.32422578 | AW198: 99.32422578 | AX198: 99.32422578 | AY198: 99.32422578 | AZ198: 99.32422578 | BA198: 99.32422578 | BB198: 99.32422578 | BC198: 99.32422578 | BD198: 99.32422578 | BE198: 99.32422578 | BF198: 99.32422578 | BG198: 99.32422578 | BH198: 99.32422578 | BI198: 99.32422578 | BJ198: 99.32422578 | BK198: 99.32422578 | BL198: 99.32422578 | BM198: 99.32422578 | BN198: 99.32422578 | BO198: 99.32422578 | BP198: 99.32422578 | BQ198: 99.32422578 | BR198: 99.32422578 | BS198: 99.32422578 | BT198: 99.32422578 | BU198: 99.32422578 | BV198: 99.32422578 | BW198: 99.32422578 | BX198: 99.32422578
B199: 2022 | C199: Internal | D199: Fixed Operation and Maintenance Expenses ($/kW-yr) | E199: 7F.04 CT Frame Greenfield | H199: 5.02665 | I199: 5.02665 | J199: 5.02665 | K199: 5.02665 | L199: 5.02665 | M199: 5.02665 | N199: 5.02665 | O199: 5.02665 | P199: 5.02665 | Q199: 5.02665 | R199: 5.02665 | S199: 5.02665 | T199: 5.02665 | U199: 5.02665 | V199: 5.02665 | W199: 5.02665 | X199: 5.02665 | Y199: 5.02665 | Z199: 5.02665 | AA199: 5.02665 | AB199: 5.02665 | AC199: 5.02665 | AD199: 5.02665 | AE199: 5.02665 | AF199: 5.02665 | AG199: 5.02665 | AH199: 5.02665 | AI199: 5.02665 | AJ199: 5.02665 | AK199: 5.02665 | AL199: 5.02665 | AM199: 5.02665 | AN199: 5.02665 | AO199: 5.02665 | AP199: 5.02665 | AQ199: 5.02665 | AR199: 5.02665 | AS199: 5.02665 | AT199: 5.02665 | AU199: 5.02665 | AV199: 5.02665 | AW199: 5.02665 | AX199: 5.02665 | AY199: 5.02665 | AZ199: 5.02665 | BA199: 5.02665 | BB199: 5.02665 | BC199: 5.02665 | BD199: 5.02665 | BE199: 5.02665 | BF199: 5.02665 | BG199: 5.02665 | BH199: 5.02665 | BI199: 5.02665 | BJ199: 5.02665 | BK199: 5.02665 | BL199: 5.02665 | BM199: 5.02665 | BN199: 5.02665 | BO199: 5.02665 | BP199: 5.02665 | BQ199: 5.02665 | BR199: 5.02665 | BS199: 5.02665 | BT199: 5.02665 | BU199: 5.02665 | BV199: 5.02665 | BW199: 5.02665 | BX199: 5.02665
B200: 2022 | C200: Internal | D200: Fixed Operation and Maintenance Expenses ($/kW-yr) | E200: Reciprocating Engine (ICE) Machine | H200: 4.991 | I200: 4.991 | J200: 4.991 | K200: 4.991 | L200: 4.991 | M200: 4.991 | N200: 4.991 | O200: 4.991 | P200: 4.991 | Q200: 4.991 | R200: 4.991 | S200: 4.991 | T200: 4.991 | U200: 4.991 | V200: 4.991 | W200: 4.991 | X200: 4.991 | Y200: 4.991 | Z200: 4.991 | AA200: 4.991 | AB200: 4.991 | AC200: 4.991 | AD200: 4.991 | AE200: 4.991 | AF200: 4.991 | AG200: 4.991 | AH200: 4.991 | AI200: 4.991 | AJ200: 4.991 | AK200: 4.991 | AL200: 4.991 | AM200: 4.991 | AN200: 4.991 | AO200: 4.991 | AP200: 4.991 | AQ200: 4.991 | AR200: 4.991 | AS200: 4.991 | AT200: 4.991 | AU200: 4.991 | AV200: 4.991 | AW200: 4.991 | AX200: 4.991 | AY200: 4.991 | AZ200: 4.991 | BA200: 4.991 | BB200: 4.991 | BC200: 4.991 | BD200: 4.991 | BE200: 4.991 | BF200: 4.991 | BG200: 4.991 | BH200: 4.991 | BI200: 4.991 | BJ200: 4.991 | BK200: 4.991 | BL200: 4.991 | BM200: 4.991 | BN200: 4.991 | BO200: 4.991 | BP200: 4.991 | BQ200: 4.991 | BR200: 4.991 | BS200: 4.991 | BT200: 4.991 | BU200: 4.991 | BV200: 4.991 | BW200: 4.991 | BX200: 4.991
B201: 2022 | C201: Internal | D201: Fixed Operation and Maintenance Expenses ($/kW-yr) | E201: NG CCCT (1x1 w/DF) | H201: 29.555 | I201: 29.555 | J201: 29.555 | K201: 29.555 | L201: 29.555 | M201: 29.555 | N201: 29.555 | O201: 29.555 | P201: 29.555 | Q201: 29.555 | R201: 29.555 | S201: 29.555 | T201: 29.555 | U201: 29.555 | V201: 29.555 | W201: 29.555 | X201: 29.555 | Y201: 29.555 | Z201: 29.555 | AA201: 29.555 | AB201: 29.555 | AC201: 29.555 | AD201: 29.555 | AE201: 29.555 | AF201: 29.555 | AG201: 29.555 | AH201: 29.555 | AI201: 29.555 | AJ201: 29.555 | AK201: 29.555 | AL201: 29.555 | AM201: 29.555 | AN201: 29.555 | AO201: 29.555 | AP201: 29.555 | AQ201: 29.555 | AR201: 29.555 | AS201: 29.555 | AT201: 29.555 | AU201: 29.555 | AV201: 29.555 | AW201: 29.555 | AX201: 29.555 | AY201: 29.555 | AZ201: 29.555 | BA201: 29.555 | BB201: 29.555 | BC201: 29.555 | BD201: 29.555 | BE201: 29.555 | BF201: 29.555 | BG201: 29.555 | BH201: 29.555 | BI201: 29.555 | BJ201: 29.555 | BK201: 29.555 | BL201: 29.555 | BM201: 29.555 | BN201: 29.555 | BO201: 29.555 | BP201: 29.555 | BQ201: 29.555 | BR201: 29.555 | BS201: 29.555 | BT201: 29.555 | BU201: 29.555 | BV201: 29.555 | BW201: 29.555 | BX201: 29.555
B202: 2020 | C202: Internal | D202: Fixed Operation and Maintenance Expenses ($/kW-yr) | E202: Hydrogen Fuel Cell with 40 hrs Storage | F202: 159.818434 | G202: 159.818434 | H202: 159.818434 | I202: 159.818434 | J202: 159.818434 | K202: 159.818434 | L202: 159.818434 | M202: 159.818434 | N202: 159.818434 | O202: 159.818434 | P202: 159.818434 | Q202: 159.818434 | R202: 159.818434 | S202: 159.818434 | T202: 159.818434 | U202: 159.818434 | V202: 159.818434 | W202: 159.818434 | X202: 159.818434 | Y202: 159.818434 | Z202: 159.818434 | AA202: 159.818434 | AB202: 159.818434 | AC202: 159.818434 | AD202: 159.818434 | AE202: 159.818434 | AF202: 159.818434 | AG202: 159.818434 | AH202: 159.818434 | AI202: 159.818434 | AJ202: 159.818434 | AK202: 159.818434 | AL202: 159.818434 | AM202: 159.818434 | AN202: 159.818434 | AO202: 159.818434 | AP202: 159.818434 | AQ202: 159.818434 | AR202: 159.818434 | AS202: 159.818434 | AT202: 159.818434 | AU202: 159.818434 | AV202: 159.818434 | AW202: 159.818434 | AX202: 159.818434 | AY202: 159.818434 | AZ202: 159.818434 | BA202: 159.818434 | BB202: 159.818434 | BC202: 159.818434 | BD202: 159.818434 | BE202: 159.818434 | BF202: 159.818434 | BG202: 159.818434 | BH202: 159.818434 | BI202: 159.818434 | BJ202: 159.818434 | BK202: 159.818434 | BL202: 159.818434 | BM202: 159.818434 | BN202: 159.818434 | BO202: 159.818434 | BP202: 159.818434 | BQ202: 159.818434 | BR202: 159.818434 | BS202: 159.818434 | BT202: 159.818434 | BU202: 159.818434 | BV202: 159.818434 | BW202: 159.818434 | BX202: 159.818434
B203: 2022 | C203: Internal | D203: Fixed Operation and Maintenance Expenses ($/kW-yr) | E203: 7F.04 CT Frame Greenfield + amonia + storage | H203: 15 | I203: 15 | J203: 15 | K203: 15 | L203: 15 | M203: 15 | N203: 15 | O203: 15 | P203: 15 | Q203: 15 | R203: 15 | S203: 15 | T203: 15 | U203: 15 | V203: 15 | W203: 15 | X203: 15 | Y203: 15 | Z203: 15 | AA203: 15 | AB203: 15 | AC203: 15 | AD203: 15 | AE203: 15 | AF203: 15 | AG203: 15 | AH203: 15 | AI203: 15 | AJ203: 15 | AK203: 15 | AL203: 15 | AM203: 15 | AN203: 15 | AO203: 15 | AP203: 15 | AQ203: 15 | AR203: 15 | AS203: 15 | AT203: 15 | AU203: 15 | AV203: 15 | AW203: 15 | AX203: 15 | AY203: 15 | AZ203: 15 | BA203: 15 | BB203: 15 | BC203: 15 | BD203: 15 | BE203: 15 | BF203: 15 | BG203: 15 | BH203: 15 | BI203: 15 | BJ203: 15 | BK203: 15 | BL203: 15 | BM203: 15 | BN203: 15 | BO203: 15 | BP203: 15 | BQ203: 15 | BR203: 15 | BS203: 15 | BT203: 15 | BU203: 15 | BV203: 15 | BW203: 15 | BX203: 15
B205: =D205 -> Round-Trip Efficiency | D205: Round-Trip Efficiency
C206: Internal | D206: Round-Trip Efficiency | E206: Distribution Scale 4hr Lithium-Ion | F206: =F208 -> 0.86 | G206: =G208 -> 0.86 | H206: 0.86 | I206: 0.86 | J206: 0.86 | K206: 0.86 | L206: 0.86 | M206: 0.86 | N206: 0.86 | O206: 0.86 | P206: 0.86 | Q206: 0.86 | R206: 0.86 | S206: 0.86 | T206: 0.86 | U206: 0.86 | V206: 0.86 | W206: 0.86 | X206: 0.86 | Y206: 0.86 | Z206: 0.86 | AA206: 0.86 | AB206: 0.86 | AC206: 0.86 | AD206: 0.86 | AE206: 0.86 | AF206: 0.86 | AG206: 0.86 | AH206: 0.86 | AI206: 0.86 | AJ206: 0.86 | AK206: 0.86 | AL206: 0.86 | AM206: 0.86 | AN206: 0.86 | AO206: 0.86 | AP206: 0.86 | AQ206: 0.86 | AR206: 0.86 | AS206: 0.86 | AT206: 0.86 | AU206: 0.86 | AV206: 0.86 | AW206: 0.86 | AX206: 0.86 | AY206: 0.86 | AZ206: 0.86 | BA206: 0.86 | BB206: 0.86 | BC206: 0.86 | BD206: 0.86 | BE206: 0.86 | BF206: 0.86 | BG206: 0.86 | BH206: 0.86 | BI206: 0.86 | BJ206: 0.86 | BK206: 0.86 | BL206: 0.86 | BM206: 0.86 | BN206: 0.86 | BO206: 0.86 | BP206: 0.86 | BQ206: 0.86 | BR206: 0.86 | BS206: =BS208 -> 0.86 | BT206: 0.86 | BU206: 0.86 | BV206: 0.86 | BW206: 0.86 | BX206: 0.86
C207: Internal | D207: Round-Trip Efficiency | E207: Distribution Scale 8hr Lithium-Ion | F207: =F209 -> 0.86 | G207: =G209 -> 0.86 | H207: 0.86 | I207: 0.86 | J207: 0.86 | K207: 0.86 | L207: 0.86 | M207: 0.86 | N207: 0.86 | O207: 0.86 | P207: 0.86 | Q207: 0.86 | R207: 0.86 | S207: 0.86 | T207: 0.86 | U207: 0.86 | V207: 0.86 | W207: 0.86 | X207: 0.86 | Y207: 0.86 | Z207: 0.86 | AA207: 0.86 | AB207: 0.86 | AC207: 0.86 | AD207: 0.86 | AE207: 0.86 | AF207: 0.86 | AG207: 0.86 | AH207: 0.86 | AI207: 0.86 | AJ207: 0.86 | AK207: 0.86 | AL207: 0.86 | AM207: 0.86 | AN207: 0.86 | AO207: 0.86 | AP207: 0.86 | AQ207: 0.86 | AR207: 0.86 | AS207: 0.86 | AT207: 0.86 | AU207: 0.86 | AV207: 0.86 | AW207: 0.86 | AX207: 0.86 | AY207: 0.86 | AZ207: 0.86 | BA207: 0.86 | BB207: 0.86 | BC207: 0.86 | BD207: 0.86 | BE207: 0.86 | BF207: 0.86 | BG207: 0.86 | BH207: 0.86 | BI207: 0.86 | BJ207: 0.86 | BK207: 0.86 | BL207: 0.86 | BM207: 0.86 | BN207: 0.86 | BO207: 0.86 | BP207: 0.86 | BQ207: 0.86 | BR207: 0.86 | BS207: =BS209 -> 0.86 | BT207: 0.86 | BU207: 0.86 | BV207: 0.86 | BW207: 0.86 | BX207: 0.86
C208: Internal | D208: Round-Trip Efficiency | E208: 4hr Lithium-Ion | F208: 0.86 | G208: 0.86 | H208: 0.86 | I208: 0.86 | J208: 0.86 | K208: 0.86 | L208: 0.86 | M208: 0.86 | N208: 0.86 | O208: 0.86 | P208: 0.86 | Q208: 0.86 | R208: 0.86 | S208: 0.86 | T208: 0.86 | U208: 0.86 | V208: 0.86 | W208: 0.86 | X208: 0.86 | Y208: 0.86 | Z208: 0.86 | AA208: 0.86 | AB208: 0.86 | AC208: 0.86 | AD208: 0.86 | AE208: 0.86 | AF208: 0.86 | AG208: 0.86 | AH208: 0.86 | AI208: 0.86 | AJ208: 0.86 | AK208: 0.86 | AL208: 0.86 | AM208: 0.86 | AN208: 0.86 | AO208: 0.86 | AP208: 0.86 | AQ208: 0.86 | AR208: 0.86 | AS208: 0.86 | AT208: 0.86 | AU208: 0.86 | AV208: 0.86 | AW208: 0.86 | AX208: 0.86 | AY208: 0.86 | AZ208: 0.86 | BA208: 0.86 | BB208: 0.86 | BC208: 0.86 | BD208: 0.86 | BE208: 0.86 | BF208: 0.86 | BG208: 0.86 | BH208: 0.86 | BI208: 0.86 | BJ208: 0.86 | BK208: 0.86 | BL208: 0.86 | BM208: 0.86 | BN208: 0.86 | BO208: 0.86 | BP208: 0.86 | BQ208: 0.86 | BR208: 0.86 | BS208: 0.86 | BT208: 0.86 | BU208: 0.86 | BV208: 0.86 | BW208: 0.86 | BX208: 0.86
... 141 more rows

Sheet DATA (Nominal)
B1: Adjustment | C1: Source | D1: Data Point | E1: Resource | F1: 2020 | G1: =F1+1 -> 2021 | H1: =G1+1 -> 2022 | I1: 2023 | J1: 2024 | K1: 2025 | L1: 2026 | M1: 2027 | N1: 2028 | O1: 2029 | P1: 2030 | Q1: 2031 | R1: 2032 | S1: 2033 | T1: 2034 | U1: 2035 | V1: 2036 | W1: 2037 | X1: 2038 | Y1: 2039 | Z1: 2040 | AA1: 2041 | AB1: 2042 | AC1: 2043 | AD1: 2044 | AE1: 2045 | AF1: 2046 | AG1: 2047 | AH1: 2048 | AI1: 2049 | AJ1: 2050 | AK1: 2051 | AL1: 2052 | AM1: 2053 | AN1: 2054 | AO1: 2055 | AP1: 2056 | AQ1: 2057 | AR1: 2058 | AS1: 2059 | AT1: 2060 | AU1: 2061 | AV1: 2062 | AW1: 2063 | AX1: 2064 | AY1: 2065 | AZ1: 2066 | BA1: 2067 | BB1: 2068 | BC1: 2069 | BD1: 2070 | BE1: 2071 | BF1: 2072 | BG1: 2073 | BH1: 2074 | BI1: 2075 | BJ1: 2076 | BK1: 2077 | BL1: 2078 | BM1: 2079 | BN1: 2080 | BO1: 2081 | BP1: 2082 | BQ1: 2083 | BR1: 2084 | BS1: 2085 | BT1: =BS1+1 -> 2086 | BU1: 2087 | BV1: 2088 | BW1: 2089 | BX1: 2090
E2: CPI: | G2: 0.025 | H2: 0.07191120219 | I2: 0.03172 | J2: 0.02352291667 | K2: 0.02233333333 | L2: 0.02233333333 | M2: 0.02233333333 | N2: 0.022 | O2: 0.022 | P2: 0.022 | Q2: 0.022 | R2: 0.022 | S2: 0.022 | T2: 0.022 | U2: 0.022 | V2: 0.022 | W2: 0.022 | X2: 0.022 | Y2: 0.022 | Z2: 0.022 | AA2: 0.022 | AB2: 0.022 | AC2: 0.022 | AD2: 0.022 | AE2: 0.022 | AF2: 0.022 | AG2: 0.022 | AH2: 0.022 | AI2: 0.022 | AJ2: 0.022 | AK2: 0.022 | AL2: 0.022 | AM2: 0.022 | AN2: 0.022 | AO2: 0.022 | AP2: 0.022 | AQ2: 0.022 | AR2: 0.022 | AS2: 0.022 | AT2: 0.022 | AU2: 0.022 | AV2: 0.022 | AW2: 0.022 | AX2: 0.022 | AY2: 0.022 | AZ2: 0.022 | BA2: 0.022 | BB2: 0.022 | BC2: 0.022 | BD2: 0.022 | BE2: 0.022 | BF2: 0.022 | BG2: 0.022 | BH2: 0.022 | BI2: 0.022 | BJ2: 0.022 | BK2: 0.022 | BL2: 0.022 | BM2: 0.022 | BN2: 0.022 | BO2: 0.022 | BP2: 0.022 | BQ2: 0.022 | BR2: 0.022 | BS2: 0.022 | BT2: 0.022 | BU2: 0.022 | BV2: 0.022 | BW2: 0.022 | BX2: 0.022
E3: PPI:
E4: CPI Factor: | F4: 100 | G4: =F4*(1+G2) -> 102.5 | H4: 109.8708982 | I4: 113.3560031 | J4: 116.0224669 | K4: 118.6136354 | L4: 121.2626732 | M4: 123.9708729 | N4: 126.6982321 | O4: 129.4855932 | P4: 132.3342763 | Q4: 135.2456304 | R4: 138.2210342 | S4: 141.261897 | T4: 144.3696587 | U4: 147.5457912 | V4: 150.7917986 | W4: 154.1092182 | X4: 157.499621 | Y4: 160.9646126 | Z4: 164.5058341 | AA4: 168.1249625 | AB4: 171.8237116 | AC4: 175.6038333 | AD4: 179.4671176 | AE4: 183.4153942 | AF4: 187.4505329 | AG4: 191.5744446 | AH4: 195.7890824 | AI4: 200.0964422 | AJ4: 204.4985639 | AK4: 208.9975323 | AL4: 213.5954781 | AM4: =AL4*(1+AM2) -> 218.2945786 | AN4: 223.0970593 | AO4: 228.0051946 | AP4: 233.0213089 | AQ4: 238.1477777 | AR4: 243.3870288 | AS4: 248.7415434 | AT4: 254.2138574 | AU4: 259.8065622 | AV4: 265.5223066 | AW4: 271.3637974 | AX4: 277.3338009 | AY4: 283.4351445 | AZ4: 289.6707177 | BA4: 296.0434735 | BB4: 302.5564299 | BC4: 309.2126714 | BD4: 316.0153501 | BE4: 322.9676878 | BF4: 330.072977 | BG4: 337.3345825 | BH4: 344.7559433 | BI4: 352.340574 | BJ4: 360.0920667 | BK4: 368.0140921 | BL4: 376.1104022 | BM4: 384.384831 | BN4: 392.8412973 | BO4: 401.4838058 | BP4: 410.3164496 | BQ4: 419.3434114 | BR4: 428.5689665 | BS4: =BR4*(1+BS2) -> 437.9974838 | BT4: 447.6334284 | BU4: 457.4813638 | BV4: 467.5459538 | BW4: 477.8319648 | BX4: 488.344268
E5: PPI Factor:
B7: =D7 -> Net Capacity Factor (%) | D7: ='DATA (Real)'!D3 -> Net Capacity Factor (%)
C8: ='DATA (Real)'!C4 -> Internal | D8: ='DATA (Real)'!D4 -> Net Capacity Factor (%) | E8: ='DATA (Real)'!E4 -> Wood Biomass | F8: ='DATA (Real)'!F4 -> 0.5 | G8: ='DATA (Real)'!G4 -> 0.5 | H8: ='DATA (Real)'!H4 -> 0.5 | I8: ='DATA (Real)'!I4 -> 0.5 | J8: ='DATA (Real)'!J4 -> 0.5 | K8: ='DATA (Real)'!K4 -> 0.5 | L8: ='DATA (Real)'!L4 -> 0.5 | M8: ='DATA (Real)'!M4 -> 0.5 | N8: ='DATA (Real)'!N4 -> 0.5 | O8: ='DATA (Real)'!O4 -> 0.5 | P8: ='DATA (Real)'!P4 -> 0.5 | Q8: ='DATA (Real)'!Q4 -> 0.5 | R8: ='DATA (Real)'!R4 -> 0.5 | S8: ='DATA (Real)'!S4 -> 0.5 | T8: ='DATA (Real)'!T4 -> 0.5 | U8: ='DATA (Real)'!U4 -> 0.5 | V8: ='DATA (Real)'!V4 -> 0.5 | W8: ='DATA (Real)'!W4 -> 0.5 | X8: ='DATA (Real)'!X4 -> 0.5 | Y8: ='DATA (Real)'!Y4 -> 0.5 | Z8: ='DATA (Real)'!Z4 -> 0.5 | AA8: ='DATA (Real)'!AA4 -> 0.5 | AB8: ='DATA (Real)'!AB4 -> 0.5 | AC8: ='DATA (Real)'!AC4 -> 0.5 | AD8: ='DATA (Real)'!AD4 -> 0.5 | AE8: ='DATA (Real)'!AE4 -> 0.5 | AF8: ='DATA (Real)'!AF4 -> 0.5 | AG8: ='DATA (Real)'!AG4 -> 0.5 | AH8: ='DATA (Real)'!AH4 -> 0.5 | AI8: ='DATA (Real)'!AI4 -> 0.5 | AJ8: ='DATA (Real)'!AJ4 -> 0.5 | AK8: ='DATA (Real)'!AK4 -> 0.5 | AL8: ='DATA (Real)'!AL4 -> 0.5 | AM8: ='DATA (Real)'!AM4 -> 0.5 | AN8: ='DATA (Real)'!AN4 -> 0.5 | AO8: ='DATA (Real)'!AO4 -> 0.5 | AP8: ='DATA (Real)'!AP4 -> 0.5 | AQ8: ='DATA (Real)'!AQ4 -> 0.5 | AR8: ='DATA (Real)'!AR4 -> 0.5 | AS8: ='DATA (Real)'!AS4 -> 0.5 | AT8: ='DATA (Real)'!AT4 -> 0.5 | AU8: ='DATA (Real)'!AU4 -> 0.5 | AV8: ='DATA (Real)'!AV4 -> 0.5 | AW8: ='DATA (Real)'!AW4 -> 0.5 | AX8: ='DATA (Real)'!AX4 -> 0.5 | AY8: ='DATA (Real)'!AY4 -> 0.5 | AZ8: ='DATA (Real)'!AZ4 -> 0.5 | BA8: ='DATA (Real)'!BA4 -> 0.5 | BB8: ='DATA (Real)'!BB4 -> 0.5 | BC8: ='DATA (Real)'!BC4 -> 0.5 | BD8: ='DATA (Real)'!BD4 -> 0.5 | BE8: ='DATA (Real)'!BE4 -> 0.5 | BF8: ='DATA (Real)'!BF4 -> 0.5 | BG8: ='DATA (Real)'!BG4 -> 0.5 | BH8: ='DATA (Real)'!BH4 -> 0.5 | BI8: ='DATA (Real)'!BI4 -> 0.5 | BJ8: ='DATA (Real)'!BJ4 -> 0.5 | BK8: ='DATA (Real)'!BK4 -> 0.5 | BL8: ='DATA (Real)'!BL4 -> 0.5 | BM8: ='DATA (Real)'!BM4 -> 0.5 | BN8: ='DATA (Real)'!BN4 -> 0.5 | BO8: ='DATA (Real)'!BO4 -> 0.5 | BP8: ='DATA (Real)'!BP4 -> 0.5 | BQ8: ='DATA (Real)'!BQ4 -> 0.5 | BR8: ='DATA (Real)'!BR4 -> 0.5 | BS8: ='DATA (Real)'!BS4 -> 0.5 | BT8: ='DATA (Real)'!BT4 -> 0.5 | BU8: ='DATA (Real)'!BU4 -> 0.5 | BV8: ='DATA (Real)'!BV4 -> 0.5 | BW8: ='DATA (Real)'!BW4 -> 0.5 | BX8: ='DATA (Real)'!BX4 -> 0.5
C9: ='DATA (Real)'!C5 -> Internal | D9: ='DATA (Real)'!D5 -> Net Capacity Factor (%) | E9: ='DATA (Real)'!E5 -> Rathdrum CT 2055 Uprates two unit operation | F9: ='DATA (Real)'!F5 -> 0.9132420091 | G9: ='DATA (Real)'!G5 -> 0.9132420091 | H9: ='DATA (Real)'!H5 -> 0.9132420091 | I9: ='DATA (Real)'!I5 -> 0.9132420091 | J9: ='DATA (Real)'!J5 -> 0.9132420091 | K9: ='DATA (Real)'!K5 -> 0.9132420091 | L9: ='DATA (Real)'!L5 -> 0.9132420091 | M9: ='DATA (Real)'!M5 -> 0.9132420091 | N9: ='DATA (Real)'!N5 -> 0.9132420091 | O9: ='DATA (Real)'!O5 -> 0.9132420091 | P9: ='DATA (Real)'!P5 -> 0.9132420091 | Q9: ='DATA (Real)'!Q5 -> 0.9132420091 | R9: ='DATA (Real)'!R5 -> 0.9132420091 | S9: ='DATA (Real)'!S5 -> 0.9132420091 | T9: ='DATA (Real)'!T5 -> 0.9132420091 | U9: ='DATA (Real)'!U5 -> 0.9132420091 | V9: ='DATA (Real)'!V5 -> 0.9132420091 | W9: ='DATA (Real)'!W5 -> 0.9132420091 | X9: ='DATA (Real)'!X5 -> 0.9132420091 | Y9: ='DATA (Real)'!Y5 -> 0.9132420091 | Z9: ='DATA (Real)'!Z5 -> 0.9132420091 | AA9: ='DATA (Real)'!AA5 -> 0.9132420091 | AB9: ='DATA (Real)'!AB5 -> 0.9132420091 | AC9: ='DATA (Real)'!AC5 -> 0.9132420091 | AD9: ='DATA (Real)'!AD5 -> 0.9132420091 | AE9: ='DATA (Real)'!AE5 -> 0.9132420091 | AF9: ='DATA (Real)'!AF5 -> 0.9132420091 | AG9: ='DATA (Real)'!AG5 -> 0.9132420091 | AH9: ='DATA (Real)'!AH5 -> 0.9132420091 | AI9: ='DATA (Real)'!AI5 -> 0.9132420091 | AJ9: ='DATA (Real)'!AJ5 -> 0.9132420091 | AK9: ='DATA (Real)'!AK5 -> 0.9132420091 | AL9: ='DATA (Real)'!AL5 -> 0.9132420091 | AM9: ='DATA (Real)'!AM5 -> 0.9132420091 | AN9: ='DATA (Real)'!AN5 -> 0.9132420091 | AO9: ='DATA (Real)'!AO5 -> 0.9132420091 | AP9: ='DATA (Real)'!AP5 -> 0.9132420091 | AQ9: ='DATA (Real)'!AQ5 -> 0.9132420091 | AR9: ='DATA (Real)'!AR5 -> 0.9132420091 | AS9: ='DATA (Real)'!AS5 -> 0.9132420091 | AT9: ='DATA (Real)'!AT5 -> 0.9132420091 | AU9: ='DATA (Real)'!AU5 -> 0.9132420091 | AV9: ='DATA (Real)'!AV5 -> 0.9132420091 | AW9: ='DATA (Real)'!AW5 -> 0.9132420091 | AX9: ='DATA (Real)'!AX5 -> 0.9132420091 | AY9: ='DATA (Real)'!AY5 -> 0.9132420091 | AZ9: ='DATA (Real)'!AZ5 -> 0.9132420091 | BA9: ='DATA (Real)'!BA5 -> 0.9132420091 | BB9: ='DATA (Real)'!BB5 -> 0.9132420091 | BC9: ='DATA (Real)'!BC5 -> 0.9132420091 | BD9: ='DATA (Real)'!BD5 -> 0.9132420091 | BE9: ='DATA (Real)'!BE5 -> 0.9132420091 | BF9: ='DATA (Real)'!BF5 -> 0.9132420091 | BG9: ='DATA (Real)'!BG5 -> 0.9132420091 | BH9: ='DATA (Real)'!BH5 -> 0.9132420091 | BI9: ='DATA (Real)'!BI5 -> 0.9132420091 | BJ9: ='DATA (Real)'!BJ5 -> 0.9132420091 | BK9: ='DATA (Real)'!BK5 -> 0.9132420091 | BL9: ='DATA (Real)'!BL5 -> 0.9132420091 | BM9: ='DATA (Real)'!BM5 -> 0.9132420091 | BN9: ='DATA (Real)'!BN5 -> 0.9132420091 | BO9: ='DATA (Real)'!BO5 -> 0.9132420091 | BP9: ='DATA (Real)'!BP5 -> 0.9132420091 | BQ9: ='DATA (Real)'!BQ5 -> 0.9132420091 | BR9: ='DATA (Real)'!BR5 -> 0.9132420091 | BS9: ='DATA (Real)'!BS5 -> 0.9132420091 | BT9: ='DATA (Real)'!BT5 -> 0.9132420091 | BU9: ='DATA (Real)'!BU5 -> 0.9132420091 | BV9: ='DATA (Real)'!BV5 -> 0.9132420091 | BW9: ='DATA (Real)'!BW5 -> 0.9132420091 | BX9: ='DATA (Real)'!BX5 -> 0.9132420091
C10: ='DATA (Real)'!C6 -> Internal | D10: ='DATA (Real)'!D6 -> Net Capacity Factor (%) | E10: ='DATA (Real)'!E6 -> Rathdrum CT: Inlet Evaporation 2 unit operation | F10: ='DATA (Real)'!F6 -> 0.9132420091 | G10: ='DATA (Real)'!G6 -> 0.9132420091 | H10: ='DATA (Real)'!H6 -> 0.9132420091 | I10: ='DATA (Real)'!I6 -> 0.9132420091 | J10: ='DATA (Real)'!J6 -> 0.9132420091 | K10: ='DATA (Real)'!K6 -> 0.9132420091 | L10: ='DATA (Real)'!L6 -> 0.9132420091 | M10: ='DATA (Real)'!M6 -> 0.9132420091 | N10: ='DATA (Real)'!N6 -> 0.9132420091 | O10: ='DATA (Real)'!O6 -> 0.9132420091 | P10: ='DATA (Real)'!P6 -> 0.9132420091 | Q10: ='DATA (Real)'!Q6 -> 0.9132420091 | R10: ='DATA (Real)'!R6 -> 0.9132420091 | S10: ='DATA (Real)'!S6 -> 0.9132420091 | T10: ='DATA (Real)'!T6 -> 0.9132420091 | U10: ='DATA (Real)'!U6 -> 0.9132420091 | V10: ='DATA (Real)'!V6 -> 0.9132420091 | W10: ='DATA (Real)'!W6 -> 0.9132420091 | X10: ='DATA (Real)'!X6 -> 0.9132420091 | Y10: ='DATA (Real)'!Y6 -> 0.9132420091 | Z10: ='DATA (Real)'!Z6 -> 0.9132420091 | AA10: ='DATA (Real)'!AA6 -> 0.9132420091 | AB10: ='DATA (Real)'!AB6 -> 0.9132420091 | AC10: ='DATA (Real)'!AC6 -> 0.9132420091 | AD10: ='DATA (Real)'!AD6 -> 0.9132420091 | AE10: ='DATA (Real)'!AE6 -> 0.9132420091 | AF10: ='DATA (Real)'!AF6 -> 0.9132420091 | AG10: ='DATA (Real)'!AG6 -> 0.9132420091 | AH10: ='DATA (Real)'!AH6 -> 0.9132420091 | AI10: ='DATA (Real)'!AI6 -> 0.9132420091 | AJ10: ='DATA (Real)'!AJ6 -> 0.9132420091 | AK10: ='DATA (Real)'!AK6 -> 0.9132420091 | AL10: ='DATA (Real)'!AL6 -> 0.9132420091 | AM10: ='DATA (Real)'!AM6 -> 0.9132420091 | AN10: ='DATA (Real)'!AN6 -> 0.9132420091 | AO10: ='DATA (Real)'!AO6 -> 0.9132420091 | AP10: ='DATA (Real)'!AP6 -> 0.9132420091 | AQ10: ='DATA (Real)'!AQ6 -> 0.9132420091 | AR10: ='DATA (Real)'!AR6 -> 0.9132420091 | AS10: ='DATA (Real)'!AS6 -> 0.9132420091 | AT10: ='DATA (Real)'!AT6 -> 0.9132420091 | AU10: ='DATA (Real)'!AU6 -> 0.9132420091 | AV10: ='DATA (Real)'!AV6 -> 0.9132420091 | AW10: ='DATA (Real)'!AW6 -> 0.9132420091 | AX10: ='DATA (Real)'!AX6 -> 0.9132420091 | AY10: ='DATA (Real)'!AY6 -> 0.9132420091 | AZ10: ='DATA (Real)'!AZ6 -> 0.9132420091 | BA10: ='DATA (Real)'!BA6 -> 0.9132420091 | BB10: ='DATA (Real)'!BB6 -> 0.9132420091 | BC10: ='DATA (Real)'!BC6 -> 0.9132420091 | BD10: ='DATA (Real)'!BD6 -> 0.9132420091 | BE10: ='DATA (Real)'!BE6 -> 0.9132420091 | BF10: ='DATA (Real)'!BF6 -> 0.9132420091 | BG10: ='DATA (Real)'!BG6 -> 0.9132420091 | BH10: ='DATA (Real)'!BH6 -> 0.9132420091 | BI10: ='DATA (Real)'!BI6 -> 0.9132420091 | BJ10: ='DATA (Real)'!BJ6 -> 0.9132420091 | BK10: ='DATA (Real)'!BK6 -> 0.9132420091 | BL10: ='DATA (Real)'!BL6 -> 0.9132420091 | BM10: ='DATA (Real)'!BM6 -> 0.9132420091 | BN10: ='DATA (Real)'!BN6 -> 0.9132420091 | BO10: ='DATA (Real)'!BO6 -> 0.9132420091 | BP10: ='DATA (Real)'!BP6 -> 0.9132420091 | BQ10: ='DATA (Real)'!BQ6 -> 0.9132420091 | BR10: ='DATA (Real)'!BR6 -> 0.9132420091 | BS10: ='DATA (Real)'!BS6 -> 0.9132420091 | BT10: ='DATA (Real)'!BT6 -> 0.9132420091 | BU10: ='DATA (Real)'!BU6 -> 0.9132420091 | BV10: ='DATA (Real)'!BV6 -> 0.9132420091 | BW10: ='DATA (Real)'!BW6 -> 0.9132420091 | BX10: ='DATA (Real)'!BX6 -> 0.9132420091
C11: ='DATA (Real)'!C7 -> Internal/NREL Residential PV - Class 8 | D11: ='DATA (Real)'!D7 -> Net Capacity Factor (%) | E11: ='DATA (Real)'!E7 -> New Residential Solar | F11: ='DATA (Real)'!F7/0.85 -> 0.1608397604 | G11: ='DATA (Real)'!G7/0.85 -> 0.1610882227 | H11: ='DATA (Real)'!H7/0.85 -> 0.1613366849 | I11: ='DATA (Real)'!I7/0.85 -> 0.1615851471 | J11: ='DATA (Real)'!J7/0.85 -> 0.1618336093 | K11: ='DATA (Real)'!K7/0.85 -> 0.1620820715 | L11: ='DATA (Real)'!L7/0.85 -> 0.1623305338 | M11: ='DATA (Real)'!M7/0.85 -> 0.162578996 | N11: ='DATA (Real)'!N7/0.85 -> 0.1628274582 | O11: ='DATA (Real)'!O7/0.85 -> 0.1630759204 | P11: ='DATA (Real)'!P7/0.85 -> 0.1633243827 | Q11: ='DATA (Real)'!Q7/0.85 -> 0.1635352672 | R11: ='DATA (Real)'!R7/0.85 -> 0.1637461518 | S11: ='DATA (Real)'!S7/0.85 -> 0.1639570364 | T11: ='DATA (Real)'!T7/0.85 -> 0.164167921 | U11: ='DATA (Real)'!U7/0.85 -> 0.1643788056 | V11: ='DATA (Real)'!V7/0.85 -> 0.1645896902 | W11: ='DATA (Real)'!W7/0.85 -> 0.1648005748 | X11: ='DATA (Real)'!X7/0.85 -> 0.1650114594 | Y11: ='DATA (Real)'!Y7/0.85 -> 0.165222344 | Z11: ='DATA (Real)'!Z7/0.85 -> 0.1654332286 | AA11: ='DATA (Real)'!AA7/0.85 -> 0.1656441131 | AB11: ='DATA (Real)'!AB7/0.85 -> 0.1658549977 | AC11: ='DATA (Real)'!AC7/0.85 -> 0.1660658823 | AD11: ='DATA (Real)'!AD7/0.85 -> 0.1662767669 | AE11: ='DATA (Real)'!AE7/0.85 -> 0.1664876515 | AF11: ='DATA (Real)'!AF7/0.85 -> 0.1666985361 | AG11: ='DATA (Real)'!AG7/0.85 -> 0.1669094207 | AH11: ='DATA (Real)'!AH7/0.85 -> 0.1671203053 | AI11: ='DATA (Real)'!AI7/0.85 -> 0.1673311899 | AJ11: ='DATA (Real)'!AJ7/0.85 -> 0.1675420745 | AK11: ='DATA (Real)'!AK7/0.85 -> 0.1678771586 | AL11: ='DATA (Real)'!AL7/0.85 -> 0.1682129129 | AM11: ='DATA (Real)'!AM7/0.85 -> 0.1685493387 | AN11: ='DATA (Real)'!AN7/0.85 -> 0.1688864374 | AO11: ='DATA (Real)'!AO7/0.85 -> 0.1692242103 | AP11: ='DATA (Real)'!AP7/0.85 -> 0.1695626587 | AQ11: ='DATA (Real)'!AQ7/0.85 -> 0.169901784 | AR11: ='DATA (Real)'!AR7/0.85 -> 0.1702415876 | AS11: ='DATA (Real)'!AS7/0.85 -> 0.1705820708 | AT11: ='DATA (Real)'!AT7/0.85 -> 0.1709232349 | AU11: ='DATA (Real)'!AU7/0.85 -> 0.1712650814 | AV11: ='DATA (Real)'!AV7/0.85 -> 0.1716076116 | AW11: ='DATA (Real)'!AW7/0.85 -> 0.1719508268 | AX11: ='DATA (Real)'!AX7/0.85 -> 0.1722947284 | AY11: ='DATA (Real)'!AY7/0.85 -> 0.1726393179 | AZ11: ='DATA (Real)'!AZ7/0.85 -> 0.1729845965 | BA11: ='DATA (Real)'!BA7/0.85 -> 0.1733305657 | BB11: ='DATA (Real)'!BB7/0.85 -> 0.1736772268 | BC11: ='DATA (Real)'!BC7/0.85 -> 0.1740245813 | BD11: ='DATA (Real)'!BD7/0.85 -> 0.1743726305 | BE11: ='DATA (Real)'!BE7/0.85 -> 0.1747213757 | BF11: ='DATA (Real)'!BF7/0.85 -> 0.1750708185 | BG11: ='DATA (Real)'!BG7/0.85 -> 0.1754209601 | BH11: ='DATA (Real)'!BH7/0.85 -> 0.175771802 | BI11: ='DATA (Real)'!BI7/0.85 -> 0.1761233456 | BJ11: ='DATA (Real)'!BJ7/0.85 -> 0.1764755923 | BK11: ='DATA (Real)'!BK7/0.85 -> 0.1768285435 | BL11: ='DATA (Real)'!BL7/0.85 -> 0.1771822006 | BM11: ='DATA (Real)'!BM7/0.85 -> 0.177536565 | BN11: ='DATA (Real)'!BN7/0.85 -> 0.1778916381 | BO11: ='DATA (Real)'!BO7/0.85 -> 0.1782474214 | BP11: ='DATA (Real)'!BP7/0.85 -> 0.1786039162 | BQ11: ='DATA (Real)'!BQ7/0.85 -> 0.1789611241 | BR11: ='DATA (Real)'!BR7/0.85 -> 0.1793190463 | BS11: ='DATA (Real)'!BS7/0.85 -> 0.1796776844 | BT11: ='DATA (Real)'!BT7/0.85 -> 0.1800370398 | BU11: ='DATA (Real)'!BU7/0.85 -> 0.1803971139 | BV11: ='DATA (Real)'!BV7/0.85 -> 0.1807579081 | BW11: ='DATA (Real)'!BW7/0.85 -> 0.1811194239 | BX11: ='DATA (Real)'!BX7/0.85 -> 0.1814816628
C12: ='DATA (Real)'!C8 -> Internal/NREL Residential PV - Class 8 | D12: ='DATA (Real)'!D8 -> Net Capacity Factor (%) | E12: ='DATA (Real)'!E8 -> New Residential Solar + Storage (Solar Only) | F12: =F11 -> 0.1608397604 | G12: =G11 -> 0.1610882227 | H12: 0.1613366849 | I12: 0.1615851471 | J12: 0.1618336093 | K12: 0.1620820715 | L12: 0.1623305338 | M12: 0.162578996 | N12: 0.1628274582 | O12: 0.1630759204 | P12: 0.1633243827 | Q12: 0.1635352672 | R12: 0.1637461518 | S12: 0.1639570364 | T12: 0.164167921 | U12: 0.1643788056 | V12: 0.1645896902 | W12: 0.1648005748 | X12: 0.1650114594 | Y12: 0.165222344 | Z12: 0.1654332286 | AA12: 0.1656441131 | AB12: 0.1658549977 | AC12: 0.1660658823 | AD12: 0.1662767669 | AE12: 0.1664876515 | AF12: 0.1666985361 | AG12: 0.1669094207 | AH12: 0.1671203053 | AI12: 0.1673311899 | AJ12: 0.1675420745 | AK12: 0.1678771586 | AL12: 0.1682129129 | AM12: 0.1685493387 | AN12: 0.1688864374 | AO12: 0.1692242103 | AP12: 0.1695626587 | AQ12: 0.169901784 | AR12: 0.1702415876 | AS12: 0.1705820708 | AT12: 0.1709232349 | AU12: 0.1712650814 | AV12: 0.1716076116 | AW12: 0.1719508268 | AX12: 0.1722947284 | AY12: 0.1726393179 | AZ12: 0.1729845965 | BA12: 0.1733305657 | BB12: 0.1736772268 | BC12: 0.1740245813 | BD12: 0.1743726305 | BE12: 0.1747213757 | BF12: 0.1750708185 | BG12: 0.1754209601 | BH12: 0.175771802 | BI12: 0.1761233456 | BJ12: 0.1764755923 | BK12: 0.1768285435 | BL12: 0.1771822006 | BM12: 0.177536565 | BN12: 0.1778916381 | BO12: 0.1782474214 | BP12: 0.1786039162 | BQ12: 0.1789611241 | BR12: 0.1793190463 | BS12: =BS11 -> 0.1796776844 | BT12: 0.1800370398 | BU12: 0.1803971139 | BV12: 0.1807579081 | BW12: 0.1811194239 | BX12: 0.1814816628
C13: ='DATA (Real)'!C9 -> Internal/NREL Residential PV - Class 8 | D13: ='DATA (Real)'!D9 -> Net Capacity Factor (%) | E13: ='DATA (Real)'!E9 -> Existing Residential Solar | F13: =F11 -> 0.1608397604 | G13: =G11 -> 0.1610882227 | H13: 0.1613366849 | I13: 0.1615851471 | J13: 0.1618336093 | K13: 0.1620820715 | L13: 0.1623305338 | M13: 0.162578996 | N13: 0.1628274582 | O13: 0.1630759204 | P13: 0.1633243827 | Q13: 0.1635352672 | R13: 0.1637461518 | S13: 0.1639570364 | T13: 0.164167921 | U13: 0.1643788056 | V13: 0.1645896902 | W13: 0.1648005748 | X13: 0.1650114594 | Y13: 0.165222344 | Z13: 0.1654332286 | AA13: 0.1656441131 | AB13: 0.1658549977 | AC13: 0.1660658823 | AD13: 0.1662767669 | AE13: 0.1664876515 | AF13: 0.1666985361 | AG13: 0.1669094207 | AH13: 0.1671203053 | AI13: 0.1673311899 | AJ13: 0.1675420745 | AK13: 0.1678771586 | AL13: 0.1682129129 | AM13: 0.1685493387 | AN13: 0.1688864374 | AO13: 0.1692242103 | AP13: 0.1695626587 | AQ13: 0.169901784 | AR13: 0.1702415876 | AS13: 0.1705820708 | AT13: 0.1709232349 | AU13: 0.1712650814 | AV13: 0.1716076116 | AW13: 0.1719508268 | AX13: 0.1722947284 | AY13: 0.1726393179 | AZ13: 0.1729845965 | BA13: 0.1733305657 | BB13: 0.1736772268 | BC13: 0.1740245813 | BD13: 0.1743726305 | BE13: 0.1747213757 | BF13: 0.1750708185 | BG13: 0.1754209601 | BH13: 0.175771802 | BI13: 0.1761233456 | BJ13: 0.1764755923 | BK13: 0.1768285435 | BL13: 0.1771822006 | BM13: 0.177536565 | BN13: 0.1778916381 | BO13: 0.1782474214 | BP13: 0.1786039162 | BQ13: 0.1789611241 | BR13: 0.1793190463 | BS13: =BS11 -> 0.1796776844 | BT13: 0.1800370398 | BU13: 0.1803971139 | BV13: 0.1807579081 | BW13: 0.1811194239 | BX13: 0.1814816628
C14: ='DATA (Real)'!C10 -> Internal/NREL Residential PV - Class 8 | D14: ='DATA (Real)'!D10 -> Net Capacity Factor (%) | E14: ='DATA (Real)'!E10 -> Existing Residential Solar + Storage (Solar Only) | F14: =F13 -> 0.1608397604 | G14: =G13 -> 0.1610882227 | H14: 0.1613366849 | I14: 0.1615851471 | J14: 0.1618336093 | K14: 0.1620820715 | L14: 0.1623305338 | M14: 0.162578996 | N14: 0.1628274582 | O14: 0.1630759204 | P14: 0.1633243827 | Q14: 0.1635352672 | R14: 0.1637461518 | S14: 0.1639570364 | T14: 0.164167921 | U14: 0.1643788056 | V14: 0.1645896902 | W14: 0.1648005748 | X14: 0.1650114594 | Y14: 0.165222344 | Z14: 0.1654332286 | AA14: 0.1656441131 | AB14: 0.1658549977 | AC14: 0.1660658823 | AD14: 0.1662767669 | AE14: 0.1664876515 | AF14: 0.1666985361 | AG14: 0.1669094207 | AH14: 0.1671203053 | AI14: 0.1673311899 | AJ14: 0.1675420745 | AK14: 0.1678771586 | AL14: 0.1682129129 | AM14: 0.1685493387 | AN14: 0.1688864374 | AO14: 0.1692242103 | AP14: 0.1695626587 | AQ14: 0.169901784 | AR14: 0.1702415876 | AS14: 0.1705820708 | AT14: 0.1709232349 | AU14: 0.1712650814 | AV14: 0.1716076116 | AW14: 0.1719508268 | AX14: 0.1722947284 | AY14: 0.1726393179 | AZ14: 0.1729845965 | BA14: 0.1733305657 | BB14: 0.1736772268 | BC14: 0.1740245813 | BD14: 0.1743726305 | BE14: 0.1747213757 | BF14: 0.1750708185 | BG14: 0.1754209601 | BH14: 0.175771802 | BI14: 0.1761233456 | BJ14: 0.1764755923 | BK14: 0.1768285435 | BL14: 0.1771822006 | BM14: 0.177536565 | BN14: 0.1778916381 | BO14: 0.1782474214 | BP14: 0.1786039162 | BQ14: 0.1789611241 | BR14: 0.1793190463 | BS14: =BS13 -> 0.1796776844 | BT14: 0.1800370398 | BU14: 0.1803971139 | BV14: 0.1807579081 | BW14: 0.1811194239 | BX14: 0.1814816628
C15: ='DATA (Real)'!C11 -> Internal/NREL Commercial PV - Class 8 | D15: ='DATA (Real)'!D11 -> Net Capacity Factor (%) | E15: ='DATA (Real)'!E11 -> Commercial Solar | F15: ='DATA (Real)'!F11/0.85 -> 0.1630815747 | G15: ='DATA (Real)'!G11/0.85 -> 0.1648228875 | H15: ='DATA (Real)'!H11/0.85 -> 0.1665642002 | I15: ='DATA (Real)'!I11/0.85 -> 0.168305513 | J15: ='DATA (Real)'!J11/0.85 -> 0.1700468257 | K15: ='DATA (Real)'!K11/0.85 -> 0.1717881385 | L15: ='DATA (Real)'!L11/0.85 -> 0.1735294512 | M15: ='DATA (Real)'!M11/0.85 -> 0.175270764 | N15: ='DATA (Real)'!N11/0.85 -> 0.1770120768 | O15: ='DATA (Real)'!O11/0.85 -> 0.1787533895 | P15: ='DATA (Real)'!P11/0.85 -> 0.1804947023 | Q15: ='DATA (Real)'!Q11/0.85 -> 0.1811485658 | R15: ='DATA (Real)'!R11/0.85 -> 0.1818024294 | S15: ='DATA (Real)'!S11/0.85 -> 0.1824562929 | T15: ='DATA (Real)'!T11/0.85 -> 0.1831101565 | U15: ='DATA (Real)'!U11/0.85 -> 0.1837640201 | V15: ='DATA (Real)'!V11/0.85 -> 0.1844178836 | W15: ='DATA (Real)'!W11/0.85 -> 0.1850717472 | X15: ='DATA (Real)'!X11/0.85 -> 0.1857256107 | Y15: ='DATA (Real)'!Y11/0.85 -> 0.1863794743 | Z15: ='DATA (Real)'!Z11/0.85 -> 0.1870333379 | AA15: ='DATA (Real)'!AA11/0.85 -> 0.1876872014 | AB15: ='DATA (Real)'!AB11/0.85 -> 0.188341065 | AC15: ='DATA (Real)'!AC11/0.85 -> 0.1889949285 | AD15: ='DATA (Real)'!AD11/0.85 -> 0.1896487921 | AE15: ='DATA (Real)'!AE11/0.85 -> 0.1903026556 | AF15: ='DATA (Real)'!AF11/0.85 -> 0.1909565192 | AG15: ='DATA (Real)'!AG11/0.85 -> 0.1916103828 | AH15: ='DATA (Real)'!AH11/0.85 -> 0.1922642463 | AI15: ='DATA (Real)'!AI11/0.85 -> 0.1929181099 | AJ15: ='DATA (Real)'!AJ11/0.85 -> 0.1935719734 | AK15: ='DATA (Real)'!AK11/0.85 -> 0.1939591174 | AL15: ='DATA (Real)'!AL11/0.85 -> 0.1943470356 | AM15: ='DATA (Real)'!AM11/0.85 -> 0.1947357297 | AN15: ='DATA (Real)'!AN11/0.85 -> 0.1951252012 | AO15: ='DATA (Real)'!AO11/0.85 -> 0.1955154516 | AP15: ='DATA (Real)'!AP11/0.85 -> 0.1959064825 | AQ15: ='DATA (Real)'!AQ11/0.85 -> 0.1962982954 | AR15: ='DATA (Real)'!AR11/0.85 -> 0.196690892 | AS15: ='DATA (Real)'!AS11/0.85 -> 0.1970842738 | AT15: ='DATA (Real)'!AT11/0.85 -> 0.1974784424 | AU15: ='DATA (Real)'!AU11/0.85 -> 0.1978733992 | AV15: ='DATA (Real)'!AV11/0.85 -> 0.198269146 | AW15: ='DATA (Real)'!AW11/0.85 -> 0.1986656843 | AX15: ='DATA (Real)'!AX11/0.85 -> 0.1990630157 | AY15: ='DATA (Real)'!AY11/0.85 -> 0.1994611417 | AZ15: ='DATA (Real)'!AZ11/0.85 -> 0.199860064 | BA15: ='DATA (Real)'!BA11/0.85 -> 0.2002597841 | BB15: ='DATA (Real)'!BB11/0.85 -> 0.2006603037 | BC15: ='DATA (Real)'!BC11/0.85 -> 0.2010616243 | BD15: ='DATA (Real)'!BD11/0.85 -> 0.2014637476 | BE15: ='DATA (Real)'!BE11/0.85 -> 0.2018666751 | BF15: ='DATA (Real)'!BF11/0.85 -> 0.2022704084 | BG15: ='DATA (Real)'!BG11/0.85 -> 0.2026749492 | BH15: ='DATA (Real)'!BH11/0.85 -> 0.2030802991 | BI15: ='DATA (Real)'!BI11/0.85 -> 0.2034864597 | BJ15: ='DATA (Real)'!BJ11/0.85 -> 0.2038934326 | BK15: ='DATA (Real)'!BK11/0.85 -> 0.2043012195 | BL15: ='DATA (Real)'!BL11/0.85 -> 0.2047098219 | BM15: ='DATA (Real)'!BM11/0.85 -> 0.2051192416 | BN15: ='DATA (Real)'!BN11/0.85 -> 0.2055294801 | BO15: ='DATA (Real)'!BO11/0.85 -> 0.205940539 | BP15: ='DATA (Real)'!BP11/0.85 -> 0.2063524201 | BQ15: ='DATA (Real)'!BQ11/0.85 -> 0.206765125 | BR15: ='DATA (Real)'!BR11/0.85 -> 0.2071786552 | BS15: ='DATA (Real)'!BS11/0.85 -> 0.2075930125 | BT15: ='DATA (Real)'!BT11/0.85 -> 0.2080081985 | BU15: ='DATA (Real)'!BU11/0.85 -> 0.2084242149 | BV15: ='DATA (Real)'!BV11/0.85 -> 0.2088410634 | BW15: ='DATA (Real)'!BW11/0.85 -> 0.2092587455 | BX15: ='DATA (Real)'!BX11/0.85 -> 0.209677263
C16: ='DATA (Real)'!C12 -> Internal/NREL Commercial PV - Class 8 | D16: ='DATA (Real)'!D12 -> Net Capacity Factor (%) | E16: ='DATA (Real)'!E12 -> Commercial Solar + Storage | F16: =F15 -> 0.1630815747 | G16: =G15 -> 0.1648228875 | H16: 0.1665642002 | I16: 0.168305513 | J16: 0.1700468257 | K16: 0.1717881385 | L16: 0.1735294512 | M16: 0.175270764 | N16: 0.1770120768 | O16: 0.1787533895 | P16: 0.1804947023 | Q16: 0.1811485658 | R16: 0.1818024294 | S16: 0.1824562929 | T16: 0.1831101565 | U16: 0.1837640201 | V16: 0.1844178836 | W16: 0.1850717472 | X16: 0.1857256107 | Y16: 0.1863794743 | Z16: 0.1870333379 | AA16: 0.1876872014 | AB16: 0.188341065 | AC16: 0.1889949285 | AD16: 0.1896487921 | AE16: 0.1903026556 | AF16: 0.1909565192 | AG16: 0.1916103828 | AH16: 0.1922642463 | AI16: 0.1929181099 | AJ16: 0.1935719734 | AK16: 0.1939591174 | AL16: 0.1943470356 | AM16: 0.1947357297 | AN16: 0.1951252012 | AO16: 0.1955154516 | AP16: 0.1959064825 | AQ16: 0.1962982954 | AR16: 0.196690892 | AS16: 0.1970842738 | AT16: 0.1974784424 | AU16: 0.1978733992 | AV16: 0.198269146 | AW16: 0.1986656843 | AX16: 0.1990630157 | AY16: 0.1994611417 | AZ16: 0.199860064 | BA16: 0.2002597841 | BB16: 0.2006603037 | BC16: 0.2010616243 | BD16: 0.2014637476 | BE16: 0.2018666751 | BF16: 0.2022704084 | BG16: 0.2026749492 | BH16: 0.2030802991 | BI16: 0.2034864597 | BJ16: 0.2038934326 | BK16: 0.2043012195 | BL16: 0.2047098219 | BM16: 0.2051192416 | BN16: 0.2055294801 | BO16: 0.205940539 | BP16: 0.2063524201 | BQ16: 0.206765125 | BR16: 0.2071786552 | BS16: =BS15 -> 0.2075930125 | BT16: 0.2080081985 | BU16: 0.2084242149 | BV16: 0.2088410634 | BW16: 0.2092587455 | BX16: 0.209677263
C17: ='DATA (Real)'!C13 -> Internal/NREL Utility PV - Class 4 | D17: ='DATA (Real)'!D13 -> Net Capacity Factor (%) | E17: ='DATA (Real)'!E13 -> Solar Photovoltaic Fixed Array (5 MW AC) | F17: ='DATA (Real)'!F13 -> 0.2608403997 | G17: ='DATA (Real)'!G13 -> 0.2636255378 | H17: ='DATA (Real)'!H13 -> 0.266410676 | I17: ='DATA (Real)'!I13 -> 0.2691958141 | J17: ='DATA (Real)'!J13 -> 0.2719809522 | K17: ='DATA (Real)'!K13 -> 0.2747660904 | L17: ='DATA (Real)'!L13 -> 0.2775512285 | M17: ='DATA (Real)'!M13 -> 0.2803363667 | N17: ='DATA (Real)'!N13 -> 0.2831215048 | O17: ='DATA (Real)'!O13 -> 0.285906643 | P17: ='DATA (Real)'!P13 -> 0.2886917811 | Q17: ='DATA (Real)'!Q13 -> 0.2897376015 | R17: ='DATA (Real)'!R13 -> 0.2907834218 | S17: ='DATA (Real)'!S13 -> 0.2918292422 | T17: ='DATA (Real)'!T13 -> 0.2928750626 | U17: ='DATA (Real)'!U13 -> 0.2939208829 | V17: ='DATA (Real)'!V13 -> 0.2949667033 | W17: ='DATA (Real)'!W13 -> 0.2960125237 | X17: ='DATA (Real)'!X13 -> 0.297058344 | Y17: ='DATA (Real)'!Y13 -> 0.2981041644 | Z17: ='DATA (Real)'!Z13 -> 0.2991499848 | AA17: ='DATA (Real)'!AA13 -> 0.3001958051 | AB17: ='DATA (Real)'!AB13 -> 0.3012416255 | AC17: ='DATA (Real)'!AC13 -> 0.3022874459 | AD17: ='DATA (Real)'!AD13 -> 0.3033332662 | AE17: ='DATA (Real)'!AE13 -> 0.3043790866 | AF17: ='DATA (Real)'!AF13 -> 0.305424907 | AG17: ='DATA (Real)'!AG13 -> 0.3064707273 | AH17: ='DATA (Real)'!AH13 -> 0.3075165477 | AI17: ='DATA (Real)'!AI13 -> 0.3085623681 | AJ17: ='DATA (Real)'!AJ13 -> 0.3096081884 | AK17: ='DATA (Real)'!AK13 -> 0.3089042843 | AL17: ='DATA (Real)'!AL13 -> 0.3095220928 | AM17: ='DATA (Real)'!AM13 -> 0.310141137 | AN17: ='DATA (Real)'!AN13 -> 0.3107614193 | AO17: ='DATA (Real)'!AO13 -> 0.3113829421 | AP17: ='DATA (Real)'!AP13 -> 0.312005708 | AQ17: ='DATA (Real)'!AQ13 -> 0.3126297194 | AR17: ='DATA (Real)'!AR13 -> 0.3132549789 | AS17: ='DATA (Real)'!AS13 -> 0.3138814888 | AT17: ='DATA (Real)'!AT13 -> 0.3145092518 | AU17: ='DATA (Real)'!AU13 -> 0.3151382703 | AV17: ='DATA (Real)'!AV13 -> 0.3157685468 | AW17: ='DATA (Real)'!AW13 -> 0.3164000839 | AX17: ='DATA (Real)'!AX13 -> 0.3170328841 | AY17: ='DATA (Real)'!AY13 -> 0.3176669499 | AZ17: ='DATA (Real)'!AZ13 -> 0.3183022838 | BA17: ='DATA (Real)'!BA13 -> 0.3189388883 | BB17: ='DATA (Real)'!BB13 -> 0.3195767661 | BC17: ='DATA (Real)'!BC13 -> 0.3202159197 | BD17: ='DATA (Real)'!BD13 -> 0.3208563515 | BE17: ='DATA (Real)'!BE13 -> 0.3214980642 | BF17: ='DATA (Real)'!BF13 -> 0.3221410603 | BG17: ='DATA (Real)'!BG13 -> 0.3227853424 | BH17: ='DATA (Real)'!BH13 -> 0.3234309131 | BI17: ='DATA (Real)'!BI13 -> 0.324077775 | BJ17: ='DATA (Real)'!BJ13 -> 0.3247259305 | BK17: ='DATA (Real)'!BK13 -> 0.3253753824 | BL17: ='DATA (Real)'!BL13 -> 0.3260261331 | BM17: ='DATA (Real)'!BM13 -> 0.3266781854 | BN17: ='DATA (Real)'!BN13 -> 0.3273315418 | BO17: ='DATA (Real)'!BO13 -> 0.3279862048 | BP17: ='DATA (Real)'!BP13 -> 0.3286421773 | BQ17: ='DATA (Real)'!BQ13 -> 0.3292994616 | BR17: ='DATA (Real)'!BR13 -> 0.3299580605 | BS17: ='DATA (Real)'!BS13 -> 0.3306179767 | BT17: ='DATA (Real)'!BT13 -> 0.3312792126 | BU17: ='DATA (Real)'!BU13 -> 0.331941771 | BV17: ='DATA (Real)'!BV13 -> 0.3326056546 | BW17: ='DATA (Real)'!BW13 -> 0.3332708659 | BX17: ='DATA (Real)'!BX13 -> 0.3339374076
C18: ='DATA (Real)'!C14 -> Internal/NREL Utility PV - Class 4 | D18: ='DATA (Real)'!D14 -> Net Capacity Factor (%) | E18: ='DATA (Real)'!E14 -> Solar Photovoltaic Fixed Array (5 MW AC) + Storage (Solar Only) | F18: ='DATA (Real)'!F14 -> 0.2608403997 | G18: ='DATA (Real)'!G14 -> 0.2636255378 | H18: ='DATA (Real)'!H14 -> 0.266410676 | I18: ='DATA (Real)'!I14 -> 0.2691958141 | J18: ='DATA (Real)'!J14 -> 0.2719809522 | K18: ='DATA (Real)'!K14 -> 0.2747660904 | L18: ='DATA (Real)'!L14 -> 0.2775512285 | M18: ='DATA (Real)'!M14 -> 0.2803363667 | N18: ='DATA (Real)'!N14 -> 0.2831215048 | O18: ='DATA (Real)'!O14 -> 0.285906643 | P18: ='DATA (Real)'!P14 -> 0.2886917811 | Q18: ='DATA (Real)'!Q14 -> 0.2897376015 | R18: ='DATA (Real)'!R14 -> 0.2907834218 | S18: ='DATA (Real)'!S14 -> 0.2918292422 | T18: ='DATA (Real)'!T14 -> 0.2928750626 | U18: ='DATA (Real)'!U14 -> 0.2939208829 | V18: ='DATA (Real)'!V14 -> 0.2949667033 | W18: ='DATA (Real)'!W14 -> 0.2960125237 | X18: ='DATA (Real)'!X14 -> 0.297058344 | Y18: ='DATA (Real)'!Y14 -> 0.2981041644 | Z18: ='DATA (Real)'!Z14 -> 0.2991499848 | AA18: ='DATA (Real)'!AA14 -> 0.3001958051 | AB18: ='DATA (Real)'!AB14 -> 0.3012416255 | AC18: ='DATA (Real)'!AC14 -> 0.3022874459 | AD18: ='DATA (Real)'!AD14 -> 0.3033332662 | AE18: ='DATA (Real)'!AE14 -> 0.3043790866 | AF18: ='DATA (Real)'!AF14 -> 0.305424907 | AG18: ='DATA (Real)'!AG14 -> 0.3064707273 | AH18: ='DATA (Real)'!AH14 -> 0.3075165477 | AI18: ='DATA (Real)'!AI14 -> 0.3085623681 | AJ18: ='DATA (Real)'!AJ14 -> 0.3096081884 | AK18: ='DATA (Real)'!AK14 -> 0.3089042843 | AL18: ='DATA (Real)'!AL14 -> 0.3095220928 | AM18: ='DATA (Real)'!AM14 -> 0.310141137 | AN18: ='DATA (Real)'!AN14 -> 0.3107614193 | AO18: ='DATA (Real)'!AO14 -> 0.3113829421 | AP18: ='DATA (Real)'!AP14 -> 0.312005708 | AQ18: ='DATA (Real)'!AQ14 -> 0.3126297194 | AR18: ='DATA (Real)'!AR14 -> 0.3132549789 | AS18: ='DATA (Real)'!AS14 -> 0.3138814888 | AT18: ='DATA (Real)'!AT14 -> 0.3145092518 | AU18: ='DATA (Real)'!AU14 -> 0.3151382703 | AV18: ='DATA (Real)'!AV14 -> 0.3157685468 | AW18: ='DATA (Real)'!AW14 -> 0.3164000839 | AX18: ='DATA (Real)'!AX14 -> 0.3170328841 | AY18: ='DATA (Real)'!AY14 -> 0.3176669499 | AZ18: ='DATA (Real)'!AZ14 -> 0.3183022838 | BA18: ='DATA (Real)'!BA14 -> 0.3189388883 | BB18: ='DATA (Real)'!BB14 -> 0.3195767661 | BC18: ='DATA (Real)'!BC14 -> 0.3202159197 | BD18: ='DATA (Real)'!BD14 -> 0.3208563515 | BE18: ='DATA (Real)'!BE14 -> 0.3214980642 | BF18: ='DATA (Real)'!BF14 -> 0.3221410603 | BG18: ='DATA (Real)'!BG14 -> 0.3227853424 | BH18: ='DATA (Real)'!BH14 -> 0.3234309131 | BI18: ='DATA (Real)'!BI14 -> 0.324077775 | BJ18: ='DATA (Real)'!BJ14 -> 0.3247259305 | BK18: ='DATA (Real)'!BK14 -> 0.3253753824 | BL18: ='DATA (Real)'!BL14 -> 0.3260261331 | BM18: ='DATA (Real)'!BM14 -> 0.3266781854 | BN18: ='DATA (Real)'!BN14 -> 0.3273315418 | BO18: ='DATA (Real)'!BO14 -> 0.3279862048 | BP18: ='DATA (Real)'!BP14 -> 0.3286421773 | BQ18: ='DATA (Real)'!BQ14 -> 0.3292994616 | BR18: ='DATA (Real)'!BR14 -> 0.3299580605 | BS18: ='DATA (Real)'!BS14 -> 0.3306179767 | BT18: ='DATA (Real)'!BT14 -> 0.3312792126 | BU18: ='DATA (Real)'!BU14 -> 0.331941771 | BV18: ='DATA (Real)'!BV14 -> 0.3326056546 | BW18: ='DATA (Real)'!BW14 -> 0.3332708659 | BX18: ='DATA (Real)'!BX14 -> 0.3339374076
C19: ='DATA (Real)'!C15 -> Internal/NREL Utility PV - Class 4 | D19: ='DATA (Real)'!D15 -> Net Capacity Factor (%) | E19: ='DATA (Real)'!E15 -> Solar Photovoltaic w/Single Axis Tracking (100 MW AC) | F19: ='DATA (Real)'!F15 -> 0.2608403997 | G19: ='DATA (Real)'!G15 -> 0.2636255378 | H19: ='DATA (Real)'!H15 -> 0.266410676 | I19: ='DATA (Real)'!I15 -> 0.2691958141 | J19: ='DATA (Real)'!J15 -> 0.2719809522 | K19: ='DATA (Real)'!K15 -> 0.2747660904 | L19: ='DATA (Real)'!L15 -> 0.2775512285 | M19: ='DATA (Real)'!M15 -> 0.2821030687 | N19: ='DATA (Real)'!N15 -> 0.286729559 | O19: ='DATA (Real)'!O15 -> 0.2914319238 | P19: ='DATA (Real)'!P15 -> 0.2962114073 | Q19: ='DATA (Real)'!Q15 -> 0.2968038301 | R19: ='DATA (Real)'!R15 -> 0.2973974378 | S19: ='DATA (Real)'!S15 -> 0.2979922327 | T19: ='DATA (Real)'!T15 -> 0.2985882171 | U19: ='DATA (Real)'!U15 -> 0.2991853936 | V19: ='DATA (Real)'!V15 -> 0.2997837644 | W19: ='DATA (Real)'!W15 -> 0.3003833319 | X19: ='DATA (Real)'!X15 -> 0.3009840986 | Y19: ='DATA (Real)'!Y15 -> 0.3015860667 | Z19: ='DATA (Real)'!Z15 -> 0.3021892389 | AA19: ='DATA (Real)'!AA15 -> 0.3027936174 | AB19: ='DATA (Real)'!AB15 -> 0.3033992046 | AC19: ='DATA (Real)'!AC15 -> 0.304006003 | AD19: ='DATA (Real)'!AD15 -> 0.304614015 | AE19: ='DATA (Real)'!AE15 -> 0.305223243 | AF19: ='DATA (Real)'!AF15 -> 0.3058336895 | AG19: ='DATA (Real)'!AG15 -> 0.3064453569 | AH19: ='DATA (Real)'!AH15 -> 0.3070582476 | AI19: ='DATA (Real)'!AI15 -> 0.3076723641 | AJ19: ='DATA (Real)'!AJ15 -> 0.3082877088 | AK19: ='DATA (Real)'!AK15 -> 0.3089042843 | AL19: ='DATA (Real)'!AL15 -> 0.3095220928 | AM19: ='DATA (Real)'!AM15 -> 0.310141137 | AN19: ='DATA (Real)'!AN15 -> 0.3107614193 | AO19: ='DATA (Real)'!AO15 -> 0.3113829421 | AP19: ='DATA (Real)'!AP15 -> 0.312005708 | AQ19: ='DATA (Real)'!AQ15 -> 0.3126297194 | AR19: ='DATA (Real)'!AR15 -> 0.3132549789 | AS19: ='DATA (Real)'!AS15 -> 0.3138814888 | AT19: ='DATA (Real)'!AT15 -> 0.3145092518 | AU19: ='DATA (Real)'!AU15 -> 0.3151382703 | AV19: ='DATA (Real)'!AV15 -> 0.3157685468 | AW19: ='DATA (Real)'!AW15 -> 0.3164000839 | AX19: ='DATA (Real)'!AX15 -> 0.3170328841 | AY19: ='DATA (Real)'!AY15 -> 0.3176669499 | AZ19: ='DATA (Real)'!AZ15 -> 0.3183022838 | BA19: ='DATA (Real)'!BA15 -> 0.3189388883 | BB19: ='DATA (Real)'!BB15 -> 0.3195767661 | BC19: ='DATA (Real)'!BC15 -> 0.3202159197 | BD19: ='DATA (Real)'!BD15 -> 0.3208563515 | BE19: ='DATA (Real)'!BE15 -> 0.3214980642 | BF19: ='DATA (Real)'!BF15 -> 0.3221410603 | BG19: ='DATA (Real)'!BG15 -> 0.3227853424 | BH19: ='DATA (Real)'!BH15 -> 0.3234309131 | BI19: ='DATA (Real)'!BI15 -> 0.324077775 | BJ19: ='DATA (Real)'!BJ15 -> 0.3247259305 | BK19: ='DATA (Real)'!BK15 -> 0.3253753824 | BL19: ='DATA (Real)'!BL15 -> 0.3260261331 | BM19: ='DATA (Real)'!BM15 -> 0.3266781854 | BN19: ='DATA (Real)'!BN15 -> 0.3273315418 | BO19: ='DATA (Real)'!BO15 -> 0.3279862048 | BP19: ='DATA (Real)'!BP15 -> 0.3286421773 | BQ19: ='DATA (Real)'!BQ15 -> 0.3292994616 | BR19: ='DATA (Real)'!BR15 -> 0.3299580605 | BS19: ='DATA (Real)'!BS15 -> 0.3306179767 | BT19: ='DATA (Real)'!BT15 -> 0.3312792126 | BU19: ='DATA (Real)'!BU15 -> 0.331941771 | BV19: ='DATA (Real)'!BV15 -> 0.3326056546 | BW19: ='DATA (Real)'!BW15 -> 0.3332708659 | BX19: ='DATA (Real)'!BX15 -> 0.3339374076
C20: ='DATA (Real)'!C16 -> Internal/NREL Utility PV - Class 3 | D20: ='DATA (Real)'!D16 -> Net Capacity Factor (%) | E20: ='DATA (Real)'!E16 -> Southern NW Solar Photovoltaic w/ Single Axis Tracking (100 MW AC) | F20: ='DATA (Real)'!F16 -> 0.2760042596 | G20: ='DATA (Real)'!G16 -> 0.2789513107 | H20: ='DATA (Real)'!H16 -> 0.2818983618 | I20: ='DATA (Real)'!I16 -> 0.2848454129 | J20: ='DATA (Real)'!J16 -> 0.287792464 | K20: ='DATA (Real)'!K16 -> 0.2907395151 | L20: ='DATA (Real)'!L16 -> 0.2936865663 | M20: ='DATA (Real)'!M16 -> 0.2985030259 | N20: ='DATA (Real)'!N16 -> 0.3033984756 | O20: ='DATA (Real)'!O16 -> 0.3083742106 | P20: ='DATA (Real)'!P16 -> 0.3134315476 | Q20: ='DATA (Real)'!Q16 -> 0.3140584107 | R20: ='DATA (Real)'!R16 -> 0.3146865275 | S20: ='DATA (Real)'!S16 -> 0.3153159006 | T20: ='DATA (Real)'!T16 -> 0.3159465324 | U20: ='DATA (Real)'!U16 -> 0.3165784255 | V20: ='DATA (Real)'!V16 -> 0.3172115823 | W20: ='DATA (Real)'!W16 -> 0.3178460055 | X20: ='DATA (Real)'!X16 -> 0.3184816975 | Y20: ='DATA (Real)'!Y16 -> 0.3191186609 | Z20: ='DATA (Real)'!Z16 -> 0.3197568982 | AA20: ='DATA (Real)'!AA16 -> 0.320396412 | AB20: ='DATA (Real)'!AB16 -> 0.3210372048 | AC20: ='DATA (Real)'!AC16 -> 0.3216792792 | AD20: ='DATA (Real)'!AD16 -> 0.3223226378 | AE20: ='DATA (Real)'!AE16 -> 0.3229672831 | AF20: ='DATA (Real)'!AF16 -> 0.3236132176 | AG20: ='DATA (Real)'!AG16 -> 0.3242604441 | AH20: ='DATA (Real)'!AH16 -> 0.324908965 | AI20: ='DATA (Real)'!AI16 -> 0.3255587829 | AJ20: ='DATA (Real)'!AJ16 -> 0.3262099004 | AK20: ='DATA (Real)'!AK16 -> 0.3268623202 | AL20: ='DATA (Real)'!AL16 -> 0.3275160449 | AM20: ='DATA (Real)'!AM16 -> 0.328171077 | AN20: ='DATA (Real)'!AN16 -> 0.3288274191 | AO20: ='DATA (Real)'!AO16 -> 0.329485074 | AP20: ='DATA (Real)'!AP16 -> 0.3301440441 | AQ20: ='DATA (Real)'!AQ16 -> 0.3308043322 | AR20: ='DATA (Real)'!AR16 -> 0.3314659409 | AS20: ='DATA (Real)'!AS16 -> 0.3321288728 | AT20: ='DATA (Real)'!AT16 -> 0.3327931305 | AU20: ='DATA (Real)'!AU16 -> 0.3334587168 | AV20: ='DATA (Real)'!AV16 -> 0.3341256342 | AW20: ='DATA (Real)'!AW16 -> 0.3347938855 | AX20: ='DATA (Real)'!AX16 -> 0.3354634732 | AY20: ='DATA (Real)'!AY16 -> 0.3361344002 | AZ20: ='DATA (Real)'!AZ16 -> 0.336806669 | BA20: ='DATA (Real)'!BA16 -> 0.3374802823 | BB20: ='DATA (Real)'!BB16 -> 0.3381552429 | BC20: ='DATA (Real)'!BC16 -> 0.3388315534 | BD20: ='DATA (Real)'!BD16 -> 0.3395092165 | BE20: ='DATA (Real)'!BE16 -> 0.3401882349 | BF20: ='DATA (Real)'!BF16 -> 0.3408686114 | BG20: ='DATA (Real)'!BG16 -> 0.3415503486 | BH20: ='DATA (Real)'!BH16 -> 0.3422334493 | BI20: ='DATA (Real)'!BI16 -> 0.3429179162 | BJ20: ='DATA (Real)'!BJ16 -> 0.343603752 | BK20: ='DATA (Real)'!BK16 -> 0.3442909595 | BL20: ='DATA (Real)'!BL16 -> 0.3449795415 | BM20: ='DATA (Real)'!BM16 -> 0.3456695005 | BN20: ='DATA (Real)'!BN16 -> 0.3463608395 | BO20: ='DATA (Real)'!BO16 -> 0.3470535612 | BP20: ='DATA (Real)'!BP16 -> 0.3477476683 | BQ20: ='DATA (Real)'!BQ16 -> 0.3484431637 | BR20: ='DATA (Real)'!BR16 -> 0.34914005 | BS20: ='DATA (Real)'!BS16 -> 0.3498383301 | BT20: ='DATA (Real)'!BT16 -> 0.3505380068 | BU20: ='DATA (Real)'!BU16 -> 0.3512390828 | BV20: ='DATA (Real)'!BV16 -> 0.3519415609 | BW20: ='DATA (Real)'!BW16 -> 0.3526454441 | BX20: ='DATA (Real)'!BX16 -> 0.3533507349
C21: ='DATA (Real)'!C17 -> Internal/NREL Utility PV - Class 4 | D21: ='DATA (Real)'!D17 -> Net Capacity Factor (%) | E21: ='DATA (Real)'!E17 -> 100 MW/400 MWh Lithium-ion w/Solar (Solar Only) | F21: ='DATA (Real)'!F17 -> 0.2608403997 | G21: ='DATA (Real)'!G17 -> 0.2636255378 | H21: ='DATA (Real)'!H17 -> 0.266410676 | I21: ='DATA (Real)'!I17 -> 0.2691958141 | J21: ='DATA (Real)'!J17 -> 0.2719809522 | K21: ='DATA (Real)'!K17 -> 0.2747660904 | L21: ='DATA (Real)'!L17 -> 0.2775512285 | M21: ='DATA (Real)'!M17 -> 0.2821030687 | N21: ='DATA (Real)'!N17 -> 0.286729559 | O21: ='DATA (Real)'!O17 -> 0.2914319238 | P21: ='DATA (Real)'!P17 -> 0.2962114073 | Q21: ='DATA (Real)'!Q17 -> 0.2968038301 | R21: ='DATA (Real)'!R17 -> 0.2973974378 | S21: ='DATA (Real)'!S17 -> 0.2979922327 | T21: ='DATA (Real)'!T17 -> 0.2985882171 | U21: ='DATA (Real)'!U17 -> 0.2991853936 | V21: ='DATA (Real)'!V17 -> 0.2997837644 | W21: ='DATA (Real)'!W17 -> 0.3003833319 | X21: ='DATA (Real)'!X17 -> 0.3009840986 | Y21: ='DATA (Real)'!Y17 -> 0.3015860667 | Z21: ='DATA (Real)'!Z17 -> 0.3021892389 | AA21: ='DATA (Real)'!AA17 -> 0.3027936174 | AB21: ='DATA (Real)'!AB17 -> 0.3033992046 | AC21: ='DATA (Real)'!AC17 -> 0.304006003 | AD21: ='DATA (Real)'!AD17 -> 0.304614015 | AE21: ='DATA (Real)'!AE17 -> 0.305223243 | AF21: ='DATA (Real)'!AF17 -> 0.3058336895 | AG21: ='DATA (Real)'!AG17 -> 0.3064453569 | AH21: ='DATA (Real)'!AH17 -> 0.3070582476 | AI21: ='DATA (Real)'!AI17 -> 0.3076723641 | AJ21: ='DATA (Real)'!AJ17 -> 0.3082877088 | AK21: ='DATA (Real)'!AK17 -> 0.3089042843 | AL21: ='DATA (Real)'!AL17 -> 0.3095220928 | AM21: ='DATA (Real)'!AM17 -> 0.310141137 | AN21: ='DATA (Real)'!AN17 -> 0.3107614193 | AO21: ='DATA (Real)'!AO17 -> 0.3113829421 | AP21: ='DATA (Real)'!AP17 -> 0.312005708 | AQ21: ='DATA (Real)'!AQ17 -> 0.3126297194 | AR21: ='DATA (Real)'!AR17 -> 0.3132549789 | AS21: ='DATA (Real)'!AS17 -> 0.3138814888 | AT21: ='DATA (Real)'!AT17 -> 0.3145092518 | AU21: ='DATA (Real)'!AU17 -> 0.3151382703 | AV21: ='DATA (Real)'!AV17 -> 0.3157685468 | AW21: ='DATA (Real)'!AW17 -> 0.3164000839 | AX21: ='DATA (Real)'!AX17 -> 0.3170328841 | AY21: ='DATA (Real)'!AY17 -> 0.3176669499 | AZ21: ='DATA (Real)'!AZ17 -> 0.3183022838 | BA21: ='DATA (Real)'!BA17 -> 0.3189388883 | BB21: ='DATA (Real)'!BB17 -> 0.3195767661 | BC21: ='DATA (Real)'!BC17 -> 0.3202159197 | BD21: ='DATA (Real)'!BD17 -> 0.3208563515 | BE21: ='DATA (Real)'!BE17 -> 0.3214980642 | BF21: ='DATA (Real)'!BF17 -> 0.3221410603 | BG21: ='DATA (Real)'!BG17 -> 0.3227853424 | BH21: ='DATA (Real)'!BH17 -> 0.3234309131 | BI21: ='DATA (Real)'!BI17 -> 0.324077775 | BJ21: ='DATA (Real)'!BJ17 -> 0.3247259305 | BK21: ='DATA (Real)'!BK17 -> 0.3253753824 | BL21: ='DATA (Real)'!BL17 -> 0.3260261331 | BM21: ='DATA (Real)'!BM17 -> 0.3266781854 | BN21: ='DATA (Real)'!BN17 -> 0.3273315418 | BO21: ='DATA (Real)'!BO17 -> 0.3279862048 | BP21: ='DATA (Real)'!BP17 -> 0.3286421773 | BQ21: ='DATA (Real)'!BQ17 -> 0.3292994616 | BR21: ='DATA (Real)'!BR17 -> 0.3299580605 | BS21: ='DATA (Real)'!BS17 -> 0.3306179767 | BT21: ='DATA (Real)'!BT17 -> 0.3312792126 | BU21: ='DATA (Real)'!BU17 -> 0.331941771 | BV21: ='DATA (Real)'!BV17 -> 0.3326056546 | BW21: ='DATA (Real)'!BW17 -> 0.3332708659 | BX21: ='DATA (Real)'!BX17 -> 0.3339374076
C22: ='DATA (Real)'!C18 -> Internal/NREL Utility PV - Class 4 | D22: ='DATA (Real)'!D18 -> Net Capacity Factor (%) | E22: ='DATA (Real)'!E18 -> 100 MW/200 MWh Lithium-ion w/Solar (Solar Only) | F22: ='DATA (Real)'!F18 -> 0.2608403997 | G22: ='DATA (Real)'!G18 -> 0.2636255378 | H22: ='DATA (Real)'!H18 -> 0.266410676 | I22: ='DATA (Real)'!I18 -> 0.2691958141 | J22: ='DATA (Real)'!J18 -> 0.2719809522 | K22: ='DATA (Real)'!K18 -> 0.2747660904 | L22: ='DATA (Real)'!L18 -> 0.2775512285 | M22: ='DATA (Real)'!M18 -> 0.2821030687 | N22: ='DATA (Real)'!N18 -> 0.286729559 | O22: ='DATA (Real)'!O18 -> 0.2914319238 | P22: ='DATA (Real)'!P18 -> 0.2962114073 | Q22: ='DATA (Real)'!Q18 -> 0.2968038301 | R22: ='DATA (Real)'!R18 -> 0.2973974378 | S22: ='DATA (Real)'!S18 -> 0.2979922327 | T22: ='DATA (Real)'!T18 -> 0.2985882171 | U22: ='DATA (Real)'!U18 -> 0.2991853936 | V22: ='DATA (Real)'!V18 -> 0.2997837644 | W22: ='DATA (Real)'!W18 -> 0.3003833319 | X22: ='DATA (Real)'!X18 -> 0.3009840986 | Y22: ='DATA (Real)'!Y18 -> 0.3015860667 | Z22: ='DATA (Real)'!Z18 -> 0.3021892389 | AA22: ='DATA (Real)'!AA18 -> 0.3027936174 | AB22: ='DATA (Real)'!AB18 -> 0.3033992046 | AC22: ='DATA (Real)'!AC18 -> 0.304006003 | AD22: ='DATA (Real)'!AD18 -> 0.304614015 | AE22: ='DATA (Real)'!AE18 -> 0.305223243 | AF22: ='DATA (Real)'!AF18 -> 0.3058336895 | AG22: ='DATA (Real)'!AG18 -> 0.3064453569 | AH22: ='DATA (Real)'!AH18 -> 0.3070582476 | AI22: ='DATA (Real)'!AI18 -> 0.3076723641 | AJ22: ='DATA (Real)'!AJ18 -> 0.3082877088 | AK22: ='DATA (Real)'!AK18 -> 0.3089042843 | AL22: ='DATA (Real)'!AL18 -> 0.3095220928 | AM22: ='DATA (Real)'!AM18 -> 0.310141137 | AN22: ='DATA (Real)'!AN18 -> 0.3107614193 | AO22: ='DATA (Real)'!AO18 -> 0.3113829421 | AP22: ='DATA (Real)'!AP18 -> 0.312005708 | AQ22: ='DATA (Real)'!AQ18 -> 0.3126297194 | AR22: ='DATA (Real)'!AR18 -> 0.3132549789 | AS22: ='DATA (Real)'!AS18 -> 0.3138814888 | AT22: ='DATA (Real)'!AT18 -> 0.3145092518 | AU22: ='DATA (Real)'!AU18 -> 0.3151382703 | AV22: ='DATA (Real)'!AV18 -> 0.3157685468 | AW22: ='DATA (Real)'!AW18 -> 0.3164000839 | AX22: ='DATA (Real)'!AX18 -> 0.3170328841 | AY22: ='DATA (Real)'!AY18 -> 0.3176669499 | AZ22: ='DATA (Real)'!AZ18 -> 0.3183022838 | BA22: ='DATA (Real)'!BA18 -> 0.3189388883 | BB22: ='DATA (Real)'!BB18 -> 0.3195767661 | BC22: ='DATA (Real)'!BC18 -> 0.3202159197 | BD22: ='DATA (Real)'!BD18 -> 0.3208563515 | BE22: ='DATA (Real)'!BE18 -> 0.3214980642 | BF22: ='DATA (Real)'!BF18 -> 0.3221410603 | BG22: ='DATA (Real)'!BG18 -> 0.3227853424 | BH22: ='DATA (Real)'!BH18 -> 0.3234309131 | BI22: ='DATA (Real)'!BI18 -> 0.324077775 | BJ22: ='DATA (Real)'!BJ18 -> 0.3247259305 | BK22: ='DATA (Real)'!BK18 -> 0.3253753824 | BL22: ='DATA (Real)'!BL18 -> 0.3260261331 | BM22: ='DATA (Real)'!BM18 -> 0.3266781854 | BN22: ='DATA (Real)'!BN18 -> 0.3273315418 | BO22: ='DATA (Real)'!BO18 -> 0.3279862048 | BP22: ='DATA (Real)'!BP18 -> 0.3286421773 | BQ22: ='DATA (Real)'!BQ18 -> 0.3292994616 | BR22: ='DATA (Real)'!BR18 -> 0.3299580605 | BS22: ='DATA (Real)'!BS18 -> 0.3306179767 | BT22: ='DATA (Real)'!BT18 -> 0.3312792126 | BU22: ='DATA (Real)'!BU18 -> 0.331941771 | BV22: ='DATA (Real)'!BV18 -> 0.3326056546 | BW22: ='DATA (Real)'!BW18 -> 0.3332708659 | BX22: ='DATA (Real)'!BX18 -> 0.3339374076
C23: ='DATA (Real)'!C19 -> Internal/NREL Utility PV - Class 4 | D23: ='DATA (Real)'!D19 -> Net Capacity Factor (%) | E23: ='DATA (Real)'!E19 -> 50 MW/200 MWh Lithium-ion w/Solar (Solar Only) | F23: ='DATA (Real)'!F19 -> 0.2608403997 | G23: ='DATA (Real)'!G19 -> 0.2636255378 | H23: ='DATA (Real)'!H19 -> 0.266410676 | I23: ='DATA (Real)'!I19 -> 0.2691958141 | J23: ='DATA (Real)'!J19 -> 0.2719809522 | K23: ='DATA (Real)'!K19 -> 0.2747660904 | L23: ='DATA (Real)'!L19 -> 0.2775512285 | M23: ='DATA (Real)'!M19 -> 0.2821030687 | N23: ='DATA (Real)'!N19 -> 0.286729559 | O23: ='DATA (Real)'!O19 -> 0.2914319238 | P23: ='DATA (Real)'!P19 -> 0.2962114073 | Q23: ='DATA (Real)'!Q19 -> 0.2968038301 | R23: ='DATA (Real)'!R19 -> 0.2973974378 | S23: ='DATA (Real)'!S19 -> 0.2979922327 | T23: ='DATA (Real)'!T19 -> 0.2985882171 | U23: ='DATA (Real)'!U19 -> 0.2991853936 | V23: ='DATA (Real)'!V19 -> 0.2997837644 | W23: ='DATA (Real)'!W19 -> 0.3003833319 | X23: ='DATA (Real)'!X19 -> 0.3009840986 | Y23: ='DATA (Real)'!Y19 -> 0.3015860667 | Z23: ='DATA (Real)'!Z19 -> 0.3021892389 | AA23: ='DATA (Real)'!AA19 -> 0.3027936174 | AB23: ='DATA (Real)'!AB19 -> 0.3033992046 | AC23: ='DATA (Real)'!AC19 -> 0.304006003 | AD23: ='DATA (Real)'!AD19 -> 0.304614015 | AE23: ='DATA (Real)'!AE19 -> 0.305223243 | AF23: ='DATA (Real)'!AF19 -> 0.3058336895 | AG23: ='DATA (Real)'!AG19 -> 0.3064453569 | AH23: ='DATA (Real)'!AH19 -> 0.3070582476 | AI23: ='DATA (Real)'!AI19 -> 0.3076723641 | AJ23: ='DATA (Real)'!AJ19 -> 0.3082877088 | AK23: ='DATA (Real)'!AK19 -> 0.3089042843 | AL23: ='DATA (Real)'!AL19 -> 0.3095220928 | AM23: ='DATA (Real)'!AM19 -> 0.310141137 | AN23: ='DATA (Real)'!AN19 -> 0.3107614193 | AO23: ='DATA (Real)'!AO19 -> 0.3113829421 | AP23: ='DATA (Real)'!AP19 -> 0.312005708 | AQ23: ='DATA (Real)'!AQ19 -> 0.3126297194 | AR23: ='DATA (Real)'!AR19 -> 0.3132549789 | AS23: ='DATA (Real)'!AS19 -> 0.3138814888 | AT23: ='DATA (Real)'!AT19 -> 0.3145092518 | AU23: ='DATA (Real)'!AU19 -> 0.3151382703 | AV23: ='DATA (Real)'!AV19 -> 0.3157685468 | AW23: ='DATA (Real)'!AW19 -> 0.3164000839 | AX23: ='DATA (Real)'!AX19 -> 0.3170328841 | AY23: ='DATA (Real)'!AY19 -> 0.3176669499 | AZ23: ='DATA (Real)'!AZ19 -> 0.3183022838 | BA23: ='DATA (Real)'!BA19 -> 0.3189388883 | BB23: ='DATA (Real)'!BB19 -> 0.3195767661 | BC23: ='DATA (Real)'!BC19 -> 0.3202159197 | BD23: ='DATA (Real)'!BD19 -> 0.3208563515 | BE23: ='DATA (Real)'!BE19 -> 0.3214980642 | BF23: ='DATA (Real)'!BF19 -> 0.3221410603 | BG23: ='DATA (Real)'!BG19 -> 0.3227853424 | BH23: ='DATA (Real)'!BH19 -> 0.3234309131 | BI23: ='DATA (Real)'!BI19 -> 0.324077775 | BJ23: ='DATA (Real)'!BJ19 -> 0.3247259305 | BK23: ='DATA (Real)'!BK19 -> 0.3253753824 | BL23: ='DATA (Real)'!BL19 -> 0.3260261331 | BM23: ='DATA (Real)'!BM19 -> 0.3266781854 | BN23: ='DATA (Real)'!BN19 -> 0.3273315418 | BO23: ='DATA (Real)'!BO19 -> 0.3279862048 | BP23: ='DATA (Real)'!BP19 -> 0.3286421773 | BQ23: ='DATA (Real)'!BQ19 -> 0.3292994616 | BR23: ='DATA (Real)'!BR19 -> 0.3299580605 | BS23: ='DATA (Real)'!BS19 -> 0.3306179767 | BT23: ='DATA (Real)'!BT19 -> 0.3312792126 | BU23: ='DATA (Real)'!BU19 -> 0.331941771 | BV23: ='DATA (Real)'!BV19 -> 0.3326056546 | BW23: ='DATA (Real)'!BW19 -> 0.3332708659 | BX23: ='DATA (Real)'!BX19 -> 0.3339374076
C24: ='DATA (Real)'!C20 -> Internal/NREL Land-Based Wind - Class 8 | D24: ='DATA (Real)'!D20 -> Net Capacity Factor (%) | E24: ='DATA (Real)'!E20 -> NW Wind On System (Share) | F24: ='DATA (Real)'!F20 -> 0.322 | G24: ='DATA (Real)'!G20 -> 0.322 | H24: ='DATA (Real)'!H20 -> 0.322 | I24: ='DATA (Real)'!I20 -> 0.322 | J24: ='DATA (Real)'!J20 -> 0.322 | K24: ='DATA (Real)'!K20 -> 0.322 | L24: ='DATA (Real)'!L20 -> 0.322 | M24: ='DATA (Real)'!M20 -> 0.3272808 | N24: ='DATA (Real)'!N20 -> 0.3326482051 | O24: ='DATA (Real)'!O20 -> 0.3381036357 | P24: ='DATA (Real)'!P20 -> 0.3436485353 | Q24: ='DATA (Real)'!Q20 -> 0.3439921838 | R24: ='DATA (Real)'!R20 -> 0.344336176 | S24: ='DATA (Real)'!S20 -> 0.3446805122 | T24: ='DATA (Real)'!T20 -> 0.3450251927 | U24: ='DATA (Real)'!U20 -> 0.3453702179 | V24: ='DATA (Real)'!V20 -> 0.3457155881 | W24: ='DATA (Real)'!W20 -> 0.3460613037 | X24: ='DATA (Real)'!X20 -> 0.346407365 | Y24: ='DATA (Real)'!Y20 -> 0.3467537724 | Z24: ='DATA (Real)'!Z20 -> 0.3471005262 | AA24: ='DATA (Real)'!AA20 -> 0.3474476267 | AB24: ='DATA (Real)'!AB20 -> 0.3477950743 | AC24: ='DATA (Real)'!AC20 -> 0.3481428694 | AD24: ='DATA (Real)'!AD20 -> 0.3484910123 | AE24: ='DATA (Real)'!AE20 -> 0.3488395033 | AF24: ='DATA (Real)'!AF20 -> 0.3491883428 | AG24: ='DATA (Real)'!AG20 -> 0.3495375311 | AH24: ='DATA (Real)'!AH20 -> 0.3498870686 | AI24: ='DATA (Real)'!AI20 -> 0.3502369557 | AJ24: ='DATA (Real)'!AJ20 -> 0.3505871927 | AK24: ='DATA (Real)'!AK20 -> 0.3509377799 | AL24: ='DATA (Real)'!AL20 -> 0.3512887176 | AM24: ='DATA (Real)'!AM20 -> 0.3516400064 | AN24: ='DATA (Real)'!AN20 -> 0.3519916464 | AO24: ='DATA (Real)'!AO20 -> 0.352343638 | AP24: ='DATA (Real)'!AP20 -> 0.3526959816 | AQ24: ='DATA (Real)'!AQ20 -> 0.3530486776 | AR24: ='DATA (Real)'!AR20 -> 0.3534017263 | AS24: ='DATA (Real)'!AS20 -> 0.353755128 | AT24: ='DATA (Real)'!AT20 -> 0.3541088832 | AU24: ='DATA (Real)'!AU20 -> 0.354462992 | AV24: ='DATA (Real)'!AV20 -> 0.354817455 | AW24: ='DATA (Real)'!AW20 -> 0.3551722725 | AX24: ='DATA (Real)'!AX20 -> 0.3555274448 | AY24: ='DATA (Real)'!AY20 -> 0.3558829722 | AZ24: ='DATA (Real)'!AZ20 -> 0.3562388552 | BA24: ='DATA (Real)'!BA20 -> 0.356595094 | BB24: ='DATA (Real)'!BB20 -> 0.3569516891 | BC24: ='DATA (Real)'!BC20 -> 0.3573086408 | BD24: ='DATA (Real)'!BD20 -> 0.3576659495 | BE24: ='DATA (Real)'!BE20 -> 0.3580236154 | BF24: ='DATA (Real)'!BF20 -> 0.358381639 | BG24: ='DATA (Real)'!BG20 -> 0.3587400207 | BH24: ='DATA (Real)'!BH20 -> 0.3590987607 | BI24: ='DATA (Real)'!BI20 -> 0.3594578594 | BJ24: ='DATA (Real)'!BJ20 -> 0.3598173173 | BK24: ='DATA (Real)'!BK20 -> 0.3601771346 | BL24: ='DATA (Real)'!BL20 -> 0.3605373118 | BM24: ='DATA (Real)'!BM20 -> 0.3608978491 | BN24: ='DATA (Real)'!BN20 -> 0.3612587469 | BO24: ='DATA (Real)'!BO20 -> 0.3616200057 | BP24: ='DATA (Real)'!BP20 -> 0.3619816257 | BQ24: ='DATA (Real)'!BQ20 -> 0.3623436073 | BR24: ='DATA (Real)'!BR20 -> 0.3627059509 | BS24: ='DATA (Real)'!BS20 -> 0.3630686569 | BT24: ='DATA (Real)'!BT20 -> 0.3634317255 | BU24: ='DATA (Real)'!BU20 -> 0.3637951572 | BV24: ='DATA (Real)'!BV20 -> 0.3641589524 | BW24: ='DATA (Real)'!BW20 -> 0.3645231113 | BX24: ='DATA (Real)'!BX20 -> 0.3648876345
C25: ='DATA (Real)'!C21 -> Internal/NREL Land-Based Wind - Class 8 | D25: ='DATA (Real)'!D21 -> Net Capacity Factor (%) | E25: ='DATA (Real)'!E21 -> NW Wind Off System | F25: ='DATA (Real)'!F21 -> 0.322 | G25: ='DATA (Real)'!G21 -> 0.322 | H25: ='DATA (Real)'!H21 -> 0.322 | I25: ='DATA (Real)'!I21 -> 0.322 | J25: ='DATA (Real)'!J21 -> 0.322 | K25: ='DATA (Real)'!K21 -> 0.322 | L25: ='DATA (Real)'!L21 -> 0.322 | M25: ='DATA (Real)'!M21 -> 0.3272808 | N25: ='DATA (Real)'!N21 -> 0.3326482051 | O25: ='DATA (Real)'!O21 -> 0.3381036357 | P25: ='DATA (Real)'!P21 -> 0.3436485353 | Q25: ='DATA (Real)'!Q21 -> 0.3439921838 | R25: ='DATA (Real)'!R21 -> 0.344336176 | S25: ='DATA (Real)'!S21 -> 0.3446805122 | T25: ='DATA (Real)'!T21 -> 0.3450251927 | U25: ='DATA (Real)'!U21 -> 0.3453702179 | V25: ='DATA (Real)'!V21 -> 0.3457155881 | W25: ='DATA (Real)'!W21 -> 0.3460613037 | X25: ='DATA (Real)'!X21 -> 0.346407365 | Y25: ='DATA (Real)'!Y21 -> 0.3467537724 | Z25: ='DATA (Real)'!Z21 -> 0.3471005262 | AA25: ='DATA (Real)'!AA21 -> 0.3474476267 | AB25: ='DATA (Real)'!AB21 -> 0.3477950743 | AC25: ='DATA (Real)'!AC21 -> 0.3481428694 | AD25: ='DATA (Real)'!AD21 -> 0.3484910123 | AE25: ='DATA (Real)'!AE21 -> 0.3488395033 | AF25: ='DATA (Real)'!AF21 -> 0.3491883428 | AG25: ='DATA (Real)'!AG21 -> 0.3495375311 | AH25: ='DATA (Real)'!AH21 -> 0.3498870686 | AI25: ='DATA (Real)'!AI21 -> 0.3502369557 | AJ25: ='DATA (Real)'!AJ21 -> 0.3505871927 | AK25: ='DATA (Real)'!AK21 -> 0.3509377799 | AL25: ='DATA (Real)'!AL21 -> 0.3512887176 | AM25: ='DATA (Real)'!AM21 -> 0.3516400064 | AN25: ='DATA (Real)'!AN21 -> 0.3519916464 | AO25: ='DATA (Real)'!AO21 -> 0.352343638 | AP25: ='DATA (Real)'!AP21 -> 0.3526959816 | AQ25: ='DATA (Real)'!AQ21 -> 0.3530486776 | AR25: ='DATA (Real)'!AR21 -> 0.3534017263 | AS25: ='DATA (Real)'!AS21 -> 0.353755128 | AT25: ='DATA (Real)'!AT21 -> 0.3541088832 | AU25: ='DATA (Real)'!AU21 -> 0.354462992 | AV25: ='DATA (Real)'!AV21 -> 0.354817455 | AW25: ='DATA (Real)'!AW21 -> 0.3551722725 | AX25: ='DATA (Real)'!AX21 -> 0.3555274448 | AY25: ='DATA (Real)'!AY21 -> 0.3558829722 | AZ25: ='DATA (Real)'!AZ21 -> 0.3562388552 | BA25: ='DATA (Real)'!BA21 -> 0.356595094 | BB25: ='DATA (Real)'!BB21 -> 0.3569516891 | BC25: ='DATA (Real)'!BC21 -> 0.3573086408 | BD25: ='DATA (Real)'!BD21 -> 0.3576659495 | BE25: ='DATA (Real)'!BE21 -> 0.3580236154 | BF25: ='DATA (Real)'!BF21 -> 0.358381639 | BG25: ='DATA (Real)'!BG21 -> 0.3587400207 | BH25: ='DATA (Real)'!BH21 -> 0.3590987607 | BI25: ='DATA (Real)'!BI21 -> 0.3594578594 | BJ25: ='DATA (Real)'!BJ21 -> 0.3598173173 | BK25: ='DATA (Real)'!BK21 -> 0.3601771346 | BL25: ='DATA (Real)'!BL21 -> 0.3605373118 | BM25: ='DATA (Real)'!BM21 -> 0.3608978491 | BN25: ='DATA (Real)'!BN21 -> 0.3612587469 | BO25: ='DATA (Real)'!BO21 -> 0.3616200057 | BP25: ='DATA (Real)'!BP21 -> 0.3619816257 | BQ25: ='DATA (Real)'!BQ21 -> 0.3623436073 | BR25: ='DATA (Real)'!BR21 -> 0.3627059509 | BS25: ='DATA (Real)'!BS21 -> 0.3630686569 | BT25: ='DATA (Real)'!BT21 -> 0.3634317255 | BU25: ='DATA (Real)'!BU21 -> 0.3637951572 | BV25: ='DATA (Real)'!BV21 -> 0.3641589524 | BW25: ='DATA (Real)'!BW21 -> 0.3645231113 | BX25: ='DATA (Real)'!BX21 -> 0.3648876345
C26: ='DATA (Real)'!C22 -> Internal | D26: ='DATA (Real)'!D22 -> Net Capacity Factor (%) | E26: ='DATA (Real)'!E22 -> Wind Montana | F26: ='DATA (Real)'!F22 -> 0.41 | G26: ='DATA (Real)'!G22 -> 0.41 | H26: ='DATA (Real)'!H22 -> 0.41 | I26: ='DATA (Real)'!I22 -> 0.41 | J26: ='DATA (Real)'!J22 -> 0.41 | K26: ='DATA (Real)'!K22 -> 0.41 | L26: ='DATA (Real)'!L22 -> 0.41 | M26: ='DATA (Real)'!M22 -> 0.416724 | N26: ='DATA (Real)'!N22 -> 0.4235582736 | O26: ='DATA (Real)'!O22 -> 0.4305046293 | P26: ='DATA (Real)'!P22 -> 0.4375649052 | Q26: ='DATA (Real)'!Q22 -> 0.4380024701 | R26: ='DATA (Real)'!R22 -> 0.4384404726 | S26: ='DATA (Real)'!S22 -> 0.4388789131 | T26: ='DATA (Real)'!T22 -> 0.439317792 | U26: ='DATA (Real)'!U22 -> 0.4397571098 | V26: ='DATA (Real)'!V22 -> 0.4401968669 | W26: ='DATA (Real)'!W22 -> 0.4406370637 | X26: ='DATA (Real)'!X22 -> 0.4410777008 | Y26: ='DATA (Real)'!Y22 -> 0.4415187785 | Z26: ='DATA (Real)'!Z22 -> 0.4419602973 | AA26: ='DATA (Real)'!AA22 -> 0.4424022576 | AB26: ='DATA (Real)'!AB22 -> 0.4428446598 | AC26: ='DATA (Real)'!AC22 -> 0.4432875045 | AD26: ='DATA (Real)'!AD22 -> 0.443730792 | AE26: ='DATA (Real)'!AE22 -> 0.4441745228 | AF26: ='DATA (Real)'!AF22 -> 0.4446186973 | AG26: ='DATA (Real)'!AG22 -> 0.445063316 | AH26: ='DATA (Real)'!AH22 -> 0.4455083793 | AI26: ='DATA (Real)'!AI22 -> 0.4459538877 | AJ26: ='DATA (Real)'!AJ22 -> 0.4463998416 | AK26: ='DATA (Real)'!AK22 -> 0.4468462414 | AL26: ='DATA (Real)'!AL22 -> 0.4472930877 | AM26: ='DATA (Real)'!AM22 -> 0.4477403808 | AN26: ='DATA (Real)'!AN22 -> 0.4481881211 | AO26: ='DATA (Real)'!AO22 -> 0.4486363093 | AP26: ='DATA (Real)'!AP22 -> 0.4490849456 | AQ26: ='DATA (Real)'!AQ22 -> 0.4495340305 | AR26: ='DATA (Real)'!AR22 -> 0.4499835646 | AS26: ='DATA (Real)'!AS22 -> 0.4504335481 | AT26: ='DATA (Real)'!AT22 -> 0.4508839817 | AU26: ='DATA (Real)'!AU22 -> 0.4513348656 | AV26: ='DATA (Real)'!AV22 -> 0.4517862005 | AW26: ='DATA (Real)'!AW22 -> 0.4522379867 | AX26: ='DATA (Real)'!AX22 -> 0.4526902247 | AY26: ='DATA (Real)'!AY22 -> 0.4531429149 | AZ26: ='DATA (Real)'!AZ22 -> 0.4535960578 | BA26: ='DATA (Real)'!BA22 -> 0.4540496539 | BB26: ='DATA (Real)'!BB22 -> 0.4545037036 | BC26: ='DATA (Real)'!BC22 -> 0.4549582073 | BD26: ='DATA (Real)'!BD22 -> 0.4554131655 | BE26: ='DATA (Real)'!BE22 -> 0.4558685786 | BF26: ='DATA (Real)'!BF22 -> 0.4563244472 | BG26: ='DATA (Real)'!BG22 -> 0.4567807717 | BH26: ='DATA (Real)'!BH22 -> 0.4572375524 | BI26: ='DATA (Real)'!BI22 -> 0.45769479 | BJ26: ='DATA (Real)'!BJ22 -> 0.4581524848 | BK26: ='DATA (Real)'!BK22 -> 0.4586106373 | BL26: ='DATA (Real)'!BL22 -> 0.4590692479 | BM26: ='DATA (Real)'!BM22 -> 0.4595283171 | BN26: ='DATA (Real)'!BN22 -> 0.4599878455 | BO26: ='DATA (Real)'!BO22 -> 0.4604478333 | BP26: ='DATA (Real)'!BP22 -> 0.4609082811 | BQ26: ='DATA (Real)'!BQ22 -> 0.4613691894 | BR26: ='DATA (Real)'!BR22 -> 0.4618305586 | BS26: ='DATA (Real)'!BS22 -> 0.4622923892 | BT26: ='DATA (Real)'!BT22 -> 0.4627546816 | BU26: ='DATA (Real)'!BU22 -> 0.4632174362 | BV26: ='DATA (Real)'!BV22 -> 0.4636806537 | BW26: ='DATA (Real)'!BW22 -> 0.4641443343 | BX26: ='DATA (Real)'!BX22 -> 0.4646084787
C27: ='DATA (Real)'!C23 -> NREL Wind Speed Class 12 | D27: ='DATA (Real)'!D23 -> Net Capacity Factor (%) | E27: ='DATA (Real)'!E23 -> Off Shore Wind (Share) | F27: ='DATA (Real)'!F23 -> 0.4618726114 | G27: ='DATA (Real)'!G23 -> 0.4668178941 | H27: ='DATA (Real)'!H23 -> 0.4713267726 | I27: ='DATA (Real)'!I23 -> 0.4755596161 | J27: ='DATA (Real)'!J23 -> 0.4796019705 | K27: ='DATA (Real)'!K23 -> 0.4835048988 | L27: ='DATA (Real)'!L23 -> 0.4873013381 | M27: ='DATA (Real)'!M23 -> 0.4910137773 | N27: ='DATA (Real)'!N23 -> 0.494658257 | O27: ='DATA (Real)'!O23 -> 0.4982466208 | P27: ='DATA (Real)'!P23 -> 0.5017878631 | Q27: ='DATA (Real)'!Q23 -> 0.5032889752 | R27: ='DATA (Real)'!R23 -> 0.5047554993 | S27: ='DATA (Real)'!S23 -> 0.5061919036 | T27: ='DATA (Real)'!T23 -> 0.5076018423 | U27: ='DATA (Real)'!U23 -> 0.5089883428 | V27: ='DATA (Real)'!V23 -> 0.510353941 | W27: ='DATA (Real)'!W23 -> 0.5117007821 | X27: ='DATA (Real)'!X23 -> 0.5130306972 | Y27: ='DATA (Real)'!Y23 -> 0.5143452617 | Z27: ='DATA (Real)'!Z23 -> 0.5156458409 | AA27: ='DATA (Real)'!AA23 -> 0.5169336256 | AB27: ='DATA (Real)'!AB23 -> 0.5182096605 | AC27: ='DATA (Real)'!AC23 -> 0.5194748678 | AD27: ='DATA (Real)'!AD23 -> 0.5207300648 | AE27: ='DATA (Real)'!AE23 -> 0.5219759799 | AF27: ='DATA (Real)'!AF23 -> 0.5232132645 | AG27: ='DATA (Real)'!AG23 -> 0.524442504 | AH27: ='DATA (Real)'!AH23 -> 0.5256642262 | AI27: ='DATA (Real)'!AI23 -> 0.5268789083 | AJ27: ='DATA (Real)'!AJ23 -> 0.5280869837 | AK27: ='DATA (Real)'!AK23 -> 0 | AL27: ='DATA (Real)'!AL23 -> 0 | AM27: ='DATA (Real)'!AM23 -> 0 | AN27: ='DATA (Real)'!AN23 -> 0 | AO27: ='DATA (Real)'!AO23 -> 0 | AP27: ='DATA (Real)'!AP23 -> 0 | AQ27: ='DATA (Real)'!AQ23 -> 0 | AR27: ='DATA (Real)'!AR23 -> 0 | AS27: ='DATA (Real)'!AS23 -> 0 | AT27: ='DATA (Real)'!AT23 -> 0 | AU27: ='DATA (Real)'!AU23 -> 0 | AV27: ='DATA (Real)'!AV23 -> 0 | AW27: ='DATA (Real)'!AW23 -> 0 | AX27: ='DATA (Real)'!AX23 -> 0 | AY27: ='DATA (Real)'!AY23 -> 0 | AZ27: ='DATA (Real)'!AZ23 -> 0 | BA27: ='DATA (Real)'!BA23 -> 0 | BB27: ='DATA (Real)'!BB23 -> 0 | BC27: ='DATA (Real)'!BC23 -> 0 | BD27: ='DATA (Real)'!BD23 -> 0 | BE27: ='DATA (Real)'!BE23 -> 0 | BF27: ='DATA (Real)'!BF23 -> 0 | BG27: ='DATA (Real)'!BG23 -> 0 | BH27: ='DATA (Real)'!BH23 -> 0 | BI27: ='DATA (Real)'!BI23 -> 0 | BJ27: ='DATA (Real)'!BJ23 -> 0 | BK27: ='DATA (Real)'!BK23 -> 0 | BL27: ='DATA (Real)'!BL23 -> 0 | BM27: ='DATA (Real)'!BM23 -> 0 | BN27: ='DATA (Real)'!BN23 -> 0 | BO27: ='DATA (Real)'!BO23 -> 0 | BP27: ='DATA (Real)'!BP23 -> 0 | BQ27: ='DATA (Real)'!BQ23 -> 0 | BR27: ='DATA (Real)'!BR23 -> 0 | BS27: ='DATA (Real)'!BS23 -> 0 | BT27: ='DATA (Real)'!BT23 -> 0 | BU27: ='DATA (Real)'!BU23 -> 0 | BV27: ='DATA (Real)'!BV23 -> 0 | BW27: ='DATA (Real)'!BW23 -> 0 | BX27: ='DATA (Real)'!BX23 -> 0
C28: ='DATA (Real)'!C24 -> NREL Nuclear - Small Modular Reactor | D28: ='DATA (Real)'!D24 -> Net Capacity Factor (%) | E28: ='DATA (Real)'!E24 -> Small Modular Reactor (share) | F28: ='DATA (Real)'!F24 -> 0.937 | G28: ='DATA (Real)'!G24 -> 0.937 | H28: ='DATA (Real)'!H24 -> 0.937 | I28: ='DATA (Real)'!I24 -> 0.937 | J28: ='DATA (Real)'!J24 -> 0.937 | K28: ='DATA (Real)'!K24 -> 0.937 | L28: ='DATA (Real)'!L24 -> 0.937 | M28: ='DATA (Real)'!M24 -> 0.937 | N28: ='DATA (Real)'!N24 -> 0.937 | O28: ='DATA (Real)'!O24 -> 0.937 | P28: ='DATA (Real)'!P24 -> 0.937 | Q28: ='DATA (Real)'!Q24 -> 0.937 | R28: ='DATA (Real)'!R24 -> 0.937 | S28: ='DATA (Real)'!S24 -> 0.937 | T28: ='DATA (Real)'!T24 -> 0.937 | U28: ='DATA (Real)'!U24 -> 0.937 | V28: ='DATA (Real)'!V24 -> 0.937 | W28: ='DATA (Real)'!W24 -> 0.937 | X28: ='DATA (Real)'!X24 -> 0.937 | Y28: ='DATA (Real)'!Y24 -> 0.937 | Z28: ='DATA (Real)'!Z24 -> 0.937 | AA28: ='DATA (Real)'!AA24 -> 0.937 | AB28: ='DATA (Real)'!AB24 -> 0.937 | AC28: ='DATA (Real)'!AC24 -> 0.937 | AD28: ='DATA (Real)'!AD24 -> 0.937 | AE28: ='DATA (Real)'!AE24 -> 0.937 | AF28: ='DATA (Real)'!AF24 -> 0.937 | AG28: ='DATA (Real)'!AG24 -> 0.937 | AH28: ='DATA (Real)'!AH24 -> 0.937 | AI28: ='DATA (Real)'!AI24 -> 0.937 | AJ28: ='DATA (Real)'!AJ24 -> 0.937 | AK28: ='DATA (Real)'!AK24 -> 0.937 | AL28: ='DATA (Real)'!AL24 -> 0.937 | AM28: ='DATA (Real)'!AM24 -> 0.937 | AN28: ='DATA (Real)'!AN24 -> 0.937 | AO28: ='DATA (Real)'!AO24 -> 0.937 | AP28: ='DATA (Real)'!AP24 -> 0.937 | AQ28: ='DATA (Real)'!AQ24 -> 0.937 | AR28: ='DATA (Real)'!AR24 -> 0.937 | AS28: ='DATA (Real)'!AS24 -> 0.937 | AT28: ='DATA (Real)'!AT24 -> 0.937 | AU28: ='DATA (Real)'!AU24 -> 0.937 | AV28: ='DATA (Real)'!AV24 -> 0.937 | AW28: ='DATA (Real)'!AW24 -> 0.937 | AX28: ='DATA (Real)'!AX24 -> 0.937 | AY28: ='DATA (Real)'!AY24 -> 0.937 | AZ28: ='DATA (Real)'!AZ24 -> 0.937 | BA28: ='DATA (Real)'!BA24 -> 0.937 | BB28: ='DATA (Real)'!BB24 -> 0.937 | BC28: ='DATA (Real)'!BC24 -> 0.937 | BD28: ='DATA (Real)'!BD24 -> 0.937 | BE28: ='DATA (Real)'!BE24 -> 0.937 | BF28: ='DATA (Real)'!BF24 -> 0.937 | BG28: ='DATA (Real)'!BG24 -> 0.937 | BH28: ='DATA (Real)'!BH24 -> 0.937 | BI28: ='DATA (Real)'!BI24 -> 0.937 | BJ28: ='DATA (Real)'!BJ24 -> 0.937 | BK28: ='DATA (Real)'!BK24 -> 0.937 | BL28: ='DATA (Real)'!BL24 -> 0.937 | BM28: ='DATA (Real)'!BM24 -> 0.937 | BN28: ='DATA (Real)'!BN24 -> 0.937 | BO28: ='DATA (Real)'!BO24 -> 0.937 | BP28: ='DATA (Real)'!BP24 -> 0.937 | BQ28: ='DATA (Real)'!BQ24 -> 0.937 | BR28: ='DATA (Real)'!BR24 -> 0.937 | BS28: ='DATA (Real)'!BS24 -> 0.937 | BT28: ='DATA (Real)'!BT24 -> 0.937 | BU28: ='DATA (Real)'!BU24 -> 0.937 | BV28: ='DATA (Real)'!BV24 -> 0.937 | BW28: ='DATA (Real)'!BW24 -> 0.937 | BX28: ='DATA (Real)'!BX24 -> 0.937
C29: ='DATA (Real)'!C25 -> NREL Geothermal - Hydro / Flash | D29: ='DATA (Real)'!D25 -> Net Capacity Factor (%) | E29: ='DATA (Real)'!E25 -> Geothermal (Off System) | F29: ='DATA (Real)'!F25 -> 0.9 | G29: ='DATA (Real)'!G25 -> 0.9 | H29: ='DATA (Real)'!H25 -> 0.9 | I29: ='DATA (Real)'!I25 -> 0.9 | J29: ='DATA (Real)'!J25 -> 0.9 | K29: ='DATA (Real)'!K25 -> 0.9 | L29: ='DATA (Real)'!L25 -> 0.9 | M29: ='DATA (Real)'!M25 -> 0.9 | N29: ='DATA (Real)'!N25 -> 0.9 | O29: ='DATA (Real)'!O25 -> 0.9 | P29: ='DATA (Real)'!P25 -> 0.9 | Q29: ='DATA (Real)'!Q25 -> 0.9 | R29: ='DATA (Real)'!R25 -> 0.9 | S29: ='DATA (Real)'!S25 -> 0.9 | T29: ='DATA (Real)'!T25 -> 0.9 | U29: ='DATA (Real)'!U25 -> 0.9 | V29: ='DATA (Real)'!V25 -> 0.9 | W29: ='DATA (Real)'!W25 -> 0.9 | X29: ='DATA (Real)'!X25 -> 0.9 | Y29: ='DATA (Real)'!Y25 -> 0.9 | Z29: ='DATA (Real)'!Z25 -> 0.9 | AA29: ='DATA (Real)'!AA25 -> 0.9 | AB29: ='DATA (Real)'!AB25 -> 0.9 | AC29: ='DATA (Real)'!AC25 -> 0.9 | AD29: ='DATA (Real)'!AD25 -> 0.9 | AE29: ='DATA (Real)'!AE25 -> 0.9 | AF29: ='DATA (Real)'!AF25 -> 0.9 | AG29: ='DATA (Real)'!AG25 -> 0.9 | AH29: ='DATA (Real)'!AH25 -> 0.9 | AI29: ='DATA (Real)'!AI25 -> 0.9 | AJ29: ='DATA (Real)'!AJ25 -> 0.9 | AK29: ='DATA (Real)'!AK25 -> 0.9 | AL29: ='DATA (Real)'!AL25 -> 0.9 | AM29: ='DATA (Real)'!AM25 -> 0.9 | AN29: ='DATA (Real)'!AN25 -> 0.9 | AO29: ='DATA (Real)'!AO25 -> 0.9 | AP29: ='DATA (Real)'!AP25 -> 0.9 | AQ29: ='DATA (Real)'!AQ25 -> 0.9 | AR29: ='DATA (Real)'!AR25 -> 0.9 | AS29: ='DATA (Real)'!AS25 -> 0.9 | AT29: ='DATA (Real)'!AT25 -> 0.9 | AU29: ='DATA (Real)'!AU25 -> 0.9 | AV29: ='DATA (Real)'!AV25 -> 0.9 | AW29: ='DATA (Real)'!AW25 -> 0.9 | AX29: ='DATA (Real)'!AX25 -> 0.9 | AY29: ='DATA (Real)'!AY25 -> 0.9 | AZ29: ='DATA (Real)'!AZ25 -> 0.9 | BA29: ='DATA (Real)'!BA25 -> 0.9 | BB29: ='DATA (Real)'!BB25 -> 0.9 | BC29: ='DATA (Real)'!BC25 -> 0.9 | BD29: ='DATA (Real)'!BD25 -> 0.9 | BE29: ='DATA (Real)'!BE25 -> 0.9 | BF29: ='DATA (Real)'!BF25 -> 0.9 | BG29: ='DATA (Real)'!BG25 -> 0.9 | BH29: ='DATA (Real)'!BH25 -> 0.9 | BI29: ='DATA (Real)'!BI25 -> 0.9 | BJ29: ='DATA (Real)'!BJ25 -> 0.9 | BK29: ='DATA (Real)'!BK25 -> 0.9 | BL29: ='DATA (Real)'!BL25 -> 0.9 | BM29: ='DATA (Real)'!BM25 -> 0.9 | BN29: ='DATA (Real)'!BN25 -> 0.9 | BO29: ='DATA (Real)'!BO25 -> 0.9 | BP29: ='DATA (Real)'!BP25 -> 0.9 | BQ29: ='DATA (Real)'!BQ25 -> 0.9 | BR29: ='DATA (Real)'!BR25 -> 0.9 | BS29: ='DATA (Real)'!BS25 -> 0.9 | BT29: ='DATA (Real)'!BT25 -> 0.9 | BU29: ='DATA (Real)'!BU25 -> 0.9 | BV29: ='DATA (Real)'!BV25 -> 0.9 | BW29: ='DATA (Real)'!BW25 -> 0.9 | BX29: ='DATA (Real)'!BX25 -> 0.9
B31: =D31 -> Heat Rate (MMBtu/MWh) | D31: ='DATA (Real)'!D27 -> Heat Rate (MMBtu/MWh)
C32: ='DATA (Real)'!C28 -> NREL Nuclear - Small Modular Reactor | D32: ='DATA (Real)'!D28 -> Heat Rate (MMBtu/MWh) | E32: ='DATA (Real)'!E28 -> Small Modular Reactor (share) | F32: ='DATA (Real)'!F28 -> 10.443 | G32: ='DATA (Real)'!G28 -> 10.443 | H32: ='DATA (Real)'!H28 -> 10.443 | I32: ='DATA (Real)'!I28 -> 10.443 | J32: ='DATA (Real)'!J28 -> 10.443 | K32: ='DATA (Real)'!K28 -> 10.443 | L32: ='DATA (Real)'!L28 -> 10.443 | M32: ='DATA (Real)'!M28 -> 10.443 | N32: ='DATA (Real)'!N28 -> 10.443 | O32: ='DATA (Real)'!O28 -> 10.443 | P32: ='DATA (Real)'!P28 -> 10.443 | Q32: ='DATA (Real)'!Q28 -> 10.443 | R32: ='DATA (Real)'!R28 -> 10.443 | S32: ='DATA (Real)'!S28 -> 10.443 | T32: ='DATA (Real)'!T28 -> 10.443 | U32: ='DATA (Real)'!U28 -> 10.443 | V32: ='DATA (Real)'!V28 -> 10.443 | W32: ='DATA (Real)'!W28 -> 10.443 | X32: ='DATA (Real)'!X28 -> 10.443 | Y32: ='DATA (Real)'!Y28 -> 10.443 | Z32: ='DATA (Real)'!Z28 -> 10.443 | AA32: ='DATA (Real)'!AA28 -> 10.443 | AB32: ='DATA (Real)'!AB28 -> 10.443 | AC32: ='DATA (Real)'!AC28 -> 10.443 | AD32: ='DATA (Real)'!AD28 -> 10.443 | AE32: ='DATA (Real)'!AE28 -> 10.443 | AF32: ='DATA (Real)'!AF28 -> 10.443 | AG32: ='DATA (Real)'!AG28 -> 10.443 | AH32: ='DATA (Real)'!AH28 -> 10.443 | AI32: ='DATA (Real)'!AI28 -> 10.443 | AJ32: ='DATA (Real)'!AJ28 -> 10.443 | AK32: ='DATA (Real)'!AK28 -> 10.443 | AL32: ='DATA (Real)'!AL28 -> 10.443 | AM32: ='DATA (Real)'!AM28 -> 10.443 | AN32: ='DATA (Real)'!AN28 -> 10.443 | AO32: ='DATA (Real)'!AO28 -> 10.443 | AP32: ='DATA (Real)'!AP28 -> 10.443 | AQ32: ='DATA (Real)'!AQ28 -> 10.443 | AR32: ='DATA (Real)'!AR28 -> 10.443 | AS32: ='DATA (Real)'!AS28 -> 10.443 | AT32: ='DATA (Real)'!AT28 -> 10.443 | AU32: ='DATA (Real)'!AU28 -> 10.443 | AV32: ='DATA (Real)'!AV28 -> 10.443 | AW32: ='DATA (Real)'!AW28 -> 10.443 | AX32: ='DATA (Real)'!AX28 -> 10.443 | AY32: ='DATA (Real)'!AY28 -> 10.443 | AZ32: ='DATA (Real)'!AZ28 -> 10.443 | BA32: ='DATA (Real)'!BA28 -> 10.443 | BB32: ='DATA (Real)'!BB28 -> 10.443 | BC32: ='DATA (Real)'!BC28 -> 10.443 | BD32: ='DATA (Real)'!BD28 -> 10.443 | BE32: ='DATA (Real)'!BE28 -> 10.443 | BF32: ='DATA (Real)'!BF28 -> 10.443 | BG32: ='DATA (Real)'!BG28 -> 10.443 | BH32: ='DATA (Real)'!BH28 -> 10.443 | BI32: ='DATA (Real)'!BI28 -> 10.443 | BJ32: ='DATA (Real)'!BJ28 -> 10.443 | BK32: ='DATA (Real)'!BK28 -> 10.443 | BL32: ='DATA (Real)'!BL28 -> 10.443 | BM32: ='DATA (Real)'!BM28 -> 10.443 | BN32: ='DATA (Real)'!BN28 -> 10.443 | BO32: ='DATA (Real)'!BO28 -> 10.443 | BP32: ='DATA (Real)'!BP28 -> 10.443 | BQ32: ='DATA (Real)'!BQ28 -> 10.443 | BR32: ='DATA (Real)'!BR28 -> 10.443 | BS32: ='DATA (Real)'!BS28 -> 10.443 | BT32: ='DATA (Real)'!BT28 -> 10.443 | BU32: ='DATA (Real)'!BU28 -> 10.443 | BV32: ='DATA (Real)'!BV28 -> 10.443 | BW32: ='DATA (Real)'!BW28 -> 10.443 | BX32: ='DATA (Real)'!BX28 -> 10.443
C33: ='DATA (Real)'!C29 -> Internal | D33: ='DATA (Real)'!D29 -> Heat Rate (MMBtu/MWh) | E33: ='DATA (Real)'!E29 -> Wood Biomass | F33: ='DATA (Real)'!F29 -> 13.524 | G33: ='DATA (Real)'!G29 -> 13.524 | H33: ='DATA (Real)'!H29 -> 13.524 | I33: ='DATA (Real)'!I29 -> 13.524 | J33: ='DATA (Real)'!J29 -> 13.524 | K33: ='DATA (Real)'!K29 -> 13.524 | L33: ='DATA (Real)'!L29 -> 13.524 | M33: ='DATA (Real)'!M29 -> 13.524 | N33: ='DATA (Real)'!N29 -> 13.524 | O33: ='DATA (Real)'!O29 -> 13.524 | P33: ='DATA (Real)'!P29 -> 13.524 | Q33: ='DATA (Real)'!Q29 -> 13.524 | R33: ='DATA (Real)'!R29 -> 13.524 | S33: ='DATA (Real)'!S29 -> 13.524 | T33: ='DATA (Real)'!T29 -> 13.524 | U33: ='DATA (Real)'!U29 -> 13.524 | V33: ='DATA (Real)'!V29 -> 13.524 | W33: ='DATA (Real)'!W29 -> 13.524 | X33: ='DATA (Real)'!X29 -> 13.524 | Y33: ='DATA (Real)'!Y29 -> 13.524 | Z33: ='DATA (Real)'!Z29 -> 13.524 | AA33: ='DATA (Real)'!AA29 -> 13.524 | AB33: ='DATA (Real)'!AB29 -> 13.524 | AC33: ='DATA (Real)'!AC29 -> 13.524 | AD33: ='DATA (Real)'!AD29 -> 13.524 | AE33: ='DATA (Real)'!AE29 -> 13.524 | AF33: ='DATA (Real)'!AF29 -> 13.524 | AG33: ='DATA (Real)'!AG29 -> 13.524 | AH33: ='DATA (Real)'!AH29 -> 13.524 | AI33: ='DATA (Real)'!AI29 -> 13.524 | AJ33: ='DATA (Real)'!AJ29 -> 13.524 | AK33: ='DATA (Real)'!AK29 -> 13.524 | AL33: ='DATA (Real)'!AL29 -> 13.524 | AM33: ='DATA (Real)'!AM29 -> 13.524 | AN33: ='DATA (Real)'!AN29 -> 13.524 | AO33: ='DATA (Real)'!AO29 -> 13.524 | AP33: ='DATA (Real)'!AP29 -> 13.524 | AQ33: ='DATA (Real)'!AQ29 -> 13.524 | AR33: ='DATA (Real)'!AR29 -> 13.524 | AS33: ='DATA (Real)'!AS29 -> 13.524 | AT33: ='DATA (Real)'!AT29 -> 13.524 | AU33: ='DATA (Real)'!AU29 -> 13.524 | AV33: ='DATA (Real)'!AV29 -> 13.524 | AW33: ='DATA (Real)'!AW29 -> 13.524 | AX33: ='DATA (Real)'!AX29 -> 13.524 | AY33: ='DATA (Real)'!AY29 -> 13.524 | AZ33: ='DATA (Real)'!AZ29 -> 13.524 | BA33: ='DATA (Real)'!BA29 -> 13.524 | BB33: ='DATA (Real)'!BB29 -> 13.524 | BC33: ='DATA (Real)'!BC29 -> 13.524 | BD33: ='DATA (Real)'!BD29 -> 13.524 | BE33: ='DATA (Real)'!BE29 -> 13.524 | BF33: ='DATA (Real)'!BF29 -> 13.524 | BG33: ='DATA (Real)'!BG29 -> 13.524 | BH33: ='DATA (Real)'!BH29 -> 13.524 | BI33: ='DATA (Real)'!BI29 -> 13.524 | BJ33: ='DATA (Real)'!BJ29 -> 13.524 | BK33: ='DATA (Real)'!BK29 -> 13.524 | BL33: ='DATA (Real)'!BL29 -> 13.524 | BM33: ='DATA (Real)'!BM29 -> 13.524 | BN33: ='DATA (Real)'!BN29 -> 13.524 | BO33: ='DATA (Real)'!BO29 -> 13.524 | BP33: ='DATA (Real)'!BP29 -> 13.524 | BQ33: ='DATA (Real)'!BQ29 -> 13.524 | BR33: ='DATA (Real)'!BR29 -> 13.524 | BS33: ='DATA (Real)'!BS29 -> 13.524 | BT33: ='DATA (Real)'!BT29 -> 13.524 | BU33: ='DATA (Real)'!BU29 -> 13.524 | BV33: ='DATA (Real)'!BV29 -> 13.524 | BW33: ='DATA (Real)'!BW29 -> 13.524 | BX33: ='DATA (Real)'!BX29 -> 13.524
C34: ='DATA (Real)'!C30 -> Internal | D34: ='DATA (Real)'!D30 -> Heat Rate (MMBtu/MWh) | E34: ='DATA (Real)'!E30 -> Rathdrum CT 2055 Uprates two unit operation | F34: ='DATA (Real)'!F30 -> 11.2 | G34: ='DATA (Real)'!G30 -> 11.2 | H34: ='DATA (Real)'!H30 -> 11.2 | I34: ='DATA (Real)'!I30 -> 11.2 | J34: ='DATA (Real)'!J30 -> 11.2 | K34: ='DATA (Real)'!K30 -> 11.2 | L34: ='DATA (Real)'!L30 -> 11.2 | M34: ='DATA (Real)'!M30 -> 11.2 | N34: ='DATA (Real)'!N30 -> 11.2 | O34: ='DATA (Real)'!O30 -> 11.2 | P34: ='DATA (Real)'!P30 -> 11.2 | Q34: ='DATA (Real)'!Q30 -> 11.2 | R34: ='DATA (Real)'!R30 -> 11.2 | S34: ='DATA (Real)'!S30 -> 11.2 | T34: ='DATA (Real)'!T30 -> 11.2 | U34: ='DATA (Real)'!U30 -> 11.2 | V34: ='DATA (Real)'!V30 -> 11.2 | W34: ='DATA (Real)'!W30 -> 11.2 | X34: ='DATA (Real)'!X30 -> 11.2 | Y34: ='DATA (Real)'!Y30 -> 11.2 | Z34: ='DATA (Real)'!Z30 -> 11.2 | AA34: ='DATA (Real)'!AA30 -> 11.2 | AB34: ='DATA (Real)'!AB30 -> 11.2 | AC34: ='DATA (Real)'!AC30 -> 11.2 | AD34: ='DATA (Real)'!AD30 -> 11.2 | AE34: ='DATA (Real)'!AE30 -> 11.2 | AF34: ='DATA (Real)'!AF30 -> 11.2 | AG34: ='DATA (Real)'!AG30 -> 11.2 | AH34: ='DATA (Real)'!AH30 -> 11.2 | AI34: ='DATA (Real)'!AI30 -> 11.2 | AJ34: ='DATA (Real)'!AJ30 -> 11.2 | AK34: ='DATA (Real)'!AK30 -> 11.2 | AL34: ='DATA (Real)'!AL30 -> 11.2 | AM34: ='DATA (Real)'!AM30 -> 11.2 | AN34: ='DATA (Real)'!AN30 -> 11.2 | AO34: ='DATA (Real)'!AO30 -> 11.2 | AP34: ='DATA (Real)'!AP30 -> 11.2 | AQ34: ='DATA (Real)'!AQ30 -> 11.2 | AR34: ='DATA (Real)'!AR30 -> 11.2 | AS34: ='DATA (Real)'!AS30 -> 11.2 | AT34: ='DATA (Real)'!AT30 -> 11.2 | AU34: ='DATA (Real)'!AU30 -> 11.2 | AV34: ='DATA (Real)'!AV30 -> 11.2 | AW34: ='DATA (Real)'!AW30 -> 11.2 | AX34: ='DATA (Real)'!AX30 -> 11.2 | AY34: ='DATA (Real)'!AY30 -> 11.2 | AZ34: ='DATA (Real)'!AZ30 -> 11.2 | BA34: ='DATA (Real)'!BA30 -> 11.2 | BB34: ='DATA (Real)'!BB30 -> 11.2 | BC34: ='DATA (Real)'!BC30 -> 11.2 | BD34: ='DATA (Real)'!BD30 -> 11.2 | BE34: ='DATA (Real)'!BE30 -> 11.2 | BF34: ='DATA (Real)'!BF30 -> 11.2 | BG34: ='DATA (Real)'!BG30 -> 11.2 | BH34: ='DATA (Real)'!BH30 -> 11.2 | BI34: ='DATA (Real)'!BI30 -> 11.2 | BJ34: ='DATA (Real)'!BJ30 -> 11.2 | BK34: ='DATA (Real)'!BK30 -> 11.2 | BL34: ='DATA (Real)'!BL30 -> 11.2 | BM34: ='DATA (Real)'!BM30 -> 11.2 | BN34: ='DATA (Real)'!BN30 -> 11.2 | BO34: ='DATA (Real)'!BO30 -> 11.2 | BP34: ='DATA (Real)'!BP30 -> 11.2 | BQ34: ='DATA (Real)'!BQ30 -> 11.2 | BR34: ='DATA (Real)'!BR30 -> 11.2 | BS34: ='DATA (Real)'!BS30 -> 11.2 | BT34: ='DATA (Real)'!BT30 -> 11.2 | BU34: ='DATA (Real)'!BU30 -> 11.2 | BV34: ='DATA (Real)'!BV30 -> 11.2 | BW34: ='DATA (Real)'!BW30 -> 11.2 | BX34: ='DATA (Real)'!BX30 -> 11.2
C35: ='DATA (Real)'!C31 -> Internal | D35: ='DATA (Real)'!D31 -> Heat Rate (MMBtu/MWh) | E35: ='DATA (Real)'!E31 -> Rathdrum CT: Inlet Evaporation 2 unit operation | F35: ='DATA (Real)'!F31 -> 11.32 | G35: ='DATA (Real)'!G31 -> 11.32 | H35: ='DATA (Real)'!H31 -> 11.32 | I35: ='DATA (Real)'!I31 -> 11.32 | J35: ='DATA (Real)'!J31 -> 11.32 | K35: ='DATA (Real)'!K31 -> 11.32 | L35: ='DATA (Real)'!L31 -> 11.32 | M35: ='DATA (Real)'!M31 -> 11.32 | N35: ='DATA (Real)'!N31 -> 11.32 | O35: ='DATA (Real)'!O31 -> 11.32 | P35: ='DATA (Real)'!P31 -> 11.32 | Q35: ='DATA (Real)'!Q31 -> 11.32 | R35: ='DATA (Real)'!R31 -> 11.32 | S35: ='DATA (Real)'!S31 -> 11.32 | T35: ='DATA (Real)'!T31 -> 11.32 | U35: ='DATA (Real)'!U31 -> 11.32 | V35: ='DATA (Real)'!V31 -> 11.32 | W35: ='DATA (Real)'!W31 -> 11.32 | X35: ='DATA (Real)'!X31 -> 11.32 | Y35: ='DATA (Real)'!Y31 -> 11.32 | Z35: ='DATA (Real)'!Z31 -> 11.32 | AA35: ='DATA (Real)'!AA31 -> 11.32 | AB35: ='DATA (Real)'!AB31 -> 11.32 | AC35: ='DATA (Real)'!AC31 -> 11.32 | AD35: ='DATA (Real)'!AD31 -> 11.32 | AE35: ='DATA (Real)'!AE31 -> 11.32 | AF35: ='DATA (Real)'!AF31 -> 11.32 | AG35: ='DATA (Real)'!AG31 -> 11.32 | AH35: ='DATA (Real)'!AH31 -> 11.32 | AI35: ='DATA (Real)'!AI31 -> 11.32 | AJ35: ='DATA (Real)'!AJ31 -> 11.32 | AK35: ='DATA (Real)'!AK31 -> 11.32 | AL35: ='DATA (Real)'!AL31 -> 11.32 | AM35: ='DATA (Real)'!AM31 -> 11.32 | AN35: ='DATA (Real)'!AN31 -> 11.32 | AO35: ='DATA (Real)'!AO31 -> 11.32 | AP35: ='DATA (Real)'!AP31 -> 11.32 | AQ35: ='DATA (Real)'!AQ31 -> 11.32 | AR35: ='DATA (Real)'!AR31 -> 11.32 | AS35: ='DATA (Real)'!AS31 -> 11.32 | AT35: ='DATA (Real)'!AT31 -> 11.32 | AU35: ='DATA (Real)'!AU31 -> 11.32 | AV35: ='DATA (Real)'!AV31 -> 11.32 | AW35: ='DATA (Real)'!AW31 -> 11.32 | AX35: ='DATA (Real)'!AX31 -> 11.32 | AY35: ='DATA (Real)'!AY31 -> 11.32 | AZ35: ='DATA (Real)'!AZ31 -> 11.32 | BA35: ='DATA (Real)'!BA31 -> 11.32 | BB35: ='DATA (Real)'!BB31 -> 11.32 | BC35: ='DATA (Real)'!BC31 -> 11.32 | BD35: ='DATA (Real)'!BD31 -> 11.32 | BE35: ='DATA (Real)'!BE31 -> 11.32 | BF35: ='DATA (Real)'!BF31 -> 11.32 | BG35: ='DATA (Real)'!BG31 -> 11.32 | BH35: ='DATA (Real)'!BH31 -> 11.32 | BI35: ='DATA (Real)'!BI31 -> 11.32 | BJ35: ='DATA (Real)'!BJ31 -> 11.32 | BK35: ='DATA (Real)'!BK31 -> 11.32 | BL35: ='DATA (Real)'!BL31 -> 11.32 | BM35: ='DATA (Real)'!BM31 -> 11.32 | BN35: ='DATA (Real)'!BN31 -> 11.32 | BO35: ='DATA (Real)'!BO31 -> 11.32 | BP35: ='DATA (Real)'!BP31 -> 11.32 | BQ35: ='DATA (Real)'!BQ31 -> 11.32 | BR35: ='DATA (Real)'!BR31 -> 11.32 | BS35: ='DATA (Real)'!BS31 -> 11.32 | BT35: ='DATA (Real)'!BT31 -> 11.32 | BU35: ='DATA (Real)'!BU31 -> 11.32 | BV35: ='DATA (Real)'!BV31 -> 11.32 | BW35: ='DATA (Real)'!BW31 -> 11.32 | BX35: ='DATA (Real)'!BX31 -> 11.32
C36: ='DATA (Real)'!C32 -> Internal | D36: ='DATA (Real)'!D32 -> Heat Rate (MMBtu/MWh) | E36: ='DATA (Real)'!E32 -> 7F.04 CT Frame Greenfield | F36: ='DATA (Real)'!F32 -> 10.04 | G36: ='DATA (Real)'!G32 -> 10.04 | H36: ='DATA (Real)'!H32 -> 10.04 | I36: ='DATA (Real)'!I32 -> 10.04 | J36: ='DATA (Real)'!J32 -> 10.04 | K36: ='DATA (Real)'!K32 -> 10.04 | L36: ='DATA (Real)'!L32 -> 10.04 | M36: ='DATA (Real)'!M32 -> 10.04 | N36: ='DATA (Real)'!N32 -> 10.04 | O36: ='DATA (Real)'!O32 -> 10.04 | P36: ='DATA (Real)'!P32 -> 10.04 | Q36: ='DATA (Real)'!Q32 -> 10.04 | R36: ='DATA (Real)'!R32 -> 10.04 | S36: ='DATA (Real)'!S32 -> 10.04 | T36: ='DATA (Real)'!T32 -> 10.04 | U36: ='DATA (Real)'!U32 -> 10.04 | V36: ='DATA (Real)'!V32 -> 10.04 | W36: ='DATA (Real)'!W32 -> 10.04 | X36: ='DATA (Real)'!X32 -> 10.04 | Y36: ='DATA (Real)'!Y32 -> 10.04 | Z36: ='DATA (Real)'!Z32 -> 10.04 | AA36: ='DATA (Real)'!AA32 -> 10.04 | AB36: ='DATA (Real)'!AB32 -> 10.04 | AC36: ='DATA (Real)'!AC32 -> 10.04 | AD36: ='DATA (Real)'!AD32 -> 10.04 | AE36: ='DATA (Real)'!AE32 -> 10.04 | AF36: ='DATA (Real)'!AF32 -> 10.04 | AG36: ='DATA (Real)'!AG32 -> 10.04 | AH36: ='DATA (Real)'!AH32 -> 10.04 | AI36: ='DATA (Real)'!AI32 -> 10.04 | AJ36: ='DATA (Real)'!AJ32 -> 10.04 | AK36: ='DATA (Real)'!AK32 -> 10.04 | AL36: ='DATA (Real)'!AL32 -> 10.04 | AM36: ='DATA (Real)'!AM32 -> 10.04 | AN36: ='DATA (Real)'!AN32 -> 10.04 | AO36: ='DATA (Real)'!AO32 -> 10.04 | AP36: ='DATA (Real)'!AP32 -> 10.04 | AQ36: ='DATA (Real)'!AQ32 -> 10.04 | AR36: ='DATA (Real)'!AR32 -> 10.04 | AS36: ='DATA (Real)'!AS32 -> 10.04 | AT36: ='DATA (Real)'!AT32 -> 10.04 | AU36: ='DATA (Real)'!AU32 -> 10.04 | AV36: ='DATA (Real)'!AV32 -> 10.04 | AW36: ='DATA (Real)'!AW32 -> 10.04 | AX36: ='DATA (Real)'!AX32 -> 10.04 | AY36: ='DATA (Real)'!AY32 -> 10.04 | AZ36: ='DATA (Real)'!AZ32 -> 10.04 | BA36: ='DATA (Real)'!BA32 -> 10.04 | BB36: ='DATA (Real)'!BB32 -> 10.04 | BC36: ='DATA (Real)'!BC32 -> 10.04 | BD36: ='DATA (Real)'!BD32 -> 10.04 | BE36: ='DATA (Real)'!BE32 -> 10.04 | BF36: ='DATA (Real)'!BF32 -> 10.04 | BG36: ='DATA (Real)'!BG32 -> 10.04 | BH36: ='DATA (Real)'!BH32 -> 10.04 | BI36: ='DATA (Real)'!BI32 -> 10.04 | BJ36: ='DATA (Real)'!BJ32 -> 10.04 | BK36: ='DATA (Real)'!BK32 -> 10.04 | BL36: ='DATA (Real)'!BL32 -> 10.04 | BM36: ='DATA (Real)'!BM32 -> 10.04 | BN36: ='DATA (Real)'!BN32 -> 10.04 | BO36: ='DATA (Real)'!BO32 -> 10.04 | BP36: ='DATA (Real)'!BP32 -> 10.04 | BQ36: ='DATA (Real)'!BQ32 -> 10.04 | BR36: ='DATA (Real)'!BR32 -> 10.04 | BS36: ='DATA (Real)'!BS32 -> 10.04 | BT36: ='DATA (Real)'!BT32 -> 10.04 | BU36: ='DATA (Real)'!BU32 -> 10.04 | BV36: ='DATA (Real)'!BV32 -> 10.04 | BW36: ='DATA (Real)'!BW32 -> 10.04 | BX36: ='DATA (Real)'!BX32 -> 10.04
C37: ='DATA (Real)'!C33 -> Internal | D37: ='DATA (Real)'!D33 -> Heat Rate (MMBtu/MWh) | E37: ='DATA (Real)'!E33 -> Reciprocating Engine (ICE) Machine | F37: ='DATA (Real)'!F33 -> 8.19 | G37: ='DATA (Real)'!G33 -> 8.19 | H37: ='DATA (Real)'!H33 -> 8.19 | I37: ='DATA (Real)'!I33 -> 8.19 | J37: ='DATA (Real)'!J33 -> 8.19 | K37: ='DATA (Real)'!K33 -> 8.19 | L37: ='DATA (Real)'!L33 -> 8.19 | M37: ='DATA (Real)'!M33 -> 8.19 | N37: ='DATA (Real)'!N33 -> 8.19 | O37: ='DATA (Real)'!O33 -> 8.19 | P37: ='DATA (Real)'!P33 -> 8.19 | Q37: ='DATA (Real)'!Q33 -> 8.19 | R37: ='DATA (Real)'!R33 -> 8.19 | S37: ='DATA (Real)'!S33 -> 8.19 | T37: ='DATA (Real)'!T33 -> 8.19 | U37: ='DATA (Real)'!U33 -> 8.19 | V37: ='DATA (Real)'!V33 -> 8.19 | W37: ='DATA (Real)'!W33 -> 8.19 | X37: ='DATA (Real)'!X33 -> 8.19 | Y37: ='DATA (Real)'!Y33 -> 8.19 | Z37: ='DATA (Real)'!Z33 -> 8.19 | AA37: ='DATA (Real)'!AA33 -> 8.19 | AB37: ='DATA (Real)'!AB33 -> 8.19 | AC37: ='DATA (Real)'!AC33 -> 8.19 | AD37: ='DATA (Real)'!AD33 -> 8.19 | AE37: ='DATA (Real)'!AE33 -> 8.19 | AF37: ='DATA (Real)'!AF33 -> 8.19 | AG37: ='DATA (Real)'!AG33 -> 8.19 | AH37: ='DATA (Real)'!AH33 -> 8.19 | AI37: ='DATA (Real)'!AI33 -> 8.19 | AJ37: ='DATA (Real)'!AJ33 -> 8.19 | AK37: ='DATA (Real)'!AK33 -> 8.19 | AL37: ='DATA (Real)'!AL33 -> 8.19 | AM37: ='DATA (Real)'!AM33 -> 8.19 | AN37: ='DATA (Real)'!AN33 -> 8.19 | AO37: ='DATA (Real)'!AO33 -> 8.19 | AP37: ='DATA (Real)'!AP33 -> 8.19 | AQ37: ='DATA (Real)'!AQ33 -> 8.19 | AR37: ='DATA (Real)'!AR33 -> 8.19 | AS37: ='DATA (Real)'!AS33 -> 8.19 | AT37: ='DATA (Real)'!AT33 -> 8.19 | AU37: ='DATA (Real)'!AU33 -> 8.19 | AV37: ='DATA (Real)'!AV33 -> 8.19 | AW37: ='DATA (Real)'!AW33 -> 8.19 | AX37: ='DATA (Real)'!AX33 -> 8.19 | AY37: ='DATA (Real)'!AY33 -> 8.19 | AZ37: ='DATA (Real)'!AZ33 -> 8.19 | BA37: ='DATA (Real)'!BA33 -> 8.19 | BB37: ='DATA (Real)'!BB33 -> 8.19 | BC37: ='DATA (Real)'!BC33 -> 8.19 | BD37: ='DATA (Real)'!BD33 -> 8.19 | BE37: ='DATA (Real)'!BE33 -> 8.19 | BF37: ='DATA (Real)'!BF33 -> 8.19 | BG37: ='DATA (Real)'!BG33 -> 8.19 | BH37: ='DATA (Real)'!BH33 -> 8.19 | BI37: ='DATA (Real)'!BI33 -> 8.19 | BJ37: ='DATA (Real)'!BJ33 -> 8.19 | BK37: ='DATA (Real)'!BK33 -> 8.19 | BL37: ='DATA (Real)'!BL33 -> 8.19 | BM37: ='DATA (Real)'!BM33 -> 8.19 | BN37: ='DATA (Real)'!BN33 -> 8.19 | BO37: ='DATA (Real)'!BO33 -> 8.19 | BP37: ='DATA (Real)'!BP33 -> 8.19 | BQ37: ='DATA (Real)'!BQ33 -> 8.19 | BR37: ='DATA (Real)'!BR33 -> 8.19 | BS37: ='DATA (Real)'!BS33 -> 8.19 | BT37: ='DATA (Real)'!BT33 -> 8.19 | BU37: ='DATA (Real)'!BU33 -> 8.19 | BV37: ='DATA (Real)'!BV33 -> 8.19 | BW37: ='DATA (Real)'!BW33 -> 8.19 | BX37: ='DATA (Real)'!BX33 -> 8.19
C38: ='DATA (Real)'!C34 -> Internal | D38: ='DATA (Real)'!D34 -> Heat Rate (MMBtu/MWh) | E38: ='DATA (Real)'!E34 -> NG CCCT (1x1 w/DF) | F38: ='DATA (Real)'!F34 -> 6.82 | G38: ='DATA (Real)'!G34 -> 6.82 | H38: ='DATA (Real)'!H34 -> 6.82 | I38: ='DATA (Real)'!I34 -> 6.82 | J38: ='DATA (Real)'!J34 -> 6.82 | K38: ='DATA (Real)'!K34 -> 6.82 | L38: ='DATA (Real)'!L34 -> 6.82 | M38: ='DATA (Real)'!M34 -> 6.82 | N38: ='DATA (Real)'!N34 -> 6.82 | O38: ='DATA (Real)'!O34 -> 6.82 | P38: ='DATA (Real)'!P34 -> 6.82 | Q38: ='DATA (Real)'!Q34 -> 6.82 | R38: ='DATA (Real)'!R34 -> 6.82 | S38: ='DATA (Real)'!S34 -> 6.82 | T38: ='DATA (Real)'!T34 -> 6.82 | U38: ='DATA (Real)'!U34 -> 6.82 | V38: ='DATA (Real)'!V34 -> 6.82 | W38: ='DATA (Real)'!W34 -> 6.82 | X38: ='DATA (Real)'!X34 -> 6.82 | Y38: ='DATA (Real)'!Y34 -> 6.82 | Z38: ='DATA (Real)'!Z34 -> 6.82 | AA38: ='DATA (Real)'!AA34 -> 6.82 | AB38: ='DATA (Real)'!AB34 -> 6.82 | AC38: ='DATA (Real)'!AC34 -> 6.82 | AD38: ='DATA (Real)'!AD34 -> 6.82 | AE38: ='DATA (Real)'!AE34 -> 6.82 | AF38: ='DATA (Real)'!AF34 -> 6.82 | AG38: ='DATA (Real)'!AG34 -> 6.82 | AH38: ='DATA (Real)'!AH34 -> 6.82 | AI38: ='DATA (Real)'!AI34 -> 6.82 | AJ38: ='DATA (Real)'!AJ34 -> 6.82 | AK38: ='DATA (Real)'!AK34 -> 6.82 | AL38: ='DATA (Real)'!AL34 -> 6.82 | AM38: ='DATA (Real)'!AM34 -> 6.82 | AN38: ='DATA (Real)'!AN34 -> 6.82 | AO38: ='DATA (Real)'!AO34 -> 6.82 | AP38: ='DATA (Real)'!AP34 -> 6.82 | AQ38: ='DATA (Real)'!AQ34 -> 6.82 | AR38: ='DATA (Real)'!AR34 -> 6.82 | AS38: ='DATA (Real)'!AS34 -> 6.82 | AT38: ='DATA (Real)'!AT34 -> 6.82 | AU38: ='DATA (Real)'!AU34 -> 6.82 | AV38: ='DATA (Real)'!AV34 -> 6.82 | AW38: ='DATA (Real)'!AW34 -> 6.82 | AX38: ='DATA (Real)'!AX34 -> 6.82 | AY38: ='DATA (Real)'!AY34 -> 6.82 | AZ38: ='DATA (Real)'!AZ34 -> 6.82 | BA38: ='DATA (Real)'!BA34 -> 6.82 | BB38: ='DATA (Real)'!BB34 -> 6.82 | BC38: ='DATA (Real)'!BC34 -> 6.82 | BD38: ='DATA (Real)'!BD34 -> 6.82 | BE38: ='DATA (Real)'!BE34 -> 6.82 | BF38: ='DATA (Real)'!BF34 -> 6.82 | BG38: ='DATA (Real)'!BG34 -> 6.82 | BH38: ='DATA (Real)'!BH34 -> 6.82 | BI38: ='DATA (Real)'!BI34 -> 6.82 | BJ38: ='DATA (Real)'!BJ34 -> 6.82 | BK38: ='DATA (Real)'!BK34 -> 6.82 | BL38: ='DATA (Real)'!BL34 -> 6.82 | BM38: ='DATA (Real)'!BM34 -> 6.82 | BN38: ='DATA (Real)'!BN34 -> 6.82 | BO38: ='DATA (Real)'!BO34 -> 6.82 | BP38: ='DATA (Real)'!BP34 -> 6.82 | BQ38: ='DATA (Real)'!BQ34 -> 6.82 | BR38: ='DATA (Real)'!BR34 -> 6.82 | BS38: ='DATA (Real)'!BS34 -> 6.82 | BT38: ='DATA (Real)'!BT34 -> 6.82 | BU38: ='DATA (Real)'!BU34 -> 6.82 | BV38: ='DATA (Real)'!BV34 -> 6.82 | BW38: ='DATA (Real)'!BW34 -> 6.82 | BX38: ='DATA (Real)'!BX34 -> 6.82
C39: ='DATA (Real)'!C35 -> Internal | D39: ='DATA (Real)'!D35 -> Heat Rate (MMBtu/MWh) | E39: ='DATA (Real)'!E35 -> Hydrogen Fuel Cell with 40 hrs Storage | F39: ='DATA (Real)'!F35 -> 5.687 | G39: ='DATA (Real)'!G35 -> 5.687 | H39: ='DATA (Real)'!H35 -> 5.687 | I39: ='DATA (Real)'!I35 -> 5.687 | J39: ='DATA (Real)'!J35 -> 5.687 | K39: ='DATA (Real)'!K35 -> 5.687 | L39: ='DATA (Real)'!L35 -> 5.687 | M39: ='DATA (Real)'!M35 -> 5.687 | N39: ='DATA (Real)'!N35 -> 5.687 | O39: ='DATA (Real)'!O35 -> 5.687 | P39: ='DATA (Real)'!P35 -> 5.687 | Q39: ='DATA (Real)'!Q35 -> 5.687 | R39: ='DATA (Real)'!R35 -> 5.687 | S39: ='DATA (Real)'!S35 -> 5.687 | T39: ='DATA (Real)'!T35 -> 5.687 | U39: ='DATA (Real)'!U35 -> 5.687 | V39: ='DATA (Real)'!V35 -> 5.687 | W39: ='DATA (Real)'!W35 -> 5.687 | X39: ='DATA (Real)'!X35 -> 5.687 | Y39: ='DATA (Real)'!Y35 -> 5.687 | Z39: ='DATA (Real)'!Z35 -> 5.687 | AA39: ='DATA (Real)'!AA35 -> 5.687 | AB39: ='DATA (Real)'!AB35 -> 5.687 | AC39: ='DATA (Real)'!AC35 -> 5.687 | AD39: ='DATA (Real)'!AD35 -> 5.687 | AE39: ='DATA (Real)'!AE35 -> 5.687 | AF39: ='DATA (Real)'!AF35 -> 5.687 | AG39: ='DATA (Real)'!AG35 -> 5.687 | AH39: ='DATA (Real)'!AH35 -> 5.687 | AI39: ='DATA (Real)'!AI35 -> 5.687 | AJ39: ='DATA (Real)'!AJ35 -> 5.687 | AK39: ='DATA (Real)'!AK35 -> 5.687 | AL39: ='DATA (Real)'!AL35 -> 5.687 | AM39: ='DATA (Real)'!AM35 -> 5.687 | AN39: ='DATA (Real)'!AN35 -> 5.687 | AO39: ='DATA (Real)'!AO35 -> 5.687 | AP39: ='DATA (Real)'!AP35 -> 5.687 | AQ39: ='DATA (Real)'!AQ35 -> 5.687 | AR39: ='DATA (Real)'!AR35 -> 5.687 | AS39: ='DATA (Real)'!AS35 -> 5.687 | AT39: ='DATA (Real)'!AT35 -> 5.687 | AU39: ='DATA (Real)'!AU35 -> 5.687 | AV39: ='DATA (Real)'!AV35 -> 5.687 | AW39: ='DATA (Real)'!AW35 -> 5.687 | AX39: ='DATA (Real)'!AX35 -> 5.687 | AY39: ='DATA (Real)'!AY35 -> 5.687 | AZ39: ='DATA (Real)'!AZ35 -> 5.687 | BA39: ='DATA (Real)'!BA35 -> 5.687 | BB39: ='DATA (Real)'!BB35 -> 5.687 | BC39: ='DATA (Real)'!BC35 -> 5.687 | BD39: ='DATA (Real)'!BD35 -> 5.687 | BE39: ='DATA (Real)'!BE35 -> 5.687 | BF39: ='DATA (Real)'!BF35 -> 5.687 | BG39: ='DATA (Real)'!BG35 -> 5.687 | BH39: ='DATA (Real)'!BH35 -> 5.687 | BI39: ='DATA (Real)'!BI35 -> 5.687 | BJ39: ='DATA (Real)'!BJ35 -> 5.687 | BK39: ='DATA (Real)'!BK35 -> 5.687 | BL39: ='DATA (Real)'!BL35 -> 5.687 | BM39: ='DATA (Real)'!BM35 -> 5.687 | BN39: ='DATA (Real)'!BN35 -> 5.687 | BO39: ='DATA (Real)'!BO35 -> 5.687 | BP39: ='DATA (Real)'!BP35 -> 5.687 | BQ39: ='DATA (Real)'!BQ35 -> 5.687 | BR39: ='DATA (Real)'!BR35 -> 5.687 | BS39: ='DATA (Real)'!BS35 -> 5.687 | BT39: ='DATA (Real)'!BT35 -> 5.687 | BU39: ='DATA (Real)'!BU35 -> 5.687 | BV39: ='DATA (Real)'!BV35 -> 5.687 | BW39: ='DATA (Real)'!BW35 -> 5.687 | BX39: ='DATA (Real)'!BX35 -> 5.687
C40: ='DATA (Real)'!C36 -> Internal | D40: ='DATA (Real)'!D36 -> Heat Rate (MMBtu/MWh) | E40: ='DATA (Real)'!E36 -> 7F.04 CT Frame Greenfield + amonia + storage | F40: ='DATA (Real)'!F36 -> 10.04 | G40: ='DATA (Real)'!G36 -> 10.04 | H40: ='DATA (Real)'!H36 -> 10.04 | I40: ='DATA (Real)'!I36 -> 10.04 | J40: ='DATA (Real)'!J36 -> 10.04 | K40: ='DATA (Real)'!K36 -> 10.04 | L40: ='DATA (Real)'!L36 -> 10.04 | M40: ='DATA (Real)'!M36 -> 10.04 | N40: ='DATA (Real)'!N36 -> 10.04 | O40: ='DATA (Real)'!O36 -> 10.04 | P40: ='DATA (Real)'!P36 -> 10.04 | Q40: ='DATA (Real)'!Q36 -> 10.04 | R40: ='DATA (Real)'!R36 -> 10.04 | S40: ='DATA (Real)'!S36 -> 10.04 | T40: ='DATA (Real)'!T36 -> 10.04 | U40: ='DATA (Real)'!U36 -> 10.04 | V40: ='DATA (Real)'!V36 -> 10.04 | W40: ='DATA (Real)'!W36 -> 10.04 | X40: ='DATA (Real)'!X36 -> 10.04 | Y40: ='DATA (Real)'!Y36 -> 10.04 | Z40: ='DATA (Real)'!Z36 -> 10.04 | AA40: ='DATA (Real)'!AA36 -> 10.04 | AB40: ='DATA (Real)'!AB36 -> 10.04 | AC40: ='DATA (Real)'!AC36 -> 10.04 | AD40: ='DATA (Real)'!AD36 -> 10.04 | AE40: ='DATA (Real)'!AE36 -> 10.04 | AF40: ='DATA (Real)'!AF36 -> 10.04 | AG40: ='DATA (Real)'!AG36 -> 10.04 | AH40: ='DATA (Real)'!AH36 -> 10.04 | AI40: ='DATA (Real)'!AI36 -> 10.04 | AJ40: ='DATA (Real)'!AJ36 -> 10.04 | AK40: ='DATA (Real)'!AK36 -> 10.04 | AL40: ='DATA (Real)'!AL36 -> 10.04 | AM40: ='DATA (Real)'!AM36 -> 10.04 | AN40: ='DATA (Real)'!AN36 -> 10.04 | AO40: ='DATA (Real)'!AO36 -> 10.04 | AP40: ='DATA (Real)'!AP36 -> 10.04 | AQ40: ='DATA (Real)'!AQ36 -> 10.04 | AR40: ='DATA (Real)'!AR36 -> 10.04 | AS40: ='DATA (Real)'!AS36 -> 10.04 | AT40: ='DATA (Real)'!AT36 -> 10.04 | AU40: ='DATA (Real)'!AU36 -> 10.04 | AV40: ='DATA (Real)'!AV36 -> 10.04 | AW40: ='DATA (Real)'!AW36 -> 10.04 | AX40: ='DATA (Real)'!AX36 -> 10.04 | AY40: ='DATA (Real)'!AY36 -> 10.04 | AZ40: ='DATA (Real)'!AZ36 -> 10.04 | BA40: ='DATA (Real)'!BA36 -> 10.04 | BB40: ='DATA (Real)'!BB36 -> 10.04 | BC40: ='DATA (Real)'!BC36 -> 10.04 | BD40: ='DATA (Real)'!BD36 -> 10.04 | BE40: ='DATA (Real)'!BE36 -> 10.04 | BF40: ='DATA (Real)'!BF36 -> 10.04 | BG40: ='DATA (Real)'!BG36 -> 10.04 | BH40: ='DATA (Real)'!BH36 -> 10.04 | BI40: ='DATA (Real)'!BI36 -> 10.04 | BJ40: ='DATA (Real)'!BJ36 -> 10.04 | BK40: ='DATA (Real)'!BK36 -> 10.04 | BL40: ='DATA (Real)'!BL36 -> 10.04 | BM40: ='DATA (Real)'!BM36 -> 10.04 | BN40: ='DATA (Real)'!BN36 -> 10.04 | BO40: ='DATA (Real)'!BO36 -> 10.04 | BP40: ='DATA (Real)'!BP36 -> 10.04 | BQ40: ='DATA (Real)'!BQ36 -> 10.04 | BR40: ='DATA (Real)'!BR36 -> 10.04 | BS40: ='DATA (Real)'!BS36 -> 10.04 | BT40: ='DATA (Real)'!BT36 -> 10.04 | BU40: ='DATA (Real)'!BU36 -> 10.04 | BV40: ='DATA (Real)'!BV36 -> 10.04 | BW40: ='DATA (Real)'!BW36 -> 10.04 | BX40: ='DATA (Real)'!BX36 -> 10.04
B42: =D42 -> CAPEX ($/kW) | D42: ='DATA (Real)'!D38 -> CAPEX ($/kW)
B43: CPI Inflator | C43: ='DATA (Real)'!C39 -> NREL Utility-Scale Battery Storage - 4Hr/LAZARD’S LEVELIZED COST O F STORAGE ANALYSIS—VERSION 7 . 0 | D43: ='DATA (Real)'!D39 -> CAPEX ($/kW) | E43: ='DATA (Real)'!E39 -> Distribution Scale 4hr Lithium-Ion | F43: ='DATA (Real)'!F39 -> 2280.547644 | G43: ='DATA (Real)'!G39*G$4/100 -> 1996.817313 | H43: ='DATA (Real)'!H39*H$4/100 -> 1988.608659 | I43: ='DATA (Real)'!I39*I$4/100 -> 1879.408237 | J43: ='DATA (Real)'!J39*J$4/100 -> 1787.361168 | K43: ='DATA (Real)'!K39*K$4/100 -> 1728.949991 | L43: ='DATA (Real)'!L39*L$4/100 -> 1692.169516 | M43: ='DATA (Real)'!M39*M$4/100 -> 1661.447983 | N43: ='DATA (Real)'!N39*N$4/100 -> 1619.22665 | O43: ='DATA (Real)'!O39*O$4/100 -> 1592.233704 | P43: ='DATA (Real)'!P39*P$4/100 -> 1563.269363 | Q43: ='DATA (Real)'!Q39*Q$4/100 -> 1578.484682 | R43: ='DATA (Real)'!R39*R$4/100 -> 1592.801222 | S43: ='DATA (Real)'!S39*S$4/100 -> 1606.983703 | T43: ='DATA (Real)'!T39*T$4/100 -> 1621.019298 | U43: ='DATA (Real)'!U39*U$4/100 -> 1634.894679 | V43: ='DATA (Real)'!V39*V$4/100 -> 1648.596003 | W43: ='DATA (Real)'!W39*W$4/100 -> 1662.108896 | X43: ='DATA (Real)'!X39*X$4/100 -> 1675.418436 | Y43: ='DATA (Real)'!Y39*Y$4/100 -> 1688.509135 | Z43: ='DATA (Real)'!Z39*Z$4/100 -> 1701.364923 | AA43: ='DATA (Real)'!AA39*AA$4/100 -> 1713.969126 | AB43: ='DATA (Real)'!AB39*AB$4/100 -> 1726.304454 | AC43: ='DATA (Real)'!AC39*AC$4/100 -> 1738.352976 | AD43: ='DATA (Real)'!AD39*AD$4/100 -> 1750.096101 | AE43: ='DATA (Real)'!AE39*AE$4/100 -> 1761.51456 | AF43: ='DATA (Real)'!AF39*AF$4/100 -> 1772.588386 | AG43: ='DATA (Real)'!AG39*AG$4/100 -> 1783.296886 | AH43: ='DATA (Real)'!AH39*AH$4/100 -> 1793.618628 | AI43: ='DATA (Real)'!AI39*AI$4/100 -> 1803.531411 | AJ43: ='DATA (Real)'!AJ39*AJ$4/100 -> 1813.012245
B44: CPI Inflator | C44: ='DATA (Real)'!C40 -> NREL Utility-Scale Battery Storage - 8Hr/LAZARD’S LEVELIZED COST O F STORAGE ANALYSIS—VERSION 7 . 0 | D44: ='DATA (Real)'!D40 -> CAPEX ($/kW) | E44: ='DATA (Real)'!E40 -> Distribution Scale 8hr Lithium-Ion | F44: ='DATA (Real)'!F40 -> 4231.78909 | G44: ='DATA (Real)'!G40*G$4/100 -> 3671.212451 | H44: ='DATA (Real)'!H40*H$4/100 -> 3625.378604 | I44: ='DATA (Real)'!I40*I$4/100 -> 3405.050759 | J44: ='DATA (Real)'!J40*J$4/100 -> 3193.930251 | K44: ='DATA (Real)'!K40*K$4/100 -> 3081.628407 | L44: ='DATA (Real)'!L40*L$4/100 -> 2987.848582 | M44: ='DATA (Real)'!M40*M$4/100 -> 2909.643733 | N44: ='DATA (Real)'!N40*N$4/100 -> 2816.781316 | O44: ='DATA (Real)'!O40*O$4/100 -> 2736.314951 | P44: ='DATA (Real)'!P40*P$4/100 -> 2664.540686 | Q44: ='DATA (Real)'!Q40*Q$4/100 -> 2690.262609 | R44: ='DATA (Real)'!R40*R$4/100 -> 2714.66001 | S44: ='DATA (Real)'!S40*S$4/100 -> 2738.828809 | T44: ='DATA (Real)'!T40*T$4/100 -> 2762.747141 | U44: ='DATA (Real)'!U40*U$4/100 -> 2786.392285 | V44: ='DATA (Real)'!V40*V$4/100 -> 2809.740647 | W44: ='DATA (Real)'!W40*W$4/100 -> 2832.767722 | X44: ='DATA (Real)'!X40*X$4/100 -> 2855.448075 | Y44: ='DATA (Real)'!Y40*Y$4/100 -> 2877.755303 | Z44: ='DATA (Real)'!Z40*Z$4/100 -> 2899.662012 | AA44: ='DATA (Real)'!AA40*AA$4/100 -> 2921.139783 | AB44: ='DATA (Real)'!AB40*AB$4/100 -> 2942.15914 | AC44: ='DATA (Real)'!AC40*AC$4/100 -> 2962.689517 | AD44: ='DATA (Real)'!AD40*AD$4/100 -> 2982.699225 | AE44: ='DATA (Real)'!AE40*AE$4/100 -> 3002.155418 | AF44: ='DATA (Real)'!AF40*AF$4/100 -> 3021.024058 | AG44: ='DATA (Real)'!AG40*AG$4/100 -> 3039.269875 | AH44: ='DATA (Real)'!AH40*AH$4/100 -> 3056.856331 | AI44: ='DATA (Real)'!AI40*AI$4/100 -> 3073.745586 | AJ44: ='DATA (Real)'!AJ40*AJ$4/100 -> 3089.373198
B45: CPI Inflator | C45: ='DATA (Real)'!C41 -> NREL Utility-Scale Battery Storage - 4Hr/Internal | D45: ='DATA (Real)'!D41 -> CAPEX ($/kW) | E45: ='DATA (Real)'!E41 -> 4hr Lithium-Ion | F45: ='DATA (Real)'!F41 -> 1727.234445 | G45: ='DATA (Real)'!G41*G$4/100 -> 1512.343604 | H45: ='DATA (Real)'!H41*H$4/100 -> 1506.126558 | I45: ='DATA (Real)'!I41*I$4/100 -> 1423.420665 | J45: ='DATA (Real)'!J41*J$4/100 -> 1353.706327 | K45: ='DATA (Real)'!K41*K$4/100 -> 1309.467042 | L45: ='DATA (Real)'!L41*L$4/100 -> 1281.610355 | M45: ='DATA (Real)'!M41*M$4/100 -> 1258.342571 | N45: ='DATA (Real)'!N41*N$4/100 -> 1226.365102 | O45: ='DATA (Real)'!O41*O$4/100 -> 1205.921265 | P45: ='DATA (Real)'!P41*P$4/100 -> 1183.984337 | Q45: ='DATA (Real)'!Q41*Q$4/100 -> 1195.508071 | R45: ='DATA (Real)'!R41*R$4/100 -> 1206.35109 | S45: ='DATA (Real)'!S41*S$4/100 -> 1217.092575 | T45: ='DATA (Real)'!T41*T$4/100 -> 1227.722813 | U45: ='DATA (Real)'!U41*U$4/100 -> 1238.231707 | V45: ='DATA (Real)'!V41*V$4/100 -> 1248.608776 | W45: ='DATA (Real)'!W41*W$4/100 -> 1258.843131 | X45: ='DATA (Real)'!X41*X$4/100 -> 1268.923471 | Y45: ='DATA (Real)'!Y41*Y$4/100 -> 1278.838066 | Z45: ='DATA (Real)'!Z41*Z$4/100 -> 1288.574745 | AA45: ='DATA (Real)'!AA41*AA$4/100 -> 1298.120879 | AB45: ='DATA (Real)'!AB41*AB$4/100 -> 1307.463374 | AC45: ='DATA (Real)'!AC41*AC$4/100 -> 1316.588647 | AD45: ='DATA (Real)'!AD41*AD$4/100 -> 1325.482621 | AE45: ='DATA (Real)'!AE41*AE$4/100 -> 1334.1307 | AF45: ='DATA (Real)'!AF41*AF$4/100 -> 1342.517761 | AG45: ='DATA (Real)'!AG41*AG$4/100 -> 1350.628134 | AH45: ='DATA (Real)'!AH41*AH$4/100 -> 1358.445584 | AI45: ='DATA (Real)'!AI41*AI$4/100 -> 1365.953298 | AJ45: ='DATA (Real)'!AJ41*AJ$4/100 -> 1373.133864 | AK45: ='DATA (Real)'!AK41*AK$4/100 -> 1379.969253 | AL45: ='DATA (Real)'!AL41*AL$4/100 -> 1386.440803 | AM45: ='DATA (Real)'!AM41*AM$4/100 -> 1392.529196 | AN45: ='DATA (Real)'!AN41*AN$4/100 -> 1398.214441 | AO45: ='DATA (Real)'!AO41*AO$4/100 -> 1403.475852
B46: CPI Inflator | C46: ='DATA (Real)'!C42 -> NREL Utility-Scale Battery Storage - 8Hr | D46: ='DATA (Real)'!D42 -> CAPEX ($/kW) | E46: ='DATA (Real)'!E42 -> 8hr Lithium-Ion | F46: ='DATA (Real)'!F42 -> 3205.059934 | G46: ='DATA (Real)'!G42*G$4/100 -> 2780.492053 | H46: ='DATA (Real)'!H42*H$4/100 -> 2745.778549 | I46: ='DATA (Real)'!I42*I$4/100 -> 2578.907296 | J46: ='DATA (Real)'!J42*J$4/100 -> 2419.009469 | K46: ='DATA (Real)'!K42*K$4/100 -> 2333.954629 | L46: ='DATA (Real)'!L42*L$4/100 -> 2262.927942 | M46: ='DATA (Real)'!M42*M$4/100 -> 2203.697385 | N46: ='DATA (Real)'!N42*N$4/100 -> 2133.365521 | O46: ='DATA (Real)'!O42*O$4/100 -> 2072.422143 | P46: ='DATA (Real)'!P42*P$4/100 -> 2018.061962 | Q46: ='DATA (Real)'!Q42*Q$4/100 -> 2037.543156 | R46: ='DATA (Real)'!R42*R$4/100 -> 2056.021188 | S46: ='DATA (Real)'!S42*S$4/100 -> 2074.326082 | T46: ='DATA (Real)'!T42*T$4/100 -> 2092.441277 | U46: ='DATA (Real)'!U42*U$4/100 -> 2110.349567 | V46: ='DATA (Real)'!V42*V$4/100 -> 2128.03308 | W46: ='DATA (Real)'!W42*W$4/100 -> 2145.473259 | X46: ='DATA (Real)'!X42*X$4/100 -> 2162.650837 | Y46: ='DATA (Real)'!Y42*Y$4/100 -> 2179.54582 | Z46: ='DATA (Real)'!Z42*Z$4/100 -> 2196.137458 | AA46: ='DATA (Real)'!AA42*AA$4/100 -> 2212.404229 | AB46: ='DATA (Real)'!AB42*AB$4/100 -> 2228.323808 | AC46: ='DATA (Real)'!AC42*AC$4/100 -> 2243.873044 | AD46: ='DATA (Real)'!AD42*AD$4/100 -> 2259.027937 | AE46: ='DATA (Real)'!AE42*AE$4/100 -> 2273.763612 | AF46: ='DATA (Real)'!AF42*AF$4/100 -> 2288.054287 | AG46: ='DATA (Real)'!AG42*AG$4/100 -> 2301.873249 | AH46: ='DATA (Real)'!AH42*AH$4/100 -> 2315.192828 | AI46: ='DATA (Real)'!AI42*AI$4/100 -> 2327.984362 | AJ46: ='DATA (Real)'!AJ42*AJ$4/100 -> 2339.820356
B47: CPI Inflator | C47: ='DATA (Real)'!C43 -> NREL Utility-Scale Battery Storage - 16Hr | D47: ='DATA (Real)'!D43 -> CAPEX ($/kW) | E47: ='DATA (Real)'!E43 -> 16hr Lithium-Ion | F47: ='DATA (Real)'!F43 -> 6160.710913 | G47: ='DATA (Real)'!G43*G$4/100 -> 5316.788952 | H47: ='DATA (Real)'!H43*H$4/100 -> 5225.082533 | I47: ='DATA (Real)'!I43*I$4/100 -> 4889.88056 | J47: ='DATA (Real)'!J43*J$4/100 -> 4549.615753 | K47: ='DATA (Real)'!K43*K$4/100 -> 4382.929803 | L47: ='DATA (Real)'!L43*L$4/100 -> 4225.563117 | M47: ='DATA (Real)'!M43*M$4/100 -> 4094.407013 | N47: ='DATA (Real)'!N43*N$4/100 -> 3947.366359 | O47: ='DATA (Real)'!O43*O$4/100 -> 3805.4239 | P47: ='DATA (Real)'!P43*P$4/100 -> 3686.217211 | Q47: ='DATA (Real)'!Q43*Q$4/100 -> 3721.613327 | R47: ='DATA (Real)'!R43*R$4/100 -> 3755.361384 | S47: ='DATA (Real)'!S43*S$4/100 -> 3788.793095 | T47: ='DATA (Real)'!T43*T$4/100 -> 3821.878206 | U47: ='DATA (Real)'!U43*U$4/100 -> 3854.585286 | V47: ='DATA (Real)'!V43*V$4/100 -> 3886.881688 | W47: ='DATA (Real)'!W43*W$4/100 -> 3918.733513 | X47: ='DATA (Real)'!X43*X$4/100 -> 3950.105568 | Y47: ='DATA (Real)'!Y43*Y$4/100 -> 3980.961326 | Z47: ='DATA (Real)'!Z43*Z$4/100 -> 4011.262886 | AA47: ='DATA (Real)'!AA43*AA$4/100 -> 4040.970929 | AB47: ='DATA (Real)'!AB43*AB$4/100 -> 4070.044676 | AC47: ='DATA (Real)'!AC43*AC$4/100 -> 4098.441837 | AD47: ='DATA (Real)'!AD43*AD$4/100 -> 4126.118571 | AE47: ='DATA (Real)'!AE43*AE$4/100 -> 4153.029436 | AF47: ='DATA (Real)'!AF43*AF$4/100 -> 4179.127338 | AG47: ='DATA (Real)'!AG43*AG$4/100 -> 4204.363481 | AH47: ='DATA (Real)'!AH43*AH$4/100 -> 4228.687317 | AI47: ='DATA (Real)'!AI43*AI$4/100 -> 4252.046489 | AJ47: ='DATA (Real)'!AJ43*AJ$4/100 -> 4273.193341
B48: CPI Inflator | C48: ='DATA (Real)'!C44 -> Internal | D48: ='DATA (Real)'!D44 -> CAPEX ($/kW) | E48: ='DATA (Real)'!E44 -> 4 hr Vanadium Flow Battery | F48: ='DATA (Real)'!F44 -> 1632.88 | G48: ='DATA (Real)'!G44*G$4/100 -> 1489.59478 | H48: ='DATA (Real)'!H44*H$4/100 -> 1421.074865 | I48: ='DATA (Real)'!I44*I$4/100 -> 1378.118834 | J48: ='DATA (Real)'!J44*J$4/100 -> 1326.71274 | K48: ='DATA (Real)'!K44*K$4/100 -> 1300.557014 | L48: ='DATA (Real)'!L44*L$4/100 -> 1275.973063 | M48: ='DATA (Real)'!M44*M$4/100 -> 1256.520162 | N48: ='DATA (Real)'!N44*N$4/100 -> 1238.251267 | O48: ='DATA (Real)'!O44*O$4/100 -> 1222.839888 | P48: ='DATA (Real)'!P44*P$4/100 -> 1205.806428 | Q48: ='DATA (Real)'!Q44*Q$4/100 -> 1189.638707 | R48: ='DATA (Real)'!R44*R$4/100 -> 1174.721416 | S48: ='DATA (Real)'!S44*S$4/100 -> 1161.916838 | T48: ='DATA (Real)'!T44*T$4/100 -> 1151.726057 | U48: ='DATA (Real)'!U44*U$4/100 -> 1145.360587 | V48: ='DATA (Real)'!V44*V$4/100 -> 1141.392269 | W48: ='DATA (Real)'!W44*W$4/100 -> 1139.526457 | X48: ='DATA (Real)'!X44*X$4/100 -> 1140.2974 | Y48: ='DATA (Real)'!Y44*Y$4/100 -> 1140.61217 | Z48: ='DATA (Real)'!Z44*Z$4/100 -> 1140.470206 | AA48: ='DATA (Real)'!AA44*AA$4/100 -> 1139.871494 | AB48: ='DATA (Real)'!AB44*AB$4/100 -> 1138.816571 | AC48: ='DATA (Real)'!AC44*AC$4/100 -> 1137.306523 | AD48: ='DATA (Real)'!AD44*AD$4/100 -> 1135.342979 | AE48: ='DATA (Real)'!AE44*AE$4/100 -> 1132.928114 | AF48: ='DATA (Real)'!AF44*AF$4/100 -> 1130.064641 | AG48: ='DATA (Real)'!AG44*AG$4/100 -> 1126.755809 | AH48: ='DATA (Real)'!AH44*AH$4/100 -> 1123.005393 | AI48: ='DATA (Real)'!AI44*AI$4/100 -> 1118.81769 | AJ48: ='DATA (Real)'!AJ44*AJ$4/100 -> 1115.541788
B49: CPI Inflator | C49: ='DATA (Real)'!C45 -> Internal | D49: ='DATA (Real)'!D45 -> CAPEX ($/kW) | E49: ='DATA (Real)'!E45 -> 4 hr Zinc Bromide Flow Battery | F49: ='DATA (Real)'!F45 -> 1837 | G49: ='DATA (Real)'!G45*G$4/100 -> 1619.3155 | H49: ='DATA (Real)'!H45*H$4/100 -> 1492.755685 | I49: ='DATA (Real)'!I45*I$4/100 -> 1447.632897 | J49: ='DATA (Real)'!J45*J$4/100 -> 1393.633814 | K49: ='DATA (Real)'!K45*K$4/100 -> 1366.158761 | L49: ='DATA (Real)'!L45*L$4/100 -> 1340.334764 | M49: ='DATA (Real)'!M45*M$4/100 -> 1319.900634 | N49: ='DATA (Real)'!N45*N$4/100 -> 1300.710233 | O49: ='DATA (Real)'!O45*O$4/100 -> 1284.521484 | P49: ='DATA (Real)'!P45*P$4/100 -> 1266.628835 | Q49: ='DATA (Real)'!Q45*Q$4/100 -> 1249.645594 | R49: ='DATA (Real)'!R45*R$4/100 -> 1233.975855 | S49: ='DATA (Real)'!S45*S$4/100 -> 1220.525398 | T49: ='DATA (Real)'!T45*T$4/100 -> 1209.820582 | U49: ='DATA (Real)'!U45*U$4/100 -> 1203.134028 | V49: ='DATA (Real)'!V45*V$4/100 -> 1198.965543 | W49: ='DATA (Real)'!W45*W$4/100 -> 1197.005618 | X49: ='DATA (Real)'!X45*X$4/100 -> 1197.815449 | Y49: ='DATA (Real)'!Y45*Y$4/100 -> 1198.146096 | Z49: ='DATA (Real)'!Z45*Z$4/100 -> 1197.99697 | AA49: ='DATA (Real)'!AA45*AA$4/100 -> 1197.368059 | AB49: ='DATA (Real)'!AB45*AB$4/100 -> 1196.259925 | AC49: ='DATA (Real)'!AC45*AC$4/100 -> 1194.673707 | AD49: ='DATA (Real)'!AD45*AD$4/100 -> 1192.61112 | AE49: ='DATA (Real)'!AE45*AE$4/100 -> 1190.074446 | AF49: ='DATA (Real)'!AF45*AF$4/100 -> 1187.066536 | AG49: ='DATA (Real)'!AG45*AG$4/100 -> 1183.590802 | AH49: ='DATA (Real)'!AH45*AH$4/100 -> 1179.65121 | AI49: ='DATA (Real)'!AI45*AI$4/100 -> 1175.252274 | AJ49: ='DATA (Real)'!AJ45*AJ$4/100 -> 1171.811132
B50: CPI Inflator | C50: ='DATA (Real)'!C46 -> Form Energy | D50: ='DATA (Real)'!D46 -> CAPEX ($/kW) | E50: ='DATA (Real)'!E46 -> 100hr Iron Oxide | H50: ='DATA (Real)'!H46 -> 2500 | I50: ='DATA (Real)'!I46*I$4/$H$4 -> 2527.714 | J50: ='DATA (Real)'!J46*J$4/$H$4 -> 2535.429742 | K50: ='DATA (Real)'!K46*K$4/$H$4 -> 2540.213252 | L50: ='DATA (Real)'!L46*L$4/$H$4 -> 2545.005788 | M50: ='DATA (Real)'!M46*M$4/$H$4 -> 2549.807366 | N50: ='DATA (Real)'!N46*N$4/$H$4 -> 2553.785065 | O50: ='DATA (Real)'!O46*O$4/$H$4 -> 2557.76897 | P50: ='DATA (Real)'!P46*P$4/$H$4 -> 2561.759089 | Q50: ='DATA (Real)'!Q46*Q$4/$H$4 -> 2565.755434 | R50: ='DATA (Real)'!R46*R$4/$H$4 -> 2569.758012 | S50: ='DATA (Real)'!S46*S$4/$H$4 -> 2573.766835 | T50: ='DATA (Real)'!T46*T$4/$H$4 -> 2577.781911 | U50: ='DATA (Real)'!U46*U$4/$H$4 -> 2581.803251 | V50: ='DATA (Real)'!V46*V$4/$H$4 -> 2585.830864 | W50: ='DATA (Real)'!W46*W$4/$H$4 -> 2589.86476 | X50: ='DATA (Real)'!X46*X$4/$H$4 -> 2593.904949 | Y50: ='DATA (Real)'!Y46*Y$4/$H$4 -> 2597.951441 | Z50: ='DATA (Real)'!Z46*Z$4/$H$4 -> 2602.004245 | AA50: ='DATA (Real)'!AA46*AA$4/$H$4 -> 2606.063372 | AB50: ='DATA (Real)'!AB46*AB$4/$H$4 -> 2610.12883 | AC50: ='DATA (Real)'!AC46*AC$4/$H$4 -> 2614.200631 | AD50: ='DATA (Real)'!AD46*AD$4/$H$4 -> 2618.278784 | AE50: ='DATA (Real)'!AE46*AE$4/$H$4 -> 2622.363299 | AF50: ='DATA (Real)'!AF46*AF$4/$H$4 -> 2626.454186 | AG50: ='DATA (Real)'!AG46*AG$4/$H$4 -> 2630.551455 | AH50: ='DATA (Real)'!AH46*AH$4/$H$4 -> 2634.655115 | AI50: ='DATA (Real)'!AI46*AI$4/$H$4 -> 2638.765177 | AJ50: ='DATA (Real)'!AJ46*AJ$4/$H$4 -> 2642.88165
B51: CPI Inflator | C51: ='DATA (Real)'!C47 -> Internal | D51: ='DATA (Real)'!D47 -> CAPEX ($/kW) | E51: ='DATA (Real)'!E47 -> Liquid Air | H51: ='DATA (Real)'!H47 -> 1610 | I51: ='DATA (Real)'!I47*I$4/$H$4 -> 1661.0692 | J51: ='DATA (Real)'!J47*J$4/$H$4 -> 1700.142392 | K51: ='DATA (Real)'!K47*K$4/$H$4 -> 1738.112239 | L51: ='DATA (Real)'!L47*L$4/$H$4 -> 1776.930079 | M51: ='DATA (Real)'!M47*M$4/$H$4 -> 1816.614851 | N51: ='DATA (Real)'!N47*N$4/$H$4 -> 1856.580378 | O51: ='DATA (Real)'!O47*O$4/$H$4 -> 1897.425146 | P51: ='DATA (Real)'!P47*P$4/$H$4 -> 1939.168499 | Q51: ='DATA (Real)'!Q47*Q$4/$H$4 -> 1981.830206 | R51: ='DATA (Real)'!R47*R$4/$H$4 -> 2025.430471 | S51: ='DATA (Real)'!S47*S$4/$H$4 -> 2069.989941 | T51: ='DATA (Real)'!T47*T$4/$H$4 -> 2115.52972 | U51: ='DATA (Real)'!U47*U$4/$H$4 -> 2162.071374 | V51: ='DATA (Real)'!V47*V$4/$H$4 -> 2209.636944 | W51: ='DATA (Real)'!W47*W$4/$H$4 -> 2258.248957 | X51: ='DATA (Real)'!X47*X$4/$H$4 -> 2307.930434 | Y51: ='DATA (Real)'!Y47*Y$4/$H$4 -> 2358.704903 | Z51: ='DATA (Real)'!Z47*Z$4/$H$4 -> 2410.596411 | AA51: ='DATA (Real)'!AA47*AA$4/$H$4 -> 2463.629532 | AB51: ='DATA (Real)'!AB47*AB$4/$H$4 -> 2517.829382 | AC51: ='DATA (Real)'!AC47*AC$4/$H$4 -> 2573.221628 | AD51: ='DATA (Real)'!AD47*AD$4/$H$4 -> 2629.832504 | AE51: ='DATA (Real)'!AE47*AE$4/$H$4 -> 2687.688819 | AF51: ='DATA (Real)'!AF47*AF$4/$H$4 -> 2746.817973 | AG51: ='DATA (Real)'!AG47*AG$4/$H$4 -> 2807.247968 | AH51: ='DATA (Real)'!AH47*AH$4/$H$4 -> 2869.007424 | AI51: ='DATA (Real)'!AI47*AI$4/$H$4 -> 2932.125587 | AJ51: ='DATA (Real)'!AJ47*AJ$4/$H$4 -> 2996.63235
B52: CPI Inflator | C52: ='DATA (Real)'!C48 -> NREL Pumped Storage Hydropower - National Class 10 | D52: ='DATA (Real)'!D48 -> CAPEX ($/kW) | E52: ='DATA (Real)'!E48 -> Pumped Hydro (8.5 hr/ 400 MW share) | F52: ='DATA (Real)'!F48 -> 3754.52 | G52: ='DATA (Real)'!G48*G$4/100 -> 3848.383 | H52: ='DATA (Real)'!H48*H$4/100 -> 4125.124848 | I52: ='DATA (Real)'!I48*I$4/100 -> 4255.973808 | J52: ='DATA (Real)'!J48*J$4/100 -> 4356.086725 | K52: ='DATA (Real)'!K48*K$4/100 -> 4453.372662 | L52: ='DATA (Real)'!L48*L$4/100 -> 4552.831318 | M52: ='DATA (Real)'!M48*M$4/100 -> 4654.511218 | N52: ='DATA (Real)'!N48*N$4/100 -> 4756.910465 | O52: ='DATA (Real)'!O48*O$4/100 -> 4861.562495 | P52: ='DATA (Real)'!P48*P$4/100 -> 4968.51687 | Q52: ='DATA (Real)'!Q48*Q$4/100 -> 5077.824241 | R52: ='DATA (Real)'!R48*R$4/100 -> 5189.536374 | S52: ='DATA (Real)'!S48*S$4/100 -> 5303.706174 | T52: ='DATA (Real)'!T48*T$4/100 -> 5420.38771 | U52: ='DATA (Real)'!U48*U$4/100 -> 5539.63624 | V52: ='DATA (Real)'!V48*V$4/100 -> 5661.508237 | W52: ='DATA (Real)'!W48*W$4/100 -> 5786.061418 | X52: ='DATA (Real)'!X48*X$4/100 -> 5913.35477 | Y52: ='DATA (Real)'!Y48*Y$4/100 -> 6043.448574 | Z52: ='DATA (Real)'!Z48*Z$4/100 -> 6176.404443 | AA52: ='DATA (Real)'!AA48*AA$4/100 -> 6312.285341 | AB52: ='DATA (Real)'!AB48*AB$4/100 -> 6451.155618 | AC52: ='DATA (Real)'!AC48*AC$4/100 -> 6593.081042 | AD52: ='DATA (Real)'!AD48*AD$4/100 -> 6738.128825 | AE52: ='DATA (Real)'!AE48*AE$4/100 -> 6886.367659 | AF52: ='DATA (Real)'!AF48*AF$4/100 -> 7037.867748 | AG52: ='DATA (Real)'!AG48*AG$4/100 -> 7192.700838 | AH52: ='DATA (Real)'!AH48*AH$4/100 -> 7350.940256 | AI52: ='DATA (Real)'!AI48*AI$4/100 -> 7512.660942 | AJ52: ='DATA (Real)'!AJ48*AJ$4/100 -> 7677.939483
B53: CPI Inflator | C53: ='DATA (Real)'!C49 -> NREL Pumped Storage Hydropower - National Class 7 | D53: ='DATA (Real)'!D49 -> CAPEX ($/kW) | E53: ='DATA (Real)'!E49 -> Pumped Hydro (16 hr/ 100 MW) | F53: ='DATA (Real)'!F49 -> 3256.39 | G53: ='DATA (Real)'!G49*G$4/100 -> 3337.79975 | H53: ='DATA (Real)'!H49*H$4/100 -> 3577.824943 | I53: ='DATA (Real)'!I49*I$4/100 -> 3691.31355 | J53: ='DATA (Real)'!J49*J$4/100 -> 3778.144011 | K53: ='DATA (Real)'!K49*K$4/100 -> 3862.52256 | L53: ='DATA (Real)'!L49*L$4/100 -> 3948.785564 | M53: ='DATA (Real)'!M49*M$4/100 -> 4036.975109 | N53: ='DATA (Real)'!N49*N$4/100 -> 4125.788561 | O53: ='DATA (Real)'!O49*O$4/100 -> 4216.555909 | P53: ='DATA (Real)'!P49*P$4/100 -> 4309.320139 | Q53: ='DATA (Real)'!Q49*Q$4/100 -> 4404.125182 | R53: ='DATA (Real)'!R49*R$4/100 -> 4501.015936 | S53: ='DATA (Real)'!S49*S$4/100 -> 4600.038287 | T53: ='DATA (Real)'!T49*T$4/100 -> 4701.239129 | U53: ='DATA (Real)'!U49*U$4/100 -> 4804.66639 | V53: ='DATA (Real)'!V49*V$4/100 -> 4910.369051 | W53: ='DATA (Real)'!W49*W$4/100 -> 5018.39717 | X53: ='DATA (Real)'!X49*X$4/100 -> 5128.801908 | Y53: ='DATA (Real)'!Y49*Y$4/100 -> 5241.63555 | Z53: ='DATA (Real)'!Z49*Z$4/100 -> 5356.951532 | AA53: ='DATA (Real)'!AA49*AA$4/100 -> 5474.804465 | AB53: ='DATA (Real)'!AB49*AB$4/100 -> 5595.250164 | AC53: ='DATA (Real)'!AC49*AC$4/100 -> 5718.345667 | AD53: ='DATA (Real)'!AD49*AD$4/100 -> 5844.149272 | AE53: ='DATA (Real)'!AE49*AE$4/100 -> 5972.720556 | AF53: ='DATA (Real)'!AF49*AF$4/100 -> 6104.120408 | AG53: ='DATA (Real)'!AG49*AG$4/100 -> 6238.411057 | AH53: ='DATA (Real)'!AH49*AH$4/100 -> 6375.6561 | AI53: ='DATA (Real)'!AI49*AI$4/100 -> 6515.920535 | AJ53: ='DATA (Real)'!AJ49*AJ$4/100 -> 6659.270786
B54: CPI Inflator | C54: ='DATA (Real)'!C50 -> NREL Pumped Storage Hydropower - National Class 5 | D54: ='DATA (Real)'!D50 -> CAPEX ($/kW) | E54: ='DATA (Real)'!E50 -> Pumped Hyrdo (24 hr/ 100 MW) | F54: ='DATA (Real)'!F50 -> 2923.32 | G54: ='DATA (Real)'!G50*G$4/100 -> 2996.403 | H54: ='DATA (Real)'!H50*H$4/100 -> 3211.877942 | I54: ='DATA (Real)'!I50*I$4/100 -> 3313.75871 | J54: ='DATA (Real)'!J50*J$4/100 -> 3391.70798 | K54: ='DATA (Real)'!K50*K$4/100 -> 3467.456125 | L54: ='DATA (Real)'!L50*L$4/100 -> 3544.895979 | M54: ='DATA (Real)'!M50*M$4/100 -> 3624.065322 | N54: ='DATA (Real)'!N50*N$4/100 -> 3703.794759 | O54: ='DATA (Real)'!O50*O$4/100 -> 3785.278244 | P54: ='DATA (Real)'!P50*P$4/100 -> 3868.554365 | Q54: ='DATA (Real)'!Q50*Q$4/100 -> 3953.662561 | R54: ='DATA (Real)'!R50*R$4/100 -> 4040.643138 | S54: ='DATA (Real)'!S50*S$4/100 -> 4129.537287 | T54: ='DATA (Real)'!T50*T$4/100 -> 4220.387107 | U54: ='DATA (Real)'!U50*U$4/100 -> 4313.235623 | V54: ='DATA (Real)'!V50*V$4/100 -> 4408.126807 | W54: ='DATA (Real)'!W50*W$4/100 -> 4505.105597 | X54: ='DATA (Real)'!X50*X$4/100 -> 4604.21792 | Y54: ='DATA (Real)'!Y50*Y$4/100 -> 4705.510714 | Z54: ='DATA (Real)'!Z50*Z$4/100 -> 4809.03195 | AA54: ='DATA (Real)'!AA50*AA$4/100 -> 4914.830653 | AB54: ='DATA (Real)'!AB50*AB$4/100 -> 5022.956927 | AC54: ='DATA (Real)'!AC50*AC$4/100 -> 5133.46198 | AD54: ='DATA (Real)'!AD50*AD$4/100 -> 5246.398143 | AE54: ='DATA (Real)'!AE50*AE$4/100 -> 5361.818902 | AF54: ='DATA (Real)'!AF50*AF$4/100 -> 5479.778918 | AG54: ='DATA (Real)'!AG50*AG$4/100 -> 5600.334054 | AH54: ='DATA (Real)'!AH50*AH$4/100 -> 5723.541404 | AI54: ='DATA (Real)'!AI50*AI$4/100 -> 5849.459314 | AJ54: ='DATA (Real)'!AJ50*AJ$4/100 -> 5978.147419
B55: CPI Inflator | C55: ='DATA (Real)'!C51 -> Internal | D55: ='DATA (Real)'!D51 -> CAPEX ($/kW) | E55: ='DATA (Real)'!E51 -> Wood Biomass | H55: ='DATA (Real)'!H51 -> 4756.059028 | I55: ='DATA (Real)'!I51*I$4/$H$4 -> 4906.92122 | J55: ='DATA (Real)'!J51*J$4/$H$4 -> 5022.346319 | K55: ='DATA (Real)'!K51*K$4/$H$4 -> 5134.512054 | L55: ='DATA (Real)'!L51*L$4/$H$4 -> 5249.182823 | M55: ='DATA (Real)'!M51*M$4/$H$4 -> 5366.414572 | N55: ='DATA (Real)'!N51*N$4/$H$4 -> 5484.475693 | O55: ='DATA (Real)'!O51*O$4/$H$4 -> 5605.134158 | P55: ='DATA (Real)'!P51*P$4/$H$4 -> 5728.44711 | Q55: ='DATA (Real)'!Q51*Q$4/$H$4 -> 5854.472946 | R55: ='DATA (Real)'!R51*R$4/$H$4 -> 5983.271351 | S55: ='DATA (Real)'!S51*S$4/$H$4 -> 6114.903321 | T55: ='DATA (Real)'!T51*T$4/$H$4 -> 6249.431194 | U55: ='DATA (Real)'!U51*U$4/$H$4 -> 6386.91868 | V55: ='DATA (Real)'!V51*V$4/$H$4 -> 6527.430891 | W55: ='DATA (Real)'!W51*W$4/$H$4 -> 6671.034371 | X55: ='DATA (Real)'!X51*X$4/$H$4 -> 6817.797127 | Y55: ='DATA (Real)'!Y51*Y$4/$H$4 -> 6967.788664 | Z55: ='DATA (Real)'!Z51*Z$4/$H$4 -> 7121.080014 | AA55: ='DATA (Real)'!AA51*AA$4/$H$4 -> 7277.743774 | AB55: ='DATA (Real)'!AB51*AB$4/$H$4 -> 7437.854138 | AC55: ='DATA (Real)'!AC51*AC$4/$H$4 -> 7601.486929 | AD55: ='DATA (Real)'!AD51*AD$4/$H$4 -> 7768.719641 | AE55: ='DATA (Real)'!AE51*AE$4/$H$4 -> 7939.631473 | AF55: ='DATA (Real)'!AF51*AF$4/$H$4 -> 8114.303365 | AG55: ='DATA (Real)'!AG51*AG$4/$H$4 -> 8292.81804 | AH55: ='DATA (Real)'!AH51*AH$4/$H$4 -> 8475.260036 | AI55: ='DATA (Real)'!AI51*AI$4/$H$4 -> 8661.715757 | AJ55: ='DATA (Real)'!AJ51*AJ$4/$H$4 -> 8852.273504
B56: CPI Inflator | C56: ='DATA (Real)'!C52 -> Internal | D56: ='DATA (Real)'!D52 -> CAPEX ($/kW) | E56: ='DATA (Real)'!E52 -> Rathdrum CT 2055 Uprates two unit operation | H56: ='DATA (Real)'!H52 -> 829.15 | I56: ='DATA (Real)'!I52*I$4/$H$4 -> 855.450638 | J56: ='DATA (Real)'!J52*J$4/$H$4 -> 875.5733321 | K56: ='DATA (Real)'!K52*K$4/$H$4 -> 895.1278032 | L56: ='DATA (Real)'!L52*L$4/$H$4 -> 915.1189908 | M56: ='DATA (Real)'!M52*M$4/$H$4 -> 935.5566482 | N56: ='DATA (Real)'!N52*N$4/$H$4 -> 956.1388945 | O56: ='DATA (Real)'!O52*O$4/$H$4 -> 977.1739502 | P56: ='DATA (Real)'!P52*P$4/$H$4 -> 998.6717771 | Q56: ='DATA (Real)'!Q52*Q$4/$H$4 -> 1020.642556 | R56: ='DATA (Real)'!R52*R$4/$H$4 -> 1043.096692 | S56: ='DATA (Real)'!S52*S$4/$H$4 -> 1066.04482 | T56: ='DATA (Real)'!T52*T$4/$H$4 -> 1089.497806 | U56: ='DATA (Real)'!U52*U$4/$H$4 -> 1113.466757 | V56: ='DATA (Real)'!V52*V$4/$H$4 -> 1137.963026 | W56: ='DATA (Real)'!W52*W$4/$H$4 -> 1162.998213 | X56: ='DATA (Real)'!X52*X$4/$H$4 -> 1188.584173 | Y56: ='DATA (Real)'!Y52*Y$4/$H$4 -> 1214.733025 | Z56: ='DATA (Real)'!Z52*Z$4/$H$4 -> 1241.457152 | AA56: ='DATA (Real)'!AA52*AA$4/$H$4 -> 1268.769209 | AB56: ='DATA (Real)'!AB52*AB$4/$H$4 -> 1296.682132 | AC56: ='DATA (Real)'!AC52*AC$4/$H$4 -> 1325.209138 | AD56: ='DATA (Real)'!AD52*AD$4/$H$4 -> 1354.36374 | AE56: ='DATA (Real)'!AE52*AE$4/$H$4 -> 1384.159742 | AF56: ='DATA (Real)'!AF52*AF$4/$H$4 -> 1414.611256 | AG56: ='DATA (Real)'!AG52*AG$4/$H$4 -> 1445.732704 | AH56: ='DATA (Real)'!AH52*AH$4/$H$4 -> 1477.538823 | AI56: ='DATA (Real)'!AI52*AI$4/$H$4 -> 1510.044677 | AJ56: ='DATA (Real)'!AJ52*AJ$4/$H$4 -> 1543.26566
B57: CPI Inflator | C57: ='DATA (Real)'!C53 -> Internal | D57: ='DATA (Real)'!D53 -> CAPEX ($/kW) | E57: ='DATA (Real)'!E53 -> Rathdrum CT: Inlet Evaporation 2 unit operation | H57: ='DATA (Real)'!H53 -> 150 | I57: ='DATA (Real)'!I53*I$4/$H$4 -> 154.758 | J57: ='DATA (Real)'!J53*J$4/$H$4 -> 158.3983595 | K57: ='DATA (Real)'!K53*K$4/$H$4 -> 161.9359229 | L57: ='DATA (Real)'!L53*L$4/$H$4 -> 165.5524918 | M57: ='DATA (Real)'!M53*M$4/$H$4 -> 169.2498308 | N57: ='DATA (Real)'!N53*N$4/$H$4 -> 172.9733271 | O57: ='DATA (Real)'!O53*O$4/$H$4 -> 176.7787403 | P57: ='DATA (Real)'!P53*P$4/$H$4 -> 180.6678726 | Q57: ='DATA (Real)'!Q53*Q$4/$H$4 -> 184.6425658 | R57: ='DATA (Real)'!R53*R$4/$H$4 -> 188.7047022 | S57: ='DATA (Real)'!S53*S$4/$H$4 -> 192.8562057 | T57: ='DATA (Real)'!T53*T$4/$H$4 -> 197.0990422 | U57: ='DATA (Real)'!U53*U$4/$H$4 -> 201.4352211 | V57: ='DATA (Real)'!V53*V$4/$H$4 -> 205.866796 | W57: ='DATA (Real)'!W53*W$4/$H$4 -> 210.3958655 | X57: ='DATA (Real)'!X53*X$4/$H$4 -> 215.0245746 | Y57: ='DATA (Real)'!Y53*Y$4/$H$4 -> 219.7551152 | Z57: ='DATA (Real)'!Z53*Z$4/$H$4 -> 224.5897277 | AA57: ='DATA (Real)'!AA53*AA$4/$H$4 -> 229.5307017 | AB57: ='DATA (Real)'!AB53*AB$4/$H$4 -> 234.5803772 | AC57: ='DATA (Real)'!AC53*AC$4/$H$4 -> 239.7411455 | AD57: ='DATA (Real)'!AD53*AD$4/$H$4 -> 245.0154507 | AE57: ='DATA (Real)'!AE53*AE$4/$H$4 -> 250.4057906 | AF57: ='DATA (Real)'!AF53*AF$4/$H$4 -> 255.914718 | AG57: ='DATA (Real)'!AG53*AG$4/$H$4 -> 261.5448418 | AH57: ='DATA (Real)'!AH53*AH$4/$H$4 -> 267.2988283 | AI57: ='DATA (Real)'!AI53*AI$4/$H$4 -> 273.1794025 | AJ57: ='DATA (Real)'!AJ53*AJ$4/$H$4 -> 279.1893494
B58: CPI Inflator | C58: ='DATA (Real)'!C54 -> Internal | D58: ='DATA (Real)'!D54 -> CAPEX ($/kW) | E58: ='DATA (Real)'!E54 -> New Residential Solar | H58: ='DATA (Real)'!H54 -> 3588 | I58: ='DATA (Real)'!I54*I$4/$H$4 -> 3701.81136 | J58: ='DATA (Real)'!J54*J$4/$H$4 -> 3788.88876 | K58: ='DATA (Real)'!K54*K$4/$H$4 -> 3873.507276 | L58: ='DATA (Real)'!L54*L$4/$H$4 -> 3960.015605 | M58: ='DATA (Real)'!M54*M$4/$H$4 -> 4048.455953 | N58: ='DATA (Real)'!N54*N$4/$H$4 -> 4137.521984 | O58: ='DATA (Real)'!O54*O$4/$H$4 -> 4228.547468 | P58: ='DATA (Real)'!P54*P$4/$H$4 -> 4321.575512 | Q58: ='DATA (Real)'!Q54*Q$4/$H$4 -> 4416.650174 | R58: ='DATA (Real)'!R54*R$4/$H$4 -> 4513.816477 | S58: ='DATA (Real)'!S54*S$4/$H$4 -> 4613.12044 | T58: ='DATA (Real)'!T54*T$4/$H$4 -> 4714.60909 | U58: ='DATA (Real)'!U54*U$4/$H$4 -> 4818.33049 | V58: ='DATA (Real)'!V54*V$4/$H$4 -> 4924.33376 | W58: ='DATA (Real)'!W54*W$4/$H$4 -> 5032.669103 | X58: ='DATA (Real)'!X54*X$4/$H$4 -> 5143.387823 | Y58: ='DATA (Real)'!Y54*Y$4/$H$4 -> 5256.542356 | Z58: ='DATA (Real)'!Z54*Z$4/$H$4 -> 5372.186287 | AA58: ='DATA (Real)'!AA54*AA$4/$H$4 -> 5490.374386 | AB58: ='DATA (Real)'!AB54*AB$4/$H$4 -> 5611.162622 | AC58: ='DATA (Real)'!AC54*AC$4/$H$4 -> 5734.6082 | AD58: ='DATA (Real)'!AD54*AD$4/$H$4 -> 5860.76958 | AE58: ='DATA (Real)'!AE54*AE$4/$H$4 -> 5989.706511 | AF58: ='DATA (Real)'!AF54*AF$4/$H$4 -> 6121.480054 | AG58: ='DATA (Real)'!AG54*AG$4/$H$4 -> 6256.152615 | AH58: ='DATA (Real)'!AH54*AH$4/$H$4 -> 6393.787973 | AI58: ='DATA (Real)'!AI54*AI$4/$H$4 -> 6534.451308 | AJ58: ='DATA (Real)'!AJ54*AJ$4/$H$4 -> 6678.209237 | AK58: ='DATA (Real)'!AK54*AK$4/$H$4 -> 6825.12984 | AL58: ='DATA (Real)'!AL54*AL$4/$H$4 -> 6975.282697 | AM58: ='DATA (Real)'!AM54*AM$4/$H$4 -> 7128.738916 | AN58: ='DATA (Real)'!AN54*AN$4/$H$4 -> 7285.571172 | AO58: ='DATA (Real)'!AO54*AO$4/$H$4 -> 7445.853738
